Workbook

Sheet custos Variáveis até dez-20
A1: Composição dos encargos sociais previstos | H1: São José
G2: Bacia (Lote): | H2: 5 | K2: Metodologia de Cálculo do Diesel - ICMS Monofásico - a partir de 01/05/2023
A3: Combustível | K3: 2012-09-01 | L3: 1.929 | M3: preço médio distribuição | O3: Data NF | P3: Valor Bruto | Q3: Valor desc ICMS | R3: Desconto
C4: Preço de Proposta | D4: =1.84651 -> 1.84651 | E4: R$/litro | K4: 2022-09-01 | L4: 5.954 | M4: preço médio distribuição | O4: 2023-05-27 | P4: 4.5359 | Q4: =57600/15000 -> 3.84 | R4: =P4-Q4 -> 0.6959
C5: Preço: | D5: =D4 -> 1.84651 | E5: R$/litro | K5: Percentual Acumulado | L5: =L4/L3 -> 3.086573354 | M5: acumulado para deflacionar | O5: 2023-05-29 | P5: 4.5359 | Q5: =57600/15000 -> 3.84 | R5: =P5-Q5 -> 0.6959
K6: 1 | L6: 0.9456 | M6: ICMS BRUTO | O6: Média | P6: =AVERAGE(P4:P5) -> 4.5359 | Q6: =AVERAGE(Q4:Q5) -> 3.84 | R6: =P6-Q6 -> 0.6959
K7: =L7/L6 -> 0.7359348562 | L7: =R6 -> 0.6959 | M7: Desconto ICMS
A8: Combustível | F8: Lubrificante - Coeficiente do custo/km c/combustível | H8: Média km/L | K8: =L8/L6 -> 0.2640651438 | L8: =L6-L7 -> 0.2497 | M8: ICMS PAGO
A9: Tipo Veículo | C9: Ar Condicionado | D9: Litros/km | E9: R$/km | F9: Coeficiente | G9: R$/km | H9: Veículo | L9: =L8/L5 -> 0.08089877393 | M9: ICMS pago deflacionado a preços de proposta
A10: Miniônibus | C10: Sem Ar | D10: =0.25331 -> 0.25331 | E10: =D10*$D$5 -> 0.4677394481 | F10: 0.03 | G10: =E10*$F$10 -> 0.01403218344 | H10: =1/D10 -> 3.947732028 | K10: Preço diesel proposta | L10: =D4 -> 1.84651
A11: Ônibus Básico | C11: Sem Ar | D11: =0.35713 -> 0.35713 | E11: =D11*$D$5 -> 0.6594441163 | G11: =E11*$F$10 -> 0.01978332349 | H11: =1/D11 -> 2.800100804 | K11: Preço disesel proposta COM ICMS | L11: =L9+L10 -> 1.927408774
A12: Padron | C12: Com Ar | D12: 0 | E12: =D12*$D$5 -> 0 | G12: =E12*$F$10 -> 0 | H12: 0
A13: Articulado | C13: Com Ar | D13: =0.71428 -> 0.71428 | E13: =D13*$D$5 -> 1.318925163 | G13: =E13*$F$10 -> 0.03956775488 | H13: =1/D13 -> 1.4000112
A14: Articulado BRT | C14: Com Ar | D14: 0 | E14: =D14*$D$5 -> 0 | G14: =E14*$F$10 -> 0 | H14: 0
A19: Pneus
A20: Pneus
A21: Tipo | C21: Quantidade | D21: Custo (R$) | E21: Vida | F21: Número de | G21: Custo Unitário | H21: Custo por km
A22: Veículos | C22: de Pneus | D22: Unitário | E22: Útil | F22: Recapagens | G22: Recapagem (R$) | H22: (R$/km)
A23: Miniônibus | C23: 6 | D23: 750 | E23: 140000 | F23: 1.5 | G23: 230 | H23: =((C23*D23+C23*F23*G23)/E23) -> 0.04692857143
A24: Ônibus Básico | C24: 6 | D24: 1350 | E24: 160000 | F24: 1.5 | G24: 380 | H24: =((C24*D24+C24*F24*G24)/E24) -> 0.072
A25: Padron | C25: 0 | D25: 0 | E25: 0 | F25: 0 | G25: 0 | H25: 0
A26: Articulado | C26: 10 | D26: 1551 | E26: 160000 | F26: 1.5 | G26: 420 | H26: =((C26*D26+C26*F26*G26)/E26) -> 0.1363125
A27: Articulado BRT | C27: 0 | D27: 0 | E27: 0 | F27: 0 | G27: 0 | H27: 0
A31: Peças e acessórios de reposição
C33: Coeficiente do valor do veículo novo
C34: Tipo | E34: Ar Condicionado | F34: Coeficiente | G34: R$/km
C35: Veículos
C36: Miniônibus | E36: Sem Ar | F36: 1.048154141e-06 | G36: ='Custo Capital'!F9*F36 ->  | H36: 0.4555869521 | I36: =H36/'Custo Capital'!H15 -> 
C37: Ônibus Básico | E37: Sem Ar | F37: 6.290867032e-07 | G37: ='Custo Capital'!G9*'Custos Variáveis'!F37 -> 
C38: Padron | G38: 0
C39: Articulado | E39: Com Ar | F39: 6.588482148e-07 | G39: =F39*'Custo Capital'!H15 -> 
C40: Articulado BRT | G40: 0
A43: Custo variável por km
C45: Tipo | E45: Ar Condicionado | F45: R$/km (total)
C46: Veículos
C47: Miniônibus | E47: Sem Ar | F47: =E10+G10+H23+G36 -> 
C48: Ônibus Básico | E48: Sem Ar | F48: =E11+G11+H24+G37 -> 
C49: Padron | F49: =E12+G12+H25+G38 -> 0
C50: Articulado | E50: Com Ar | F50: =E13+G13+H26+G39 -> 
C51: Articulado BRT | F51: =E14+G14+H27+G40 -> 0

Sheet Custos Variáveis jan21 a abr21
A1: Composição dos encargos sociais previstos | H1: São José
G2: Bacia (Lote): | H2: 5
A3: Combustível
C4: Preço de Proposta | D4: =1.84651 -> 1.84651 | E4: R$/litro
C5: Preço: | D5: =D4/(1-(F5/100*100)) -> 2.172364706 | E5: R$/litro | F5: 0.15 | G5: ICMS
A8: Combustível | F8: Lubrificante - Coeficiente do custo/km c/combustível | H8: Média km/L
A9: Tipo Veículo | C9: Ar Condicionado | D9: Litros/km | E9: R$/km | F9: Coeficiente | G9: R$/km | H9: Veículo
A10: Miniônibus | C10: Sem Ar | D10: =0.25331 -> 0.25331 | E10: =D10*$D$5 -> 0.5502817036 | F10: 0.03 | G10: =E10*$F$10 -> 0.01650845111 | H10: =1/D10 -> 3.947732028
A11: Ônibus Básico | C11: Sem Ar | D11: =0.35713 -> 0.35713 | E11: =D11*$D$5 -> 0.7758166074 | G11: =E11*$F$10 -> 0.02327449822 | H11: =1/D11 -> 2.800100804
A12: Padron | C12: Com Ar | D12: 0 | E12: =D12*$D$5 -> 0 | G12: =E12*$F$10 -> 0 | H12: 0
A13: Articulado | C13: Com Ar | D13: =0.71428 -> 0.71428 | E13: =D13*$D$5 -> 1.551676662 | G13: =E13*$F$10 -> 0.04655029986 | H13: =1/D13 -> 1.4000112
A14: Articulado BRT | C14: Com Ar | D14: 0 | E14: =D14*$D$5 -> 0 | G14: =E14*$F$10 -> 0 | H14: 0
A19: Pneus
A20: Pneus
A21: Tipo | C21: Quantidade | D21: Custo (R$) | E21: Vida | F21: Número de | G21: Custo Unitário | H21: Custo por km
A22: Veículos | C22: de Pneus | D22: Unitário | E22: Útil | F22: Recapagens | G22: Recapagem (R$) | H22: (R$/km)
A23: Miniônibus | C23: 6 | D23: 750 | E23: 140000 | F23: 1.5 | G23: 230 | H23: =((C23*D23+C23*F23*G23)/E23) -> 0.04692857143
A24: Ônibus Básico | C24: 6 | D24: 1350 | E24: 160000 | F24: 1.5 | G24: 380 | H24: =((C24*D24+C24*F24*G24)/E24) -> 0.072
A25: Padron | C25: 0 | D25: 0 | E25: 0 | F25: 0 | G25: 0 | H25: 0
A26: Articulado | C26: 10 | D26: 1551 | E26: 160000 | F26: 1.5 | G26: 420 | H26: =((C26*D26+C26*F26*G26)/E26) -> 0.1363125
A27: Articulado BRT | C27: 0 | D27: 0 | E27: 0 | F27: 0 | G27: 0 | H27: 0
A31: Peças e acessórios de reposição
C33: Coeficiente do valor do veículo novo
C34: Tipo | E34: Ar Condicionado | F34: Coeficiente | G34: R$/km
C35: Veículos
C36: Miniônibus | E36: Sem Ar | F36: 1.048154141e-06 | G36: ='Custo Capital'!F9*F36 ->  | H36: 0.4555869521 | I36: =H36/'Custo Capital'!H15 -> 
C37: Ônibus Básico | E37: Sem Ar | F37: 6.290867032e-07 | G37: ='Custo Capital'!G9*'Custos Variáveis'!F37 -> 
C38: Padron | G38: 0
C39: Articulado | E39: Com Ar | F39: 6.588482148e-07 | G39: =F39*'Custo Capital'!H15 -> 
C40: Articulado BRT | G40: 0
A43: Custo variável por km
C45: Tipo | E45: Ar Condicionado | F45: R$/km (total)
C46: Veículos
C47: Miniônibus | E47: Sem Ar | F47: =E10+G10+H23+G36 -> 
C48: Ônibus Básico | E48: Sem Ar | F48: =E11+G11+H24+G37 -> 
C49: Padron | F49: =E12+G12+H25+G38 -> 0
C50: Articulado | E50: Com Ar | F50: =E13+G13+H26+G39 -> 
C51: Articulado BRT | F51: =E14+G14+H27+G40 -> 0

Sheet Custos Variáveis mai21 a dez21
A1: Composição dos encargos sociais previstos | H1: São José
G2: Bacia (Lote): | H2: 5
A3: Combustível
C4: Preço de Proposta | D4: =1.84651 -> 1.84651 | E4: R$/litro
C5: Preço: | D5: =D4/(1-(F7/100*100)) -> 1.903618557 | E5: R$/litro | F5: 0.15 | G5: ICMS Deduzido | H5: 0.8
F6: =F5*80% -> 0.12
F7: =F5-F6 -> 0.03
A8: Combustível | F8: Lubrificante - Coeficiente do custo/km c/combustível | H8: Média km/L
A9: Tipo Veículo | C9: Ar Condicionado | D9: Litros/km | E9: R$/km | F9: Coeficiente | G9: R$/km | H9: Veículo
A10: Miniônibus | C10: Sem Ar | D10: =0.25331 -> 0.25331 | E10: =D10*$D$5 -> 0.4822056166 | F10: 0.03 | G10: =E10*$F$10 -> 0.0144661685 | H10: =1/D10 -> 3.947732028
A11: Ônibus Básico | C11: Sem Ar | D11: =0.35713 -> 0.35713 | E11: =D11*$D$5 -> 0.6798392952 | G11: =E11*$F$10 -> 0.02039517885 | H11: =1/D11 -> 2.800100804
A12: Padron | C12: Com Ar | D12: 0 | E12: =D12*$D$5 -> 0 | G12: =E12*$F$10 -> 0 | H12: 0
A13: Articulado | C13: Com Ar | D13: =0.71428 -> 0.71428 | E13: =D13*$D$5 -> 1.359716663 | G13: =E13*$F$10 -> 0.04079149988 | H13: =1/D13 -> 1.4000112
A14: Articulado BRT | C14: Com Ar | D14: 0 | E14: =D14*$D$5 -> 0 | G14: =E14*$F$10 -> 0 | H14: 0
A19: Pneus
A20: Pneus
A21: Tipo | C21: Quantidade | D21: Custo (R$) | E21: Vida | F21: Número de | G21: Custo Unitário | H21: Custo por km
A22: Veículos | C22: de Pneus | D22: Unitário | E22: Útil | F22: Recapagens | G22: Recapagem (R$) | H22: (R$/km)
A23: Miniônibus | C23: 6 | D23: 750 | E23: 140000 | F23: 1.5 | G23: 230 | H23: =((C23*D23+C23*F23*G23)/E23) -> 0.04692857143
A24: Ônibus Básico | C24: 6 | D24: 1350 | E24: 160000 | F24: 1.5 | G24: 380 | H24: =((C24*D24+C24*F24*G24)/E24) -> 0.072
A25: Padron | C25: 0 | D25: 0 | E25: 0 | F25: 0 | G25: 0 | H25: 0
A26: Articulado | C26: 10 | D26: 1551 | E26: 160000 | F26: 1.5 | G26: 420 | H26: =((C26*D26+C26*F26*G26)/E26) -> 0.1363125
A27: Articulado BRT | C27: 0 | D27: 0 | E27: 0 | F27: 0 | G27: 0 | H27: 0
A31: Peças e acessórios de reposição
C33: Coeficiente do valor do veículo novo
C34: Tipo | E34: Ar Condicionado | F34: Coeficiente | G34: R$/km
C35: Veículos
C36: Miniônibus | E36: Sem Ar | F36: 1.048154141e-06 | G36: ='Custo Capital'!F9*F36 ->  | H36: 0.4555869521 | I36: =H36/'Custo Capital'!H15 -> 
C37: Ônibus Básico | E37: Sem Ar | F37: 6.290867032e-07 | G37: ='Custo Capital'!G9*'Custos Variáveis'!F37 -> 
C38: Padron | G38: 0
C39: Articulado | E39: Com Ar | F39: 6.588482148e-07 | G39: =F39*'Custo Capital'!H15 -> 
C40: Articulado BRT | G40: 0
A43: Custo variável por km
C45: Tipo | E45: Ar Condicionado | F45: R$/km (total)
C46: Veículos
C47: Miniônibus | E47: Sem Ar | F47: =E10+G10+H23+G36 -> 
C48: Ônibus Básico | E48: Sem Ar | F48: =E11+G11+H24+G37 -> 
C49: Padron | F49: =E12+G12+H25+G38 -> 0
C50: Articulado | E50: Com Ar | F50: =E13+G13+H26+G39 -> 
C51: Articulado BRT | F51: =E14+G14+H27+G40 -> 0

Sheet Custos Variáveis jan22 a dez22
A1: Composição dos encargos sociais previstos | H1: São José
G2: Bacia (Lote): | H2: 5
A3: Combustível
C4: Preço de Proposta | D4: =1.84651 -> 1.84651 | E4: R$/litro
C5: Preço: | D5: =D4/(1-(F7/100*100)) -> 1.899701646 | E5: R$/litro | F5: 0.14 | G5: ICMS Deduzido | H5: 0.8
F6: =F5*80% -> 0.112
F7: =F5-F6 -> 0.028
A8: Combustível | F8: Lubrificante - Coeficiente do custo/km c/combustível | H8: Média km/L
A9: Tipo Veículo | C9: Ar Condicionado | D9: Litros/km | E9: R$/km | F9: Coeficiente | G9: R$/km | H9: Veículo
A10: Miniônibus | C10: Sem Ar | D10: =0.25331 -> 0.25331 | E10: =D10*$D$5 -> 0.481213424 | F10: 0.03 | G10: =E10*$F$10 -> 0.01443640272 | H10: =1/D10 -> 3.947732028
A11: Ônibus Básico | C11: Sem Ar | D11: =0.35713 -> 0.35713 | E11: =D11*$D$5 -> 0.6784404489 | G11: =E11*$F$10 -> 0.02035321347 | H11: =1/D11 -> 2.800100804
A12: Padron | C12: Com Ar | D12: 0 | E12: =D12*$D$5 -> 0 | G12: =E12*$F$10 -> 0 | H12: 0
A13: Articulado | C13: Com Ar | D13: =0.71428 -> 0.71428 | E13: =D13*$D$5 -> 1.356918892 | G13: =E13*$F$10 -> 0.04070756675 | H13: =1/D13 -> 1.4000112
A14: Articulado BRT | C14: Com Ar | D14: 0 | E14: =D14*$D$5 -> 0 | G14: =E14*$F$10 -> 0 | H14: 0
A19: Pneus
A20: Pneus
A21: Tipo | C21: Quantidade | D21: Custo (R$) | E21: Vida | F21: Número de | G21: Custo Unitário | H21: Custo por km
A22: Veículos | C22: de Pneus | D22: Unitário | E22: Útil | F22: Recapagens | G22: Recapagem (R$) | H22: (R$/km)
A23: Miniônibus | C23: 6 | D23: 750 | E23: 140000 | F23: 1.5 | G23: 230 | H23: =((C23*D23+C23*F23*G23)/E23) -> 0.04692857143
A24: Ônibus Básico | C24: 6 | D24: 1350 | E24: 160000 | F24: 1.5 | G24: 380 | H24: =((C24*D24+C24*F24*G24)/E24) -> 0.072
A25: Padron | C25: 0 | D25: 0 | E25: 0 | F25: 0 | G25: 0 | H25: 0
A26: Articulado | C26: 10 | D26: 1551 | E26: 160000 | F26: 1.5 | G26: 420 | H26: =((C26*D26+C26*F26*G26)/E26) -> 0.1363125
A27: Articulado BRT | C27: 0 | D27: 0 | E27: 0 | F27: 0 | G27: 0 | H27: 0
A31: Peças e acessórios de reposição
C33: Coeficiente do valor do veículo novo
C34: Tipo | E34: Ar Condicionado | F34: Coeficiente | G34: R$/km
C35: Veículos
C36: Miniônibus | E36: Sem Ar | F36: 1.048154141e-06 | G36: ='Custo Capital'!F9*F36 ->  | H36: 0.4555869521 | I36: =H36/'Custo Capital'!H15 -> 
C37: Ônibus Básico | E37: Sem Ar | F37: 6.290867032e-07 | G37: ='Custo Capital'!G9*'Custos Variáveis'!F37 -> 
C38: Padron | G38: 0
C39: Articulado | E39: Com Ar | F39: 6.588482148e-07 | G39: =F39*'Custo Capital'!H15 -> 
C40: Articulado BRT | G40: 0
A43: Custo variável por km
C45: Tipo | E45: Ar Condicionado | F45: R$/km (total)
C46: Veículos
C47: Miniônibus | E47: Sem Ar | F47: =E10+G10+H23+G36 -> 
C48: Ônibus Básico | E48: Sem Ar | F48: =E11+G11+H24+G37 -> 
C49: Padron | F49: =E12+G12+H25+G38 -> 0
C50: Articulado | E50: Com Ar | F50: =E13+G13+H26+G39 -> 
C51: Articulado BRT | F51: =E14+G14+H27+G40 -> 0

Sheet Custos Variáveis jan23 a abr23
A1: Composição dos encargos sociais previstos | H1: São José
G2: Bacia (Lote): | H2: 5
A3: Combustível
C4: Preço de Proposta | D4: =1.84651 -> 1.84651 | E4: R$/litro
C5: Preço: | D5: =D4/(1-(F7/100*100)) -> 1.895800821 | E5: R$/litro | F5: 0.13 | G5: ICMS Deduzido | H5: 0.8
F6: =F5*80% -> 0.104
F7: =F5-F6 -> 0.026
A8: Combustível | F8: Lubrificante - Coeficiente do custo/km c/combustível | H8: Média km/L
A9: Tipo Veículo | C9: Ar Condicionado | D9: Litros/km | E9: R$/km | F9: Coeficiente | G9: R$/km | H9: Veículo
A10: Miniônibus | C10: Sem Ar | D10: =0.25331 -> 0.25331 | E10: =D10*$D$5 -> 0.4802253061 | F10: 0.03 | G10: =E10*$F$10 -> 0.01440675918 | H10: =1/D10 -> 3.947732028
A11: Ônibus Básico | C11: Sem Ar | D11: =0.35713 -> 0.35713 | E11: =D11*$D$5 -> 0.6770473473 | G11: =E11*$F$10 -> 0.02031142042 | H11: =1/D11 -> 2.800100804
A12: Padron | C12: Com Ar | D12: 0 | E12: =D12*$D$5 -> 0 | G12: =E12*$F$10 -> 0 | H12: 0
A13: Articulado | C13: Com Ar | D13: =0.71428 -> 0.71428 | E13: =D13*$D$5 -> 1.354132611 | G13: =E13*$F$10 -> 0.04062397832 | H13: =1/D13 -> 1.4000112
A14: Articulado BRT | C14: Com Ar | D14: 0 | E14: =D14*$D$5 -> 0 | G14: =E14*$F$10 -> 0 | H14: 0
A19: Pneus
A20: Pneus
A21: Tipo | C21: Quantidade | D21: Custo (R$) | E21: Vida | F21: Número de | G21: Custo Unitário | H21: Custo por km
A22: Veículos | C22: de Pneus | D22: Unitário | E22: Útil | F22: Recapagens | G22: Recapagem (R$) | H22: (R$/km)
A23: Miniônibus | C23: 6 | D23: 750 | E23: 140000 | F23: 1.5 | G23: 230 | H23: =((C23*D23+C23*F23*G23)/E23) -> 0.04692857143
A24: Ônibus Básico | C24: 6 | D24: 1350 | E24: 160000 | F24: 1.5 | G24: 380 | H24: =((C24*D24+C24*F24*G24)/E24) -> 0.072
A25: Padron | C25: 0 | D25: 0 | E25: 0 | F25: 0 | G25: 0 | H25: 0
A26: Articulado | C26: 10 | D26: 1551 | E26: 160000 | F26: 1.5 | G26: 420 | H26: =((C26*D26+C26*F26*G26)/E26) -> 0.1363125
A27: Articulado BRT | C27: 0 | D27: 0 | E27: 0 | F27: 0 | G27: 0 | H27: 0
A31: Peças e acessórios de reposição
C33: Coeficiente do valor do veículo novo
C34: Tipo | E34: Ar Condicionado | F34: Coeficiente | G34: R$/km
C35: Veículos
C36: Miniônibus | E36: Sem Ar | F36: 1.048154141e-06 | G36: ='Custo Capital'!F9*F36 ->  | H36: 0.4555869521 | I36: =H36/'Custo Capital'!H15 -> 
C37: Ônibus Básico | E37: Sem Ar | F37: 6.290867032e-07 | G37: ='Custo Capital'!G9*'Custos Variáveis'!F37 -> 
C38: Padron | G38: 0
C39: Articulado | E39: Com Ar | F39: 6.588482148e-07 | G39: =F39*'Custo Capital'!H15 -> 
C40: Articulado BRT | G40: 0
A43: Custo variável por km
C45: Tipo | E45: Ar Condicionado | F45: R$/km (total)
C46: Veículos
C47: Miniônibus | E47: Sem Ar | F47: =E10+G10+H23+G36 -> 
C48: Ônibus Básico | E48: Sem Ar | F48: =E11+G11+H24+G37 -> 
C49: Padron | F49: =E12+G12+H25+G38 -> 0
C50: Articulado | E50: Com Ar | F50: =E13+G13+H26+G39 -> 
C51: Articulado BRT | F51: =E14+G14+H27+G40 -> 0

Sheet Custos Variáveis
A1: Composição dos encargos sociais previstos | H1: São José
G2: Bacia (Lote): | H2: 5 | K2: Metodologia de Cálculo do Diesel - ICMS Monofásico - a partir de 01/05/2023
A3: Combustível | K3: 2012-09-01 | L3: 1.929 | M3: preço médio distribuição | O3: Data NF | P3: Valor Bruto | Q3: Valor desc ICMS | R3: Desconto
C4: Preço: | D4: =1.84651 -> 1.84651 | E4: R$/litro | K4: 2022-09-01 | L4: 5.954 | M4: preço médio distribuição | O4: 2023-05-27 | P4: 4.5359 | Q4: =57600/15000 -> 3.84 | R4: =P4-Q4 -> 0.6959
C5: Preço com ICMS: | D5: =D4+L9 -> 1.927408774 | E5: R$/litro | K5: Percentual Acumulado | L5: =L4/L3 -> 3.086573354 | M5: acumulado para deflacionar | O5: 2023-05-29 | P5: 4.5359 | Q5: =57600/15000 -> 3.84 | R5: =P5-Q5 -> 0.6959
K6: 1 | L6: 0.9456 | M6: ICMS BRUTO | O6: Média | P6: =AVERAGE(P4:P5) -> 4.5359 | Q6: =AVERAGE(Q4:Q5) -> 3.84 | R6: =P6-Q6 -> 0.6959
K7: =L7/L6 -> 0.7359348562 | L7: =R6 -> 0.6959 | M7: Desconto ICMS
A8: Combustível | F8: Lubrificante - Coeficiente do custo/km c/combustível | H8: Média km/L | K8: =L8/L6 -> 0.2640651438 | L8: =L6-L7 -> 0.2497 | M8: ICMS PAGO
A9: Tipo Veículo | C9: Ar Condicionado | D9: Litros/km | E9: R$/km | F9: Coeficiente | G9: R$/km | H9: Veículo | L9: =L8/L5 -> 0.08089877393 | M9: ICMS pago deflacionado a preços de proposta
A10: Miniônibus | C10: Sem Ar | D10: =0.25331 -> 0.25331 | E10: =D10*$D$5 -> 0.4882319165 | F10: 0.03 | G10: =E10*$F$10 -> 0.0146469575 | H10: =1/D10 -> 3.947732028 | K10: Preço diesel proposta | L10: =D4 -> 1.84651
A11: Ônibus Básico | C11: Sem Ar | D11: =0.35713 -> 0.35713 | E11: =D11*$D$5 -> 0.6883354954 | G11: =E11*$F$10 -> 0.02065006486 | H11: =1/D11 -> 2.800100804 | K11: Preço disesel proposta COM ICMS | L11: =L9+L10 -> 1.927408774
A12: Padron | C12: Com Ar | D12: 0 | E12: =D12*$D$5 -> 0 | G12: =E12*$F$10 -> 0 | H12: 0
A13: Articulado | C13: Com Ar | D13: =0.71428 -> 0.71428 | E13: =D13*$D$5 -> 1.376709539 | G13: =E13*$F$10 -> 0.04130128617 | H13: =1/D13 -> 1.4000112
A14: Articulado BRT | C14: Com Ar | D14: 0 | E14: =D14*$D$5 -> 0 | G14: =E14*$F$10 -> 0 | H14: 0
A19: Pneus
A20: Pneus
A21: Tipo | C21: Quantidade | D21: Custo (R$) | E21: Vida | F21: Número de | G21: Custo Unitário | H21: Custo por km
A22: Veículos | C22: de Pneus | D22: Unitário | E22: Útil | F22: Recapagens | G22: Recapagem (R$) | H22: (R$/km)
A23: Miniônibus | C23: 6 | D23: 750 | E23: 140000 | F23: 1.5 | G23: 230 | H23: =((C23*D23+C23*F23*G23)/E23) -> 0.04692857143
A24: Ônibus Básico | C24: 6 | D24: 1350 | E24: 160000 | F24: 1.5 | G24: 380 | H24: =((C24*D24+C24*F24*G24)/E24) -> 0.072
A25: Padron | C25: 0 | D25: 0 | E25: 0 | F25: 0 | G25: 0 | H25: 0
A26: Articulado | C26: 10 | D26: 1551 | E26: 160000 | F26: 1.5 | G26: 420 | H26: =((C26*D26+C26*F26*G26)/E26) -> 0.1363125
A27: Articulado BRT | C27: 0 | D27: 0 | E27: 0 | F27: 0 | G27: 0 | H27: 0
A31: Peças e acessórios de reposição
C33: Coeficiente do valor do veículo novo
C34: Tipo | E34: Ar Condicionado | F34: Coeficiente | G34: R$/km
C35: Veículos
C36: Miniônibus | E36: Sem Ar | F36: 1.048154141e-06 | G36: ='Custo Capital Frota'!$F$9*F36 -> 0.2101549053 | H36: 0.4555869521 | I36: =H36/'Custo Capital'!H15 -> 
C37: Ônibus Básico | E37: Sem Ar | F37: 6.290867032e-07 | G37: ='Custo Capital Frota'!$G$9*'Custos Variáveis'!F37 -> 0.1509179001
C38: Padron | G38: 0
C39: Articulado | E39: Com Ar | F39: 6.588482148e-07 | G39: =F39*'Custo Capital Frota'!$H$15 -> 0.4555869521
C40: Articulado BRT | G40: 0
A43: Custo variável por km
C45: Tipo | E45: Ar Condicionado | F45: R$/km (total)
C46: Veículos
C47: Miniônibus | E47: Sem Ar | F47: =E10+G10+H23+G36 -> 0.7599623508
C48: Ônibus Básico | E48: Sem Ar | F48: =E11+G11+H24+G37 -> 0.9319034604
C49: Padron | F49: =E12+G12+H25+G38 -> 0
C50: Articulado | E50: Com Ar | F50: =E13+G13+H26+G39 -> 2.009910277
C51: Articulado BRT | F51: =E14+G14+H27+G40 -> 0

Sheet Depreciação
A3: Demonstração do Custo de Depreciação do Capital | D3: Lote (Bacia): 5
A6: Notas Explicativas
A8: O critério de depreciação utilizado para a frota é o contábil, com parcelas de depreciação constantes no tempo.
A9: O prazo de depreciação considerado foi de 4 anos.
A10: O valor residual empregado é o dado no item "Dados dos veículos" da Planilha 3.
A11: Os fatores de depreciação por faixa etária dos veículos é dada abaixo:
B13: Ano | C13: Mini- | D13: Básico | E13: Articu-
C14: ônibus | E14: lado
B15: 1 | C15: 0.2 | D15: 0.2 | E15: 0.2125
B16: 2 | C16: 0.2 | D16: 0.2 | E16: 0.2125
B17: 3 | C17: 0.2 | D17: 0.2 | E17: 0.2125
B18: 4 | C18: 0.2 | D18: 0.2 | E18: 0.2125
B19: 5 | C19: 0.2 | D19: 0.2 | E19: 0.2125
A22: O valor da venda considerado corresponde ao valor do veículo novo sem pneus deduzido do valor da depreciação
A24: Para as instalações, o método de depreciação é linear, com os seguintes critérios:
A26: Edificações de garagem: | C26: % Depreciação | D26: 0.04 | E26: ano
C27: Valor residual | D27: sem
A29: Instalações e equipamentos de garagem | C29: Vida útil | D29: 0.1 | E29: ano
C30: Valor residual | D30: sem
A33: Para os equipamentos do SIM e vigilância
A35: Equipamentos embargados | C35: Vida útil | D35: 0.2 | E35: ano
C36: Valor residual | D36: sem
A38: Centro de Controle Operacional da empresa | C38: Vida útil | D38: 10 | E38: anos
C39: Valor residual | D39: sem
B43: DEPRECIAÇÃO DA FROTA ACRESCENTADA
A44: Tipo de Ônibus | B44: Licitada | C44: Acrescida | D44: Frota Total | E44: R$ Deprec.
E45: Mês/Carro
A46: Ônibus Básico | B46: =Q.Frota!F22 -> 467 | C46: =Q.Frota!F34-B46 -> 0 | D46: =B46+C46 -> 467 | E46: ='Custo Capital'!E105/12/B46 -> 0
A47: Depreciação Anual | C47: Início Ano 2 | D47: =E46*12*C46 -> 0
C48: Ano 3 | D48: =D47 -> 0
C49: Ano 4 | D49: =D48 -> 0
C50: Ano 5 | D50: =D49 -> 0
C51: Ano 9 | D51: =D50 -> 0
C52: Ano 10 | D52: =D51 -> 0

Sheet Plan2 R$ Pessoal
B2: Planilha 2 - Demonstração do Custo com Pessoal | M2: SÃO JOSÉ
B3: Composição do Custo mensal com Pessoal | L3: Bacia/Lote: | M3: 5
N4: R$ Total
B5: Funções | C5: Cargo | D5: Fator de | E5: Qtde. de | F5: Salário Base | G5: Salário Total | H5: Hs | I5: % Encargos | J5: Encargos | K5: Salário + Enc. | L5: Benefícios | M5: Total | N5: Desonerado
D6: Utilização | E6: Funcionários | F6: (R$/mês) | G6: R$ | H6: Extras | I6: aplicáveis | J6: R$ | K6: R$/mês | L6: R$/mês | M6: R$/mês | N6: mais 1,48%
N7: hs.extras
B8: Motorista | C8: Motoristas | D8: 1.966963768 | E8: =D8*Q.Frota!T5 -> 1079.863109 | F8: 1506.42 | G8: =E8*F8 -> 1626727.384 | H8: 30626.612 | I8: ='enc sociais até 12-2024'!B37 -> 0.439344 | J8: =(G8+H8)*I8 -> 728148.5342 | K8: =G8+H8+J8 -> 2385502.531 | L8: 589.99 | M8: =K8+L8*E8 -> 3022610.966
C9: Sub-total Motoristas | D9: =D8 -> 1.966963768 | E9: =SUM(E8:E8) -> 1079.863109 | F9: =F8 -> 1506.42 | G9: =SUM(G8:G8) -> 1626727.384 | J9: =SUM(J8:J8) -> 728148.5342 | K9: =SUM(K8:K8) -> 2385502.531 | M9: =SUM(M8:M8) -> 3022610.966 | N9: =2978528.74+(2978528.74*1.48%) -> 3022610.965
B10: OBS: A São José Adicional ao final dos custos para motorista e cobrador (depois do cálculo com enc.sociais e benefícios) o total de 1,48000% para custear horas extras
B11: Cobrador | C11: Cobradores ônibus básico/artic. | D11: 2.072966846 | E11: =D11*(Q.Frota!H5+Q.Frota!N5) -> 1003.315954 | F11: 787.56 | G11: =E11*F11 -> 790171.5125 | H11: 17781.21 | I11: =I8 -> 0.439344 | J11: =(G11+H11)*I11 -> 354969.1809 | K11: =G11+H11+J11 -> 1162921.903 | L11: =L8 -> 589.99 | M11: =K11+L11*E11 -> 1754868.283 | N11: =1729275.01+(1729275.01*1.48%) -> 1754868.28
C12: Sub-total Cobradores | D12: =D11 -> 2.072966846 | E12: =E11 -> 1003.315954 | F12: =F11 -> 787.56 | G12: =G11 -> 790171.5125 | J12: =J11 -> 354969.1809 | K12: =K11 -> 1162921.903 | M12: =M11 -> 1754868.283
B13: OBS: A São José Adicional ao final dos custos para motorista e cobrador (depois do cálculo com enc.sociais e benefícios) o total de 1,48000% para custear horas extras
B14: Controle | C14: Fiscal | D14: 0.06944444444 | E14: =ROUND(D14*Q.Frota!$R$5,0) -> 40 | F14: 1506.42 | G14: =E14*F14 -> 60256.8 | I14: =I8 -> 0.439344 | J14: =G14*I14 -> 26473.46354 | K14: =G14+J14 -> 86730.26354 | L14: =L11 -> 589.99 | M14: =K14+L14*E14 -> 110329.8635
B15: operacional | C15: Inspetores de Tráfego | D15: 0.008680555556 | E15: =ROUND(D15*Q.Frota!$R$5,0) -> 5 | F15: 1796.2 | G15: 8981 | I15: =I8 -> 0.439344 | J15: 3945.748464 | K15: 12926.74846 | L15: =L14 -> 589.99 | M15: 15876.69846
C16: Chefe de tráfego | D16: 0.01388888889 | E16: =ROUND(D16*Q.Frota!$R$5,0) -> 8 | F16: 1796.2 | G16: 14369.6 | I16: =I8 -> 0.439344 | J16: 6313.197542 | K16: 20682.79754 | L16: =L15 -> 589.99 | M16: 25402.71754
C17: Programadores | D17: 0.003472222222 | E17: =ROUND(D17*Q.Frota!$R$5,0) -> 2 | F17: 1539 | G17: 3078 | I17: =I8 -> 0.439344 | J17: 1352.300832 | K17: 4430.300832 | L17: =L16 -> 589.99 | M17: 5610.280832
C18: Escaladores | D18: 0.003472222222 | E18: =ROUND(D18*Q.Frota!$R$5,0) -> 2 | F18: 1202 | G18: 2404 | I18: =I8 -> 0.439344 | J18: 1056.182976 | K18: 3460.182976 | L18: =L17 -> 589.99 | M18: 4640.162976
C19: Auxiliares | D19: 0.03472222222 | E19: =ROUND(D19*Q.Frota!$R$5,0) -> 20 | F19: 671 | G19: 13420 | I19: =I8 -> 0.439344 | J19: 5895.99648 | K19: 19315.99648 | L19: =L18 -> 589.99 | M19: 31115.79648
C20: Sub-total Controle Operac. | D20: =SUM(D14:D19) -> 0.1336805556 | E20: =SUM(E14:E19) -> 77 | F20: =G20/E20 -> 1331.290909 | G20: =SUM(G14:G19) -> 102509.4 | J20: =SUM(J14:J19) -> 45036.88983 | K20: =SUM(K14:K19) -> 147546.2898 | M20: =SUM(M14:M19) -> 192975.5198
B22: Manutenção | C22: Chefe de Manutenção | D22: 0.01215277778 | E22: =ROUND(D22*Q.Frota!$R$5,0) -> 7 | F22: 2075 | G22: =E22*F22 -> 14525 | I22: =I8 -> 0.439344 | J22: =G22*I22 -> 6381.4716 | K22: =G22+J22 -> 20906.4716 | L22: =L19 -> 589.99 | M22: =K22+L22*E22 -> 25036.4016
C23: Mecânicos | D23: 0.09895833333 | E23: =ROUND(D23*Q.Frota!$R$5,0) -> 57 | F23: 1299 | G23: 74043 | I23: =I8 -> 0.439344 | J23: 32530.34779 | K23: 106573.3478 | L23: =L22 -> 589.99 | M23: 140202.7778
C24: Auxiliares | D24: 0.04166666667 | E24: =ROUND(D24*Q.Frota!$R$5,0) -> 24 | F24: 671 | G24: 16104 | I24: =I8 -> 0.439344 | J24: 7075.195776 | K24: 23179.19578 | L24: 589.99 | M24: 37338.95578
C25: Funileiro | D25: 0.05902777778 | E25: =ROUND(D25*Q.Frota!$R$5,0) -> 34 | F25: 1160 | G25: 39440 | I25: =I8 -> 0.439344 | J25: 17327.72736 | K25: 56767.72736 | L25: 589.99 | M25: 76827.38736
C26: Borracheiro | D26: 0.01215277778 | E26: =ROUND(D26*Q.Frota!$R$5,0) -> 7 | F26: 1113 | G26: 7791 | I26: =I8 -> 0.439344 | J26: 3422.929104 | K26: 11213.9291 | L26: 589.99 | M26: 15343.8591
C27: Eletricista | D27: 0.01736111111 | E27: =ROUND(D27*Q.Frota!$R$5,0) -> 10 | F27: 1048 | G27: 10480 | I27: =I8 -> 0.439344 | J27: 4604.32512 | K27: 15084.32512 | L27: 589.99 | M27: 20984.22512
C28: Pintores | D28: 0.01388888889 | E28: =ROUND(D28*Q.Frota!$R$5,0) -> 8 | F28: 1202 | G28: 9616 | I28: =I8 -> 0.439344 | J28: 4224.731904 | K28: 13840.7319 | L28: 589.99 | M28: 18560.6519
C29: Eletrônico | D29: 0.003472222222 | E29: =ROUND(D29*Q.Frota!$R$5,0) -> 2 | F29: 2000 | G29: 4000 | I29: =I8 -> 0.439344 | J29: 1757.376 | K29: 5757.376 | L29: 589.99 | M29: 6937.356
C30: Outros | D30: 0.1753472222 | E30: =ROUND(D30*Q.Frota!$R$5,0) -> 101 | F30: 854 | G30: 86254 | I30: =I8 -> 0.439344 | J30: 37895.17738 | K30: 124149.1774 | L30: 589.99 | M30: 183738.1674
C31: Sub-total Manutenção | D31: =SUM(D22:D30) -> 0.4340277778 | E31: =SUM(E22:E30) -> 250 | F31: =G31/E31 -> 1049.012 | G31: =SUM(G22:G30) -> 262253 | J31: =SUM(J22:J30) -> 115219.282 | K31: =SUM(K22:K30) -> 377472.282 | M31: =SUM(M22:M30) -> 524969.782
B33: Total | D33: =D9+D12+D20+D31 -> 4.607638948 | E33: =E9+E12+E20+E31 -> 2410.179063 | G33: =G9+G12+G20+G31 -> 2781661.297 | J33: =J9+J12+J20+J31 -> 1243373.887 | K33: =K9+K12+K20+K31 -> 4073443.006 | M33: =M9+M12+M20+M31+M13 -> 5495424.551
I36: a patir de 01/01/2025 | K36: ='enc socais 01-2025'!B37 -> 0.439344

Sheet Plan4 R$ Pessoal
B2: Planilha 2 - Demonstração do Custo com Pessoal | L2: SÃO JOSÉ
B3: Composição do Custo mensal com Pessoal Administrativo | K3: Bacia/Lote: | L3: 5
B5: Funções | C5: Cargo | D5: Fator de | E5: Qtde. de | F5: Salário Base | G5: Salário Total | H5: % Encargos | I5: Encargos | J5: Salário + Enc. | K5: Benefícios | L5: Total
D6: Utilização | E6: Funcionários | F6: (R$/mês) | G6: R$ | H6: aplicáveis | I6: R$ | J6: R$/mês | K6: R$/mês | L6: R$/mês
B8: Administração | C8: Controle de Manutenção | D8: 0.008680555556 | E8: =D8*Q.Frota!$R$5 -> 5 | F8: 897.97 | G8: =E8*F8 -> 4489.85 | H8: ='enc socais 01-2025'!$C$37 -> 0.408644 | I8: =G8*H8 -> 1834.750263 | J8: =G8+I8 -> 6324.600263 | K8: ='Plan2 R$ Pessoal'!L8 -> 589.99 | L8: =J8+K8*E8 -> 9274.550263
C9: Gerente de Operação | D9: 0.008680555556 | E9: =D9*Q.Frota!$R$5 -> 5 | F9: 4000 | G9: 20000 | H9: ='enc socais 01-2025'!$C$37 -> 0.408644 | I9: 8172.88 | J9: 28172.88 | K9: =K8 -> 589.99 | L9: 31122.83
C10: Gerente Administrativo | D10: 0.003472222222 | E10: =D10*Q.Frota!$R$5 -> 2 | F10: 4000 | G10: 8000 | H10: ='enc socais 01-2025'!$C$37 -> 0.408644 | I10: 3269.152 | J10: 11269.152 | K10: 589.99 | L10: 12449.132
C11: Assistente Administrativo | D11: 0.003472222222 | E11: =D11*Q.Frota!$R$5 -> 2 | F11: 897.97 | G11: 1795.94 | H11: ='enc socais 01-2025'!$C$37 -> 0.408644 | I11: 733.9001054 | J11: 2529.840105 | K11: 589.99 | L11: 3709.820105
C12: Psicólogo | D12: 0.001736111111 | E12: =D12*Q.Frota!$R$5 -> 1 | F12: 2075 | G12: 2075 | H12: ='enc socais 01-2025'!$C$37 -> 0.408644 | I12: 847.9363 | J12: 2922.9363 | K12: 589.99 | L12: 3512.9263
C13: Técnico Seg. do Trabalho | D13: 0.01041666667 | E13: =D13*Q.Frota!$R$5 -> 6 | F13: 1539 | G13: 9234 | H13: ='enc socais 01-2025'!$C$37 -> 0.408644 | I13: 3773.418696 | J13: 13007.4187 | K13: 589.99 | L13: 16547.3587
C14: Auxiliar de Compras | D14: 0.01215277778 | E14: =D14*Q.Frota!$R$5 -> 7 | F14: 897.97 | G14: 6285.79 | H14: ='enc socais 01-2025'!$C$37 -> 0.408644 | I14: 2568.650369 | J14: 8854.440369 | K14: 589.99 | L14: 12984.37037
C15: Assistente Financeiro | D15: 0.04513888889 | E15: =D15*Q.Frota!$R$5 -> 26 | F15: 865 | G15: 22490 | H15: ='enc socais 01-2025'!$C$37 -> 0.408644 | I15: 9190.40356 | J15: 31680.40356 | K15: 589.99 | L15: 47020.14356
C16: Auxiliar de CPD | D16: 0.003472222222 | E16: =D16*Q.Frota!$R$5 -> 2 | F16: 897.97 | G16: 1795.94 | H16: ='enc socais 01-2025'!$C$37 -> 0.408644 | I16: 733.9001054 | J16: 2529.840105 | K16: 589.99 | L16: 3709.820105
C17: Enc. de Depto.Pessoal | D17: 0.008680555556 | E17: =D17*Q.Frota!$R$5 -> 5 | F17: 2075 | G17: 10375 | H17: ='enc socais 01-2025'!$C$37 -> 0.408644 | I17: 4239.6815 | J17: 14614.6815 | K17: 589.99 | L17: 17564.6315
C18: Auxiliar Depto. Pessoal | D18: 0.01736111111 | E18: =D18*Q.Frota!$R$5 -> 10 | F18: 897.97 | G18: 8979.7 | H18: ='enc socais 01-2025'!$C$37 -> 0.408644 | I18: 3669.500527 | J18: 12649.20053 | K18: 589.99 | L18: 18549.10053
C19: Contador | D19: 0.003472222222 | E19: =D19*Q.Frota!$R$5 -> 2 | F19: 2500 | G19: 5000 | H19: ='enc socais 01-2025'!$C$37 -> 0.408644 | I19: 2043.22 | J19: 7043.22 | K19: 589.99 | L19: 8223.2
C20: Auxiliar Contabilidade | D20: 0.01041666667 | E20: =D20*Q.Frota!$R$5 -> 6 | F20: 1291 | G20: 7746 | H20: ='enc socais 01-2025'!$C$37 -> 0.408644 | I20: 3165.356424 | J20: 10911.35642 | K20: 589.99 | L20: 14451.29642
B21: Total | D21: =SUM(D8:D20) -> 0.1371527778 | E21: =SUM(E8:E20) -> 79 | F21: =G21/E21 -> 1370.471139 | G21: =SUM(G8:G20) -> 108267.22 | I21: =SUM(I8:I20) -> 44242.74985 | J21: =SUM(J8:J20) -> 152509.9698 | L21: =SUM(L8:L20) -> 199119.1798
B23: Demais custos administrativos
D24: Valores | E24: Valores (R$/ano)
B25: Itens | D25: (R$/mês)
B26: a) Custos administrativos diversos | D26: 54852 | E26: =D26*12 -> 658224
B27: b) Custos de manutenção SIM e Sist. de Vigilância | D27: 14307 | E27: =D27*12 -> 171684
B28: c) Custos com seguros diversos/IPVA/Licenc. | D28: 112032 | E28: =D28*12 -> 1344384
B29: d) Custos não considerados nos itens acima | D29: 59000 | E29: =D29*12 -> 708000
B30: e) Pró-labore da diretoria | D30: 24000 | E30: =D30*12 -> 288000

Sheet Q.Frota
B2: S.José | F2: Frota Homologada Disponível e Operacional - Ano 1
B3: FONTE | C3: Miniônibus | F3: Básico | I3: Padron | L3: Artic.Conv. | O3: Artic.BRT | R3: Frota total
C4: Disp. | D4: Res. | E4: Oper. | F4: Disp. | G4: Res. | H4: Oper. | I4: Disp. | J4: Res. | K4: Oper. | L4: Disp. | M4: Res. | N4: Oper. | O4: Disp. | P4: Res. | Q4: Oper. | R4: Disp. | S4: Res. | T4: Oper.
C5: 68 | D5: =C5-E5 -> 3 | E5: =ROUND(C5/1.05,0) -> 65 | F5: 467 | G5: =F5-H5 -> 22 | H5: =ROUND(F5/1.05,0) -> 445 | I5: 0 | J5: =I5-K5 -> 0 | K5: 0 | L5: 41 | M5: =L5-N5 -> 2 | N5: =ROUND(L5/1.05,0) -> 39 | O5: 0 | P5: =O5-Q5 -> 0 | Q5: 0 | R5: =C5+F5+I5+L5+O5 -> 576 | S5: =M5+G5+D5 -> 27 | T5: =R5-S5 -> 549
B6: 2023-06-01 | C6: =C5 -> 68 | D6: 3 | E6: 65 | F6: 467 | G6: 22 | H6: 445 | I6: 0 | J6: 0 | K6: 0 | L6: 41 | M6: 2 | N6: 39 | O6: 0 | P6: 0 | Q6: 0 | R6: =C6+F6+I6+L6+O6 -> 576 | S6: 27 | T6: =R6-S6 -> 549
B7: =DATE(YEAR(B6),MONTH(B6)+1,DAY(B6)) -> 2023-07-01 | C7: 68 | D7: 3 | E7: 65 | F7: 467 | G7: 22 | H7: 445 | I7: 0 | J7: 0 | K7: 0 | L7: 41 | M7: 2 | N7: 39 | O7: 0 | P7: 0 | Q7: 0 | R7: 576 | S7: 27 | T7: 549
B8: 2023-08-01 | C8: 68 | D8: 3 | E8: 65 | F8: 467 | G8: 22 | H8: 445 | I8: 0 | J8: 0 | K8: 0 | L8: 41 | M8: 2 | N8: 39 | O8: 0 | P8: 0 | Q8: 0 | R8: 576 | S8: 27 | T8: 549
B9: 2023-09-01 | C9: 68 | D9: 3 | E9: 65 | F9: 467 | G9: 22 | H9: 445 | I9: 0 | J9: 0 | K9: 0 | L9: 41 | M9: 2 | N9: 39 | O9: 0 | P9: 0 | Q9: 0 | R9: 576 | S9: 27 | T9: 549
B10: 2023-10-01 | C10: 68 | D10: 3 | E10: 65 | F10: 467 | G10: 22 | H10: 445 | I10: 0 | J10: 0 | K10: 0 | L10: 41 | M10: 2 | N10: 39 | O10: 0 | P10: 0 | Q10: 0 | R10: 576 | S10: 27 | T10: 549
B11: 2023-11-01 | C11: 68 | D11: 3 | E11: 65 | F11: 467 | G11: 22 | H11: 445 | I11: 0 | J11: 0 | K11: 0 | L11: 41 | M11: 2 | N11: 39 | O11: 0 | P11: 0 | Q11: 0 | R11: 576 | S11: 27 | T11: 549
B12: 2023-12-01 | C12: 68 | D12: 3 | E12: 65 | F12: 467 | G12: 22 | H12: 445 | I12: 0 | J12: 0 | K12: 0 | L12: 41 | M12: 2 | N12: 39 | O12: 0 | P12: 0 | Q12: 0 | R12: 576 | S12: 27 | T12: 549
B13: 2024-01-01 | C13: 68 | D13: 3 | E13: 65 | F13: 467 | G13: 22 | H13: 445 | I13: 0 | J13: 0 | K13: 0 | L13: 41 | M13: 2 | N13: 39 | O13: 0 | P13: 0 | Q13: 0 | R13: 576 | S13: 27 | T13: 549
B14: 2024-02-01 | C14: 68 | D14: 3 | E14: 65 | F14: 467 | G14: 22 | H14: 445 | I14: 0 | J14: 0 | K14: 0 | L14: 41 | M14: 2 | N14: 39 | O14: 0 | P14: 0 | Q14: 0 | R14: 576 | S14: 27 | T14: 549
B15: 2024-03-01 | C15: 68 | D15: 3 | E15: 65 | F15: 467 | G15: 22 | H15: 445 | I15: 0 | J15: 0 | K15: 0 | L15: 41 | M15: 2 | N15: 39 | O15: 0 | P15: 0 | Q15: 0 | R15: 576 | S15: 27 | T15: 549
B16: 2024-04-01 | C16: 68 | D16: 3 | E16: 65 | F16: 467 | G16: 22 | H16: 445 | I16: 0 | J16: 0 | K16: 0 | L16: 41 | M16: 2 | N16: 39 | O16: 0 | P16: 0 | Q16: 0 | R16: 576 | S16: 27 | T16: 549
B17: 2024-05-01 | C17: 68 | D17: 3 | E17: 65 | F17: 467 | G17: 22 | H17: 445 | I17: 0 | J17: 0 | K17: 0 | L17: 41 | M17: 2 | N17: 39 | O17: 0 | P17: 0 | Q17: 0 | R17: 576 | S17: 27 | T17: 549
B19: =B2 -> S.José | F19: Frota Homologada Disponível e Operacional - Ano 2
B20: FONTE | C20: Miniônibus | F20: Básico | I20: Padron | L20: Artic.Conv. | O20: Artic.BRT | R20: Frota total
C21: Disp. | D21: Res. | E21: Oper. | F21: Disp. | G21: Res. | H21: Oper. | I21: Disp. | J21: Res. | K21: Oper. | L21: Disp. | M21: Res. | N21: Oper. | O21: Disp. | P21: Res. | Q21: Oper. | R21: Disp. | S21: Res. | T21: Oper.
B22: Edital | C22: =C5 -> 68 | D22: 3 | E22: 65 | F22: 467 | G22: 22 | H22: 445 | I22: 0 | J22: 0 | K22: 0 | L22: 41 | M22: 2 | N22: 39 | O22: 0 | P22: 0 | Q22: 0 | R22: =C22+F22+I22+L22+O22 -> 576 | S22: =D22+G22+J22+M22+P22 -> 27 | T22: =E22+H22+K22+N22+Q22 -> 549
B23: =DATE(YEAR(B17),MONTH(B17)+1,DAY(B17)) -> 2024-06-01 | C23: =C22 -> 68 | D23: =D22 -> 3 | E23: =E22 -> 65 | F23: =F22 -> 467 | G23: =G22 -> 22 | H23: =H22 -> 445 | I23: =I22 -> 0 | J23: =J22 -> 0 | K23: =K22 -> 0 | L23: =L22 -> 41 | M23: =M22 -> 2 | N23: =N22 -> 39 | O23: =O22 -> 0 | P23: =P22 -> 0 | Q23: =Q22 -> 0 | R23: 576 | S23: 27 | T23: 549
B24: =DATE(YEAR(B23),MONTH(B23)+1,DAY(B23)) -> 2024-07-01 | C24: 68 | D24: 3 | E24: 65 | F24: 467 | G24: 22 | H24: 445 | I24: 0 | J24: 0 | K24: 0 | L24: 41 | M24: 2 | N24: 39 | O24: 0 | P24: 0 | Q24: 0 | R24: 576 | S24: 27 | T24: 549
B25: 2024-08-01 | C25: 68 | D25: 3 | E25: 65 | F25: 467 | G25: 22 | H25: 445 | I25: 0 | J25: 0 | K25: 0 | L25: 41 | M25: 2 | N25: 39 | O25: 0 | P25: 0 | Q25: 0 | R25: 576 | S25: 27 | T25: 549
B26: 2024-09-01 | C26: 68 | D26: 3 | E26: 65 | F26: 467 | G26: 22 | H26: 445 | I26: 0 | J26: 0 | K26: 0 | L26: 41 | M26: 2 | N26: 39 | O26: 0 | P26: 0 | Q26: 0 | R26: 576 | S26: 27 | T26: 549
B27: 2024-10-01 | C27: 68 | D27: 3 | E27: 65 | F27: 467 | G27: 22 | H27: 445 | I27: 0 | J27: 0 | K27: 0 | L27: 41 | M27: 2 | N27: 39 | O27: 0 | P27: 0 | Q27: 0 | R27: 576 | S27: 27 | T27: 549
B28: 2024-11-01 | C28: 68 | D28: 3 | E28: 65 | F28: 467 | G28: 22 | H28: 445 | I28: 0 | J28: 0 | K28: 0 | L28: 41 | M28: 2 | N28: 39 | O28: 0 | P28: 0 | Q28: 0 | R28: 576 | S28: 27 | T28: 549
B29: 2024-12-01 | C29: 68 | D29: 3 | E29: 65 | F29: 467 | G29: 22 | H29: 445 | I29: 0 | J29: 0 | K29: 0 | L29: 41 | M29: 2 | N29: 39 | O29: 0 | P29: 0 | Q29: 0 | R29: 576 | S29: 27 | T29: 549
B30: 2025-01-01 | C30: 68 | D30: 3 | E30: 65 | F30: 467 | G30: 22 | H30: 445 | I30: 0 | J30: 0 | K30: 0 | L30: 41 | M30: 2 | N30: 39 | O30: 0 | P30: 0 | Q30: 0 | R30: 576 | S30: 27 | T30: 549
B31: 2025-02-01 | C31: 68 | D31: 3 | E31: 65 | F31: 467 | G31: 22 | H31: 445 | I31: 0 | J31: 0 | K31: 0 | L31: 41 | M31: 2 | N31: 39 | O31: 0 | P31: 0 | Q31: 0 | R31: 576 | S31: 27 | T31: 549
B32: 2025-03-01 | C32: 68 | D32: 3 | E32: 65 | F32: 467 | G32: 22 | H32: 445 | I32: 0 | J32: 0 | K32: 0 | L32: 41 | M32: 2 | N32: 39 | O32: 0 | P32: 0 | Q32: 0 | R32: 576 | S32: 27 | T32: 549
B33: 2025-04-01 | C33: 68 | D33: 3 | E33: 65 | F33: 467 | G33: 22 | H33: 445 | I33: 0 | J33: 0 | K33: 0 | L33: 41 | M33: 2 | N33: 39 | O33: 0 | P33: 0 | Q33: 0 | R33: 576 | S33: 27 | T33: 549
B34: 2025-05-01 | C34: 68 | D34: 3 | E34: 65 | F34: 467 | G34: 22 | H34: 445 | I34: 0 | J34: 0 | K34: 0 | L34: 41 | M34: 2 | N34: 39 | O34: 0 | P34: 0 | Q34: 0 | R34: 576 | S34: 27 | T34: 549

Sheet CÁLCULO FU_PLAN_LICITACAO
B2: Planilha 1 - Complementar
B4: I) FATORES GERAIS PARA CÁLCULO DO FU DE MOTORISTAS E COBRADORES
C7: Frota Operante
C8: FROTA | D8: OPERANTE | F8: 0.95
C9: MINI | D9: BÁSICO | E9: ARTICU | F9: MOTORISTA | G9: COBRADOR
B10: LOTE 5 | C10: 68 | D10: 467 | E10: 41 | F10: 556 | G10: 556
B13: C) HORAS OPERACIONAIS EM LINHA POR DIA | H13: D) HORAS ADICIONAIS - 5% DA QUILOMETRAGEM MORTA
C15: Total | H15: TOTAL
B16: Dias úteis | C16: 5952.23 | H16: =C16*0.05 -> 297.6115
B17: Sábados | C17: 3123.33 | H17: =C17*0.05 -> 156.1665
B18: Domingos | C18: 2005.68 | H18: =C18*0.05 -> 100.284
B21: E) Nº DE CICLOS PARA CÁLCULO DAS HORAS EM INTERVALOS (Anexo II.10- Tabela de partidas)
C23: TOTAL
B24: Dias úteis | C24: 3243
B25: Sábados | C25: 1722
B26: Domingos | C26: 1114
B28: F) JORNADA EM INTERVALOS DE 10 MINUTOS A CADA CICLO
C30: TOTAL
B31: Dias úteis | C31: =C24*10/60 -> 540.5
B32: Sábados | C32: =C25*10/60 -> 287
B33: Domingos | C33: =C26*10/60 -> 185.6666667
B36: G) TEMPO OPERACIONAL TOTAL (jornada normal + jornada 5% km morta + jornada em intervalos)
C38: 1 | D38: 2
C39: MOTORISTA | D39: COBRADOR
B41: Dias úteis | C41: =C16+H16+C31 -> 6790.3415 | D41: =C41 -> 6790.3415
B42: Sábados | C42: =C17+H17+C32 -> 3566.4965 | D42: =C42 -> 3566.4965
B43: Domingos | C43: =C18+H18+C33 -> 2291.630667 | D43: =C43 -> 2291.630667
B46: II - CÁLCULO DO FU | E46: M O T O R I S T A S
B48: H) TEMPO OPERACIONAL POR DIA DE ÔNIBUS OPERANTE (BAS+ART+MINI) | H48: I) CÁLCULO DO FATOR DE UTILIZAÇÃO - FU EM DIAS UTÉIS
C50: HORAS DIA | D50: ÔNIBUS | E50: HORAS | H50: Horas dia por ônibus utéis | J50: =E51 -> 12.41378702
B51: Dias úteis | C51: =C41 -> 6790.3415 | D51: 547 | E51: =C51/D51 -> 12.41378702 | H51: Jornada diária | J51: 5.5
H52: Coef. De utilização dias utéis | J52: =J50/J51 -> 2.257052185
B54: j) PERCENTUAL E COEFICIENTE DE UTILIZAÇÃO SÁBADOS E DOMINGOS EM RELAÇÃO À DIAS UTÉIS
C56: TEMPO TT | D56: PERCENTUAL | E56: COEF.
B57: Dias úteis | C57: =C41 -> 6790.3415 | D57: 1 | E57: =J52 -> 2.257052185
B58: Sábados | C58: =C42 -> 3566.4965 | D58: =C58/C57 -> 0.5252308002 | E58: =E57*D58 -> 1.185473326 | G58: dif.
B59: Domingos | C59: =C43 -> 2291.630667 | D59: =C59/C57 -> 0.337483861 | E59: =D59*E57 -> 0.7617186859 | F59: =E59+E58 -> 1.947192012 | G59: =E57-F59 -> 0.309860174
F60: sáb.+dom
B62: k) DETALHAMENTO | H62: L) RESULTADO
E64: PERCENTUAL
B65: % Pessoal sábado e domingo * | E65: 0 | H65: Fator de utilização por ônibus em
B66: % Pessoal Feriados (12 dias ano)* | E66: =0.03288*E59 -> 0.02504531039 | H66: operação (MOTORISTA) | L66: FU | M66: =E57+E72 -> 2.568176245
B67: % Pessoal de Férias (12 / 11 - 1) | E67: 0.0909
B68: % Pessoal de Faltas (8 dias ano) | E68: 0.0219
B69: PERCENTUAL DE PESSOAL P/ COBRIR | E69: =SUM(E65:E68) -> 0.1378453104
B70: FOLGAS, FERIADO, FÉRIAS E FALTAS
B71: FATOR DE UTILIZAÇÃO PARA COBRIR
B72: FOLGAS, FERIADO, FÉRIAS E FALTAS | E72: =E57*E69 -> 0.3111240591
B75: III - CÁLCULO DO FU | E75: C O B R A D O R E S
B78: M) TEMPO OPERACIONAL POR DIA DE ÔNIBUS OPERANTE (BAS+ART) | H78: N) CÁLCULO DO FATOR DE UTILIZAÇÃO - FU EM DIAS UTÉIS
C80: HORAS DIA | D80: ÔNIBUS | E80: HORAS | H80: Horas dia por ônibus utéis | J80: =E81 -> 12.41378702
B81: Dias úteis | C81: =D41 -> 6790.3415 | D81: 547 | E81: =C81/D81 -> 12.41378702 | H81: Jornada diária | J81: 5.5
H82: Coef. De utilização dias utéis | J82: =J80/J81 -> 2.257052185
B85: O) PERCENTUAL E COEFICIENTE DE UTILIZAÇÃO SÁBADOS E DOMINGOS EM RELAÇÃO À DIAS UTÉIS
C87: TEMPO TT | D87: PERCENTUAL | E87: COEF.
B88: Dias úteis | C88: =D41 -> 6790.3415 | D88: 1 | E88: =J82 -> 2.257052185
B89: Sábados | C89: =D42 -> 3566.4965 | D89: =C89/C88 -> 0.5252308002 | E89: =E88*D89 -> 1.185473326 | G89: dif.
B90: Domingos | C90: =D43 -> 2291.630667 | D90: =C90/C88 -> 0.337483861 | E90: =D90*E88 -> 0.7617186859 | F90: =E90+E89 -> 1.947192012 | G90: =E88-F90 -> 0.309860174
F91: sáb.+dom
B93: P) DETALHAMENTO
E94: PERCENTUAL | H94: Q) RESULTADO
B95: % Pessoal sábado e domingo * | E95: 0
B96: % Pessoal Feriados (12 dias ano)* | E96: =0.03288*E90 -> 0.02504531039 | H96: Fator de utilização por ônibus em
B97: % Pessoal de Férias (12 / 11 - 1) | E97: 0.0909 | H97: operação (COBRADOR) | L97: FU | M97: =E88+E102 -> 2.568176245
B98: % Pessoal de Faltas (8 dias ano) | E98: 0.0219
B99: PERCENTUAL DE PESSOAL P/ COBRIR | E99: =SUM(E95:E98) -> 0.1378453104
B100: FOLGAS, FERIADO, FÉRIAS E FALTAS
B101: FATOR DE UTILIZAÇÃO PARA COBRIR
B102: FOLGAS, FERIADO, FÉRIAS E FALTAS | E102: =E88*E99 -> 0.3111240591
B105: IV - RESUMO: TOTAL DE MOTORISTAS E COBRADORES NECESSÁRIOS
D107: QUANT.ÔNIBUS | E107: F.U. | F107: TOTAL
B108: MOTORISTAS | D108: =D51 -> 547 | E108: =M66 -> 2.568176245 | F108: =D108*E108 -> 1404.792406
B109: COBRADORES | D109: =D81 -> 547 | E109: =M97 -> 2.568176245 | F109: =D109*E109 -> 1404.792406

Sheet FU Resumo
B2: STPC/DF - DISSÍDIO COLETIVO - REAJUSTES DOS SALÁRIOS E BENEFÍCIOS
B3: Histórico | C3: REAJUSTES DE MÃO DE OBRA | G3: Benefícios
C4: Mot. | D4: Mot. | E4: Cobra- | F4: Demais | G4: Tikets | H4: Cestas | I4: Plano | J4: Plano | K4: Seguro Vida
C5: Diversos | D5: Artic. | E5: dores | F5: Funcionários | I5: de Saúde | J5: Odontol. | K5: é deduzido
B6: Licitação | C6: 100 | D6: 100 | E6: 100 | F6: 100 | G6: 100 | H6: 100 | I6: 100 | J6: 100 | K6: 100
B7: 2013-05-01 | C7: 0.0668 | D7: 0.0668 | E7: 0.0668 | F7: 0.0668 | G7: 0.0668 | H7: 0.0668 | I7: 0.0668 | J7: 0.0668 | K7: 0
C8: =C6*(1+C7) -> 106.68 | D8: 106.68 | E8: 106.68 | F8: 106.68 | G8: 106.68 | H8: 106.68 | I8: 106.68 | J8: 106.68 | K8: 100
B9: 2014-05-01 | C9: 0.2 | D9: 0.3 | E9: 0.2 | F9: 0.2 | G9: 0.12 | H9: 0.4 | I9: 0.12 | J9: 0.12 | K9: 0
C10: =C8*(1+C9) -> 128.016 | D10: 138.684 | E10: 128.016 | F10: 128.016 | G10: 119.4816 | H10: 149.352 | I10: 119.4816 | J10: 119.4816 | K10: 100
B11: 2015-05-01 | C11: 0.1 | D11: 0.1 | E11: 0.1 | F11: 0.1 | G11: 0.11 | H11: 0.11 | I11: 0 | J11: 0 | K11: 0
C12: =C10*(1+C11) -> 140.8176 | D12: 152.5524 | E12: 140.8176 | F12: 140.8176 | G12: 132.624576 | H12: 165.78072 | I12: 119.4816 | J12: 119.4816 | K12: 100
B13: 2016-05-01 | C13: 0.1 | D13: 0.1 | E13: 0.1 | F13: 0.1 | G13: 0.11 | H13: 0.11 | I13: 0.11 | J13: 0.3 | K13: 0
C14: =C12*(1+C13) -> 154.89936 | D14: 167.80764 | E14: 154.89936 | F14: 154.89936 | G14: 147.2132794 | H14: 184.0165992 | I14: 132.624576 | J14: 155.32608 | K14: 100
B15: 2017-05-01 | C15: 0.0525 | D15: 0.0525 | E15: 0.0525 | F15: 0.0525 | G15: 0.0525 | H15: 0.0525 | I15: 0.14 | J15: 0.14 | K15: 0 | AJ15: O correção/cálculo do FU pela folha de pagamento e por função levou em consideração o seguinte: 1) Valor total gasto do salário, Ad.Noturno e Hs.Extras e sem encargos, dividido pelo salário médio por função da licitação com os reajustes. O resultado é a qtde. necessária de funcionários real para a operação; 2) Divide a quantidade obtida de funcionários pela qtde.Frota, chegando-se ao FU corrigido para lançar na Planilha da Licitação. Essa metodologia corrige a variação da km e a Lei motorista.
C16: =C14*(1+C15) -> 163.0315764 | D16: 176.6175411 | E16: 163.0315764 | F16: 163.0315764 | G16: 154.9419765 | H16: 193.6774707 | I16: 151.1920166 | J16: 177.0717312 | K16: 100
B17: 2018-08-01 | C17: 0.0445 | D17: 0.0445 | E17: 0.0445 | F17: 0.0445 | G17: 0.05 | H17: 0.05 | I17: 0.078 | J17: 0.05 | K17: 0
C18: =C16*(1+C17) -> 170.2864815 | D18: 184.4770217 | E18: 170.2864815 | F18: 170.2864815 | G18: 162.6890754 | H18: 203.3613442 | I18: 162.9849939 | J18: 185.9253178 | K18: 100 | AR18: OBS: O cálculo para apuração dos benefícios considera-se a quantidade física de funcionários existentes nas operações de seus respectivos meses, espelhando, desta forma, a remuneração justa da operação, ou seja, a efetivamente gasta. | BV18: OBS: Para definir o salário médio da licitação com os reajuste inclusos, como houve reajuste diferenciado para os Motoristas dos ônibus articulados houve a necessidade de apurar a quantidade de motoristas da referida categoria. Nos meses não informados pela Concessionária foi feito o cálculo apurando-se a quantidade média de motoristas dos ônibus articulados.
B19: % Acumulado | C19: =(C18/C6)-100% -> 0.7028648155 | D19: 0.8447702168 | E19: 0.7028648155 | F19: 0.7028648155 | G19: 0.6268907535 | H19: 1.033613442 | I19: 0.6298499394 | J19: 0.8592531776 | K19: 0
B22: Bacia 5 | C22: R$ da Licitação corrigidos nos Dissídios Coletivos | K22: Ano 1 | M22: =B22 -> Bacia 5 | N22: R$ Salário Total Com Horas Extras e Adicional Noturno Pago Por Função (Sem inclusão de Encargos Sociais) - Valor de GFIP | S22: =K22 -> Ano 1 | U22: =M22 -> Bacia 5 | V22: Quantidade de Funcionários - Cálculo pela Folha | AA22: =S22 -> Ano 1 | AC22: =U22 -> Bacia 5 | AD22: Quantidade de Frota Operacional | AH22: =AA22 -> Ano 1 | AJ22: =AC22 -> Bacia 5 | AK22: FU POR FUNÇÃO | AO22: =AH22 -> Ano 1 | AQ22: =AJ22 -> Bacia 5 | AR22: FU FÍSICO PARA BENEFÍCIOS | AV22: =AO22 -> Ano 1 | AX22: =AQ22 -> Bacia 5 | AY22: Qtde. Funcionários - FÍSICO para Benefícios e FOLHA para Salários base de cálculo dos Enc.Sociais | BP22: =AV22 -> Ano 1 | BR22: =AX22 -> Bacia 5 | BS22: =BP22 -> Ano 1
B23: Mês | C23: R$ Salário Médio da Função (Sem Encargos) | M23: Mês | U23: Mês | V23: Inclusas todas as Horas Extras | AC23: Mês | AJ23: Mês | AK23: CÁLCULO SOBRE A FOLHA DE PAGAMENTO | AQ23: Mês | AX23: Mês | AY23: Motoristas | BB23: Cobradores | BE23: Controle Operacional | BH23: Manutenção | BK23: Administração | BN23: Total Geral | BR23: Mês | BS23: Cálculo Mot.Articulados | BV23: Qtde. Física de Motoristas | BY23: Cálculo R$ Mot.Artic. | CA23: R$
B24: de | C24: Motoristas | E24: Qtde.Física de Mot. | G24: R$ Salário | H24: Cobradores | I24: Controle | J24: Manu- | K24: Admi- | M24: de | N24: Motoristas | O24: Cobradores | P24: Controle | Q24: Manutenção | R24: Administração | S24: R$ | U24: de | V24: Motoristas | W24: Cobradores | X24: Controle | Y24: Manutenção | Z24: Administração | AA24: Qtde. | AC24: de | AD24: Motoristas | AE24: Cobradores | AF24: Controle | AG24: Manutenção | AH24: Administração | AJ24: de | AK24: Motoristas | AL24: Cobradores | AM24: Controle | AN24: Manutenção | AO24: Administração | AQ24: de | AR24: Motoristas | AS24: Cobradores | AT24: Controle | AU24: Manutenção | AV24: Administração | AX24: de | AY24: Físico | AZ24: Folha | BA24: Dif.Folha | BB24: Físico | BC24: Folha | BD24: Dif.Folha | BE24: Físico | BF24: Folha | BG24: Dif.Folha | BH24: Físico | BI24: Folha | BJ24: Dif.Folha | BK24: Físico | BL24: Folha | BM24: Dif.Folha | BN24: Físico | BO24: Folha | BP24: Dif.Folha | BR24: de | BS24: Frota | BT24: FU físico | BU24: Mot. | BV24: Mot. | BW24: Mot. | BX24: Mot. | BY24: R$ Mot. | BZ24: R$ Mot. | CA24: Total
B25: Ref. | C25: Diversos | D25: Artic. | E25: Div. | F25: Artic. | G25: Médio Mot. | I25: Operacional | J25: tenção | K25: nistração | M25: Ref. | N25: Diversos | P25: Operacional | S25: Total | U25: Ref. | X25: Operacional | AA25: Total | AC25: Ref. | AF25: Operacional | AJ25: Ref. | AM25: Operacional | AQ25: Ref. | AT25: Operacional | AX25: Ref. | BA25: (-) Físico | BD25: (-) Físico | BG25: (-) Físico | BJ25: (-) Físico | BM25: (-) Físico | BP25: (-) Físico | BR25: Ref. | BS25: Artic. | BT25: Mot.Div. | BU25: Artic. | BV25: Total | BW25: Diversos | BX25: Artic. | BY25: Diversos | BZ25: Articulados | CA25: Motoristas
B26: 2013-07-01 | C26: ='Plan2 R$ Pessoal'!F8*(C7/100*100+1) -> 1607.048856 | D26: ='Plan2 R$ Pessoal'!F8*(D7/100*100+1) -> 1607.048856 | E26: =BW26 -> 406.8852459 | F26: =BX26 -> 31.1147541 | G26: =IF(C26>0,((C26*E26)+(D26*F26))/(E26+F26),0) -> 1607.048856 | H26: ='Plan2 R$ Pessoal'!F11*(E7/100*100+1) -> 840.169008 | I26: ='Plan2 R$ Pessoal'!F20*(F7/100*100+1) -> 1420.221142 | J26: ='Plan2 R$ Pessoal'!F31*(F7/100*100+1) -> 1119.086002 | K26: ='Plan4 R$ Pessoal'!F21*(F7/100*100+1) -> 1462.018611 | M26: =B26 -> 2013-07-01 | N26: =Folha!G4 -> 902470.238 | O26: =Folha!Q4 -> 443957.1654 | P26: =Folha!AK4 -> 0 | Q26: =Folha!AA4 -> 148663.9227 | R26: =Folha!AU4 -> 33508.9739 | S26: =SUM(N26:R26) -> 1528600.3 | U26: =M26 -> 2013-07-01 | V26: =N26/G26 -> 561.569883 | W26: =O26/H26 -> 528.4141181 | X26: =P26/I26 -> 0 | Y26: =Q26/J26 -> 132.8440553 | Z26: =R26/K26 -> 22.91966302 | AA26: =SUM(V26:Z26) -> 1245.747719 | AC26: =U26 -> 2013-07-01 | AD26: =Q.Frota!T6 -> 549 | AE26: =AD26 -> 549 | AF26: 549 | AG26: 549 | AH26: 549 | AJ26: =AC26 -> 2013-07-01 | AK26: 1.672155759 | AL26: 1.672155759 | AM26: ='Plan2 R$ Pessoal'!D20 -> 0.1336805556 | AN26: ='Plan2 R$ Pessoal'!D31 -> 0.4340277778 | AO26: ='Plan4 R$ Pessoal'!D21 -> 0.1371527778 | AQ26: =AJ26 -> 2013-07-01 | AR26: =AK26 -> 1.672155759 | AS26: =AL26 -> 1.672155759 | AT26: =AM26 -> 0.1336805556 | AU26: =AN26 -> 0.4340277778 | AV26: =AO26 -> 0.1371527778 | AX26: =AQ26 -> 2013-07-01 | AY26: =Folha!E4 -> 438 | AZ26: =V26 -> 561.569883 | BA26: =AZ26-AY26 -> 123.569883 | BB26: =Folha!O4 -> 471 | BC26: =W26 -> 528.4141181 | BD26: =BC26-BB26 -> 57.41411808 | BE26: =Folha!AI4 -> 0 | BF26: =X26 -> 0 | BG26: =BF26-BE26 -> 0 | BH26: =Folha!Y4 -> 125 | BI26: =Y26 -> 132.8440553 | BJ26: =BI26-BH26 -> 7.844055337 | BK26: =Folha!AS4 -> 17 | BL26: =Z26 -> 22.91966302 | BM26: =BL26-BK26 -> 5.919663023 | BN26: =AY26+BB26+BE26+BH26+BK26 -> 1051 | BO26: =AZ26+BC26+BF26+BI26+BL26 -> 1245.747719 | BP26: =BO26-BN26 -> 194.7477194 | BR26: =AX26 -> 2013-07-01 | BS26: =Q.Frota!N6 -> 39 | BT26: =AY26/AD26 -> 0.7978142077 | BU26: =BT26*BS26 -> 31.1147541 | BV26: =AY26 -> 438 | BW26: =BV26-BX26 -> 406.8852459 | BX26: =BU26 -> 31.1147541 | BY26: =N26/BV26*BW26 -> 838360.3304 | BZ26: =N26/BV26*BX26 -> 64109.90762 | CA26: =BY26+BZ26 -> 902470.238
B27: =DATE(YEAR(B26),MONTH(B26)+1,DAY(B26)) -> 2013-08-01 | C27: =C26 -> 1607.048856 | D27: =D26 -> 1607.048856 | E27: 432.8961749 | F27: 33.10382514 | G27: 1607.048856 | H27: =H26 -> 840.169008 | I27: =I26 -> 1420.221142 | J27: =J26 -> 1119.086002 | K27: =K26 -> 1462.018611 | M27: 2013-08-01 | N27: =Folha!G5 -> 905697.5488 | O27: =Folha!Q5 -> 462788.3838 | P27: =Folha!AK5 -> 0 | Q27: =Folha!AA5 -> 155090.5767 | R27: =Folha!AU5 -> 34108.9907 | S27: 1557685.5 | U27: 2013-08-01 | V27: 563.5781049 | W27: 550.8277256 | X27: 0 | Y27: 138.5868257 | Z27: 23.330066 | AA27: 1276.322722 | AC27: 2013-08-01 | AD27: =Q.Frota!T7 -> 549 | AE27: 549 | AF27: 549 | AG27: 549 | AH27: 549 | AJ27: 2013-08-01 | AK27: 2.385929548 | AL27: 2.385929548 | AM27: =AM26 -> 0.1336805556 | AN27: =AN26 -> 0.4340277778 | AO27: =AO26 -> 0.1371527778 | AQ27: 2013-08-01 | AR27: =AK27 -> 2.385929548 | AS27: 2.385929548 | AT27: 0.1336805556 | AU27: 0.4340277778 | AV27: 0.1371527778 | AX27: 2013-08-01 | AY27: =Folha!E5 -> 466 | AZ27: 563.5781049 | BA27: 97.57810494 | BB27: =Folha!O5 -> 485 | BC27: 550.8277256 | BD27: 65.82772563 | BE27: =Folha!AI5 -> 0 | BF27: 0 | BG27: 0 | BH27: =Folha!Y5 -> 131 | BI27: 138.5868257 | BJ27: 7.586825715 | BK27: =Folha!AS5 -> 18 | BL27: 23.330066 | BM27: 5.330066004 | BN27: 1100 | BO27: 1276.322722 | BP27: 176.3227223 | BR27: 2013-08-01 | BS27: =Q.Frota!N7 -> 39 | BT27: 0.8488160291 | BU27: 33.10382514 | BV27: =AY27 -> 466 | BW27: =BV27-BX27 -> 432.8961749 | BX27: =BU27 -> 33.10382514 | BY27: =N27/BV27*BW27 -> 841358.3787 | BZ27: 64339.17013 | CA27: 905697.5488
B28: 2013-09-01 | C28: 1607.048856 | D28: 1607.048856 | E28: 444.9726776 | F28: 34.0273224 | G28: 1607.048856 | H28: 840.169008 | I28: 1420.221142 | J28: 1119.086002 | K28: 1462.018611 | M28: 2013-09-01 | N28: =Folha!G6 -> 974931.9061 | O28: =Folha!Q6 -> 497721.776 | P28: =Folha!AK6 -> 0 | Q28: =Folha!AA6 -> 151155.8387 | R28: =Folha!AU6 -> 32386.36918 | S28: 1656195.89 | U28: 2013-09-01 | V28: 606.6597804 | W28: 592.4067316 | X28: 0 | Y28: 135.0707975 | Z28: 22.15181731 | AA28: 1356.289127 | AC28: 2013-09-01 | AD28: =Q.Frota!T8 -> 549 | AE28: 549 | AF28: 549 | AG28: 549 | AH28: 549 | AJ28: 2013-09-01 | AK28: 2.385929548 | AL28: 2.385929548 | AM28: 0.1336805556 | AN28: 0.4340277778 | AO28: 0.1371527778 | AQ28: 2013-09-01 | AR28: =AK28 -> 2.385929548 | AS28: 2.385929548 | AT28: 0.1336805556 | AU28: 0.4340277778 | AV28: 0.1371527778 | AX28: 2013-09-01 | AY28: =Folha!E6 -> 479 | AZ28: 606.6597804 | BA28: 127.6597804 | BB28: =Folha!O6 -> 496 | BC28: 592.4067316 | BD28: 96.40673155 | BE28: =Folha!AI6 -> 0 | BF28: 0 | BG28: 0 | BH28: =Folha!Y6 -> 135 | BI28: 135.0707975 | BJ28: 0.07079751518 | BK28: =Folha!AS6 -> 18 | BL28: 22.15181731 | BM28: 4.151817308 | BN28: 1128 | BO28: 1356.289127 | BP28: 228.2891268 | BR28: 2013-09-01 | BS28: =Q.Frota!N8 -> 39 | BT28: 0.8724954463 | BU28: 34.0273224 | BV28: 479 | BW28: 444.9726776 | BX28: 34.0273224 | BY28: 905674.4483 | BZ28: 69257.45781 | CA28: 974931.9061
B29: 2013-10-01 | C29: 1607.048856 | D29: 1607.048856 | E29: 473.7704918 | F29: 36.2295082 | G29: 1607.048856 | H29: 840.169008 | I29: 1420.221142 | J29: 1119.086002 | K29: 1462.018611 | M29: 2013-10-01 | N29: =Folha!G7 -> 1035504.033 | O29: =Folha!Q7 -> 528831.0296 | P29: =Folha!AK7 -> 0 | Q29: =Folha!AA7 -> 157935.0368 | R29: =Folha!AU7 -> 34788.58072 | S29: 1757058.68 | U29: 2013-10-01 | V29: 644.3513083 | W29: 629.4341074 | X29: 0 | Y29: 141.1285965 | Z29: 23.79489594 | AA29: 1438.708908 | AC29: 2013-10-01 | AD29: =Q.Frota!T9 -> 549 | AE29: 549 | AF29: 549 | AG29: 549 | AH29: 549 | AJ29: 2013-10-01 | AK29: 2.385929548 | AL29: 2.385929548 | AM29: 0.1336805556 | AN29: 0.4340277778 | AO29: 0.1371527778 | AQ29: 2013-10-01 | AR29: 2.385929548 | AS29: 2.385929548 | AT29: 0.1336805556 | AU29: 0.4340277778 | AV29: 0.1371527778 | AX29: 2013-10-01 | AY29: =Folha!E7 -> 510 | AZ29: 644.3513083 | BA29: 134.3513083 | BB29: =Folha!O7 -> 511 | BC29: 629.4341074 | BD29: 118.4341074 | BE29: =Folha!AI7 -> 0 | BF29: 0 | BG29: 0 | BH29: =Folha!Y7 -> 137 | BI29: 141.1285965 | BJ29: 4.12859652 | BK29: =Folha!AS7 -> 18 | BL29: 23.79489594 | BM29: 5.794895941 | BN29: 1176 | BO29: 1438.708908 | BP29: 262.7089082 | BR29: 2013-10-01 | BS29: =Q.Frota!N9 -> 39 | BT29: 0.9289617486 | BU29: 36.2295082 | BV29: 510 | BW29: 473.7704918 | BX29: 36.2295082 | BY29: 961943.6371 | BZ29: 73560.39578 | CA29: 1035504.033
B30: 2013-11-01 | C30: 1607.048856 | D30: 1607.048856 | E30: 494.2076503 | F30: 37.79234973 | G30: 1607.048856 | H30: 840.169008 | I30: 1420.221142 | J30: 1119.086002 | K30: 1462.018611 | M30: 2013-11-01 | N30: =Folha!G8 -> 1105873.927 | O30: =Folha!Q8 -> 554070.5179 | P30: =Folha!AK8 -> 0 | Q30: =Folha!AA8 -> 161651.1605 | R30: =Folha!AU8 -> 33634.07487 | S30: 1855229.68 | U30: 2013-11-01 | V30: 688.1395812 | W30: 659.475073 | X30: 0 | Y30: 144.4492741 | Z30: 23.00523031 | AA30: 1515.069159 | AC30: 2013-11-01 | AD30: =Q.Frota!T10 -> 549 | AE30: 549 | AF30: 549 | AG30: 549 | AH30: 549 | AJ30: 2013-11-01 | AK30: 1.505965162 | AL30: 1.505965162 | AM30: 0.1336805556 | AN30: 0.4340277778 | AO30: 0.1371527778 | AQ30: 2013-11-01 | AR30: 1.505965162 | AS30: 1.505965162 | AT30: 0.1336805556 | AU30: 0.4340277778 | AV30: 0.1371527778 | AX30: 2013-11-01 | AY30: =Folha!E8 -> 532 | AZ30: 688.1395812 | BA30: 156.1395812 | BB30: =Folha!O8 -> 492 | BC30: 659.475073 | BD30: 167.475073 | BE30: =Folha!AI8 -> 0 | BF30: 0 | BG30: 0 | BH30: =Folha!Y8 -> 139 | BI30: 144.4492741 | BJ30: 5.449274053 | BK30: =Folha!AS8 -> 18 | BL30: 23.00523031 | BM30: 5.005230312 | BN30: 1181 | BO30: 1515.069159 | BP30: 334.0691585 | BR30: 2013-11-01 | BS30: =Q.Frota!N10 -> 39 | BT30: 0.9690346084 | BU30: 37.79234973 | BV30: 532 | BW30: 494.2076503 | BX30: 37.79234973 | BY30: 1027314.577 | BZ30: 78559.34999 | CA30: 1105873.927
B31: 2013-12-01 | C31: 1607.048856 | D31: 1607.048856 | E31: 492.3497268 | F31: 37.65027322 | G31: 1607.048856 | H31: 840.169008 | I31: 1420.221142 | J31: 1119.086002 | K31: 1462.018611 | M31: 2013-12-01 | N31: =Folha!G9 -> 1434174.749 | O31: =Folha!Q9 -> 706483.0099 | P31: =Folha!AK9 -> 0 | Q31: =Folha!AA9 -> 215033.9557 | R31: =Folha!AU9 -> 44505.60497 | S31: 2400197.32 | U31: 2013-12-01 | V31: 892.4275974 | W31: 840.8820167 | X31: 0 | Y31: 192.1514123 | Z31: 30.44120275 | AA31: 1955.902229 | AC31: 2013-12-01 | AD31: =Q.Frota!T11 -> 549 | AE31: 549 | AF31: 549 | AG31: 549 | AH31: 549 | AJ31: 2013-12-01 | AK31: 2.081916593 | AL31: 2.081916593 | AM31: 0.1336805556 | AN31: 0.4340277778 | AO31: 0.1371527778 | AQ31: 2013-12-01 | AR31: 2.081916593 | AS31: 2.081916593 | AT31: 0.1336805556 | AU31: 0.4340277778 | AV31: 0.1371527778 | AX31: 2013-12-01 | AY31: =Folha!E9 -> 530 | AZ31: 892.4275974 | BA31: 362.4275974 | BB31: =Folha!O9 -> 530 | BC31: 840.8820167 | BD31: 310.8820167 | BE31: =Folha!AI9 -> 0 | BF31: 0 | BG31: 0 | BH31: =Folha!Y9 -> 152 | BI31: 192.1514123 | BJ31: 40.15141235 | BK31: =Folha!AS9 -> 18 | BL31: 30.44120275 | BM31: 12.44120275 | BN31: 1230 | BO31: 1955.902229 | BP31: 725.9022292 | BR31: 2013-12-01 | BS31: =Q.Frota!N11 -> 39 | BT31: 0.9653916211 | BU31: 37.65027322 | BV31: 530 | BW31: 492.3497268 | BX31: 37.65027322 | BY31: 1332293.483 | BZ31: 101881.2664 | CA31: 1434174.749
B32: 2014-01-01 | C32: 1607.048856 | D32: 1607.048856 | E32: 683.715847 | F32: 52.28415301 | G32: 1607.048856 | H32: 840.169008 | I32: 1420.221142 | J32: 1119.086002 | K32: 1462.018611 | M32: 2014-01-01 | N32: =Folha!G10 -> 1173581.178 | O32: =Folha!Q10 -> 575359.1966 | P32: =Folha!AK10 -> 0 | Q32: =Folha!AA10 -> 187750.8012 | R32: =Folha!AU10 -> 38658.81392 | S32: 1975349.99 | U32: 2014-01-01 | V32: 730.271002 | W32: 684.8136401 | X32: 0 | Y32: 167.7715573 | Z32: 26.44208057 | AA32: 1609.29828 | AC32: 2014-01-01 | AD32: =Q.Frota!T12 -> 549 | AE32: 549 | AF32: 549 | AG32: 549 | AH32: 549 | AJ32: 2014-01-01 | AK32: 2.212925778 | AL32: 2.212925778 | AM32: 0.1336805556 | AN32: 0.4340277778 | AO32: 0.1371527778 | AQ32: 2014-01-01 | AR32: 2.212925778 | AS32: 2.212925778 | AT32: 0.1336805556 | AU32: 0.4340277778 | AV32: 0.1371527778 | AX32: 2014-01-01 | AY32: =Folha!E10 -> 736 | AZ32: 730.271002 | BA32: -5.728998047 | BB32: =Folha!O10 -> 767 | BC32: 684.8136401 | BD32: -82.18635995 | BE32: =Folha!AI10 -> 0 | BF32: 0 | BG32: 0 | BH32: =Folha!Y10 -> 175 | BI32: 167.7715573 | BJ32: -7.22844274 | BK32: =Folha!AS10 -> 19 | BL32: 26.44208057 | BM32: 7.44208057 | BN32: 1697 | BO32: 1609.29828 | BP32: -87.70172016 | BR32: 2014-01-01 | BS32: =Q.Frota!N12 -> 39 | BT32: 1.340619308 | BU32: 52.28415301 | BV32: 736 | BW32: 683.715847 | BX32: 52.28415301 | BY32: 1090212.024 | BZ32: 83369.15474 | CA32: 1173581.178
B33: 2014-02-01 | C33: 1607.048856 | D33: 1607.048856 | E33: 847.2131148 | F33: 64.78688525 | G33: 1607.048856 | H33: 840.169008 | I33: 1420.221142 | J33: 1119.086002 | K33: 1462.018611 | M33: 2014-02-01 | N33: =Folha!G11 -> 1549350.896 | O33: =Folha!Q11 -> 779419.6111 | P33: =Folha!AK11 -> 0 | Q33: =Folha!AA11 -> 204703.8734 | R33: =Folha!AU11 -> 38331.80953 | S33: 2571806.19 | U33: 2014-02-01 | V33: 964.0969471 | W33: 927.6938375 | X33: 0 | Y33: 182.9205916 | Z33: 26.21841421 | AA33: 2100.92979 | AC33: 2014-02-01 | AD33: =Q.Frota!T13 -> 549 | AE33: 549 | AF33: 549 | AG33: 549 | AH33: 549 | AJ33: 2014-02-01 | AK33: 3.155795605 | AL33: 3.155795605 | AM33: 0.1336805556 | AN33: 0.4340277778 | AO33: 0.1371527778 | AQ33: 2014-02-01 | AR33: 3.155795605 | AS33: 3.155795605 | AT33: 0.1336805556 | AU33: 0.4340277778 | AV33: 0.1371527778 | AX33: 2014-02-01 | AY33: =Folha!E11 -> 912 | AZ33: 964.0969471 | BA33: 52.09694708 | BB33: =Folha!O11 -> 943 | BC33: 927.6938375 | BD33: -15.30616254 | BE33: =Folha!AI11 -> 0 | BF33: 0 | BG33: 0 | BH33: =Folha!Y11 -> 200 | BI33: 182.9205916 | BJ33: -17.07940842 | BK33: =Folha!AS11 -> 19 | BL33: 26.21841421 | BM33: 7.218414209 | BN33: 2074 | BO33: 2100.92979 | BP33: 26.92979033 | BR33: 2014-02-01 | BS33: =Q.Frota!N13 -> 39 | BT33: 1.661202186 | BU33: 64.78688525 | BV33: 912 | BW33: 847.2131148 | BX33: 64.78688525 | BY33: 1439287.717 | BZ33: 110063.1784 | CA33: 1549350.896
B34: 2014-03-01 | C34: 1607.048856 | D34: 1607.048856 | E34: 1012.568306 | F34: 77.43169399 | G34: 1607.048856 | H34: 840.169008 | I34: 1420.221142 | J34: 1119.086002 | K34: 1462.018611 | M34: 2014-03-01 | N34: =Folha!G12 -> 2061476.556 | O34: =Folha!Q12 -> 1059982.386 | P34: =Folha!AK12 -> 0 | Q34: =Folha!AA12 -> 218180.809 | R34: =Folha!AU12 -> 37496.08903 | S34: 3377135.84 | U34: 2014-03-01 | V34: 1282.771553 | W34: 1261.629953 | X34: 0 | Y34: 194.9633976 | Z34: 25.64679324 | AA34: 2765.011696 | AC34: 2014-03-01 | AD34: =Q.Frota!T14 -> 549 | AE34: 549 | AF34: 549 | AG34: 549 | AH34: 549 | AJ34: 2014-03-01 | AK34: 3.155795605 | AL34: 3.155795605 | AM34: 0.1336805556 | AN34: 0.4340277778 | AO34: 0.1371527778 | AQ34: 2014-03-01 | AR34: 3.155795605 | AS34: 3.155795605 | AT34: 0.1336805556 | AU34: 0.4340277778 | AV34: 0.1371527778 | AX34: 2014-03-01 | AY34: =Folha!E12 -> 1090 | AZ34: 1282.771553 | BA34: 192.7715526 | BB34: =Folha!O12 -> 1133 | BC34: 1261.629953 | BD34: 128.6299527 | BE34: =Folha!AI12 -> 0 | BF34: 0 | BG34: 0 | BH34: =Folha!Y12 -> 207 | BI34: 194.9633976 | BJ34: -12.03660245 | BK34: =Folha!AS12 -> 20 | BL34: 25.64679324 | BM34: 5.646793238 | BN34: 2450 | BO34: 2765.011696 | BP34: 315.0116961 | BR34: 2014-03-01 | BS34: =Q.Frota!N14 -> 39 | BT34: 1.985428051 | BU34: 77.43169399 | BV34: =AY34 -> 1090 | BW34: 1012.568306 | BX34: 77.43169399 | BY34: 1915032.866 | BZ34: 146443.6898 | CA34: 2061476.556
B35: 2014-04-01 | C35: 1607.048856 | D35: 1607.048856 | E35: 1073.879781 | F35: 82.12021858 | G35: 1607.048856 | H35: 840.169008 | I35: 1420.221142 | J35: 1119.086002 | K35: 1462.018611 | M35: 2014-04-01 | N35: =Folha!G13 -> 2199862.525 | O35: =Folha!Q13 -> 1132896.787 | P35: =Folha!AK13 -> 0 | Q35: =Folha!AA13 -> 254672.9206 | R35: =Folha!AU13 -> 46586.20723 | S35: 3634018.44 | U35: 2014-04-01 | V35: 1368.883414 | W35: 1348.41535 | X35: 0 | Y35: 227.5722512 | Z35: 31.8643052 | AA35: 2976.735321 | AC35: 2014-04-01 | AD35: =Q.Frota!T15 -> 549 | AE35: 549 | AF35: 549 | AG35: 549 | AH35: 549 | AJ35: 2014-04-01 | AK35: 3.115669257 | AL35: 3.115669257 | AM35: 0.1336805556 | AN35: 0.4340277778 | AO35: 0.1371527778 | AQ35: 2014-04-01 | AR35: 3.115669257 | AS35: 3.115669257 | AT35: 0.1336805556 | AU35: 0.4340277778 | AV35: 0.1371527778 | AX35: 2014-04-01 | AY35: =Folha!E13 -> 1156 | AZ35: 1368.883414 | BA35: 212.8834143 | BB35: =Folha!O13 -> 1141 | BC35: 1348.41535 | BD35: 207.4153503 | BE35: =Folha!AI13 -> 0 | BF35: 0 | BG35: 0 | BH35: =Folha!Y13 -> 232 | BI35: 227.5722512 | BJ35: -4.427748843 | BK35: =Folha!AS13 -> 19 | BL35: 31.8643052 | BM35: 12.8643052 | BN35: 2548 | BO35: 2976.735321 | BP35: 428.7353209 | BR35: 2014-04-01 | BS35: =Q.Frota!N15 -> 39 | BT35: 2.10564663 | BU35: 82.12021858 | BV35: 1156 | BW35: 1073.879781 | BX35: 82.12021858 | BY35: 2043588.138 | BZ35: 156274.387 | CA35: 2199862.525
B36: 2014-05-01 | C36: 1607.048856 | D36: 1607.048856 | E36: 1026.502732 | F36: 78.49726776 | G36: 1607.048856 | H36: 840.169008 | I36: 1420.221142 | J36: 1119.086002 | K36: 1462.018611 | M36: 2014-05-01 | N36: =Folha!G14 -> 2194237.904 | O36: =Folha!Q14 -> 1101258.63 | P36: =Folha!AK14 -> 0 | Q36: =Folha!AA14 -> 256622.8868 | R36: =Folha!AU14 -> 44187.73881 | S36: 3596307.16 | U36: 2014-05-01 | V36: 1365.383446 | W36: 1310.758454 | X36: 0 | Y36: 229.3147144 | Z36: 30.2237868 | AA36: 2935.680401 | AC36: 2014-05-01 | AD36: =Q.Frota!T16 -> 549 | AE36: 549 | AF36: 549 | AG36: 549 | AH36: 549 | AJ36: 2014-05-01 | AK36: 3.190216352 | AL36: 3.190216352 | AM36: 0.1336805556 | AN36: 0.4340277778 | AO36: 0.1371527778 | AQ36: 2014-05-01 | AR36: 3.190216352 | AS36: 3.190216352 | AT36: 0.1336805556 | AU36: 0.4340277778 | AV36: 0.1371527778 | AX36: 2014-05-01 | AY36: =Folha!E14 -> 1105 | AZ36: 1365.383446 | BA36: 260.3834456 | BB36: =Folha!O14 -> 1041 | BC36: 1310.758454 | BD36: 269.758454 | BE36: =Folha!AI14 -> 0 | BF36: 0 | BG36: 0 | BH36: =Folha!Y14 -> 224 | BI36: 229.3147144 | BJ36: 5.314714378 | BK36: =Folha!AS14 -> 20 | BL36: 30.2237868 | BM36: 10.2237868 | BN36: 2390 | BO36: 2935.680401 | BP36: 545.6804008 | BR36: 2014-05-01 | BS36: =Q.Frota!N16 -> 39 | BT36: 2.012750455 | BU36: 78.49726776 | BV36: 1105 | BW36: 1026.502732 | BX36: 78.49726776 | BY36: 2038363.081 | BZ36: 155874.8238 | CA36: 2194237.904
B37: 2014-06-01 | C37: =C36*(C9/100*100+1) -> 1928.458627 | D37: =D36*(D9/100*100+1) -> 2089.163513 | E37: 993.989071 | F37: 76.01092896 | G37: 1939.874821 | H37: =H36*(E9/100*100+1) -> 1008.20281 | I37: =I36*(F9/100*100+1) -> 1704.26537 | J37: =J36*(F9/100*100+1) -> 1342.903202 | K37: =K36*(F9/100*100+1) -> 1754.422334 | M37: 2014-06-01 | N37: =Folha!G15 -> 2133616.033 | O37: =Folha!Q15 -> 1069977.47 | P37: =Folha!AK15 -> 0 | Q37: =Folha!AA15 -> 258550.5008 | R37: =Folha!AU15 -> 48708.55608 | S37: 3510852.56 | U37: 2014-06-01 | V37: 1099.873048 | W37: 1061.272057 | X37: 0 | Y37: 192.5310033 | Z37: 27.76330143 | AA37: 2381.43941 | AC37: 2014-06-01 | AD37: =Q.Frota!T17 -> 549 | AE37: 549 | AF37: 549 | AG37: 549 | AH37: 549 | AJ37: 2014-06-01 | AK37: 3.06663288 | AL37: 3.06663288 | AM37: 0.1336805556 | AN37: 0.4340277778 | AO37: 0.1371527778 | AQ37: 2014-06-01 | AR37: 3.06663288 | AS37: 3.06663288 | AT37: 0.1336805556 | AU37: 0.4340277778 | AV37: 0.1371527778 | AX37: 2014-06-01 | AY37: =Folha!E15 -> 1070 | AZ37: 1099.873048 | BA37: 29.87304848 | BB37: =Folha!O15 -> 1062 | BC37: 1061.272057 | BD37: -0.7279428641 | BE37: =Folha!AI15 -> 0 | BF37: 0 | BG37: 0 | BH37: =Folha!Y15 -> 222 | BI37: 192.5310033 | BJ37: -29.46899667 | BK37: =Folha!AS15 -> 23 | BL37: 27.76330143 | BM37: 4.763301429 | BN37: 2377 | BO37: 2381.43941 | BP37: 4.439410372 | BR37: 2014-06-01 | BS37: =Q.Frota!N17 -> 39 | BT37: 1.948998179 | BU37: 76.01092896 | BV37: 1070 | BW37: 993.989071 | BX37: 76.01092896 | BY37: 1982047.681 | BZ37: 151568.3521 | CA37: 2133616.033
B39: =B22 -> Bacia 5 | C39: R$ da Licitação corrigidos nos Dissídios Coletivos | K39: Ano 2 | M39: =B39 -> Bacia 5 | N39: R$ Salário Total Com Horas Extras e Adicional Noturno Pago Por Função (Sem inclusão de Encargos Sociais) - Valor de GFIP | S39: =K39 -> Ano 2 | U39: =M39 -> Bacia 5 | V39: Quantidade de Funcionários - Cálculo pela Folha | AA39: =S39 -> Ano 2 | AC39: =U39 -> Bacia 5 | AD39: Quantidade de Frota Operacional | AH39: =AA39 -> Ano 2 | AJ39: =AC39 -> Bacia 5 | AK39: FU POR FUNÇÃO | AO39: =AH39 -> Ano 2 | AQ39: =AJ39 -> Bacia 5 | AR39: FU FÍSICO PARA BENEFÍCIOS | AV39: =AO39 -> Ano 2 | AX39: =AQ39 -> Bacia 5 | AY39: Qtde. Funcionários - FÍSICO para Benefícios e FOLHA para Salários base de cálculo dos Enc.Sociais | BP39: =AV39 -> Ano 2 | BR39: =AX39 -> Bacia 5 | BS39: =BP39 -> Ano 2
B40: Mês | C40: R$ Salário Médio da Função (Sem Encargos) | M40: Mês | U40: Mês | V40: Inclusas todas as Horas Extras | AC40: Mês | AJ40: Mês | AK40: CÁLCULO SOBRE A FOLHA DE PAGAMENTO | AQ40: Mês | AX40: Mês | AY40: Motoristas | BB40: Cobradores | BE40: Controle Operacional | BH40: Manutenção | BK40: Administração | BN40: Total Geral | BR40: Mês | BS40: Cálculo Mot.Articulados | BV40: Qtde. Física de Motoristas | BY40: Cálculo R$ Mot.Artic. | CA40: R$
C41: Motoristas | E41: Qtde.Física de Mot. | G41: R$ Salário | H41: Cobradores | I41: Controle | J41: Manu- | K41: Admi- | M41: de | N41: Motoristas | O41: Cobradores | P41: Controle | Q41: Manutenção | R41: Administração | S41: R$ | V41: Motoristas | W41: Cobradores | X41: Controle | Y41: Manutenção | Z41: Administração | AA41: Qtde. | AC41: de | AD41: Motoristas | AE41: Cobradores | AF41: Controle | AG41: Manutenção | AH41: Administração | AJ41: de | AK41: Motoristas | AL41: Cobradores | AM41: Controle | AN41: Manutenção | AO41: Administração | AQ41: de | AR41: Motoristas | AS41: Cobradores | AT41: Controle | AU41: Manutenção | AV41: Administração | AX41: de | AY41: Físico | AZ41: Folha | BA41: Dif.Folha | BB41: Físico | BC41: Folha | BD41: Dif.Folha | BE41: Físico | BF41: Folha | BG41: Dif.Folha | BH41: Físico | BI41: Folha | BJ41: Dif.Folha | BK41: Físico | BL41: Folha | BM41: Dif.Folha | BN41: Físico | BO41: Folha | BP41: Dif.Folha | BR41: de | BS41: Frota | BT41: FU físico | BU41: Mot. | BV41: Mot. | BW41: Mot. | BX41: Mot. | BY41: R$ Mot. | BZ41: R$ Mot. | CA41: Total
B42: Ref. | C42: Diversos | D42: Artic. | E42: Div. | F42: Artic. | G42: Médio Mot. | I42: Operacional | J42: tenção | K42: nistração | M42: Ref. | N42: Diversos | P42: Operacional | S42: Total | U42: Ref. | X42: Operacional | AA42: Total | AC42: Ref. | AF42: Operacional | AJ42: Ref. | AM42: Operacional | AQ42: Ref. | AT42: Operacional | AX42: Ref. | BA42: (-) Físico | BD42: (-) Físico | BG42: (-) Físico | BJ42: (-) Físico | BM42: (-) Físico | BP42: (-) Físico | BR42: Ref. | BS42: Artic. | BT42: Mot.Div. | BU42: Artic. | BV42: Total | BW42: Diversos | BX42: Artic. | BY42: Diversos | BZ42: Articulados | CA42: Motoristas
B43: =DATE(YEAR(B37),MONTH(B37)+1,DAY(B37)) -> 2014-07-01 | C43: =C37 -> 1928.458627 | D43: =D37 -> 2089.163513 | E43: =BW43 -> 980.9836066 | F43: =BX43 -> 75.01639344 | G43: =IF(C43>0,((C43*E43)+(D43*F43))/(E43+F43),0) -> 1939.874821 | H43: =H37 -> 1008.20281 | I43: =I37 -> 1704.26537 | J43: =J37 -> 1342.903202 | K43: =K37 -> 1754.422334 | M43: =B43 -> 2014-07-01 | N43: =Folha!G16 -> 2080949.646 | O43: =Folha!Q16 -> 1034914.883 | P43: =Folha!AK16 -> 0 | Q43: =Folha!AA16 -> 257485.8065 | R43: =Folha!AU16 -> 53730.22463 | S43: =SUM(N43:R43) -> 3427080.56 | U43: =M43 -> 2014-07-01 | V43: =N43/G43 -> 1072.723674 | W43: =O43/H43 -> 1026.494742 | X43: =P43/I43 -> 0 | Y43: =Q43/J43 -> 191.7381731 | Z43: =R43/K43 -> 30.62559317 | AA43: =SUM(V43:Z43) -> 2321.582182 | AC43: =U43 -> 2014-07-01 | AD43: =Q.Frota!T23 -> 549 | AE43: =AD43 -> 549 | AF43: 549 | AG43: 549 | AH43: 549 | AJ43: =AC43 -> 2014-07-01 | AK43: 2.933850373 | AL43: 2.933850373 | AM43: =AM26 -> 0.1336805556 | AN43: 0.4340277778 | AO43: 0.1371527778 | AQ43: =AJ43 -> 2014-07-01 | AR43: =AK43 -> 2.933850373 | AS43: =AL43 -> 2.933850373 | AT43: =AM43 -> 0.1336805556 | AU43: =AN43 -> 0.4340277778 | AV43: =AO43 -> 0.1371527778 | AX43: =AQ43 -> 2014-07-01 | AY43: =Folha!E16 -> 1056 | AZ43: =V43 -> 1072.723674 | BA43: =AZ43-AY43 -> 16.7236743 | BB43: =Folha!O16 -> 1035 | BC43: =W43 -> 1026.494742 | BD43: =BC43-BB43 -> -8.50525802 | BE43: =Folha!AI16 -> 0 | BF43: =X43 -> 0 | BG43: =BF43-BE43 -> 0 | BH43: =Folha!Y16 -> 220 | BI43: =Y43 -> 191.7381731 | BJ43: =BI43-BH43 -> -28.26182694 | BK43: =Folha!AS16 -> 25 | BL43: =Z43 -> 30.62559317 | BM43: =BL43-BK43 -> 5.625593166 | BN43: =AY43+BB43+BE43+BH43+BK43 -> 2336 | BO43: =AZ43+BC43+BF43+BI43+BL43 -> 2321.582182 | BP43: =BO43-BN43 -> -14.4178175 | BR43: =AX43 -> 2014-07-01 | BS43: =Q.Frota!N23 -> 39 | BT43: =AY43/AD43 -> 1.923497268 | BU43: =BT43*BS43 -> 75.01639344 | BV43: =AY43 -> 1056 | BW43: =BV43-BX43 -> 980.9836066 | BX43: =BU43 -> 75.01639344 | BY43: =N43/BV43*BW43 -> 1933122.622 | BZ43: =N43/BV43*BX43 -> 147827.024 | CA43: =BY43+BZ43 -> 2080949.646
B44: =DATE(YEAR(B43),MONTH(B43)+1,DAY(B43)) -> 2014-08-01 | C44: =C43 -> 1928.458627 | D44: =D43 -> 2089.163513 | E44: 986.557377 | F44: 75.44262295 | G44: 1939.874821 | H44: =H43 -> 1008.20281 | I44: =I43 -> 1704.26537 | J44: =J43 -> 1342.903202 | K44: =K43 -> 1754.422334 | M44: 2014-08-01 | N44: =Folha!G17 -> 2010931.532 | O44: =Folha!Q17 -> 988936.672 | P44: =Folha!AK17 -> 0 | Q44: =Folha!AA17 -> 263081.0562 | R44: =Folha!AU17 -> 60261.56986 | S44: 3323210.83 | U44: 2014-08-01 | V44: 1036.629534 | W44: 980.8906131 | X44: 0 | Y44: 195.9047055 | Z44: 34.34838277 | AA44: 2247.773235 | AC44: 2014-08-01 | AD44: =Q.Frota!T24 -> 549 | AE44: 549 | AF44: 549 | AG44: 549 | AH44: 549 | AJ44: 2014-08-01 | AK44: 2.865952344 | AL44: 2.865952344 | AM44: 0.1336805556 | AN44: 0.4340277778 | AO44: 0.1371527778 | AQ44: 2014-08-01 | AR44: 2.865952344 | AS44: 2.865952344 | AT44: 0.1336805556 | AU44: 0.4340277778 | AV44: 0.1371527778 | AX44: 2014-08-01 | AY44: =Folha!E17 -> 1062 | AZ44: 1036.629534 | BA44: -25.37046603 | BB44: =Folha!O17 -> 1037 | BC44: 980.8906131 | BD44: -56.10938695 | BE44: =Folha!AI17 -> 0 | BF44: 0 | BG44: 0 | BH44: =Folha!Y17 -> 228 | BI44: 195.9047055 | BJ44: -32.09529454 | BK44: =Folha!AS17 -> 67 | BL44: 34.34838277 | BM44: -32.65161723 | BN44: 2394 | BO44: 2247.773235 | BP44: -146.2267647 | BR44: 2014-08-01 | BS44: =Q.Frota!N24 -> 39 | BT44: 1.93442623 | BU44: 75.44262295 | BV44: 1062 | BW44: 986.557377 | BX44: 75.44262295 | BY44: 1868078.472 | BZ44: 142853.0596 | CA44: 2010931.532
B45: 2014-09-01 | C45: 1928.458627 | D45: 2089.163513 | E45: 990.273224 | F45: 75.72677596 | G45: 1939.874821 | H45: 1008.20281 | I45: 1704.26537 | J45: 1342.903202 | K45: 1754.422334 | M45: 2014-09-01 | N45: =Folha!G18 -> 1832037.276 | O45: =Folha!Q18 -> 891071.6973 | P45: =Folha!AK18 -> 0 | Q45: =Folha!AA18 -> 245871.0576 | R45: =Folha!AU18 -> 76807.35931 | S45: 3045787.39 | U45: 2014-09-01 | V45: 944.4100494 | W45: 883.8218747 | X45: 0 | Y45: 183.0891886 | Z45: 43.77928725 | AA45: 2055.1004 | AC45: 2014-09-01 | AD45: =Q.Frota!T25 -> 549 | AE45: 549 | AF45: 549 | AG45: 549 | AH45: 549 | AJ45: 2014-09-01 | AK45: 2.617752354 | AL45: 2.617752354 | AM45: 0.1336805556 | AN45: 0.4340277778 | AO45: 0.1371527778 | AQ45: 2014-09-01 | AR45: 2.617752354 | AS45: 2.617752354 | AT45: 0.1336805556 | AU45: 0.4340277778 | AV45: 0.1371527778 | AX45: 2014-09-01 | AY45: =Folha!E18 -> 1066 | AZ45: 944.4100494 | BA45: -121.5899506 | BB45: =Folha!O18 -> 1049 | BC45: 883.8218747 | BD45: -165.1781253 | BE45: =Folha!AI18 -> 0 | BF45: 0 | BG45: 0 | BH45: =Folha!Y18 -> 227 | BI45: 183.0891886 | BJ45: -43.91081141 | BK45: =Folha!AS18 -> 69 | BL45: 43.77928725 | BM45: -25.22071275 | BN45: 2411 | BO45: 2055.1004 | BP45: -355.8996 | BR45: 2014-09-01 | BS45: =Q.Frota!N25 -> 39 | BT45: 1.941712204 | BU45: 75.72677596 | BV45: 1066 | BW45: 990.273224 | BX45: 75.72677596 | BY45: 1701892.551 | BZ45: 130144.7245 | CA45: 1832037.276
B46: 2014-10-01 | C46: 1928.458627 | D46: 2089.163513 | E46: 988.4153005 | F46: 75.58469945 | G46: 1939.874821 | H46: 1008.20281 | I46: 1704.26537 | J46: 1342.903202 | K46: 1754.422334 | M46: 2014-10-01 | N46: =Folha!G19 -> 4155153.337 | O46: =Folha!Q19 -> 2035822.914 | P46: =Folha!AK19 -> 0 | Q46: =Folha!AA19 -> 507186.2886 | R46: =Folha!AU19 -> 121653.1608 | S46: 6819815.7 | U46: 2014-10-01 | V46: 2141.969828 | W46: 2019.259314 | X46: 0 | Y46: 377.6789629 | Z46: 69.34086421 | AA46: 4608.248969 | AC46: 2014-10-01 | AD46: =Q.Frota!T26 -> 549 | AE46: 549 | AF46: 549 | AG46: 549 | AH46: 549 | AJ46: 2014-10-01 | AK46: 2.614200511 | AL46: 2.614200511 | AM46: 0.1336805556 | AN46: 0.4340277778 | AO46: 0.1371527778 | AQ46: 2014-10-01 | AR46: 2.614200511 | AS46: 2.614200511 | AT46: 0.1336805556 | AU46: 0.4340277778 | AV46: 0.1371527778 | AX46: 2014-10-01 | AY46: =Folha!E19 -> 1064 | AZ46: 2141.969828 | BA46: 1077.969828 | BB46: =Folha!O19 -> 1065 | BC46: 2019.259314 | BD46: 954.2593139 | BE46: =Folha!AI19 -> 0 | BF46: 0 | BG46: 0 | BH46: =Folha!Y19 -> 217 | BI46: 377.6789629 | BJ46: 160.6789629 | BK46: =Folha!AS19 -> 63 | BL46: 69.34086421 | BM46: 6.340864208 | BN46: 2409 | BO46: 4608.248969 | BP46: 2199.248969 | BR46: 2014-10-01 | BS46: =Q.Frota!N26 -> 39 | BT46: 1.938069217 | BU46: 75.58469945 | BV46: 1064 | BW46: 988.4153005 | BX46: 75.58469945 | BY46: 3859978.51 | BZ46: 295174.8272 | CA46: 4155153.337
B47: 2014-11-01 | C47: 1928.458627 | D47: 2089.163513 | E47: 1004.20765 | F47: 76.79234973 | G47: 1939.874821 | H47: 1008.20281 | I47: 1704.26537 | J47: 1342.903202 | K47: 1754.422334 | M47: 2014-11-01 | N47: =Folha!G20 -> 2326428.676 | O47: =Folha!Q20 -> 1170445.348 | P47: =Folha!AK20 -> 0 | Q47: =Folha!AA20 -> 289945.1313 | R47: =Folha!AU20 -> 91541.26477 | S47: 3878360.42 | U47: 2014-11-01 | V47: 1199.267422 | W47: 1160.922522 | X47: 0 | Y47: 215.9091816 | Z47: 52.17743927 | AA47: 2628.276565 | AC47: 2014-11-01 | AD47: =Q.Frota!T27 -> 549 | AE47: 549 | AF47: 549 | AG47: 549 | AH47: 549 | AJ47: 2014-11-01 | AK47: 2.527655395 | AL47: 2.527655395 | AM47: 0.1336805556 | AN47: 0.4340277778 | AO47: 0.1371527778 | AQ47: 2014-11-01 | AR47: 2.527655395 | AS47: 2.527655395 | AT47: 0.1336805556 | AU47: 0.4340277778 | AV47: 0.1371527778 | AX47: 2014-11-01 | AY47: =Folha!E20 -> 1081 | AZ47: 1199.267422 | BA47: 118.267422 | BB47: =Folha!O20 -> 1077 | BC47: 1160.922522 | BD47: 83.92252165 | BE47: =Folha!AI20 -> 0 | BF47: 0 | BG47: 0 | BH47: =Folha!Y20 -> 212 | BI47: 215.9091816 | BJ47: 3.909181636 | BK47: =Folha!AS20 -> 62 | BL47: 52.17743927 | BM47: -9.822560728 | BN47: 2432 | BO47: 2628.276565 | BP47: 196.2765645 | BR47: 2014-11-01 | BS47: =Q.Frota!N27 -> 39 | BT47: 1.969034608 | BU47: 76.79234973 | BV47: 1081 | BW47: 1004.20765 | BX47: 76.79234973 | BY47: 2161163.251 | BZ47: 165265.4251 | CA47: 2326428.676
B48: 2014-12-01 | C48: 1928.458627 | D48: 2089.163513 | E48: 1024.644809 | F48: 78.35519126 | G48: 1939.874821 | H48: 1008.20281 | I48: 1704.26537 | J48: 1342.903202 | K48: 1754.422334 | M48: 2014-12-01 | N48: =Folha!G21 -> 2461230.978 | O48: =Folha!Q21 -> 1239814.913 | P48: =Folha!AK21 -> 0 | Q48: =Folha!AA21 -> 305638.9098 | R48: =Folha!AU21 -> 90411.72938 | S48: 4097096.53 | U48: 2014-12-01 | V48: 1268.757628 | W48: 1229.727691 | X48: 0 | Y48: 227.5956371 | Z48: 51.53361744 | AA48: 2777.614574 | AC48: 2014-12-01 | AD48: =Q.Frota!T28 -> 549 | AE48: 549 | AF48: 549 | AG48: 549 | AH48: 549 | AJ48: 2014-12-01 | AK48: 2.527655395 | AL48: 2.527655395 | AM48: 0.1336805556 | AN48: 0.4340277778 | AO48: 0.1371527778 | AQ48: 2014-12-01 | AR48: 2.527655395 | AS48: 2.527655395 | AT48: 0.1336805556 | AU48: 0.4340277778 | AV48: 0.1371527778 | AX48: 2014-12-01 | AY48: =Folha!E21 -> 1103 | AZ48: 1268.757628 | BA48: 165.7576285 | BB48: =Folha!O21 -> 1092 | BC48: 1229.727691 | BD48: 137.7276909 | BE48: =Folha!AI21 -> 0 | BF48: 0 | BG48: 0 | BH48: =Folha!Y21 -> 219 | BI48: 227.5956371 | BJ48: 8.595637126 | BK48: =Folha!AS21 -> 58 | BL48: 51.53361744 | BM48: -6.466382556 | BN48: 2472 | BO48: 2777.614574 | BP48: 305.6145739 | BR48: 2014-12-01 | BS48: =Q.Frota!N28 -> 39 | BT48: 2.009107468 | BU48: 78.35519126 | BV48: 1103 | BW48: 1024.644809 | BX48: 78.35519126 | BY48: 2286389.433 | BZ48: 174841.5449 | CA48: 2461230.978
B49: 2015-01-01 | C49: 1928.458627 | D49: 2089.163513 | E49: 1013.497268 | F49: 77.50273224 | G49: 1939.874821 | H49: 1008.20281 | I49: 1704.26537 | J49: 1342.903202 | K49: 1754.422334 | M49: 2015-01-01 | N49: =Folha!G22 -> 2391352.676 | O49: =Folha!Q22 -> 1204062.439 | P49: =Folha!AK22 -> 0 | Q49: =Folha!AA22 -> 303812.5357 | R49: =Folha!AU22 -> 86308.87885 | S49: 3985536.53 | U49: 2015-01-01 | V49: 1232.735561 | W49: 1194.266102 | X49: 0 | Y49: 226.2356179 | Z49: 49.19504112 | AA49: 2702.432322 | AC49: 2015-01-01 | AD49: =Q.Frota!T29 -> 549 | AE49: 549 | AF49: 549 | AG49: 549 | AH49: 549 | AJ49: 2015-01-01 | AK49: 2.374413671 | AL49: 2.374413671 | AM49: 0.1336805556 | AN49: 0.4340277778 | AO49: 0.1371527778 | AQ49: 2015-01-01 | AR49: 2.374413671 | AS49: 2.374413671 | AT49: 0.1336805556 | AU49: 0.4340277778 | AV49: 0.1371527778 | AX49: 2015-01-01 | AY49: =Folha!E22 -> 1091 | AZ49: 1232.735561 | BA49: 141.7355612 | BB49: =Folha!O22 -> 1081 | BC49: 1194.266102 | BD49: 113.2661016 | BE49: =Folha!AI22 -> 0 | BF49: 0 | BG49: 0 | BH49: =Folha!Y22 -> 226 | BI49: 226.2356179 | BJ49: 0.2356179393 | BK49: =Folha!AS22 -> 54 | BL49: 49.19504112 | BM49: -4.804958878 | BN49: 2452 | BO49: 2702.432322 | BP49: 250.4323219 | BR49: 2015-01-01 | BS49: =Q.Frota!N29 -> 39 | BT49: 1.987249545 | BU49: 77.50273224 | BV49: 1091 | BW49: 1013.497268 | BX49: 77.50273224 | BY49: 2221475.164 | BZ49: 169877.5125 | CA49: 2391352.676
B50: 2015-02-01 | C50: 1928.458627 | D50: 2089.163513 | E50: 1043.224044 | F50: 79.77595628 | G50: 1939.874821 | H50: 1008.20281 | I50: 1704.26537 | J50: 1342.903202 | K50: 1754.422334 | M50: 2015-02-01 | N50: =Folha!G23 -> 2636085.055 | O50: =Folha!Q23 -> 1324150.186 | P50: =Folha!AK23 -> 0 | Q50: =Folha!AA23 -> 314903.4455 | R50: =Folha!AU23 -> 84000.20376 | S50: 4359138.89 | U50: 2015-02-01 | V50: 1358.894412 | W50: 1313.376806 | X50: 0 | Y50: 234.4945228 | Z50: 47.8791236 | AA50: 2954.644864 | AC50: 2015-02-01 | AD50: =Q.Frota!T30 -> 549 | AE50: 549 | AF50: 549 | AG50: 549 | AH50: 549 | AJ50: 2015-02-01 | AK50: 2.400686198 | AL50: 2.400686198 | AM50: 0.1336805556 | AN50: 0.4340277778 | AO50: 0.1371527778 | AQ50: 2015-02-01 | AR50: 2.400686198 | AS50: 2.400686198 | AT50: 0.1336805556 | AU50: 0.4340277778 | AV50: 0.1371527778 | AX50: 2015-02-01 | AY50: =Folha!E23 -> 1123 | AZ50: 1358.894412 | BA50: 235.8944122 | BB50: =Folha!O23 -> 1112 | BC50: 1313.376806 | BD50: 201.3768059 | BE50: =Folha!AI23 -> 0 | BF50: 0 | BG50: 0 | BH50: =Folha!Y23 -> 239 | BI50: 234.4945228 | BJ50: -4.505477201 | BK50: =Folha!AS23 -> 51 | BL50: 47.8791236 | BM50: -3.120876398 | BN50: 2525 | BO50: 2954.644864 | BP50: 429.6448645 | BR50: 2015-02-01 | BS50: =Q.Frota!N30 -> 39 | BT50: 2.045537341 | BU50: 79.77595628 | BV50: 1123 | BW50: 1043.224044 | BX50: 79.77595628 | BY50: 2448822.182 | BZ50: 187262.8728 | CA50: 2636085.055
B51: 2015-03-01 | C51: 1928.458627 | D51: 2089.163513 | E51: 1030.218579 | F51: 78.78142077 | G51: 1939.874821 | H51: 1008.20281 | I51: 1704.26537 | J51: 1342.903202 | K51: 1754.422334 | M51: 2015-03-01 | N51: =Folha!G24 -> 2586260.597 | O51: =Folha!Q24 -> 1301620.318 | P51: =Folha!AK24 -> 0 | Q51: =Folha!AA24 -> 310484.8202 | R51: =Folha!AU24 -> 85690.60444 | S51: 4284056.34 | U51: 2015-03-01 | V51: 1333.210045 | W51: 1291.030243 | X51: 0 | Y51: 231.20417 | Z51: 48.84263202 | AA51: 2904.28709 | AC51: 2015-03-01 | AD51: =Q.Frota!T31 -> 549 | AE51: 549 | AF51: 549 | AG51: 549 | AH51: 549 | AJ51: 2015-03-01 | AK51: 2.400686198 | AL51: 2.400686198 | AM51: 0.1336805556 | AN51: 0.4340277778 | AO51: 0.1371527778 | AQ51: 2015-03-01 | AR51: 2.400686198 | AS51: 2.400686198 | AT51: 0.1336805556 | AU51: 0.4340277778 | AV51: 0.1371527778 | AX51: 2015-03-01 | AY51: =Folha!E24 -> 1109 | AZ51: 1333.210045 | BA51: 224.2100449 | BB51: =Folha!O24 -> 1101 | BC51: 1291.030243 | BD51: 190.0302427 | BE51: =Folha!AI24 -> 0 | BF51: 0 | BG51: 0 | BH51: =Folha!Y24 -> 223 | BI51: 231.20417 | BJ51: 8.204169974 | BK51: =Folha!AS24 -> 46 | BL51: 48.84263202 | BM51: 2.842632017 | BN51: 2479 | BO51: 2904.28709 | BP51: 425.2870895 | BR51: 2015-03-01 | BS51: =Q.Frota!N31 -> 39 | BT51: 2.02003643 | BU51: 78.78142077 | BV51: 1109 | BW51: 1030.218579 | BX51: 78.78142077 | BY51: 2402537.167 | BZ51: 183723.4304 | CA51: 2586260.597
B52: 2015-04-01 | C52: 1928.458627 | D52: 2089.163513 | E52: 1020 | F52: 78 | G52: 1939.874821 | H52: 1008.20281 | I52: 1704.26537 | J52: 1342.903202 | K52: 1754.422334 | M52: 2015-04-01 | N52: =Folha!G25 -> 2416019.477 | O52: =Folha!Q25 -> 1210151.079 | P52: =Folha!AK25 -> 0 | Q52: =Folha!AA25 -> 309668.5233 | R52: =Folha!AU25 -> 87055.63058 | S52: 4022894.71 | U52: 2015-04-01 | V52: 1245.451228 | W52: 1200.305204 | X52: 0 | Y52: 230.5963102 | Z52: 49.62068079 | AA52: 2725.973422 | AC52: 2015-04-01 | AD52: =Q.Frota!T32 -> 549 | AE52: 549 | AF52: 549 | AG52: 549 | AH52: 549 | AJ52: 2015-04-01 | AK52: 2.400750267 | AL52: 2.400750267 | AM52: 0.1336805556 | AN52: 0.4340277778 | AO52: 0.1371527778 | AQ52: 2015-04-01 | AR52: 2.400750267 | AS52: 2.400750267 | AT52: 0.1336805556 | AU52: 0.4340277778 | AV52: 0.1371527778 | AX52: 2015-04-01 | AY52: =Folha!E25 -> 1098 | AZ52: 1245.451228 | BA52: 147.4512275 | BB52: =Folha!O25 -> 1002 | BC52: 1200.305204 | BD52: 198.3052037 | BE52: =Folha!AI25 -> 0 | BF52: 0 | BG52: 0 | BH52: =Folha!Y25 -> 228 | BI52: 230.5963102 | BJ52: 2.59631021 | BK52: =Folha!AS25 -> 105 | BL52: 49.62068079 | BM52: -55.37931921 | BN52: 2433 | BO52: 2725.973422 | BP52: 292.9734222 | BR52: 2015-04-01 | BS52: =Q.Frota!N32 -> 39 | BT52: 2 | BU52: 78 | BV52: 1098 | BW52: 1020 | BX52: 78 | BY52: 2244389.678 | BZ52: 171629.7989 | CA52: 2416019.477
B53: 2015-05-01 | C53: 1928.458627 | D53: 2089.163513 | E53: 1035.79235 | F53: 79.20765027 | G53: 1939.874821 | H53: 1008.20281 | I53: 1704.26537 | J53: 1342.903202 | K53: 1754.422334 | M53: 2015-05-01 | N53: =Folha!G26 -> 2522833.343 | O53: =Folha!Q26 -> 1287981.636 | P53: =Folha!AK26 -> 0 | Q53: =Folha!AA26 -> 319444.6127 | R53: =Folha!AU26 -> 109056.8585 | S53: 4239316.45 | U53: 2015-05-01 | V53: 1300.513474 | W53: 1277.502526 | X53: 0 | Y53: 237.8761271 | Z53: 62.16112074 | AA53: 2878.053248 | AC53: 2015-05-01 | AD53: =Q.Frota!T33 -> 549 | AE53: 549 | AF53: 549 | AG53: 549 | AH53: 549 | AJ53: 2015-05-01 | AK53: 2.642425535 | AL53: =AK53 -> 2.642425535 | AM53: 0.1336805556 | AN53: 0.4340277778 | AO53: 0.1371527778 | AQ53: 2015-05-01 | AR53: 2.642425535 | AS53: 2.642425535 | AT53: 0.1336805556 | AU53: 0.4340277778 | AV53: 0.1371527778 | AX53: 2015-05-01 | AY53: =Folha!E26 -> 1115 | AZ53: 1300.513474 | BA53: 185.513474 | BB53: =Folha!O26 -> 1114 | BC53: 1277.502526 | BD53: 163.5025258 | BE53: =Folha!AI26 -> 0 | BF53: 0 | BG53: 0 | BH53: =Folha!Y26 -> 231 | BI53: 237.8761271 | BJ53: 6.876127062 | BK53: =Folha!AS26 -> 103 | BL53: 62.16112074 | BM53: -40.83887926 | BN53: 2563 | BO53: 2878.053248 | BP53: 315.0532477 | BR53: 2015-05-01 | BS53: =Q.Frota!N33 -> 39 | BT53: 2.030965392 | BU53: 79.20765027 | BV53: 1115 | BW53: 1035.79235 | BX53: 79.20765027 | BY53: 2343615.674 | BZ53: 179217.6692 | CA53: 2522833.343
B54: 2015-06-01 | C54: =C53*(C11/100*100+1) -> 2121.30449 | D54: =D53*(D11/100*100+1) -> 2298.079864 | E54: 1033.934426 | F54: 79.06557377 | G54: 2133.862303 | H54: =H53*(E11/100*100+1) -> 1109.023091 | I54: =I53*(F11/100*100+1) -> 1874.691907 | J54: =J53*(F11/100*100+1) -> 1477.193522 | K54: =K53*(F11/100*100+1) -> 1929.864567 | M54: 2015-06-01 | N54: =Folha!G27 -> 2511825.136 | O54: =Folha!Q27 -> 1303142.757 | P54: =Folha!AK27 -> 0 | Q54: =Folha!AA27 -> 326180.3292 | R54: =Folha!AU27 -> 125474.6275 | S54: 4266622.85 | U54: 2015-06-01 | V54: 1177.126159 | W54: 1175.036632 | X54: 0 | Y54: 220.810831 | Z54: 65.01732277 | AA54: 2637.990945 | AC54: 2015-06-01 | AD54: =Q.Frota!T34 -> 549 | AE54: 549 | AF54: 549 | AG54: 549 | AH54: 549 | AJ54: 2015-06-01 | AK54: 2.690484973 | AL54: =AK54 -> 2.690484973 | AM54: 0.1336805556 | AN54: 0.4340277778 | AO54: 0.1371527778 | AQ54: 2015-06-01 | AR54: 2.690484973 | AS54: 2.690484973 | AT54: 0.1336805556 | AU54: 0.4340277778 | AV54: 0.1371527778 | AX54: 2015-06-01 | AY54: =Folha!E27 -> 1113 | AZ54: 1177.126159 | BA54: 64.12615852 | BB54: =Folha!O27 -> 1110 | BC54: 1175.036632 | BD54: 65.03663219 | BE54: =Folha!AI27 -> 0 | BF54: 0 | BG54: 0 | BH54: =Folha!Y27 -> 232 | BI54: 220.810831 | BJ54: -11.18916898 | BK54: =Folha!AS27 -> 103 | BL54: 65.01732277 | BM54: -37.98267723 | BN54: 2558 | BO54: 2637.990945 | BP54: 79.9909445 | BR54: 2015-06-01 | BS54: =Q.Frota!N34 -> 39 | BT54: 2.027322404 | BU54: 79.06557377 | BV54: 1113 | BW54: 1033.934426 | BX54: 79.06557377 | BY54: 2333389.471 | BZ54: 178435.6654 | CA54: 2511825.136
B56: =B39 -> Bacia 5 | C56: R$ da Licitação corrigidos nos Dissídios Coletivos | K56: Ano 3 | M56: =B56 -> Bacia 5 | N56: R$ Salário Total Com Horas Extras e Adicional Noturno Pago Por Função (Sem inclusão de Encargos Sociais) - Valor de GFIP | S56: =K56 -> Ano 3 | U56: =M56 -> Bacia 5 | V56: Quantidade de Funcionários - Cálculo pela Folha | AA56: =S56 -> Ano 3 | AC56: =U56 -> Bacia 5 | AD56: Quantidade de Frota Operacional | AH56: =AA56 -> Ano 3 | AJ56: =AC56 -> Bacia 5 | AK56: FU POR FUNÇÃO | AO56: =AH56 -> Ano 3 | AQ56: =AJ56 -> Bacia 5 | AR56: FU FÍSICO PARA BENEFÍCIOS | AV56: =AO56 -> Ano 3 | AX56: =AQ56 -> Bacia 5 | AY56: Qtde. Funcionários - FÍSICO para Benefícios e FOLHA para Salários base de cálculo dos Enc.Sociais | BP56: =AV56 -> Ano 3 | BR56: =AX56 -> Bacia 5 | BS56: =BP56 -> Ano 3
B57: Mês | C57: R$ Salário Médio da Função (Sem Encargos) | M57: Mês | U57: Mês | V57: Inclusas todas as Horas Extras | AC57: Mês | AJ57: Mês | AK57: CÁLCULO SOBRE A FOLHA DE PAGAMENTO | AQ57: Mês | AX57: Mês | AY57: Motoristas | BB57: Cobradores | BE57: Controle Operacional | BH57: Manutenção | BK57: Administração | BN57: Total Geral | BR57: Mês | BS57: Cálculo Mot.Articulados | BV57: Qtde. Física de Motoristas | BY57: Cálculo R$ Mot.Artic. | CA57: R$
C58: Motoristas | E58: Qtde.Física de Mot. | G58: R$ Salário | H58: Cobradores | I58: Controle | J58: Manu- | K58: Admi- | M58: de | N58: Motoristas | O58: Cobradores | P58: Controle | Q58: Manutenção | R58: Administração | S58: R$ | V58: Motoristas | W58: Cobradores | X58: Controle | Y58: Manutenção | Z58: Administração | AA58: Qtde. | AC58: de | AD58: Motoristas | AE58: Cobradores | AF58: Controle | AG58: Manutenção | AH58: Administração | AJ58: de | AK58: Motoristas | AL58: Cobradores | AM58: Controle | AN58: Manutenção | AO58: Administração | AQ58: de | AR58: Motoristas | AS58: Cobradores | AT58: Controle | AU58: Manutenção | AV58: Administração | AX58: de | AY58: Físico | AZ58: Folha | BA58: Dif.Folha | BB58: Físico | BC58: Folha | BD58: Dif.Folha | BE58: Físico | BF58: Folha | BG58: Dif.Folha | BH58: Físico | BI58: Folha | BJ58: Dif.Folha | BK58: Físico | BL58: Folha | BM58: Dif.Folha | BN58: Físico | BO58: Folha | BP58: Dif.Folha | BR58: de | BS58: Frota | BT58: FU físico | BU58: Mot. | BV58: Mot. | BW58: Mot. | BX58: Mot. | BY58: R$ Mot. | BZ58: R$ Mot. | CA58: Total
B59: Ref. | C59: Diversos | D59: Artic. | E59: Div. | F59: Artic. | G59: Médio Mot. | I59: Operacional | J59: tenção | K59: nistração | M59: Ref. | N59: Diversos | P59: Operacional | S59: Total | U59: Ref. | X59: Operacional | AA59: Total | AC59: Ref. | AF59: Operacional | AJ59: Ref. | AM59: Operacional | AQ59: Ref. | AT59: Operacional | AX59: Ref. | BA59: (-) Físico | BD59: (-) Físico | BG59: (-) Físico | BJ59: (-) Físico | BM59: (-) Físico | BP59: (-) Físico | BR59: Ref. | BS59: Artic. | BT59: Mot.Div. | BU59: Artic. | BV59: Total | BW59: Diversos | BX59: Artic. | BY59: Diversos | BZ59: Articulados | CA59: Motoristas
B60: =DATE(YEAR(B54),MONTH(B54)+1,DAY(B54)) -> 2015-07-01 | C60: =C54 -> 2121.30449 | D60: =D54 -> 2298.079864 | E60: =BW60 -> 1040.437158 | F60: =BX60 -> 79.56284153 | G60: =IF(C60>0,((C60*E60)+(D60*F60))/(E60+F60),0) -> 2133.862303 | H60: =H54 -> 1109.023091 | I60: =I54 -> 1874.691907 | J60: =J54 -> 1477.193522 | K60: =K54 -> 1929.864567 | M60: =B60 -> 2015-07-01 | N60: =Folha!G28 -> 3076049.946 | O60: =Folha!Q28 -> 1563522.176 | P60: =Folha!AK28 -> 11647.69791 | Q60: =Folha!AA28 -> 378893.1361 | R60: =Folha!AU28 -> 136444.7336 | S60: =SUM(N60:R60) -> 5166557.69 | U60: =M60 -> 2015-07-01 | V60: =N60/G60 -> 1441.540975 | W60: =O60/H60 -> 1409.819317 | X60: =P60/I60 -> 6.21312647 | Y60: =Q60/J60 -> 256.4952597 | Z60: =R60/K60 -> 70.70171448 | AA60: =SUM(V60:Z60) -> 3184.770393 | AC60: =U60 -> 2015-07-01 | AD60: =AD54 -> 549 | AE60: =AD60 -> 549 | AF60: 549 | AG60: 549 | AH60: 549 | AJ60: =AC60 -> 2015-07-01 | AK60: 2.691276916 | AL60: =AK60 -> 2.691276916 | AM60: =AM43 -> 0.1336805556 | AN60: 0.4340277778 | AO60: 0.1371527778 | AQ60: =AJ60 -> 2015-07-01 | AR60: =AK60 -> 2.691276916 | AS60: =AL60 -> 2.691276916 | AT60: =AM60 -> 0.1336805556 | AU60: =AN60 -> 0.4340277778 | AV60: =AO60 -> 0.1371527778 | AX60: =AQ60 -> 2015-07-01 | AY60: =Folha!E28 -> 1120 | AZ60: =V60 -> 1441.540975 | BA60: =AZ60-AY60 -> 321.5409754 | BB60: =Folha!O28 -> 1114 | BC60: =W60 -> 1409.819317 | BD60: =BC60-BB60 -> 295.8193171 | BE60: =Folha!AI28 -> 3 | BF60: =X60 -> 6.21312647 | BG60: =BF60-BE60 -> 3.21312647 | BH60: =Folha!Y28 -> 240 | BI60: =Y60 -> 256.4952597 | BJ60: =BI60-BH60 -> 16.4952597 | BK60: =Folha!AS28 -> 103 | BL60: =Z60 -> 70.70171448 | BM60: =BL60-BK60 -> -32.29828552 | BN60: =AY60+BB60+BE60+BH60+BK60 -> 2580 | BO60: =AZ60+BC60+BF60+BI60+BL60 -> 3184.770393 | BP60: =BO60-BN60 -> 604.7703932 | BR60: =AX60 -> 2015-07-01 | BS60: =BS54 -> 39 | BT60: =AY60/AD60 -> 2.04007286 | BU60: =BT60*BS60 -> 79.56284153 | BV60: =AY60 -> 1120 | BW60: =BV60-BX60 -> 1040.437158 | BX60: =BU60 -> 79.56284153 | BY60: =N60/BV60*BW60 -> 2857532.737 | BZ60: =N60/BV60*BX60 -> 218517.2093 | CA60: =BY60+BZ60 -> 3076049.946
B61: =DATE(YEAR(B60),MONTH(B60)+1,DAY(B60)) -> 2015-08-01 | C61: =C60 -> 2121.30449 | D61: =D60 -> 2298.079864 | E61: 1037.650273 | F61: 79.34972678 | G61: 2133.862303 | H61: =H60 -> 1109.023091 | I61: =I60 -> 1874.691907 | J61: =J60 -> 1477.193522 | K61: =K60 -> 1929.864567 | M61: 2015-08-01 | N61: =Folha!G29 -> 2887420.92 | O61: =Folha!Q29 -> 1465158.257 | P61: =Folha!AK29 -> 11759.08296 | Q61: =Folha!AA29 -> 357657.3126 | R61: =Folha!AU29 -> 118179.4172 | S61: 4840174.99 | U61: 2015-08-01 | V61: 1353.143038 | W61: 1321.125114 | X61: 6.272541591 | Y61: 242.11947 | Z61: 61.23715584 | AA61: 2983.89732 | AC61: 2015-08-01 | AD61: =AD60 -> 549 | AE61: 549 | AF61: 549 | AG61: 549 | AH61: 549 | AJ61: 2015-08-01 | AK61: 2.649907635 | AL61: =AK61 -> 2.649907635 | AM61: 0.1336805556 | AN61: 0.4340277778 | AO61: 0.1371527778 | AQ61: 2015-08-01 | AR61: 2.649907635 | AS61: 2.649907635 | AT61: 0.1336805556 | AU61: 0.4340277778 | AV61: 0.1371527778 | AX61: 2015-08-01 | AY61: =Folha!E29 -> 1117 | AZ61: 1353.143038 | BA61: 236.1430382 | BB61: =Folha!O29 -> 1126 | BC61: 1321.125114 | BD61: 195.125114 | BE61: =Folha!AI29 -> 3 | BF61: 6.272541591 | BG61: 3.272541591 | BH61: =Folha!Y29 -> 243 | BI61: 242.11947 | BJ61: -0.8805300201 | BK61: =Folha!AS29 -> 99 | BL61: 61.23715584 | BM61: -37.76284416 | BN61: 2588 | BO61: 2983.89732 | BP61: 395.8973196 | BR61: 2015-08-01 | BS61: =BS60 -> 39 | BT61: 2.034608379 | BU61: 79.34972678 | BV61: 1117 | BW61: 1037.650273 | BX61: 79.34972678 | BY61: 2682303.587 | BZ61: 205117.3331 | CA61: 2887420.92
B62: 2015-09-01 | C62: 2121.30449 | D62: 2298.079864 | E62: 1033.934426 | F62: 79.06557377 | G62: 2133.862303 | H62: 1109.023091 | I62: 1874.691907 | J62: 1477.193522 | K62: 1929.864567 | M62: 2015-09-01 | N62: =Folha!G30 -> 2769726.335 | O62: =Folha!Q30 -> 1411651.841 | P62: =Folha!AK30 -> 10981.39925 | Q62: =Folha!AA30 -> 369297.1873 | R62: =Folha!AU30 -> 121431.347 | S62: 4683088.11 | U62: 2015-09-01 | V62: 1297.987377 | W62: 1272.878674 | X62: 5.857708784 | Y62: 249.9991923 | Z62: 62.9222118 | AA62: 2889.645165 | AC62: 2015-09-01 | AD62: 549 | AE62: 549 | AF62: 549 | AG62: 549 | AH62: 549 | AJ62: 2015-09-01 | AK62: 2.632887705 | AL62: =AK62 -> 2.632887705 | AM62: 0.1336805556 | AN62: 0.4340277778 | AO62: 0.1371527778 | AQ62: 2015-09-01 | AR62: 2.632887705 | AS62: 2.632887705 | AT62: 0.1336805556 | AU62: 0.4340277778 | AV62: 0.1371527778 | AX62: 2015-09-01 | AY62: =Folha!E30 -> 1113 | AZ62: 1297.987377 | BA62: 184.9873774 | BB62: =Folha!O30 -> 1105 | BC62: 1272.878674 | BD62: 167.8786744 | BE62: =Folha!AI30 -> 3 | BF62: 5.857708784 | BG62: 2.857708784 | BH62: =Folha!Y30 -> 246 | BI62: 249.9991923 | BJ62: 3.999192255 | BK62: =Folha!AS30 -> 88 | BL62: 62.9222118 | BM62: -25.0777882 | BN62: 2555 | BO62: 2889.645165 | BP62: 334.6451647 | BR62: 2015-09-01 | BS62: 39 | BT62: 2.027322404 | BU62: 79.06557377 | BV62: 1113 | BW62: 1033.934426 | BX62: 79.06557377 | BY62: 2572969.819 | BZ62: 196756.5156 | CA62: 2769726.335
B63: 2015-10-01 | C63: 2121.30449 | D63: 2298.079864 | E63: 1041.36612 | F63: 79.63387978 | G63: 2133.862303 | H63: 1109.023091 | I63: 1874.691907 | J63: 1477.193522 | K63: 1929.864567 | M63: 2015-10-01 | N63: =Folha!G31 -> 2880369.49 | O63: =Folha!Q31 -> 1433292.868 | P63: =Folha!AK31 -> 12650.7989 | Q63: =Folha!AA31 -> 377827.587 | R63: =Folha!AU31 -> 115898.0857 | S63: 4820038.83 | U63: 2015-10-01 | V63: 1349.8385 | W63: 1292.392269 | X63: 6.748201584 | Y63: 255.7739262 | Z63: 60.0550358 | AA63: 2964.807932 | AC63: 2015-10-01 | AD63: 549 | AE63: 549 | AF63: 549 | AG63: 549 | AH63: 549 | AJ63: 2015-10-01 | AK63: 2.500426374 | AL63: 2.500426374 | AM63: 0.1336805556 | AN63: 0.4340277778 | AO63: 0.1371527778 | AQ63: 2015-10-01 | AR63: 2.500426374 | AS63: 2.500426374 | AT63: 0.1336805556 | AU63: 0.4340277778 | AV63: 0.1371527778 | AX63: 2015-10-01 | AY63: =Folha!E31 -> 1121 | AZ63: 1349.8385 | BA63: 228.8384997 | BB63: =Folha!O31 -> 1071 | BC63: 1292.392269 | BD63: 221.3922688 | BE63: =Folha!AI31 -> 3 | BF63: 6.748201584 | BG63: 3.748201584 | BH63: =Folha!Y31 -> 256 | BI63: 255.7739262 | BJ63: -0.2260737502 | BK63: =Folha!AS31 -> 85 | BL63: 60.0550358 | BM63: -24.9449642 | BN63: 2536 | BO63: 2964.807932 | BP63: 428.8079322 | BR63: 2015-10-01 | BS63: 39 | BT63: 2.041894353 | BU63: 79.63387978 | BV63: 1121 | BW63: 1041.36612 | BX63: 79.63387978 | BY63: 2675753.078 | BZ63: 204616.4119 | CA63: 2880369.49
B64: 2015-11-01 | C64: 2121.30449 | D64: 2298.079864 | E64: 1044.153005 | F64: 79.84699454 | G64: 2133.862303 | H64: 1109.023091 | I64: 1874.691907 | J64: 1477.193522 | K64: 1929.864567 | M64: 2015-11-01 | N64: =Folha!G32 -> 2946328.31 | O64: =Folha!Q32 -> 1421826.421 | P64: =Folha!AK32 -> 9951.126141 | Q64: =Folha!AA32 -> 396904.6249 | R64: =Folha!AU32 -> 118540.5888 | S64: 4893551.07 | U64: 2015-11-01 | V64: 1380.749032 | W64: 1282.053036 | X64: 5.308139488 | Y64: 268.6883059 | Z64: 61.4243045 | AA64: 2998.222818 | AC64: 2015-11-01 | AD64: 549 | AE64: 549 | AF64: 549 | AG64: 549 | AH64: 549 | AJ64: 2015-11-01 | AK64: 2.473300706 | AL64: 2.473300706 | AM64: 0.1336805556 | AN64: 0.4340277778 | AO64: 0.1371527778 | AQ64: 2015-11-01 | AR64: 2.473300706 | AS64: 2.473300706 | AT64: 0.1336805556 | AU64: 0.4340277778 | AV64: 0.1371527778 | AX64: 2015-11-01 | AY64: =Folha!E32 -> 1124 | AZ64: 1380.749032 | BA64: 256.7490319 | BB64: =Folha!O32 -> 1064 | BC64: 1282.053036 | BD64: 218.0530364 | BE64: =Folha!AI32 -> 3 | BF64: 5.308139488 | BG64: 2.308139488 | BH64: =Folha!Y32 -> 258 | BI64: 268.6883059 | BJ64: 10.68830585 | BK64: =Folha!AS32 -> 80 | BL64: 61.4243045 | BM64: -18.5756955 | BN64: 2529 | BO64: 2998.222818 | BP64: 469.2228181 | BR64: 2015-11-01 | BS64: 39 | BT64: 2.047358834 | BU64: 79.84699454 | BV64: 1124 | BW64: 1044.153005 | BX64: 79.84699454 | BY64: 2737026.298 | BZ64: 209302.0111 | CA64: 2946328.31
B65: 2015-12-01 | C65: 2121.30449 | D65: 2298.079864 | E65: 1034.863388 | F65: 79.13661202 | G65: 2133.862303 | H65: 1109.023091 | I65: 1874.691907 | J65: 1477.193522 | K65: 1929.864567 | M65: 2015-12-01 | N65: =Folha!G33 -> 2855960.807 | O65: =Folha!Q33 -> 1377699.874 | P65: =Folha!AK33 -> 9953.775488 | Q65: =Folha!AA33 -> 391016.1506 | R65: =Folha!AU33 -> 113927.163 | S65: 4748557.77 | U65: 2015-12-01 | V65: 1338.399766 | W65: 1242.264373 | X65: 5.309552706 | Y65: 264.702048 | Z65: 59.0337607 | AA65: 2909.7095 | AC65: 2015-12-01 | AD65: 549 | AE65: 549 | AF65: 549 | AG65: 549 | AH65: 549 | AJ65: 2015-12-01 | AK65: 2.400302952 | AL65: 2.400302952 | AM65: 0.1336805556 | AN65: 0.4340277778 | AO65: 0.1371527778 | AQ65: 2015-12-01 | AR65: 2.400302952 | AS65: 2.400302952 | AT65: 0.1336805556 | AU65: 0.4340277778 | AV65: 0.1371527778 | AX65: 2015-12-01 | AY65: =Folha!E33 -> 1114 | AZ65: 1338.399766 | BA65: 224.3997656 | BB65: =Folha!O33 -> 1060 | BC65: 1242.264373 | BD65: 182.2643729 | BE65: =Folha!AI33 -> 3 | BF65: 5.309552706 | BG65: 2.309552706 | BH65: =Folha!Y33 -> 258 | BI65: 264.702048 | BJ65: 6.702047993 | BK65: =Folha!AS33 -> 80 | BL65: 59.0337607 | BM65: -20.9662393 | BN65: 2515 | BO65: 2909.7095 | BP65: 394.7094999 | BR65: 2015-12-01 | BS65: 39 | BT65: 2.029143898 | BU65: 79.13661202 | BV65: 1114 | BW65: 1034.863388 | BX65: 79.13661202 | BY65: 2653078.345 | BZ65: 202882.4617 | CA65: 2855960.807
B66: 2016-01-01 | C66: 2121.30449 | D66: 2298.079864 | E66: 1029.289617 | F66: 78.71038251 | G66: 2133.862303 | H66: 1109.023091 | I66: 1874.691907 | J66: 1477.193522 | K66: 1929.864567 | M66: 2016-01-01 | N66: =Folha!G34 -> 2936580.158 | O66: =Folha!Q34 -> 1435000.463 | P66: =Folha!AK34 -> 12670.79374 | Q66: =Folha!AA34 -> 390770.0704 | R66: =Folha!AU34 -> 108005.9948 | S66: 4883027.48 | U66: 2016-01-01 | V66: 1376.180719 | W66: 1293.931997 | X66: 6.758867254 | Y66: 264.5354617 | Z66: 55.96558257 | AA66: 2997.372628 | AC66: 2016-01-01 | AD66: 549 | AE66: 549 | AF66: 549 | AG66: 549 | AH66: 549 | AJ66: 2016-01-01 | AK66: 2.392272537 | AL66: 2.392272537 | AM66: 0.1336805556 | AN66: 0.4340277778 | AO66: 0.1371527778 | AQ66: 2016-01-01 | AR66: 2.392272537 | AS66: 2.392272537 | AT66: 0.1336805556 | AU66: 0.4340277778 | AV66: 0.1371527778 | AX66: 2016-01-01 | AY66: =Folha!E34 -> 1108 | AZ66: 1376.180719 | BA66: 268.1807188 | BB66: =Folha!O34 -> 1055 | BC66: 1293.931997 | BD66: 238.9319973 | BE66: =Folha!AI34 -> 3 | BF66: 6.758867254 | BG66: 3.758867254 | BH66: =Folha!Y34 -> 261 | BI66: 264.5354617 | BJ66: 3.535461678 | BK66: =Folha!AS34 -> 79 | BL66: 55.96558257 | BM66: -23.03441743 | BN66: 2506 | BO66: 2997.372628 | BP66: 491.3726276 | BR66: 2016-01-01 | BS66: 39 | BT66: 2.018214936 | BU66: 78.71038251 | BV66: 1108 | BW66: 1029.289617 | BX66: 78.71038251 | BY66: 2727970.639 | BZ66: 208609.5195 | CA66: 2936580.158
B67: 2016-02-01 | C67: 2121.30449 | D67: 2298.079864 | E67: 1026.502732 | F67: 78.49726776 | G67: 2133.862303 | H67: 1109.023091 | I67: 1874.691907 | J67: 1477.193522 | K67: 1929.864567 | M67: 2016-02-01 | N67: =Folha!G35 -> 2844287.011 | O67: =Folha!Q35 -> 1382038.4 | P67: =Folha!AK35 -> 10277.96555 | Q67: =Folha!AA35 -> 390261.3418 | R67: =Folha!AU35 -> 113785.2416 | S67: 4740649.96 | U67: 2016-02-01 | V67: 1332.92903 | W67: 1246.176398 | X67: 5.482482487 | Y67: 264.1910731 | Z67: 58.96022111 | AA67: 2907.739205 | AC67: 2016-02-01 | AD67: 549 | AE67: 549 | AF67: 549 | AG67: 549 | AH67: 549 | AJ67: 2016-02-01 | AK67: 2.463733877 | AL67: 2.463733877 | AM67: 0.1336805556 | AN67: 0.4340277778 | AO67: 0.1371527778 | AQ67: 2016-02-01 | AR67: 2.463733877 | AS67: 2.463733877 | AT67: 0.1336805556 | AU67: 0.4340277778 | AV67: 0.1371527778 | AX67: 2016-02-01 | AY67: =Folha!E35 -> 1105 | AZ67: 1332.92903 | BA67: 227.9290304 | BB67: =Folha!O35 -> 1051 | BC67: 1246.176398 | BD67: 195.1763976 | BE67: =Folha!AI35 -> 3 | BF67: 5.482482487 | BG67: 2.482482487 | BH67: =Folha!Y35 -> 258 | BI67: 264.1910731 | BJ67: 6.191073126 | BK67: =Folha!AS35 -> 77 | BL67: 58.96022111 | BM67: -18.03977889 | BN67: 2494 | BO67: 2907.739205 | BP67: 413.7392048 | BR67: 2016-02-01 | BS67: 39 | BT67: 2.012750455 | BU67: 78.49726776 | BV67: 1105 | BW67: 1026.502732 | BX67: 78.49726776 | BY67: 2642233.835 | BZ67: 202053.1757 | CA67: 2844287.011
B68: 2016-03-01 | C68: 2121.30449 | D68: 2298.079864 | E68: 997.704918 | F68: 76.29508197 | G68: 2133.862303 | H68: 1109.023091 | I68: 1874.691907 | J68: 1477.193522 | K68: 1929.864567 | M68: 2016-03-01 | N68: =Folha!G36 -> 2680592.252 | O68: =Folha!Q36 -> 1306940.01 | P68: =Folha!AK36 -> 10041.22809 | Q68: =Folha!AA36 -> 373030.8429 | R68: =Folha!AU36 -> 103169.6867 | S68: 4473774.02 | U68: 2016-03-01 | V68: 1256.216133 | W68: 1178.460594 | X68: 5.356201758 | Y68: 252.5267254 | Z68: 53.4595476 | AA68: 2746.019202 | AC68: 2016-03-01 | AD68: 549 | AE68: 549 | AF68: 549 | AG68: 549 | AH68: 549 | AJ68: 2016-03-01 | AK68: 2.464850037 | AL68: 2.464850037 | AM68: 0.1336805556 | AN68: 0.4340277778 | AO68: 0.1371527778 | AQ68: 2016-03-01 | AR68: 2.464850037 | AS68: 2.464850037 | AT68: 0.1336805556 | AU68: 0.4340277778 | AV68: 0.1371527778 | AX68: 2016-03-01 | AY68: =Folha!E36 -> 1074 | AZ68: 1256.216133 | BA68: 182.2161334 | BB68: =Folha!O36 -> 1019 | BC68: 1178.460594 | BD68: 159.4605942 | BE68: =Folha!AI36 -> 3 | BF68: 5.356201758 | BG68: 2.356201758 | BH68: =Folha!Y36 -> 264 | BI68: 252.5267254 | BJ68: -11.4732746 | BK68: =Folha!AS36 -> 75 | BL68: 53.4595476 | BM68: -21.5404524 | BN68: 2435 | BO68: 2746.019202 | BP68: 311.0192024 | BR68: 2016-03-01 | BS68: 39 | BT68: 1.956284153 | BU68: 76.29508197 | BV68: 1074 | BW68: 997.704918 | BX68: 76.29508197 | BY68: 2490167.666 | BZ68: 190424.5862 | CA68: 2680592.252
B69: 2016-04-01 | C69: 2121.30449 | D69: 2298.079864 | E69: 970.7650273 | F69: 74.23497268 | G69: 2133.862303 | H69: 1109.023091 | I69: 1874.691907 | J69: 1477.193522 | K69: 1929.864567 | M69: 2016-04-01 | N69: =Folha!G37 -> 2700915.569 | O69: =Folha!Q37 -> 1303213.814 | P69: =Folha!AK37 -> 10785.66097 | Q69: =Folha!AA37 -> 386974.5011 | R69: =Folha!AU37 -> 98348.39432 | S69: 4500237.94 | U69: 2016-04-01 | V69: 1265.740327 | W69: 1175.100704 | X69: 5.753297879 | Y69: 261.9660155 | Z69: 50.96129335 | AA69: 2759.521637 | AC69: 2016-04-01 | AD69: 549 | AE69: 549 | AF69: 549 | AG69: 549 | AH69: 549 | AJ69: 2016-04-01 | AK69: 2.498127211 | AL69: 2.498127211 | AM69: 0.1336805556 | AN69: 0.4340277778 | AO69: 0.1371527778 | AQ69: 2016-04-01 | AR69: 2.498127211 | AS69: 2.498127211 | AT69: 0.1336805556 | AU69: 0.4340277778 | AV69: 0.1371527778 | AX69: 2016-04-01 | AY69: =Folha!E37 -> 1045 | AZ69: 1265.740327 | BA69: 220.7403268 | BB69: =Folha!O37 -> 985 | BC69: 1175.100704 | BD69: 190.1007039 | BE69: =Folha!AI37 -> 3 | BF69: 5.753297879 | BG69: 2.753297879 | BH69: =Folha!Y37 -> 265 | BI69: 261.9660155 | BJ69: -3.033984489 | BK69: =Folha!AS37 -> 72 | BL69: 50.96129335 | BM69: -21.03870665 | BN69: 2370 | BO69: 2759.521637 | BP69: 389.5216375 | BR69: 2016-04-01 | BS69: 39 | BT69: 1.903460838 | BU69: 74.23497268 | BV69: 1045 | BW69: 970.7650273 | BX69: 74.23497268 | BY69: 2509047.25 | BZ69: 191868.3191 | CA69: 2700915.569
B70: 2016-05-01 | C70: 2121.30449 | D70: 2298.079864 | E70: 968.9071038 | F70: 74.09289617 | G70: 2133.862303 | H70: 1109.023091 | I70: 1874.691907 | J70: 1477.193522 | K70: 1929.864567 | M70: 2016-05-01 | N70: =Folha!G38 -> 2709822.721 | O70: =Folha!Q38 -> 1302457.79 | P70: =Folha!AK38 -> 11275.27819 | Q70: =Folha!AA38 -> 395914.3397 | R70: =Folha!AU38 -> 88673.42062 | S70: 4508143.55 | U70: 2016-05-01 | V70: 1269.914519 | W70: 1174.419001 | X70: 6.014469978 | Y70: 268.017923 | Z70: 45.94800181 | AA70: 2764.313915 | AC70: 2016-05-01 | AD70: 549 | AE70: 549 | AF70: 549 | AG70: 549 | AH70: 549 | AJ70: 2016-05-01 | AK70: 2.506460976 | AL70: 2.506460976 | AM70: 0.1336805556 | AN70: 0.4340277778 | AO70: 0.1371527778 | AQ70: 2016-05-01 | AR70: 2.506460976 | AS70: 2.506460976 | AT70: 0.1336805556 | AU70: 0.4340277778 | AV70: 0.1371527778 | AX70: 2016-05-01 | AY70: =Folha!E38 -> 1043 | AZ70: 1269.914519 | BA70: 226.9145192 | BB70: =Folha!O38 -> 983 | BC70: 1174.419001 | BD70: 191.4190013 | BE70: =Folha!AI38 -> 3 | BF70: 6.014469978 | BG70: 3.014469978 | BH70: =Folha!Y38 -> 263 | BI70: 268.017923 | BJ70: 5.017923044 | BK70: =Folha!AS38 -> 52 | BL70: 45.94800181 | BM70: -6.051998186 | BN70: 2344 | BO70: 2764.313915 | BP70: 420.3139153 | BR70: 2016-05-01 | BS70: 39 | BT70: 1.899817851 | BU70: 74.09289617 | BV70: 1043 | BW70: 968.9071038 | BX70: 74.09289617 | BY70: 2517321.653 | BZ70: 192501.0676 | CA70: 2709822.721
B71: 2016-06-01 | C71: =C70*(C13/100*100+1) -> 2333.434939 | D71: =D70*(D13/100*100+1) -> 2527.88785 | E71: 972.6229508 | F71: 74.37704918 | G71: 2347.248534 | H71: =H70*(E13/100*100+1) -> 1219.9254 | I71: =I70*(F13/100*100+1) -> 2062.161098 | J71: =J70*(F13/100*100+1) -> 1624.912874 | K71: =K70*(F13/100*100+1) -> 2122.851024 | M71: 2016-06-01 | N71: =Folha!G39 -> 2746727.113 | O71: =Folha!Q39 -> 1311058.372 | P71: =Folha!AK39 -> 11290.32645 | Q71: =Folha!AA39 -> 379167.9843 | R71: =Folha!AU39 -> 90708.46437 | S71: 4538952.26 | U71: 2016-06-01 | V71: 1170.19015 | W71: 1074.703725 | X71: 5.474997305 | Y71: 233.3466553 | Z71: 42.72954784 | AA71: 2526.445076 | AC71: 2016-06-01 | AD71: 549 | AE71: 549 | AF71: 549 | AG71: 549 | AH71: 549 | AJ71: 2016-06-01 | AK71: 2.378963066 | AL71: 2.378963066 | AM71: 0.1336805556 | AN71: 0.4340277778 | AO71: 0.1371527778 | AQ71: 2016-06-01 | AR71: 2.378963066 | AS71: 2.378963066 | AT71: 0.1336805556 | AU71: 0.4340277778 | AV71: 0.1371527778 | AX71: 2016-06-01 | AY71: =Folha!E39 -> 1047 | AZ71: 1170.19015 | BA71: 123.1901497 | BB71: =Folha!O39 -> 977 | BC71: 1074.703725 | BD71: 97.70372541 | BE71: =Folha!AI39 -> 3 | BF71: 5.474997305 | BG71: 2.474997305 | BH71: =Folha!Y39 -> 258 | BI71: 233.3466553 | BJ71: -24.65334473 | BK71: =Folha!AS39 -> 32 | BL71: 42.72954784 | BM71: 10.72954784 | BN71: 2317 | BO71: 2526.445076 | BP71: 209.4450756 | BR71: 2016-06-01 | BS71: 39 | BT71: 1.907103825 | BU71: 74.37704918 | BV71: 1047 | BW71: 972.6229508 | BX71: 74.37704918 | BY71: 2551604.422 | BZ71: 195122.6911 | CA71: 2746727.113
B73: =B56 -> Bacia 5 | C73: R$ da Licitação corrigidos nos Dissídios Coletivos | K73: Ano 4 | M73: =B73 -> Bacia 5 | N73: R$ Salário Total Com Horas Extras e Adicional Noturno Pago Por Função (Sem inclusão de Encargos Sociais) - Valor de GFIP | S73: =K73 -> Ano 4 | U73: =M73 -> Bacia 5 | V73: Quantidade de Funcionários - Cálculo pela Folha | AA73: =S73 -> Ano 4 | AC73: =U73 -> Bacia 5 | AD73: Quantidade de Frota Operacional | AH73: =AA73 -> Ano 4 | AJ73: =AC73 -> Bacia 5 | AK73: FU POR FUNÇÃO | AO73: =AH73 -> Ano 4 | AQ73: =AJ73 -> Bacia 5 | AR73: FU FÍSICO PARA BENEFÍCIOS | AV73: =AO73 -> Ano 4 | AX73: =AQ73 -> Bacia 5 | AY73: Qtde. Funcionários - FÍSICO para Benefícios e FOLHA para Salários base de cálculo dos Enc.Sociais | BP73: =AV73 -> Ano 4 | BR73: =AX73 -> Bacia 5 | BS73: =BP73 -> Ano 4
B74: Mês | C74: R$ Salário Médio da Função (Sem Encargos) | M74: Mês | U74: Mês | V74: Inclusas todas as Horas Extras | AC74: Mês | AJ74: Mês | AK74: CÁLCULO SOBRE A FOLHA DE PAGAMENTO | AQ74: Mês | AX74: Mês | AY74: Motoristas | BB74: Cobradores | BE74: Controle Operacional | BH74: Manutenção | BK74: Administração | BN74: Total Geral | BR74: Mês | BS74: Cálculo Mot.Articulados | BV74: Qtde. Física de Motoristas | BY74: Cálculo R$ Mot.Artic. | CA74: R$
C75: Motoristas | E75: Qtde.Física de Mot. | G75: R$ Salário | H75: Cobradores | I75: Controle | J75: Manu- | K75: Admi- | M75: de | N75: Motoristas | O75: Cobradores | P75: Controle | Q75: Manutenção | R75: Administração | S75: R$ | V75: Motoristas | W75: Cobradores | X75: Controle | Y75: Manutenção | Z75: Administração | AA75: Qtde. | AC75: de | AD75: Motoristas | AE75: Cobradores | AF75: Controle | AG75: Manutenção | AH75: Administração | AJ75: de | AK75: Motoristas | AL75: Cobradores | AM75: Controle | AN75: Manutenção | AO75: Administração | AQ75: de | AR75: Motoristas | AS75: Cobradores | AT75: Controle | AU75: Manutenção | AV75: Administração | AX75: de | AY75: Físico | AZ75: Folha | BA75: Dif.Folha | BB75: Físico | BC75: Folha | BD75: Dif.Folha | BE75: Físico | BF75: Folha | BG75: Dif.Folha | BH75: Físico | BI75: Folha | BJ75: Dif.Folha | BK75: Físico | BL75: Folha | BM75: Dif.Folha | BN75: Físico | BO75: Folha | BP75: Dif.Folha | BR75: de | BS75: Frota | BT75: FU físico | BU75: Mot. | BV75: Mot. | BW75: Mot. | BX75: Mot. | BY75: R$ Mot. | BZ75: R$ Mot. | CA75: Total
B76: Ref. | C76: Diversos | D76: Artic. | E76: Div. | F76: Artic. | G76: Médio Mot. | I76: Operacional | J76: tenção | K76: nistração | M76: Ref. | N76: Diversos | P76: Operacional | S76: Total | U76: Ref. | X76: Operacional | AA76: Total | AC76: Ref. | AF76: Operacional | AJ76: Ref. | AM76: Operacional | AQ76: Ref. | AT76: Operacional | AX76: Ref. | BA76: (-) Físico | BD76: (-) Físico | BG76: (-) Físico | BJ76: (-) Físico | BM76: (-) Físico | BP76: (-) Físico | BR76: Ref. | BS76: Artic. | BT76: Mot.Div. | BU76: Artic. | BV76: Total | BW76: Diversos | BX76: Artic. | BY76: Diversos | BZ76: Articulados | CA76: Motoristas
B77: =DATE(YEAR(B71),MONTH(B71)+1,DAY(B71)) -> 2016-07-01 | C77: =C71 -> 2333.434939 | D77: =D71 -> 2527.88785 | E77: =BW77 -> 967.9781421 | F77: =BX77 -> 74.02185792 | G77: =IF(C77>0,((C77*E77)+(D77*F77))/(E77+F77),0) -> 2347.248534 | H77: =H71 -> 1219.9254 | I77: =I71 -> 2062.161098 | J77: =J71 -> 1624.912874 | K77: =K71 -> 2122.851024 | M77: =B77 -> 2016-07-01 | N77: =Folha!G40 -> 2817114.002 | O77: =Folha!Q40 -> 1355302.241 | P77: =Folha!AK40 -> 11388.4472 | Q77: =Folha!AA40 -> 380767.8691 | R77: =Folha!AU40 -> 88548.44985 | S77: =SUM(N77:R77) -> 4653121.01 | U77: =M77 -> 2016-07-01 | V77: =N77/G77 -> 1200.177127 | W77: =O77/H77 -> 1110.97141 | X77: =P77/I77 -> 5.522578818 | Y77: =Q77/J77 -> 234.3312525 | Z77: =R77/K77 -> 41.71204143 | AA77: =SUM(V77:Z77) -> 2592.71441 | AC77: =U77 -> 2016-07-01 | AD77: =AD71 -> 549 | AE77: =AD77 -> 549 | AF77: 549 | AG77: 549 | AH77: 549 | AJ77: =AC77 -> 2016-07-01 | AK77: 2.142959137 | AL77: =AK77 -> 2.142959137 | AM77: =AM60 -> 0.1336805556 | AN77: 0.4340277778 | AO77: 0.1371527778 | AQ77: =AJ77 -> 2016-07-01 | AR77: =AK77 -> 2.142959137 | AS77: =AL77 -> 2.142959137 | AT77: =AM77 -> 0.1336805556 | AU77: =AN77 -> 0.4340277778 | AV77: =AO77 -> 0.1371527778 | AX77: =AQ77 -> 2016-07-01 | AY77: =Folha!E40 -> 1042 | AZ77: =V77 -> 1200.177127 | BA77: =AZ77-AY77 -> 158.1771273 | BB77: =Folha!O40 -> 972 | BC77: =W77 -> 1110.97141 | BD77: =BC77-BB77 -> 138.9714102 | BE77: =Folha!AI40 -> 3 | BF77: =X77 -> 5.522578818 | BG77: =BF77-BE77 -> 2.522578818 | BH77: =Folha!Y40 -> 262 | BI77: =Y77 -> 234.3312525 | BJ77: =BI77-BH77 -> -27.66874748 | BK77: =Folha!AS40 -> 27 | BL77: =Z77 -> 41.71204143 | BM77: =BL77-BK77 -> 14.71204143 | BN77: =AY77+BB77+BE77+BH77+BK77 -> 2306 | BO77: =AZ77+BC77+BF77+BI77+BL77 -> 2592.71441 | BP77: =BO77-BN77 -> 286.7144103 | BR77: =AX77 -> 2016-07-01 | BS77: =BS71 -> 39 | BT77: =AY77/AD77 -> 1.897996357 | BU77: =BT77*BS77 -> 74.02185792 | BV77: =AY77 -> 1042 | BW77: =BV77-BX77 -> 967.9781421 | BX77: =BU77 -> 74.02185792 | BY77: =N77/BV77*BW77 -> 2616991.15 | BZ77: =N77/BV77*BX77 -> 200122.8526 | CA77: =BY77+BZ77 -> 2817114.002
B78: =DATE(YEAR(B77),MONTH(B77)+1,DAY(B77)) -> 2016-08-01 | C78: =C77 -> 2333.434939 | D78: =D77 -> 2527.88785 | E78: 967.0491803 | F78: 73.95081967 | G78: 2347.248534 | H78: =H77 -> 1219.9254 | I78: =I77 -> 2062.161098 | J78: =J77 -> 1624.912874 | K78: =K77 -> 2122.851024 | M78: 2016-08-01 | N78: =Folha!G41 -> 3347641.139 | O78: =Folha!Q41 -> 1602666.449 | P78: =Folha!AK41 -> 13110.71867 | Q78: =Folha!AA41 -> 452762.1145 | R78: =Folha!AU41 -> 108064.3284 | S78: 5524244.75 | U78: 2016-08-01 | V78: 1426.197989 | W78: 1313.741357 | X78: 6.357756763 | Y78: 278.6377791 | Z78: 50.90528124 | AA78: 3075.840163 | AC78: 2016-08-01 | AD78: =AD77 -> 549 | AE78: 549 | AF78: 549 | AG78: 549 | AH78: 549 | AJ78: 2016-08-01 | AK78: 2.315438955 | AL78: =AK78 -> 2.315438955 | AM78: 0.1336805556 | AN78: 0.4340277778 | AO78: 0.1371527778 | AQ78: 2016-08-01 | AR78: 2.315438955 | AS78: 2.315438955 | AT78: 0.1336805556 | AU78: 0.4340277778 | AV78: 0.1371527778 | AX78: 2016-08-01 | AY78: =Folha!E41 -> 1041 | AZ78: 1426.197989 | BA78: 385.1979893 | BB78: =Folha!O41 -> 970 | BC78: 1313.741357 | BD78: 343.7413565 | BE78: =Folha!AI41 -> 3 | BF78: 6.357756763 | BG78: 3.357756763 | BH78: =Folha!Y41 -> 263 | BI78: 278.6377791 | BJ78: 15.63777909 | BK78: =Folha!AS41 -> 31 | BL78: 50.90528124 | BM78: 19.90528124 | BN78: 2308 | BO78: 3075.840163 | BP78: 767.8401629 | BR78: 2016-08-01 | BS78: =BS77 -> 39 | BT78: 1.896174863 | BU78: 73.95081967 | BV78: 1041 | BW78: 967.0491803 | BX78: 73.95081967 | BY78: 3109830.566 | BZ78: 237810.5727 | CA78: 3347641.139
B79: 2016-09-01 | C79: 2333.434939 | D79: 2527.88785 | E79: 966.1202186 | F79: 73.87978142 | G79: 2347.248534 | H79: 1219.9254 | I79: 2062.161098 | J79: 1624.912874 | K79: 2122.851024 | M79: 2016-09-01 | N79: =Folha!G42 -> 3411542.395 | O79: =Folha!Q42 -> 1626158.632 | P79: =Folha!AK42 -> 17457.06829 | Q79: =Folha!AA42 -> 443273.8016 | R79: =Folha!AU42 -> 99974.76318 | S79: 5598406.66 | U79: 2016-09-01 | V79: 1453.421888 | W79: 1332.998422 | X79: 8.465424116 | Y79: 272.7985042 | Z79: 47.09457332 | AA79: 3114.778811 | AC79: 2016-09-01 | AD79: 549 | AE79: 549 | AF79: 549 | AG79: 549 | AH79: 549 | AJ79: 2016-09-01 | AK79: 2.324187234 | AL79: =AK79 -> 2.324187234 | AM79: 0.1336805556 | AN79: 0.4340277778 | AO79: 0.1371527778 | AQ79: 2016-09-01 | AR79: 2.324187234 | AS79: 2.324187234 | AT79: 0.1336805556 | AU79: 0.4340277778 | AV79: 0.1371527778 | AX79: 2016-09-01 | AY79: =Folha!E42 -> 1040 | AZ79: 1453.421888 | BA79: 413.4218878 | BB79: =Folha!O42 -> 973 | BC79: 1332.998422 | BD79: 359.9984215 | BE79: =Folha!AI42 -> 3 | BF79: 8.465424116 | BG79: 5.465424116 | BH79: =Folha!Y42 -> 268 | BI79: 272.7985042 | BJ79: 4.798504189 | BK79: =Folha!AS42 -> 30 | BL79: 47.09457332 | BM79: 17.09457332 | BN79: 2314 | BO79: 3114.778811 | BP79: 800.7788109 | BR79: 2016-09-01 | BS79: 39 | BT79: 1.89435337 | BU79: 73.87978142 | BV79: 1040 | BW79: 966.1202186 | BX79: 73.87978142 | BY79: 3169192.389 | BZ79: 242350.0062 | CA79: 3411542.395
B80: 2016-10-01 | C80: 2333.434939 | D80: 2527.88785 | E80: 962.4043716 | F80: 73.59562842 | G80: 2347.248534 | H80: 1219.9254 | I80: 2062.161098 | J80: 1624.912874 | K80: 2122.851024 | M80: 2016-10-01 | N80: =Folha!G43 -> 3141873.052 | O80: =Folha!Q43 -> 1517363.948 | P80: =Folha!AK43 -> 18751.35071 | Q80: =Folha!AA43 -> 420420.6634 | R80: =Folha!AU43 -> 92251.64605 | S80: 5190660.66 | U80: 2016-10-01 | V80: 1338.534461 | W80: 1243.816998 | X80: 9.093058118 | Y80: 258.7342805 | Z80: 43.45648612 | AA80: 2893.635284 | AC80: 2016-10-01 | AD80: 549 | AE80: 549 | AF80: 549 | AG80: 549 | AH80: 549 | AJ80: 2016-10-01 | AK80: 2.324187234 | AL80: 2.324187234 | AM80: 0.1336805556 | AN80: 0.4340277778 | AO80: 0.1371527778 | AQ80: 2016-10-01 | AR80: 2.324187234 | AS80: 2.324187234 | AT80: 0.1336805556 | AU80: 0.4340277778 | AV80: 0.1371527778 | AX80: 2016-10-01 | AY80: =Folha!E43 -> 1036 | AZ80: 1338.534461 | BA80: 302.5344613 | BB80: =Folha!O43 -> 969 | BC80: 1243.816998 | BD80: 274.8169979 | BE80: =Folha!AI43 -> 4 | BF80: 9.093058118 | BG80: 5.093058118 | BH80: =Folha!Y43 -> 272 | BI80: 258.7342805 | BJ80: -13.26571949 | BK80: =Folha!AS43 -> 30 | BL80: 43.45648612 | BM80: 13.45648612 | BN80: 2311 | BO80: 2893.635284 | BP80: 582.635284 | BR80: 2016-10-01 | BS80: 39 | BT80: 1.887067395 | BU80: 73.59562842 | BV80: 1036 | BW80: 962.4043716 | BX80: 73.59562842 | BY80: 2918679.884 | BZ80: 223193.1676 | CA80: 3141873.052
B81: 2016-11-01 | C81: 2333.434939 | D81: 2527.88785 | E81: 952.1857923 | F81: 72.81420765 | G81: 2347.248534 | H81: 1219.9254 | I81: 2062.161098 | J81: 1624.912874 | K81: 2122.851024 | M81: 2016-11-01 | N81: =Folha!G44 -> 3110617.91 | O81: =Folha!Q44 -> 1497591.799 | P81: =Folha!AK44 -> 18069.97178 | Q81: =Folha!AA44 -> 438740.5855 | R81: =Folha!AU44 -> 102131.4332 | S81: 5167151.7 | U81: 2016-11-01 | V81: 1325.218811 | W81: 1227.609328 | X81: 8.76263828 | Y81: 270.0086832 | Z81: 48.11050425 | AA81: 2879.709964 | AC81: 2016-11-01 | AD81: 549 | AE81: 549 | AF81: 549 | AG81: 549 | AH81: 549 | AJ81: 2016-11-01 | AK81: 2.319661596 | AL81: 2.319661596 | AM81: 0.1336805556 | AN81: 0.4340277778 | AO81: 0.1371527778 | AQ81: 2016-11-01 | AR81: 2.319661596 | AS81: 2.319661596 | AT81: 0.1336805556 | AU81: 0.4340277778 | AV81: 0.1371527778 | AX81: 2016-11-01 | AY81: =Folha!E44 -> 1025 | AZ81: 1325.218811 | BA81: 300.2188106 | BB81: =Folha!O44 -> 969 | BC81: 1227.609328 | BD81: 258.6093275 | BE81: =Folha!AI44 -> 4 | BF81: 8.76263828 | BG81: 4.76263828 | BH81: =Folha!Y44 -> 262 | BI81: 270.0086832 | BJ81: 8.008683182 | BK81: =Folha!AS44 -> 67 | BL81: 48.11050425 | BM81: -18.88949575 | BN81: 2327 | BO81: 2879.709964 | BP81: 552.7099638 | BR81: 2016-11-01 | BS81: 39 | BT81: 1.867030965 | BU81: 72.81420765 | BV81: 1025 | BW81: 952.1857923 | BX81: 72.81420765 | BY81: 2889645.053 | BZ81: 220972.857 | CA81: 3110617.91
B82: 2016-12-01 | C82: 2333.434939 | D82: 2527.88785 | E82: 949.3989071 | F82: 72.6010929 | G82: 2347.248534 | H82: 1219.9254 | I82: 2062.161098 | J82: 1624.912874 | K82: 2122.851024 | M82: 2016-12-01 | N82: =Folha!G45 -> 3092448.337 | O82: =Folha!Q45 -> 1521443.923 | P82: =Folha!AK45 -> 18202.5967 | Q82: =Folha!AA45 -> 454985.1174 | R82: =Folha!AU45 -> 110997.8561 | S82: 5198077.83 | U82: 2016-12-01 | V82: 1317.478014 | W82: 1247.161444 | X82: 8.826951842 | Y82: 280.0058542 | Z82: 52.28716233 | AA82: 2905.759427 | AC82: 2016-12-01 | AD82: 549 | AE82: 549 | AF82: 549 | AG82: 549 | AH82: 549 | AJ82: 2016-12-01 | AK82: 2.153782285 | AL82: 2.153782285 | AM82: 0.1336805556 | AN82: 0.4340277778 | AO82: 0.1371527778 | AQ82: 2016-12-01 | AR82: 2.153782285 | AS82: 2.153782285 | AT82: 0.1336805556 | AU82: 0.4340277778 | AV82: 0.1371527778 | AX82: 2016-12-01 | AY82: =Folha!E45 -> 1022 | AZ82: 1317.478014 | BA82: 295.4780141 | BB82: =Folha!O45 -> 969 | BC82: 1247.161444 | BD82: 278.1614441 | BE82: =Folha!AI45 -> 4 | BF82: 8.826951842 | BG82: 4.826951842 | BH82: =Folha!Y45 -> 262 | BI82: 280.0058542 | BJ82: 18.00585423 | BK82: =Folha!AS45 -> 67 | BL82: 52.28716233 | BM82: -14.71283767 | BN82: 2324 | BO82: 2905.759427 | BP82: 581.7594266 | BR82: 2016-12-01 | BS82: 39 | BT82: 1.861566485 | BU82: 72.6010929 | BV82: 1022 | BW82: 949.3989071 | BX82: 72.6010929 | BY82: 2872766.214 | BZ82: 219682.1223 | CA82: 3092448.337
B83: 2017-01-01 | C83: 2333.434939 | D83: 2527.88785 | E83: 949.3989071 | F83: 72.6010929 | G83: 2347.248534 | H83: 1219.9254 | I83: 2062.161098 | J83: 1624.912874 | K83: 2122.851024 | M83: 2017-01-01 | N83: =Folha!G46 -> 3202253.105 | O83: =Folha!Q46 -> 1577864.933 | P83: =Folha!AK46 -> 15684.89211 | Q83: =Folha!AA46 -> 446820.6089 | R83: =Folha!AU46 -> 113526.6209 | S83: 5356150.16 | U83: 2017-01-01 | V83: 1364.258219 | W83: 1293.411002 | X83: 7.60604597 | Y83: 274.9812719 | Z83: 53.47837396 | AA83: 2993.734913 | AC83: 2017-01-01 | AD83: 549 | AE83: 549 | AF83: 549 | AG83: 549 | AH83: 549 | AJ83: 2017-01-01 | AK83: 2.177462911 | AL83: 2.177462911 | AM83: 0.1336805556 | AN83: 0.4340277778 | AO83: 0.1371527778 | AQ83: 2017-01-01 | AR83: 2.177462911 | AS83: 2.177462911 | AT83: 0.1336805556 | AU83: 0.4340277778 | AV83: 0.1371527778 | AX83: 2017-01-01 | AY83: =Folha!E46 -> 1022 | AZ83: 1364.258219 | BA83: 342.2582193 | BB83: =Folha!O46 -> 969 | BC83: 1293.411002 | BD83: 324.4110018 | BE83: =Folha!AI46 -> 4 | BF83: 7.60604597 | BG83: 3.60604597 | BH83: =Folha!Y46 -> 264 | BI83: 274.9812719 | BJ83: 10.98127188 | BK83: =Folha!AS46 -> 67 | BL83: 53.47837396 | BM83: -13.52162604 | BN83: 2326 | BO83: 2993.734913 | BP83: 667.7349129 | BR83: 2017-01-01 | BS83: 39 | BT83: 1.861566485 | BU83: 72.6010929 | BV83: 1022 | BW83: 949.3989071 | BX83: 72.6010929 | BY83: 2974770.644 | BZ83: 227482.461 | CA83: 3202253.105
B84: 2017-02-01 | C84: 2333.434939 | D84: 2527.88785 | E84: 949.3989071 | F84: 72.6010929 | G84: 2347.248534 | H84: 1219.9254 | I84: 2062.161098 | J84: 1624.912874 | K84: 2122.851024 | M84: 2017-02-01 | N84: =Folha!G47 -> 3104262.614 | O84: =Folha!Q47 -> 1509548.35 | P84: =Folha!AK47 -> 15958.01807 | Q84: =Folha!AA47 -> 437715.8876 | R84: =Folha!AU47 -> 151538.811 | S84: 5219023.68 | U84: 2017-02-01 | V84: 1322.511259 | W84: 1237.410378 | X84: 7.738492441 | Y84: 269.3780661 | Z84: 71.38457165 | AA84: 2908.422767 | AC84: 2017-02-01 | AD84: 549 | AE84: 549 | AF84: 549 | AG84: 549 | AH84: 549 | AJ84: 2017-02-01 | AK84: 2.381294199 | AL84: 2.381294199 | AM84: 0.1336805556 | AN84: 0.4340277778 | AO84: 0.1371527778 | AQ84: 2017-02-01 | AR84: 2.381294199 | AS84: 2.381294199 | AT84: 0.1336805556 | AU84: 0.4340277778 | AV84: 0.1371527778 | AX84: 2017-02-01 | AY84: =Folha!E47 -> 1022 | AZ84: 1322.511259 | BA84: 300.511259 | BB84: =Folha!O47 -> 965 | BC84: 1237.410378 | BD84: 272.4103779 | BE84: =Folha!AI47 -> 4 | BF84: 7.738492441 | BG84: 3.738492441 | BH84: =Folha!Y47 -> 262 | BI84: 269.3780661 | BJ84: 7.378066063 | BK84: =Folha!AS47 -> 83 | BL84: 71.38457165 | BM84: -11.61542835 | BN84: 2336 | BO84: 2908.422767 | BP84: 572.4227671 | BR84: 2017-02-01 | BS84: 39 | BT84: 1.861566485 | BU84: 72.6010929 | BV84: 1022 | BW84: 949.3989071 | BX84: 72.6010929 | BY84: 2883741.226 | BZ84: 220521.3878 | CA84: 3104262.614
B85: 2017-03-01 | C85: 2333.434939 | D85: 2527.88785 | E85: 951.2568306 | F85: 72.7431694 | G85: 2347.248534 | H85: 1219.9254 | I85: 2062.161098 | J85: 1624.912874 | K85: 2122.851024 | M85: 2017-03-01 | N85: =Folha!G48 -> 3190852.695 | O85: =Folha!Q48 -> 1536323.776 | P85: =Folha!AK48 -> 15586.41057 | Q85: =Folha!AA48 -> 431416.0449 | R85: =Folha!AU48 -> 151650.4342 | S85: 5325829.36 | U85: 2017-03-01 | V85: 1359.401294 | W85: 1259.358791 | X85: 7.558289499 | Y85: 265.5010319 | Z85: 71.43715338 | AA85: 2963.25656 | AC85: 2017-03-01 | AD85: 549 | AE85: 549 | AF85: 549 | AG85: 549 | AH85: 549 | AJ85: 2017-03-01 | AK85: 2.381294199 | AL85: 2.381294199 | AM85: 0.1336805556 | AN85: 0.4340277778 | AO85: 0.1371527778 | AQ85: 2017-03-01 | AR85: 2.381294199 | AS85: 2.381294199 | AT85: 0.1336805556 | AU85: 0.4340277778 | AV85: 0.1371527778 | AX85: 2017-03-01 | AY85: =Folha!E48 -> 1024 | AZ85: 1359.401294 | BA85: 335.4012942 | BB85: =Folha!O48 -> 961 | BC85: 1259.358791 | BD85: 298.3587906 | BE85: =Folha!AI48 -> 4 | BF85: 7.558289499 | BG85: 3.558289499 | BH85: =Folha!Y48 -> 258 | BI85: 265.5010319 | BJ85: 7.501031896 | BK85: =Folha!AS48 -> 81 | BL85: 71.43715338 | BM85: -9.562846622 | BN85: 2328 | BO85: 2963.25656 | BP85: 635.2565595 | BR85: 2017-03-01 | BS85: 39 | BT85: 1.865209472 | BU85: 72.7431694 | BV85: 1024 | BW85: 951.2568306 | BX85: 72.7431694 | BY85: 2964180.099 | BZ85: 226672.5958 | CA85: 3190852.695
B86: 2017-04-01 | C86: 2333.434939 | D86: 2527.88785 | E86: 948.4699454 | F86: 72.53005464 | G86: 2347.248534 | H86: 1219.9254 | I86: 2062.161098 | J86: 1624.912874 | K86: 2122.851024 | M86: 2017-04-01 | N86: =Folha!G49 -> 3049885.998 | O86: =Folha!Q49 -> 1463480.508 | P86: =Folha!AK49 -> 14944.66746 | Q86: =Folha!AA49 -> 428031.038 | R86: =Folha!AU49 -> 155054.8984 | S86: 5111397.11 | U86: 2017-04-01 | V86: 1299.34515 | W86: 1199.647543 | X86: 7.247090189 | Y86: 263.4178391 | Z86: 73.04087603 | AA86: 2842.698498 | AC86: 2017-04-01 | AD86: 549 | AE86: 549 | AF86: 549 | AG86: 549 | AH86: 549 | AJ86: 2017-04-01 | AK86: 2.384045757 | AL86: 2.384045757 | AM86: 0.1336805556 | AN86: 0.4340277778 | AO86: 0.1371527778 | AQ86: 2017-04-01 | AR86: 2.384045757 | AS86: 2.384045757 | AT86: 0.1336805556 | AU86: 0.4340277778 | AV86: 0.1371527778 | AX86: 2017-04-01 | AY86: =Folha!E49 -> 1021 | AZ86: 1299.34515 | BA86: 278.3451498 | BB86: =Folha!O49 -> 967 | BC86: 1199.647543 | BD86: 232.647543 | BE86: =Folha!AI49 -> 4 | BF86: 7.247090189 | BG86: 3.247090189 | BH86: =Folha!Y49 -> 258 | BI86: 263.4178391 | BJ86: 5.417839077 | BK86: =Folha!AS49 -> 82 | BL86: 73.04087603 | BM86: -8.959123974 | BN86: 2332 | BO86: 2842.698498 | BP86: 510.6984981 | BR86: 2017-04-01 | BS86: 39 | BT86: 1.859744991 | BU86: 72.53005464 | BV86: 1021 | BW86: 948.4699454 | BX86: 72.53005464 | BY86: 2833227.43 | BZ86: 216658.5681 | CA86: 3049885.998
B87: 2017-05-01 | C87: 2333.434939 | D87: 2527.88785 | E87: 945.6830601 | F87: 72.31693989 | G87: 2347.248534 | H87: 1219.9254 | I87: 2062.161098 | J87: 1624.912874 | K87: 2122.851024 | M87: 2017-05-01 | N87: =Folha!G50 -> 3102887.243 | O87: =Folha!Q50 -> 1483520.004 | P87: =Folha!AK50 -> 15957.48134 | Q87: =Folha!AA50 -> 432612.5949 | R87: =Folha!AU50 -> 152550.107 | S87: 5187527.43 | U87: 2017-05-01 | V87: 1321.925309 | W87: 1216.074363 | X87: 7.738232168 | Y87: 266.2374099 | Z87: 71.86095739 | AA87: 2883.836272 | AC87: 2017-05-01 | AD87: 549 | AE87: 549 | AF87: 549 | AG87: 549 | AH87: 549 | AJ87: 2017-05-01 | AK87: 2.384045757 | AL87: 2.384045757 | AM87: 0.1336805556 | AN87: 0.4340277778 | AO87: 0.1371527778 | AQ87: 2017-05-01 | AR87: 2.384045757 | AS87: 2.384045757 | AT87: 0.1336805556 | AU87: 0.4340277778 | AV87: 0.1371527778 | AX87: 2017-05-01 | AY87: =Folha!E50 -> 1018 | AZ87: 1321.925309 | BA87: 303.925309 | BB87: =Folha!O50 -> 962 | BC87: 1216.074363 | BD87: 254.0743633 | BE87: =Folha!AI50 -> 4 | BF87: 7.738232168 | BG87: 3.738232168 | BH87: =Folha!Y50 -> 258 | BI87: 266.2374099 | BJ87: 8.237409854 | BK87: =Folha!AS50 -> 79 | BL87: 71.86095739 | BM87: -7.139042611 | BN87: 2321 | BO87: 2883.836272 | BP87: 562.8362717 | BR87: 2017-05-01 | BS87: 39 | BT87: 1.85428051 | BU87: 72.31693989 | BV87: 1018 | BW87: 945.6830601 | BX87: 72.31693989 | BY87: 2882463.559 | BZ87: 220423.6839 | CA87: 3102887.243
B88: 2017-06-01 | C88: =C87*(C15/100*100+1) -> 2455.940273 | D88: =D87*(D15/100*100+1) -> 2660.601963 | E88: 943.8251366 | F88: 72.17486339 | G88: 2470.479082 | H88: =H87*(E15/100*100+1) -> 1283.971483 | I88: =I87*(F15/100*100+1) -> 2170.424556 | J88: =J87*(F15/100*100+1) -> 1710.2208 | K88: =K87*(F15/100*100+1) -> 2234.300702 | M88: 2017-06-01 | N88: =Folha!G51 -> 3014914.264 | O88: =Folha!Q51 -> 1465438.38 | P88: =Folha!AK51 -> 15726.31838 | Q88: =Folha!AA51 -> 440650.8337 | R88: =Folha!AU51 -> 159492.9734 | S88: 5096222.77 | U88: 2017-06-01 | V88: 1220.376358 | W88: 1141.332498 | X88: 7.245733714 | Y88: 257.6572765 | Z88: 71.38384429 | AA88: 2697.995711 | AC88: 2017-06-01 | AD88: 549 | AE88: 549 | AF88: 549 | AG88: 549 | AH88: 549 | AJ88: 2017-06-01 | AK88: 2.384045757 | AL88: 2.384045757 | AM88: 0.1336805556 | AN88: 0.4340277778 | AO88: 0.1371527778 | AQ88: 2017-06-01 | AR88: 2.384045757 | AS88: 2.384045757 | AT88: 0.1336805556 | AU88: 0.4340277778 | AV88: 0.1371527778 | AX88: 2017-06-01 | AY88: =Folha!E51 -> 1016 | AZ88: 1220.376358 | BA88: 204.376358 | BB88: =Folha!O51 -> 971 | BC88: 1141.332498 | BD88: 170.332498 | BE88: =Folha!AI51 -> 4 | BF88: 7.245733714 | BG88: 3.245733714 | BH88: =Folha!Y51 -> 259 | BI88: 257.6572765 | BJ88: -1.342723459 | BK88: =Folha!AS51 -> 79 | BL88: 71.38384429 | BM88: -7.616155711 | BN88: 2329 | BO88: 2697.995711 | BP88: 368.9957106 | BR88: 2017-06-01 | BS88: 39 | BT88: 1.850637523 | BU88: 72.17486339 | BV88: 1016 | BW88: 943.8251366 | BX88: 72.17486339 | BY88: 2800740.027 | BZ88: 214174.2374 | CA88: 3014914.264
B90: =B73 -> Bacia 5 | C90: R$ da Licitação corrigidos nos Dissídios Coletivos | K90: Ano 5 | M90: =B90 -> Bacia 5 | N90: R$ Salário Total Com Horas Extras e Adicional Noturno Pago Por Função (Sem inclusão de Encargos Sociais) - Valor de GFIP | S90: =K90 -> Ano 5 | U90: =M90 -> Bacia 5 | V90: Quantidade de Funcionários - Cálculo pela Folha | AA90: =S90 -> Ano 5 | AC90: =U90 -> Bacia 5 | AD90: Quantidade de Frota Operacional | AH90: =AA90 -> Ano 5 | AJ90: =AC90 -> Bacia 5 | AK90: FU POR FUNÇÃO | AO90: =AH90 -> Ano 5 | AQ90: =AJ90 -> Bacia 5 | AR90: FU FÍSICO PARA BENEFÍCIOS | AV90: =AO90 -> Ano 5 | AX90: =AQ90 -> Bacia 5 | AY90: Qtde. Funcionários - FÍSICO para Benefícios e FOLHA para Salários base de cálculo dos Enc.Sociais | BP90: =AV90 -> Ano 5 | BR90: =AX90 -> Bacia 5 | BS90: =BP90 -> Ano 5
B91: Mês | C91: R$ Salário Médio da Função (Sem Encargos) | M91: Mês | U91: Mês | V91: Inclusas todas as Horas Extras | AC91: Mês | AJ91: Mês | AK91: CÁLCULO SOBRE A FOLHA DE PAGAMENTO | AQ91: Mês | AX91: Mês | AY91: Motoristas | BB91: Cobradores | BE91: Controle Operacional | BH91: Manutenção | BK91: Administração | BN91: Total Geral | BR91: Mês | BS91: Cálculo Mot.Articulados | BV91: Qtde. Física de Motoristas | BY91: Cálculo R$ Mot.Artic. | CA91: R$
C92: Motoristas | E92: Qtde.Física de Mot. | G92: R$ Salário | H92: Cobradores | I92: Controle | J92: Manu- | K92: Admi- | M92: de | N92: Motoristas | O92: Cobradores | P92: Controle | Q92: Manutenção | R92: Administração | S92: R$ | V92: Motoristas | W92: Cobradores | X92: Controle | Y92: Manutenção | Z92: Administração | AA92: Qtde. | AC92: de | AD92: Motoristas | AE92: Cobradores | AF92: Controle | AG92: Manutenção | AH92: Administração | AJ92: de | AK92: Motoristas | AL92: Cobradores | AM92: Controle | AN92: Manutenção | AO92: Administração | AQ92: de | AR92: Motoristas | AS92: Cobradores | AT92: Controle | AU92: Manutenção | AV92: Administração | AX92: de | AY92: Físico | AZ92: Folha | BA92: Dif.Folha | BB92: Físico | BC92: Folha | BD92: Dif.Folha | BE92: Físico | BF92: Folha | BG92: Dif.Folha | BH92: Físico | BI92: Folha | BJ92: Dif.Folha | BK92: Físico | BL92: Folha | BM92: Dif.Folha | BN92: Físico | BO92: Folha | BP92: Dif.Folha | BR92: de | BS92: Frota | BT92: FU físico | BU92: Mot. | BV92: Mot. | BW92: Mot. | BX92: Mot. | BY92: R$ Mot. | BZ92: R$ Mot. | CA92: Total
B93: Ref. | C93: Diversos | D93: Artic. | E93: Div. | F93: Artic. | G93: Médio Mot. | I93: Operacional | J93: tenção | K93: nistração | M93: Ref. | N93: Diversos | P93: Operacional | S93: Total | U93: Ref. | X93: Operacional | AA93: Total | AC93: Ref. | AF93: Operacional | AJ93: Ref. | AM93: Operacional | AQ93: Ref. | AT93: Operacional | AX93: Ref. | BA93: (-) Físico | BD93: (-) Físico | BG93: (-) Físico | BJ93: (-) Físico | BM93: (-) Físico | BP93: (-) Físico | BR93: Ref. | BS93: Artic. | BT93: Mot.Div. | BU93: Artic. | BV93: Total | BW93: Diversos | BX93: Artic. | BY93: Diversos | BZ93: Articulados | CA93: Motoristas
B94: =DATE(YEAR(B88),MONTH(B88)+1,DAY(B88)) -> 2017-07-01 | C94: =C88 -> 2455.940273 | D94: =D88 -> 2660.601963 | E94: =BW94 -> 946.6120219 | F94: =BX94 -> 72.38797814 | G94: =IF(C94>0,((C94*E94)+(D94*F94))/(E94+F94),0) -> 2470.479082 | H94: =H88 -> 1283.971483 | I94: =I88 -> 2170.424556 | J94: =J88 -> 1710.2208 | K94: =K88 -> 2234.300702 | M94: =B94 -> 2017-07-01 | N94: =Folha!G52 -> 3101342.21 | O94: =Folha!Q52 -> 1512984.792 | P94: =Folha!AK52 -> 15577.23101 | Q94: =Folha!AA52 -> 440388.7026 | R94: =Folha!AU52 -> 161384.1137 | S94: =SUM(N94:R94) -> 5231677.05 | U94: =M94 -> 2017-07-01 | V94: =N94/G94 -> 1255.360644 | W94: =O94/H94 -> 1178.363236 | X94: =P94/I94 -> 7.177043296 | Y94: =Q94/J94 -> 257.5040033 | Z94: =R94/K94 -> 72.23025691 | AA94: =SUM(V94:Z94) -> 2770.635184 | AC94: =U94 -> 2017-07-01 | AD94: =AD88 -> 549 | AE94: =AD94 -> 549 | AF94: 549 | AG94: 549 | AH94: 549 | AJ94: =AC94 -> 2017-07-01 | AK94: 2.397165114 | AL94: =AK94 -> 2.397165114 | AM94: =AM77 -> 0.1336805556 | AN94: 0.4340277778 | AO94: 0.1371527778 | AQ94: =AJ94 -> 2017-07-01 | AR94: =AK94 -> 2.397165114 | AS94: =AL94 -> 2.397165114 | AT94: =AM94 -> 0.1336805556 | AU94: =AN94 -> 0.4340277778 | AV94: =AO94 -> 0.1371527778 | AX94: =AQ94 -> 2017-07-01 | AY94: =Folha!E52 -> 1019 | AZ94: =V94 -> 1255.360644 | BA94: =AZ94-AY94 -> 236.3606438 | BB94: =Folha!O52 -> 978 | BC94: =W94 -> 1178.363236 | BD94: =BC94-BB94 -> 200.3632363 | BE94: =Folha!AI52 -> 4 | BF94: =X94 -> 7.177043296 | BG94: =BF94-BE94 -> 3.177043296 | BH94: =Folha!Y52 -> 263 | BI94: =Y94 -> 257.5040033 | BJ94: =BI94-BH94 -> -5.495996684 | BK94: =Folha!AS52 -> 77 | BL94: =Z94 -> 72.23025691 | BM94: =BL94-BK94 -> -4.76974309 | BN94: =AY94+BB94+BE94+BH94+BK94 -> 2341 | BO94: =AZ94+BC94+BF94+BI94+BL94 -> 2770.635184 | BP94: =BO94-BN94 -> 429.6351836 | BR94: =AX94 -> 2017-07-01 | BS94: =BS88 -> 39 | BT94: =AY94/AD94 -> 1.856102004 | BU94: =BT94*BS94 -> 72.38797814 | BV94: =AY94 -> 1019 | BW94: =BV94-BX94 -> 946.6120219 | BX94: =BU94 -> 72.38797814 | BY94: =N94/BV94*BW94 -> 2881028.283 | BZ94: =N94/BV94*BX94 -> 220313.9275 | CA94: =BY94+BZ94 -> 3101342.21
B95: =DATE(YEAR(B94),MONTH(B94)+1,DAY(B94)) -> 2017-08-01 | C95: =C94 -> 2455.940273 | D95: =D94 -> 2660.601963 | E95: 946.6120219 | F95: 72.38797814 | G95: 2470.479082 | H95: =H94 -> 1283.971483 | I95: =I94 -> 2170.424556 | J95: =J94 -> 1710.2208 | K95: =K94 -> 2234.300702 | M95: 2017-08-01 | N95: =Folha!G53 -> 3170380.156 | O95: =Folha!Q53 -> 1577107.874 | P95: =Folha!AK53 -> 16658.88497 | Q95: =Folha!AA53 -> 484380.8898 | R95: =Folha!AU53 -> 166976.3051 | S95: 5415504.11 | U95: 2017-08-01 | V95: 1283.305809 | W95: 1228.304441 | X95: 7.675403842 | Y95: 283.2271071 | Z95: 74.73313904 | AA95: 2877.245899 | AC95: 2017-08-01 | AD95: =AD94 -> 549 | AE95: 549 | AF95: 549 | AG95: 549 | AH95: 549 | AJ95: 2017-08-01 | AK95: 2.397102363 | AL95: =AK95 -> 2.397102363 | AM95: 0.1336805556 | AN95: 0.4340277778 | AO95: 0.1371527778 | AQ95: 2017-08-01 | AR95: 2.397102363 | AS95: 2.397102363 | AT95: 0.1336805556 | AU95: 0.4340277778 | AV95: 0.1371527778 | AX95: 2017-08-01 | AY95: =Folha!E53 -> 1019 | AZ95: 1283.305809 | BA95: 264.3058087 | BB95: =Folha!O53 -> 978 | BC95: 1228.304441 | BD95: 250.3044406 | BE95: =Folha!AI53 -> 4 | BF95: 7.675403842 | BG95: 3.675403842 | BH95: =Folha!Y53 -> 302 | BI95: 283.2271071 | BJ95: -18.77289289 | BK95: =Folha!AS53 -> 74 | BL95: 74.73313904 | BM95: 0.7331390436 | BN95: 2377 | BO95: 2877.245899 | BP95: 500.2458993 | BR95: 2017-08-01 | BS95: =BS94 -> 39 | BT95: 1.856102004 | BU95: 72.38797814 | BV95: 1019 | BW95: 946.6120219 | BX95: 72.38797814 | BY95: 2945161.893 | BZ95: 225218.2624 | CA95: 3170380.156
B96: 2017-09-01 | C96: 2455.940273 | D96: 2660.601963 | E96: 941.0382514 | F96: 71.96174863 | G96: 2470.479082 | H96: 1283.971483 | I96: 2170.424556 | J96: 1710.2208 | K96: 2234.300702 | M96: 2017-09-01 | N96: =Folha!G54 -> 3312497.395 | O96: =Folha!Q54 -> 1643365.123 | P96: =Folha!AK54 -> 19110.9276 | Q96: =Folha!AA54 -> 482657.5919 | R96: =Folha!AU54 -> 159131.6326 | S96: 5616762.67 | U96: 2017-09-01 | V96: 1340.831995 | W96: 1279.907805 | X96: 8.805156371 | Y96: 282.2194607 | Z96: 71.22211993 | AA96: 2982.986537 | AC96: 2017-09-01 | AD96: 549 | AE96: 549 | AF96: 549 | AG96: 549 | AH96: 549 | AJ96: 2017-09-01 | AK96: 2.397102363 | AL96: =AK96 -> 2.397102363 | AM96: 0.1336805556 | AN96: 0.4340277778 | AO96: 0.1371527778 | AQ96: 2017-09-01 | AR96: 2.397102363 | AS96: 2.397102363 | AT96: 0.1336805556 | AU96: 0.4340277778 | AV96: 0.1371527778 | AX96: 2017-09-01 | AY96: =Folha!E54 -> 1013 | AZ96: 1340.831995 | BA96: 327.8319947 | BB96: =Folha!O54 -> 979 | BC96: 1279.907805 | BD96: 300.9078052 | BE96: =Folha!AI54 -> 4 | BF96: 8.805156371 | BG96: 4.805156371 | BH96: =Folha!Y54 -> 291 | BI96: 282.2194607 | BJ96: -8.780539329 | BK96: =Folha!AS54 -> 73 | BL96: 71.22211993 | BM96: -1.777880072 | BN96: 2360 | BO96: 2982.986537 | BP96: 622.9865369 | BR96: 2017-09-01 | BS96: 39 | BT96: 1.845173042 | BU96: 71.96174863 | BV96: 1013 | BW96: 941.0382514 | BX96: 71.96174863 | BY96: 3077183.372 | BZ96: 235314.0226 | CA96: 3312497.395
B97: 2017-10-01 | C97: 2455.940273 | D97: 2660.601963 | E97: 931.7486339 | F97: 71.25136612 | G97: 2470.479082 | H97: 1283.971483 | I97: 2170.424556 | J97: 1710.2208 | K97: 2234.300702 | M97: 2017-10-01 | N97: =Folha!G55 -> 3197010.525 | O97: =Folha!Q55 -> 1619289.771 | P97: =Folha!AK55 -> 18852.29237 | Q97: =Folha!AA55 -> 479592.7284 | R97: =Folha!AU55 -> 172170.2634 | S97: 5486915.58 | U97: 2017-10-01 | V97: 1294.085244 | W97: 1261.157115 | X97: 8.685992943 | Y97: 280.4273742 | Z97: 77.0577851 | AA97: 2921.413511 | AC97: 2017-10-01 | AD97: 549 | AE97: 549 | AF97: 549 | AG97: 549 | AH97: 549 | AJ97: 2017-10-01 | AK97: 2.397102363 | AL97: 2.397102363 | AM97: 0.1336805556 | AN97: 0.4340277778 | AO97: 0.1371527778 | AQ97: 2017-10-01 | AR97: 2.397102363 | AS97: 2.397102363 | AT97: 0.1336805556 | AU97: 0.4340277778 | AV97: 0.1371527778 | AX97: 2017-10-01 | AY97: =Folha!E55 -> 1003 | AZ97: 1294.085244 | BA97: 291.0852439 | BB97: =Folha!O55 -> 979 | BC97: 1261.157115 | BD97: 282.1571146 | BE97: =Folha!AI55 -> 4 | BF97: 8.685992943 | BG97: 4.685992943 | BH97: =Folha!Y55 -> 287 | BI97: 280.4273742 | BJ97: -6.57262576 | BK97: =Folha!AS55 -> 73 | BL97: 77.0577851 | BM97: 4.057785099 | BN97: 2346 | BO97: 2921.413511 | BP97: 575.4135108 | BR97: 2017-10-01 | BS97: 39 | BT97: 1.826958106 | BU97: 71.25136612 | BV97: 1003 | BW97: 931.7486339 | BX97: 71.25136612 | BY97: 2969900.488 | BZ97: 227110.0373 | CA97: 3197010.525
B98: 2017-11-01 | C98: 2455.940273 | D98: 2660.601963 | E98: 932.6775956 | F98: 71.32240437 | G98: 2470.479082 | H98: 1283.971483 | I98: 2170.424556 | J98: 1710.2208 | K98: 2234.300702 | M98: 2017-11-01 | N98: =Folha!G56 -> 3238006.063 | O98: =Folha!Q56 -> 1633243.765 | P98: =Folha!AK56 -> 19548.86794 | Q98: =Folha!AA56 -> 483906.5335 | R98: =Folha!AU56 -> 155236.3211 | S98: 5529941.55 | U98: 2017-11-01 | V98: 1310.679409 | W98: 1272.024952 | X98: 9.006932717 | Y98: 282.9497416 | Z98: 69.47870577 | AA98: 2944.139741 | AC98: 2017-11-01 | AD98: 549 | AE98: 549 | AF98: 549 | AG98: 549 | AH98: 549 | AJ98: 2017-11-01 | AK98: 2.197076896 | AL98: 2.197076896 | AM98: 0.1336805556 | AN98: 0.4340277778 | AO98: 0.1371527778 | AQ98: 2017-11-01 | AR98: 2.197076896 | AS98: 2.197076896 | AT98: 0.1336805556 | AU98: 0.4340277778 | AV98: 0.1371527778 | AX98: 2017-11-01 | AY98: =Folha!E56 -> 1004 | AZ98: 1310.679409 | BA98: 306.679409 | BB98: =Folha!O56 -> 978 | BC98: 1272.024952 | BD98: 294.0249524 | BE98: =Folha!AI56 -> 4 | BF98: 9.006932717 | BG98: 5.006932717 | BH98: =Folha!Y56 -> 285 | BI98: 282.9497416 | BJ98: -2.050258425 | BK98: =Folha!AS56 -> 73 | BL98: 69.47870577 | BM98: -3.521294225 | BN98: 2344 | BO98: 2944.139741 | BP98: 600.1397415 | BR98: 2017-11-01 | BS98: 39 | BT98: 1.828779599 | BU98: 71.32240437 | BV98: 1004 | BW98: 932.6775956 | BX98: 71.32240437 | BY98: 3007983.774 | BZ98: 230022.2886 | CA98: 3238006.063
B99: 2017-12-01 | C99: 2455.940273 | D99: 2660.601963 | E99: 924.3169399 | F99: 70.68306011 | G99: 2470.479082 | H99: 1283.971483 | I99: 2170.424556 | J99: 1710.2208 | K99: 2234.300702 | M99: 2017-12-01 | N99: =Folha!G57 -> 3158588.499 | O99: =Folha!Q57 -> 1717566.371 | P99: =Folha!AK57 -> 18696.78714 | Q99: =Folha!AA57 -> 491223.255 | R99: =Folha!AU57 -> 147964.0374 | S99: 5534038.95 | U99: 2017-12-01 | V99: 1278.532784 | W99: 1337.698223 | X99: 8.614345563 | Y99: 287.2279737 | Z99: 66.22386917 | AA99: 2978.297196 | AC99: 2017-12-01 | AD99: 549 | AE99: 549 | AF99: 549 | AG99: 549 | AH99: 549 | AJ99: 2017-12-01 | AK99: 3.032763191 | AL99: 3.032763191 | AM99: 0.1336805556 | AN99: 0.4340277778 | AO99: 0.1371527778 | AQ99: 2017-12-01 | AR99: 3.032763191 | AS99: 3.032763191 | AT99: 0.1336805556 | AU99: 0.4340277778 | AV99: 0.1371527778 | AX99: 2017-12-01 | AY99: =Folha!E57 -> 995 | AZ99: 1278.532784 | BA99: 283.5327845 | BB99: =Folha!O57 -> 969 | BC99: 1337.698223 | BD99: 368.6982228 | BE99: =Folha!AI57 -> 4 | BF99: 8.614345563 | BG99: 4.614345563 | BH99: =Folha!Y57 -> 288 | BI99: 287.2279737 | BJ99: -0.7720263209 | BK99: =Folha!AS57 -> 57 | BL99: 66.22386917 | BM99: 9.223869174 | BN99: 2313 | BO99: 2978.297196 | BP99: 665.2971957 | BR99: 2017-12-01 | BS99: 39 | BT99: 1.812386157 | BU99: 70.68306011 | BV99: 995 | BW99: 924.3169399 | BX99: 70.68306011 | BY99: 2934207.896 | BZ99: 224380.6038 | CA99: 3158588.499
B100: 2018-01-01 | C100: 2455.940273 | D100: 2660.601963 | E100: 902.9508197 | F100: 69.04918033 | G100: 2470.479082 | H100: 1283.971483 | I100: 2170.424556 | J100: 1710.2208 | K100: 2234.300702 | M100: 2018-01-01 | N100: =Folha!G58 -> 3086741.885 | O100: =Folha!Q58 -> 1712724.688 | P100: =Folha!AK58 -> 16571.94056 | Q100: =Folha!AA58 -> 500532.9139 | R100: =Folha!AU58 -> 149668.2922 | S100: 5466239.72 | U100: 2018-01-01 | V100: 1249.450727 | W100: 1333.927358 | X100: 7.635345132 | Y100: 292.6715157 | Z100: 66.98663792 | AA100: 2950.671584 | AC100: 2018-01-01 | AD100: 549 | AE100: 549 | AF100: 549 | AG100: 549 | AH100: 549 | AJ100: 2018-01-01 | AK100: 3.032763191 | AL100: 3.032763191 | AM100: 0.1336805556 | AN100: 0.4340277778 | AO100: 0.1371527778 | AQ100: 2018-01-01 | AR100: 3.032763191 | AS100: 3.032763191 | AT100: 0.1336805556 | AU100: 0.4340277778 | AV100: 0.1371527778 | AX100: 2018-01-01 | AY100: =Folha!E58 -> 972 | AZ100: 1249.450727 | BA100: 277.4507271 | BB100: =Folha!O58 -> 965 | BC100: 1333.927358 | BD100: 368.9273581 | BE100: =Folha!AI58 -> 4 | BF100: 7.635345132 | BG100: 3.635345132 | BH100: =Folha!Y58 -> 287 | BI100: 292.6715157 | BJ100: 5.671515745 | BK100: =Folha!AS58 -> 56 | BL100: 66.98663792 | BM100: 10.98663792 | BN100: 2284 | BO100: 2950.671584 | BP100: 666.6715841 | BR100: 2018-01-01 | BS100: 39 | BT100: 1.770491803 | BU100: 69.04918033 | BV100: 972 | BW100: 902.9508197 | BX100: 69.04918033 | BY100: 2867465.139 | BZ100: 219276.7459 | CA100: 3086741.885
B101: 2018-02-01 | C101: 2455.940273 | D101: 2660.601963 | E101: 850.9289617 | F101: 65.07103825 | G101: 2470.479082 | H101: 1283.971483 | I101: 2170.424556 | J101: 1710.2208 | K101: 2234.300702 | M101: 2018-02-01 | N101: =Folha!G59 -> 3005637.855 | O101: =Folha!Q59 -> 1668912.229 | P101: =Folha!AK59 -> 16368.50268 | Q101: =Folha!AA59 -> 491534.144 | R101: =Folha!AU59 -> 151112.8485 | S101: 5333565.58 | U101: 2018-02-01 | V101: 1216.621455 | W101: 1299.804748 | X101: 7.541613291 | Y101: 287.4097566 | Z101: 67.63317414 | AA101: 2879.010747 | AC101: 2018-02-01 | AD101: 549 | AE101: 549 | AF101: 549 | AG101: 549 | AH101: 549 | AJ101: 2018-02-01 | AK101: 2.187605055 | AL101: 2.187605055 | AM101: 0.1336805556 | AN101: 0.4340277778 | AO101: 0.1371527778 | AQ101: 2018-02-01 | AR101: 2.187605055 | AS101: 2.187605055 | AT101: 0.1336805556 | AU101: 0.4340277778 | AV101: 0.1371527778 | AX101: 2018-02-01 | AY101: =Folha!E59 -> 916 | AZ101: 1216.621455 | BA101: 300.6214552 | BB101: =Folha!O59 -> 962 | BC101: 1299.804748 | BD101: 337.8047475 | BE101: =Folha!AI59 -> 4 | BF101: 7.541613291 | BG101: 3.541613291 | BH101: =Folha!Y59 -> 324 | BI101: 287.4097566 | BJ101: -36.59024335 | BK101: =Folha!AS59 -> 57 | BL101: 67.63317414 | BM101: 10.63317414 | BN101: 2263 | BO101: 2879.010747 | BP101: 616.0107468 | BR101: 2018-02-01 | BS101: 39 | BT101: 1.66848816 | BU101: 65.07103825 | BV101: 916 | BW101: 850.9289617 | BX101: 65.07103825 | BY101: 2792122.598 | BZ101: 213515.2575 | CA101: 3005637.855
B102: 2018-03-01 | C102: 2455.940273 | D102: 2660.601963 | E102: 845.3551913 | F102: 64.64480874 | G102: 2470.479082 | H102: 1283.971483 | I102: 2170.424556 | J102: 1710.2208 | K102: 2234.300702 | M102: 2018-03-01 | N102: =Folha!G60 -> 2887915.715 | O102: =Folha!Q60 -> 1606876.851 | P102: =Folha!AK60 -> 16052.26044 | Q102: =Folha!AA60 -> 465773.931 | R102: =Folha!AU60 -> 173128.0819 | S102: 5149746.84 | U102: 2018-03-01 | V102: 1168.969912 | W102: 1251.489517 | X102: 7.395908047 | Y102: 272.3472495 | Z102: 77.48647339 | AA102: 2777.68906 | AC102: 2018-03-01 | AD102: 549 | AE102: 549 | AF102: 549 | AG102: 549 | AH102: 549 | AJ102: 2018-03-01 | AK102: 2.437128199 | AL102: 2.437128199 | AM102: 0.1336805556 | AN102: 0.4340277778 | AO102: 0.1371527778 | AQ102: 2018-03-01 | AR102: 2.437128199 | AS102: 2.437128199 | AT102: 0.1336805556 | AU102: 0.4340277778 | AV102: 0.1371527778 | AX102: 2018-03-01 | AY102: =Folha!E60 -> 910 | AZ102: 1168.969912 | BA102: 258.9699122 | BB102: =Folha!O60 -> 957 | BC102: 1251.489517 | BD102: 294.489517 | BE102: =Folha!AI60 -> 4 | BF102: 7.395908047 | BG102: 3.395908047 | BH102: =Folha!Y60 -> 283 | BI102: 272.3472495 | BJ102: -10.65275046 | BK102: =Folha!AS60 -> 99 | BL102: 77.48647339 | BM102: -21.51352661 | BN102: 2253 | BO102: 2777.68906 | BP102: 524.6890602 | BR102: 2018-03-01 | BS102: 39 | BT102: 1.657559199 | BU102: 64.64480874 | BV102: 910 | BW102: 845.3551913 | BX102: 64.64480874 | BY102: 2682763.233 | BZ102: 205152.4825 | CA102: 2887915.715
B103: 2018-04-01 | C103: 2455.940273 | D103: 2660.601963 | E103: 840.7103825 | F103: 64.28961749 | G103: 2470.479082 | H103: 1283.971483 | I103: 2170.424556 | J103: 1710.2208 | K103: 2234.300702 | M103: 2018-04-01 | N103: =Folha!G61 -> 2907220.494 | O103: =Folha!Q61 -> 1610708.938 | P103: =Folha!AK61 -> 15821.35203 | Q103: =Folha!AA61 -> 467379.8859 | R103: =Folha!AU61 -> 183920.0396 | S103: 5185050.71 | U103: 2018-04-01 | V103: 1176.784096 | W103: 1254.474075 | X103: 7.289519456 | Y103: 273.2862832 | Z103: 82.31660109 | AA103: 2794.150575 | AC103: 2018-04-01 | AD103: 549 | AE103: 549 | AF103: 549 | AG103: 549 | AH103: 549 | AJ103: 2018-04-01 | AK103: 2.471617533 | AL103: 2.471617533 | AM103: 0.1336805556 | AN103: 0.4340277778 | AO103: 0.1371527778 | AQ103: 2018-04-01 | AR103: 2.471617533 | AS103: 2.471617533 | AT103: 0.1336805556 | AU103: 0.4340277778 | AV103: 0.1371527778 | AX103: 2018-04-01 | AY103: =Folha!E61 -> 905 | AZ103: 1176.784096 | BA103: 271.7840965 | BB103: =Folha!O61 -> 951 | BC103: 1254.474075 | BD103: 303.4740748 | BE103: =Folha!AI61 -> 4 | BF103: 7.289519456 | BG103: 3.289519456 | BH103: =Folha!Y61 -> 279 | BI103: 273.2862832 | BJ103: -5.713716811 | BK103: =Folha!AS61 -> 97 | BL103: 82.31660109 | BM103: -14.68339891 | BN103: 2236 | BO103: 2794.150575 | BP103: 558.150575 | BR103: 2018-04-01 | BS103: 39 | BT103: 1.64845173 | BU103: 64.28961749 | BV103: 905 | BW103: 840.7103825 | BX103: 64.28961749 | BY103: 2700696.634 | BZ103: 206523.8602 | CA103: 2907220.494
B104: 2018-05-01 | C104: 2455.940273 | D104: 2660.601963 | E104: 880.6557377 | F104: 67.3442623 | G104: 2470.479082 | H104: 1283.971483 | I104: 2170.424556 | J104: 1710.2208 | K104: 2234.300702 | M104: 2018-05-01 | N104: =Folha!G62 -> 3020956.967 | O104: =Folha!Q62 -> 1564587.174 | P104: =Folha!AK62 -> 16479.94679 | Q104: =Folha!AA62 -> 490587.8442 | R104: =Folha!AU62 -> 173397.4174 | S104: 5266009.35 | U104: 2018-05-01 | V104: 1222.822322 | W104: 1218.5529 | X104: 7.59295998 | Y104: 286.8564364 | Z104: 77.60701917 | AA104: 2813.431638 | AC104: 2018-05-01 | AD104: 549 | AE104: 549 | AF104: 549 | AG104: 549 | AH104: 549 | AJ104: 2018-05-01 | AK104: 2.48303696 | AL104: 2.48303696 | AM104: 0.1336805556 | AN104: 0.4340277778 | AO104: 0.1371527778 | AQ104: 2018-05-01 | AR104: 2.48303696 | AS104: 2.48303696 | AT104: 0.1336805556 | AU104: 0.4340277778 | AV104: 0.1371527778 | AX104: 2018-05-01 | AY104: =Folha!E62 -> 948 | AZ104: 1222.822322 | BA104: 274.8223221 | BB104: =Folha!O62 -> 943 | BC104: 1218.5529 | BD104: 275.5528999 | BE104: =Folha!AI62 -> 4 | BF104: 7.59295998 | BG104: 3.59295998 | BH104: =Folha!Y62 -> 285 | BI104: 286.8564364 | BJ104: 1.856436407 | BK104: =Folha!AS62 -> 95 | BL104: 77.60701917 | BM104: -17.39298083 | BN104: 2275 | BO104: 2813.431638 | BP104: 538.4316375 | BR104: 2018-05-01 | BS104: 39 | BT104: 1.726775956 | BU104: 67.3442623 | BV104: 948 | BW104: 880.6557377 | BX104: 67.3442623 | BY104: 2806353.467 | BZ104: 214603.5004 | CA104: 3020956.967
B105: 2018-06-01 | C105: 2455.940273 | D105: 2660.601963 | E105: 883.442623 | F105: 67.55737705 | G105: 2470.479082 | H105: 1283.971483 | I105: 2170.424556 | J105: 1710.2208 | K105: 2234.300702 | M105: 2018-06-01 | N105: =Folha!G63 -> 3131996.305 | O105: =Folha!Q63 -> 1607897.535 | P105: =Folha!AK63 -> 17047.55288 | Q105: =Folha!AA63 -> 503997.48 | R105: =Folha!AU63 -> 175334.7474 | S105: 5436273.62 | U105: 2018-06-01 | V105: 1267.768802 | W105: 1252.28446 | X105: 7.854478442 | Y105: 294.6973162 | Z105: 78.47410476 | AA105: 2901.079161 | AC105: 2018-06-01 | AD105: 549 | AE105: 549 | AF105: 549 | AG105: 549 | AH105: 549 | AJ105: 2018-06-01 | AK105: 2.481970541 | AL105: 2.481970541 | AM105: 0.1336805556 | AN105: 0.4340277778 | AO105: 0.1371527778 | AQ105: 2018-06-01 | AR105: 2.481970541 | AS105: 2.481970541 | AT105: 0.1336805556 | AU105: 0.4340277778 | AV105: 0.1371527778 | AX105: 2018-06-01 | AY105: =Folha!E63 -> 951 | AZ105: 1267.768802 | BA105: 316.7688017 | BB105: =Folha!O63 -> 938 | BC105: 1252.28446 | BD105: 314.2844596 | BE105: =Folha!AI63 -> 4 | BF105: 7.854478442 | BG105: 3.854478442 | BH105: =Folha!Y63 -> 281 | BI105: 294.6973162 | BJ105: 13.69731621 | BK105: =Folha!AS63 -> 91 | BL105: 78.47410476 | BM105: -12.52589524 | BN105: 2265 | BO105: 2901.079161 | BP105: 636.0791606 | BR105: 2018-06-01 | BS105: 39 | BT105: 1.732240437 | BU105: 67.55737705 | BV105: 951 | BW105: 883.442623 | BX105: 67.55737705 | BY105: 2909504.764 | BZ105: 222491.5408 | CA105: 3131996.305
B107: =B90 -> Bacia 5 | C107: R$ da Licitação corrigidos nos Dissídios Coletivos | K107: Ano 6 | M107: =B107 -> Bacia 5 | N107: R$ Salário Total Com Horas Extras e Adicional Noturno Pago Por Função (Sem inclusão de Encargos Sociais) - Valor de GFIP | S107: =K107 -> Ano 6 | U107: =M107 -> Bacia 5 | V107: Quantidade de Funcionários - Cálculo pela Folha | AA107: =S107 -> Ano 6 | AC107: =U107 -> Bacia 5 | AD107: Quantidade de Frota Operacional | AH107: =AA107 -> Ano 6 | AJ107: =AC107 -> Bacia 5 | AK107: FU POR FUNÇÃO | AO107: =AH107 -> Ano 6 | AQ107: =AJ107 -> Bacia 5 | AR107: FU FÍSICO PARA BENEFÍCIOS | AV107: =AO107 -> Ano 6 | AX107: =AQ107 -> Bacia 5 | AY107: Qtde. Funcionários - FÍSICO para Benefícios e FOLHA para Salários base de cálculo dos Enc.Sociais | BP107: =AV107 -> Ano 6 | BR107: =AX107 -> Bacia 5 | BS107: =BP107 -> Ano 6
B108: Mês | C108: R$ Salário Médio da Função (Sem Encargos) | M108: Mês | U108: Mês | V108: Inclusas todas as Horas Extras | AC108: Mês | AJ108: Mês | AK108: CÁLCULO SOBRE A FOLHA DE PAGAMENTO | AQ108: Mês | AX108: Mês | AY108: Motoristas | BB108: Cobradores | BE108: Controle Operacional | BH108: Manutenção | BK108: Administração | BN108: Total Geral | BR108: Mês | BS108: Cálculo Mot.Articulados | BV108: Qtde. Física de Motoristas | BY108: Cálculo R$ Mot.Artic. | CA108: R$
C109: Motoristas | E109: Qtde.Física de Mot. | G109: R$ Salário | H109: Cobradores | I109: Controle | J109: Manu- | K109: Admi- | M109: de | N109: Motoristas | O109: Cobradores | P109: Controle | Q109: Manutenção | R109: Administração | S109: R$ | V109: Motoristas | W109: Cobradores | X109: Controle | Y109: Manutenção | Z109: Administração | AA109: Qtde. | AC109: de | AD109: Motoristas | AE109: Cobradores | AF109: Controle | AG109: Manutenção | AH109: Administração | AJ109: de | AK109: Motoristas | AL109: Cobradores | AM109: Controle | AN109: Manutenção | AO109: Administração | AQ109: de | AR109: Motoristas | AS109: Cobradores | AT109: Controle | AU109: Manutenção | AV109: Administração | AX109: de | AY109: Físico | AZ109: Folha | BA109: Dif.Folha | BB109: Físico | BC109: Folha | BD109: Dif.Folha | BE109: Físico | BF109: Folha | BG109: Dif.Folha | BH109: Físico | BI109: Folha | BJ109: Dif.Folha | BK109: Físico | BL109: Folha | BM109: Dif.Folha | BN109: Físico | BO109: Folha | BP109: Dif.Folha | BR109: de | BS109: Frota | BT109: FU físico | BU109: Mot. | BV109: Mot. | BW109: Mot. | BX109: Mot. | BY109: R$ Mot. | BZ109: R$ Mot. | CA109: Total
B110: Ref. | C110: Diversos | D110: Artic. | E110: Div. | F110: Artic. | G110: Médio Mot. | I110: Operacional | J110: tenção | K110: nistração | M110: Ref. | N110: Diversos | P110: Operacional | S110: Total | U110: Ref. | X110: Operacional | AA110: Total | AC110: Ref. | AF110: Operacional | AJ110: Ref. | AM110: Operacional | AQ110: Ref. | AT110: Operacional | AX110: Ref. | BA110: (-) Físico | BD110: (-) Físico | BG110: (-) Físico | BJ110: (-) Físico | BM110: (-) Físico | BP110: (-) Físico | BR110: Ref. | BS110: Artic. | BT110: Mot.Div. | BU110: Artic. | BV110: Total | BW110: Diversos | BX110: Artic. | BY110: Diversos | BZ110: Articulados | CA110: Motoristas
B111: =DATE(YEAR(B105),MONTH(B105)+1,DAY(B105)) -> 2018-07-01 | C111: =C105 -> 2455.940273 | D111: =D105 -> 2660.601963 | E111: =BW111 -> 890.8743169 | F111: =BX111 -> 68.12568306 | G111: =IF(C111>0,((C111*E111)+(D111*F111))/(E111+F111),0) -> 2470.479082 | H111: =H105 -> 1283.971483 | I111: =I105 -> 2170.424556 | J111: =J105 -> 1710.2208 | K111: =K105 -> 2234.300702 | M111: =B111 -> 2018-07-01 | N111: =Folha!G64 -> 3034619.088 | O111: =Folha!Q64 -> 1580023.59 | P111: =Folha!AK64 -> 16833.40521 | Q111: =Folha!AA64 -> 484485.6699 | R111: =Folha!AU64 -> 169599.8462 | S111: =SUM(N111:R111) -> 5285561.6 | U111: =M111 -> 2018-07-01 | V111: =N111/G111 -> 1228.352473 | W111: =O111/H111 -> 1230.575298 | X111: =P111/I111 -> 7.755812182 | Y111: =Q111/J111 -> 283.2883741 | Z111: =R111/K111 -> 75.90735036 | AA111: =SUM(V111:Z111) -> 2825.879307 | AC111: =U111 -> 2018-07-01 | AD111: =AD105 -> 549 | AE111: =AD111 -> 549 | AF111: 549 | AG111: 549 | AH111: 549 | AJ111: =AC111 -> 2018-07-01 | AK111: 2.452811133 | AL111: =AK111 -> 2.452811133 | AM111: =AM94 -> 0.1336805556 | AN111: 0.4340277778 | AO111: 0.1371527778 | AQ111: =AJ111 -> 2018-07-01 | AR111: =AK111 -> 2.452811133 | AS111: =AL111 -> 2.452811133 | AT111: =AM111 -> 0.1336805556 | AU111: =AN111 -> 0.4340277778 | AV111: =AO111 -> 0.1371527778 | AX111: =AQ111 -> 2018-07-01 | AY111: =Folha!E64 -> 959 | AZ111: =V111 -> 1228.352473 | BA111: =AZ111-AY111 -> 269.3524726 | BB111: =Folha!O64 -> 952 | BC111: =W111 -> 1230.575298 | BD111: =BC111-BB111 -> 278.5752978 | BE111: =Folha!AI64 -> 4 | BF111: =X111 -> 7.755812182 | BG111: =BF111-BE111 -> 3.755812182 | BH111: =Folha!Y64 -> 282 | BI111: =Y111 -> 283.2883741 | BJ111: =BI111-BH111 -> 1.288374118 | BK111: =Folha!AS64 -> 90 | BL111: =Z111 -> 75.90735036 | BM111: =BL111-BK111 -> -14.09264964 | BN111: =AY111+BB111+BE111+BH111+BK111 -> 2287 | BO111: =AZ111+BC111+BF111+BI111+BL111 -> 2825.879307 | BP111: =BO111-BN111 -> 538.8793071 | BR111: =AC111 -> 2018-07-01 | BS111: =BS105 -> 39 | BT111: =AY111/AD111 -> 1.746812386 | BU111: =BT111*BS111 -> 68.12568306 | BV111: =AY111 -> 959 | BW111: =BV111-BX111 -> 890.8743169 | BX111: =BU111 -> 68.12568306 | BY111: =N111/BV111*BW111 -> 2819045.055 | BZ111: =N111/BV111*BX111 -> 215574.0336 | CA111: =BY111+BZ111 -> 3034619.088
B112: =DATE(YEAR(B111),MONTH(B111)+1,DAY(B111)) -> 2018-08-01 | C112: =C111 -> 2455.940273 | D112: =D111 -> 2660.601963 | E112: 889.0163934 | F112: 67.98360656 | G112: 2470.479082 | H112: =H111 -> 1283.971483 | I112: =I111 -> 2170.424556 | J112: =J111 -> 1710.2208 | K112: =K111 -> 2234.300702 | M112: 2018-08-01 | N112: =Folha!G65 -> 3163591.074 | O112: =Folha!Q65 -> 1635385.208 | P112: =Folha!AK65 -> 17934.54759 | Q112: =Folha!AA65 -> 484697.6454 | R112: =Folha!AU65 -> 177809.7143 | S112: 5479418.19 | U112: 2018-08-01 | V112: 1280.557726 | W112: 1273.692781 | X112: 8.263151806 | Y112: 283.4123204 | Z112: 79.58181908 | AA112: 2925.507798 | AC112: 2018-08-01 | AD112: =AD111 -> 549 | AE112: 549 | AF112: 549 | AG112: 549 | AH112: 549 | AJ112: 2018-08-01 | AK112: 2.453661214 | AL112: =AK112 -> 2.453661214 | AM112: 0.1336805556 | AN112: 0.4340277778 | AO112: 0.1371527778 | AQ112: 2018-08-01 | AR112: 2.453661214 | AS112: 2.453661214 | AT112: 0.1336805556 | AU112: 0.4340277778 | AV112: 0.1371527778 | AX112: 2018-08-01 | AY112: =Folha!E65 -> 957 | AZ112: 1280.557726 | BA112: 323.5577257 | BB112: =Folha!O65 -> 958 | BC112: 1273.692781 | BD112: 315.6927805 | BE112: =Folha!AI65 -> 4 | BF112: 8.263151806 | BG112: 4.263151806 | BH112: =Folha!Y65 -> 282 | BI112: 283.4123204 | BJ112: 1.412320417 | BK112: =Folha!AS65 -> 105 | BL112: 79.58181908 | BM112: -25.41818092 | BN112: 2306 | BO112: 2925.507798 | BP112: 619.5077975 | BR112: 2018-08-01 | BS112: =BS111 -> 39 | BT112: 1.743169399 | BU112: 67.98360656 | BV112: 957 | BW112: 889.0163934 | BX112: 67.98360656 | BY112: 2938855.096 | BZ112: 224735.978 | CA112: 3163591.074
B113: 2018-09-01 | C113: =C112*(C17/100*100+1) -> 2565.229615 | D113: =D112*(D17/100*100+1) -> 2778.99875 | E113: 889.9453552 | F113: 68.05464481 | G113: 2580.415401 | H113: =H112*(E17/100*100+1) -> 1341.108214 | I113: =I112*(F17/100*100+1) -> 2267.008448 | J113: =J112*(F17/100*100+1) -> 1786.325626 | K113: =K112*(F17/100*100+1) -> 2333.727084 | M113: 2018-09-01 | N113: =Folha!G66 -> 3070535.573 | O113: =Folha!Q66 -> 1590860.738 | P113: =Folha!AK66 -> 16349.72164 | Q113: =Folha!AA66 -> 488610.4647 | R113: =Folha!AU66 -> 189544.8125 | S113: 5355901.31 | U113: 2018-09-01 | V113: 1189.938477 | W113: 1186.228465 | X113: 7.212025015 | Y113: 273.5282177 | Z113: 81.21978521 | AA113: 2738.12697 | AC113: 2018-09-01 | AD113: 549 | AE113: 549 | AF113: 549 | AG113: 549 | AH113: 549 | AJ113: 2018-09-01 | AK113: 2.441320953 | AL113: =AK113 -> 2.441320953 | AM113: 0.1336805556 | AN113: 0.4340277778 | AO113: 0.1371527778 | AQ113: 2018-09-01 | AR113: 2.441320953 | AS113: 2.441320953 | AT113: 0.1336805556 | AU113: 0.4340277778 | AV113: 0.1371527778 | AX113: 2018-09-01 | AY113: =Folha!E66 -> 958 | AZ113: 1189.938477 | BA113: 231.9384772 | BB113: =Folha!O66 -> 960 | BC113: 1186.228465 | BD113: 226.2284652 | BE113: =Folha!AI66 -> 4 | BF113: 7.212025015 | BG113: 3.212025015 | BH113: =Folha!Y66 -> 280 | BI113: 273.5282177 | BJ113: -6.471782269 | BK113: =Folha!AS66 -> 102 | BL113: 81.21978521 | BM113: -20.78021479 | BN113: 2304 | BO113: 2738.12697 | BP113: 434.1269704 | BR113: 2018-09-01 | BS113: 39 | BT113: 1.744990893 | BU113: 68.05464481 | BV113: 958 | BW113: 889.9453552 | BX113: 68.05464481 | BY113: 2852410.095 | BZ113: 218125.4778 | CA113: 3070535.573
B114: 2018-10-01 | C114: =C113 -> 2565.229615 | D114: =D113 -> 2778.99875 | E114: 890.8743169 | F114: 68.12568306 | G114: 2580.415401 | H114: =H113 -> 1341.108214 | I114: =I113 -> 2267.008448 | J114: =J113 -> 1786.325626 | K114: =K113 -> 2333.727084 | M114: 2018-10-01 | N114: =Folha!G67 -> 3441664.32 | O114: =Folha!Q67 -> 1787092.281 | P114: =Folha!AK67 -> 20817.22309 | Q114: =Folha!AA67 -> 534260.3861 | R114: =Folha!AU67 -> 189019.5991 | S114: 5972853.81 | U114: 2018-10-01 | V114: 1333.763672 | W114: 1332.548904 | X114: 9.18268439 | Y114: 299.0834249 | Z114: 80.99473173 | AA114: 3055.573417 | AC114: 2018-10-01 | AD114: 549 | AE114: 549 | AF114: 549 | AG114: 549 | AH114: 549 | AJ114: 2018-10-01 | AK114: 2.45912789 | AL114: 2.45912789 | AM114: 0.1336805556 | AN114: 0.4340277778 | AO114: 0.1371527778 | AQ114: 2018-10-01 | AR114: 2.45912789 | AS114: 2.45912789 | AT114: 0.1336805556 | AU114: 0.4340277778 | AV114: 0.1371527778 | AX114: 2018-10-01 | AY114: =Folha!E67 -> 959 | AZ114: 1333.763672 | BA114: 374.763672 | BB114: =Folha!O67 -> 965 | BC114: 1332.548904 | BD114: 367.5489044 | BE114: =Folha!AI67 -> 4 | BF114: 9.18268439 | BG114: 5.18268439 | BH114: =Folha!Y67 -> 279 | BI114: 299.0834249 | BJ114: 20.08342488 | BK114: =Folha!AS67 -> 105 | BL114: 80.99473173 | BM114: -24.00526827 | BN114: 2312 | BO114: 3055.573417 | BP114: 743.5734174 | BR114: 2018-10-01 | BS114: 39 | BT114: 1.746812386 | BU114: 68.12568306 | BV114: 959 | BW114: 890.8743169 | BX114: 68.12568306 | BY114: 3197174.505 | BZ114: 244489.8151 | CA114: 3441664.32
B115: 2018-11-01 | C115: 2565.229615 | D115: 2778.99875 | E115: 889.0163934 | F115: 67.98360656 | G115: 2580.415401 | H115: 1341.108214 | I115: 2267.008448 | J115: 1786.325626 | K115: 2333.727084 | M115: 2018-11-01 | N115: =Folha!G68 -> 3270515.081 | O115: =Folha!Q68 -> 1696689.849 | P115: =Folha!AK68 -> 19102.1537 | Q115: =Folha!AA68 -> 522752.6921 | R115: =Folha!AU68 -> 184053.924 | S115: 5693113.7 | U115: 2018-11-01 | V115: 1267.437437 | W115: 1265.140151 | X115: 8.426150207 | Y115: 292.6413217 | Z115: 78.86694432 | AA115: 2912.512004 | AC115: 2018-11-01 | AD115: 549 | AE115: 549 | AF115: 549 | AG115: 549 | AH115: 549 | AJ115: 2018-11-01 | AK115: 2.477386934 | AL115: 2.477386934 | AM115: 0.1336805556 | AN115: 0.4340277778 | AO115: 0.1371527778 | AQ115: 2018-11-01 | AR115: 2.477386934 | AS115: 2.477386934 | AT115: 0.1336805556 | AU115: 0.4340277778 | AV115: 0.1371527778 | AX115: 2018-11-01 | AY115: =Folha!E68 -> 957 | AZ115: 1267.437437 | BA115: 310.4374368 | BB115: =Folha!O68 -> 961 | BC115: 1265.140151 | BD115: 304.1401512 | BE115: =Folha!AI68 -> 4 | BF115: 8.426150207 | BG115: 4.426150207 | BH115: =Folha!Y68 -> 343 | BI115: 292.6413217 | BJ115: -50.35867832 | BK115: =Folha!AS68 -> 106 | BL115: 78.86694432 | BM115: -27.13305568 | BN115: 2371 | BO115: 2912.512004 | BP115: 541.5120042 | BR115: 2018-11-01 | BS115: 39 | BT115: 1.743169399 | BU115: 67.98360656 | BV115: 957 | BW115: 889.0163934 | BX115: 67.98360656 | BY115: 3038183.409 | BZ115: 232331.6725 | CA115: 3270515.081
B116: 2018-12-01 | C116: 2565.229615 | D116: 2778.99875 | E116: 894.5901639 | F116: 68.40983607 | G116: 2580.415401 | H116: 1341.108214 | I116: 2267.008448 | J116: 1786.325626 | K116: 2333.727084 | M116: 2018-12-01 | N116: =Folha!G69 -> 3395795.956 | O116: =Folha!Q69 -> 1749969.67 | P116: =Folha!AK69 -> 18464.9499 | Q116: =Folha!AA69 -> 552710.8462 | R116: =Folha!AU69 -> 182531.2978 | S116: 5899472.72 | U116: 2018-12-01 | V116: 1315.988098 | W116: 1304.868356 | X116: 8.145073264 | Y116: 309.4121465 | Z116: 78.21450035 | AA116: 3016.628174 | AC116: 2018-12-01 | AD116: 549 | AE116: 549 | AF116: 549 | AG116: 549 | AH116: 549 | AJ116: 2018-12-01 | AK116: 2.261937727 | AL116: 2.261937727 | AM116: 0.1336805556 | AN116: 0.4340277778 | AO116: 0.1371527778 | AQ116: 2018-12-01 | AR116: 2.261937727 | AS116: 2.261937727 | AT116: 0.1336805556 | AU116: 0.4340277778 | AV116: 0.1371527778 | AX116: 2018-12-01 | AY116: =Folha!E69 -> 963 | AZ116: 1315.988098 | BA116: 352.9880982 | BB116: =Folha!O69 -> 961 | BC116: 1304.868356 | BD116: 343.8683557 | BE116: =Folha!AI69 -> 4 | BF116: 8.145073264 | BG116: 4.145073264 | BH116: =Folha!Y69 -> 320 | BI116: 309.4121465 | BJ116: -10.5878535 | BK116: =Folha!AS69 -> 102 | BL116: 78.21450035 | BM116: -23.78549965 | BN116: 2350 | BO116: 3016.628174 | BP116: 666.628174 | BR116: 2018-12-01 | BS116: 39 | BT116: 1.754098361 | BU116: 68.40983607 | BV116: 963 | BW116: 894.5901639 | BX116: 68.40983607 | BY116: 3154564.549 | BZ116: 241231.4067 | CA116: 3395795.956
B117: 2019-01-01 | C117: 2565.229615 | D117: 2778.99875 | E117: 891.8032787 | F117: 68.19672131 | G117: 2580.415401 | H117: 1341.108214 | I117: 2267.008448 | J117: 1786.325626 | K117: 2333.727084 | M117: 2019-01-01 | N117: =Folha!G70 -> 3430035.577 | O117: =Folha!Q70 -> 1769523.984 | P117: =Folha!AK70 -> 18536.1938 | Q117: =Folha!AA70 -> 552079.7831 | R117: =Folha!AU70 -> 178707.603 | S117: 5948883.14 | U117: 2019-01-01 | V117: 1329.257133 | W117: 1319.449068 | X117: 8.176499655 | Y117: 309.0588721 | Z117: 76.57605052 | AA117: 3042.517623 | AC117: 2019-01-01 | AD117: 549 | AE117: 549 | AF117: 549 | AG117: 549 | AH117: 549 | AJ117: 2019-01-01 | AK117: 2.261937727 | AL117: 2.261937727 | AM117: 0.1336805556 | AN117: 0.4340277778 | AO117: 0.1371527778 | AQ117: 2019-01-01 | AR117: 2.261937727 | AS117: 2.261937727 | AT117: 0.1336805556 | AU117: 0.4340277778 | AV117: 0.1371527778 | AX117: 2019-01-01 | AY117: =Folha!E70 -> 960 | AZ117: 1329.257133 | BA117: 369.2571325 | BB117: =Folha!O70 -> 955 | BC117: 1319.449068 | BD117: 364.4490683 | BE117: =Folha!AI70 -> 4 | BF117: 8.176499655 | BG117: 4.176499655 | BH117: =Folha!Y70 -> 321 | BI117: 309.0588721 | BJ117: -11.94112791 | BK117: =Folha!AS70 -> 100 | BL117: 76.57605052 | BM117: -23.42394948 | BN117: 2340 | BO117: 3042.517623 | BP117: 702.5176231 | BR117: 2019-01-01 | BS117: 39 | BT117: 1.74863388 | BU117: 68.19672131 | BV117: 960 | BW117: 891.8032787 | BX117: 68.19672131 | BY117: 3186371.847 | BZ117: 243663.7295 | CA117: 3430035.577
B118: 2019-02-01 | C118: 2565.229615 | D118: 2778.99875 | E118: 919.6721311 | F118: 70.32786885 | G118: 2580.415401 | H118: 1341.108214 | I118: 2267.008448 | J118: 1786.325626 | K118: 2333.727084 | M118: 2019-02-01 | N118: =Folha!G71 -> 3441767.682 | O118: =Folha!Q71 -> 1755969.803 | P118: =Folha!AK71 -> 17840.00309 | Q118: =Folha!AA71 -> 534500.0321 | R118: =Folha!AU71 -> 175114.8497 | S118: 5925192.37 | U118: 2019-02-01 | V118: 1333.803728 | W118: 1309.342367 | X118: 7.869403002 | Y118: 299.2175807 | Z118: 75.03655889 | AA118: 3025.269637 | AC118: 2019-02-01 | AD118: 549 | AE118: 549 | AF118: 549 | AG118: 549 | AH118: 549 | AJ118: 2019-02-01 | AK118: 2.59472282 | AL118: 2.59472282 | AM118: 0.1336805556 | AN118: 0.4340277778 | AO118: 0.1371527778 | AQ118: 2019-02-01 | AR118: 2.59472282 | AS118: 2.59472282 | AT118: 0.1336805556 | AU118: 0.4340277778 | AV118: 0.1371527778 | AX118: 2019-02-01 | AY118: =Folha!E71 -> 990 | AZ118: 1333.803728 | BA118: 343.8037282 | BB118: =Folha!O71 -> 961 | BC118: 1309.342367 | BD118: 348.3423666 | BE118: =Folha!AI71 -> 4 | BF118: 7.869403002 | BG118: 3.869403002 | BH118: =Folha!Y71 -> 316 | BI118: 299.2175807 | BJ118: -16.78241932 | BK118: =Folha!AS71 -> 99 | BL118: 75.03655889 | BM118: -23.96344111 | BN118: 2370 | BO118: 3025.269637 | BP118: 655.2696375 | BR118: 2019-02-01 | BS118: 39 | BT118: 1.803278689 | BU118: 70.32786885 | BV118: 990 | BW118: 919.6721311 | BX118: 70.32786885 | BY118: 3197270.524 | BZ118: 244497.1577 | CA118: 3441767.682
B119: 2019-03-01 | C119: 2565.229615 | D119: 2778.99875 | E119: 919.6721311 | F119: 70.32786885 | G119: 2580.415401 | H119: 1341.108214 | I119: 2267.008448 | J119: 1786.325626 | K119: 2333.727084 | M119: 2019-03-01 | N119: =Folha!G72 -> 3335207.798 | O119: =Folha!Q72 -> 1671465.35 | P119: =Folha!AK72 -> 17188.75495 | Q119: =Folha!AA72 -> 537031.7438 | R119: =Folha!AU72 -> 169980.6132 | S119: 5730874.26 | U119: 2019-03-01 | V119: 1292.508097 | W119: 1246.331454 | X119: 7.582130965 | Y119: 300.634854 | Z119: 72.83654303 | AA119: 2919.893078 | AC119: 2019-03-01 | AD119: 549 | AE119: 549 | AF119: 549 | AG119: 549 | AH119: 549 | AJ119: 2019-03-01 | AK119: 2.629687154 | AL119: 2.629687154 | AM119: 0.1336805556 | AN119: 0.4340277778 | AO119: 0.1371527778 | AQ119: 2019-03-01 | AR119: 2.629687154 | AS119: 2.629687154 | AT119: 0.1336805556 | AU119: 0.4340277778 | AV119: 0.1371527778 | AX119: 2019-03-01 | AY119: =Folha!E72 -> 990 | AZ119: 1292.508097 | BA119: 302.5080966 | BB119: =Folha!O72 -> 974 | BC119: 1246.331454 | BD119: 272.3314536 | BE119: =Folha!AI72 -> 4 | BF119: 7.582130965 | BG119: 3.582130965 | BH119: =Folha!Y72 -> 316 | BI119: 300.634854 | BJ119: -15.36514597 | BK119: =Folha!AS72 -> 127 | BL119: 72.83654303 | BM119: -54.16345697 | BN119: 2411 | BO119: 2919.893078 | BP119: 508.8930782 | BR119: 2019-03-01 | BS119: 39 | BT119: 1.803278689 | BU119: 70.32786885 | BV119: 990 | BW119: 919.6721311 | BX119: 70.32786885 | BY119: 3098280.468 | BZ119: 236927.3299 | CA119: 3335207.798
B120: 2019-04-01 | C120: 2565.229615 | D120: 2778.99875 | E120: 924.3169399 | F120: 70.68306011 | G120: 2580.415401 | H120: 1341.108214 | I120: 2267.008448 | J120: 1786.325626 | K120: 2333.727084 | M120: 2019-04-01 | N120: =Folha!G73 -> 3306072.879 | O120: =Folha!Q73 -> 1662788.742 | P120: =Folha!AK73 -> 17047.26724 | Q120: =Folha!AA73 -> 540737.4924 | R120: =Folha!AU73 -> 189653.7397 | S120: 5716300.12 | U120: 2019-04-01 | V120: 1281.21731 | W120: 1239.861723 | X120: 7.519719328 | Y120: 302.709363 | Z120: 81.26646042 | AA120: 2912.574576 | AC120: 2019-04-01 | AD120: 549 | AE120: 549 | AF120: 549 | AG120: 549 | AH120: 549 | AJ120: 2019-04-01 | AK120: 2.632853038 | AL120: 2.632853038 | AM120: 0.1336805556 | AN120: 0.4340277778 | AO120: 0.1371527778 | AQ120: 2019-04-01 | AR120: 2.632853038 | AS120: 2.632853038 | AT120: 0.1336805556 | AU120: 0.4340277778 | AV120: 0.1371527778 | AX120: 2019-04-01 | AY120: =Folha!E73 -> 995 | AZ120: 1281.21731 | BA120: 286.2173102 | BB120: =Folha!O73 -> 986 | BC120: 1239.861723 | BD120: 253.8617234 | BE120: =Folha!AI73 -> 4 | BF120: 7.519719328 | BG120: 3.519719328 | BH120: =Folha!Y73 -> 320 | BI120: 302.709363 | BJ120: -17.29063697 | BK120: =Folha!AS73 -> 127 | BL120: 81.26646042 | BM120: -45.73353958 | BN120: 2432 | BO120: 2912.574576 | BP120: 480.5745764 | BR120: 2019-04-01 | BS120: 39 | BT120: 1.812386157 | BU120: 70.68306011 | BV120: 995 | BW120: 924.3169399 | BX120: 70.68306011 | BY120: 3071215.243 | BZ120: 234857.6362 | CA120: 3306072.879
B121: 2019-05-01 | C121: 2565.229615 | D121: 2778.99875 | E121: 925.2459016 | F121: 70.75409836 | G121: 2580.415401 | H121: 1341.108214 | I121: 2267.008448 | J121: 1786.325626 | K121: 2333.727084 | M121: 2019-05-01 | N121: =Folha!G74 -> 3432236.915 | O121: =Folha!Q74 -> 1723996.91 | P121: =Folha!AK74 -> 17304.62031 | Q121: =Folha!AA74 -> 543550.8654 | R121: =Folha!AU74 -> 191898.5097 | S121: 5908987.82 | U121: 2019-05-01 | V121: 1330.110227 | W121: 1285.501715 | X121: 7.633240326 | Y121: 304.2843128 | Z121: 82.22834239 | AA121: 3009.757838 | AC121: 2019-05-01 | AD121: 549 | AE121: 549 | AF121: 549 | AG121: 549 | AH121: 549 | AJ121: 2019-05-01 | AK121: 2.608275741 | AL121: 2.608275741 | AM121: 0.1336805556 | AN121: 0.4340277778 | AO121: 0.1371527778 | AQ121: 2019-05-01 | AR121: 2.608275741 | AS121: 2.608275741 | AT121: 0.1336805556 | AU121: 0.4340277778 | AV121: 0.1371527778 | AX121: 2019-05-01 | AY121: =Folha!E74 -> 996 | AZ121: 1330.110227 | BA121: 334.1102272 | BB121: =Folha!O74 -> 968 | BC121: 1285.501715 | BD121: 317.5017152 | BE121: =Folha!AI74 -> 4 | BF121: 7.633240326 | BG121: 3.633240326 | BH121: =Folha!Y74 -> 319 | BI121: 304.2843128 | BJ121: -14.71568723 | BK121: =Folha!AS74 -> 126 | BL121: 82.22834239 | BM121: -43.77165761 | BN121: 2413 | BO121: 3009.757838 | BP121: 596.7578379 | BR121: 2019-05-01 | BS121: 39 | BT121: 1.81420765 | BU121: 70.75409836 | BV121: 996 | BW121: 925.2459016 | BX121: 70.75409836 | BY121: 3188416.806 | BZ121: 243820.1087 | CA121: 3432236.915
B122: 2019-06-01 | C122: 2565.229615 | D122: 2778.99875 | E122: 918.7431694 | F122: 70.2568306 | G122: 2580.415401 | H122: 1341.108214 | I122: 2267.008448 | J122: 1786.325626 | K122: 2333.727084 | M122: 2019-06-01 | N122: =Folha!G75 -> 3487998.411 | O122: =Folha!Q75 -> 1766703.437 | P122: =Folha!AK75 -> 18593.27556 | Q122: =Folha!AA75 -> 565147.4336 | R122: =Folha!AU75 -> 190308.3427 | S122: 6028750.9 | U122: 2019-06-01 | V122: 1351.719731 | W122: 1317.345922 | X122: 8.201678991 | Y122: 316.374252 | Z122: 81.54695723 | AA122: 3075.188541 | AC122: 2019-06-01 | AD122: 549 | AE122: 549 | AF122: 549 | AG122: 549 | AH122: 549 | AJ122: 2019-06-01 | AK122: 2.572187982 | AL122: 2.572187982 | AM122: 0.1336805556 | AN122: 0.4340277778 | AO122: 0.1371527778 | AQ122: 2019-06-01 | AR122: 2.572187982 | AS122: 2.572187982 | AT122: 0.1336805556 | AU122: 0.4340277778 | AV122: 0.1371527778 | AX122: 2019-06-01 | AY122: =Folha!E75 -> 989 | AZ122: 1351.719731 | BA122: 362.7197307 | BB122: =Folha!O75 -> 974 | BC122: 1317.345922 | BD122: 343.3459224 | BE122: =Folha!AI75 -> 4 | BF122: 8.201678991 | BG122: 4.201678991 | BH122: =Folha!Y75 -> 312 | BI122: 316.374252 | BJ122: 4.374251966 | BK122: =Folha!AS75 -> 126 | BL122: 81.54695723 | BM122: -44.45304277 | BN122: 2405 | BO122: 3075.188541 | BP122: 670.1885413 | BR122: 2019-06-01 | BS122: 39 | BT122: 1.801457195 | BU122: 70.2568306 | BV122: 989 | BW122: 918.7431694 | BX122: 70.2568306 | BY122: 3240217.103 | BZ122: 247781.3079 | CA122: 3487998.411
B124: =B107 -> Bacia 5 | C124: R$ da Licitação corrigidos nos Dissídios Coletivos | K124: Ano 7 | M124: =B124 -> Bacia 5 | N124: R$ Salário Total Com Horas Extras e Adicional Noturno Pago Por Função (Sem inclusão de Encargos Sociais) - Valor de GFIP | S124: =K124 -> Ano 7 | U124: =M124 -> Bacia 5 | V124: Quantidade de Funcionários - Cálculo pela Folha | AA124: =S124 -> Ano 7 | AC124: =U124 -> Bacia 5 | AD124: Quantidade de Frota Operacional | AH124: =AA124 -> Ano 7 | AJ124: =AC124 -> Bacia 5 | AK124: FU POR FUNÇÃO | AO124: =AH124 -> Ano 7 | AQ124: =AJ124 -> Bacia 5 | AR124: FU FÍSICO PARA BENEFÍCIOS | AV124: =AO124 -> Ano 7 | AX124: =AQ124 -> Bacia 5 | AY124: Qtde. Funcionários - FÍSICO para Benefícios e FOLHA para Salários base de cálculo dos Enc.Sociais | BP124: =AV124 -> Ano 7 | BR124: =AX124 -> Bacia 5 | BS124: =BP124 -> Ano 7
B125: Mês | C125: R$ Salário Médio da Função (Sem Encargos) | M125: Mês | U125: Mês | V125: Inclusas todas as Horas Extras | AC125: Mês | AJ125: Mês | AK125: CÁLCULO SOBRE A FOLHA DE PAGAMENTO | AQ125: Mês | AX125: Mês | AY125: Motoristas | BB125: Cobradores | BE125: Controle Operacional | BH125: Manutenção | BK125: Administração | BN125: Total Geral | BR125: Mês | BS125: Cálculo Mot.Articulados | BV125: Qtde. Física de Motoristas | BY125: Cálculo R$ Mot.Artic. | CA125: R$
C126: Motoristas | E126: Qtde.Física de Mot. | G126: R$ Salário | H126: Cobradores | I126: Controle | J126: Manu- | K126: Admi- | M126: de | N126: Motoristas | O126: Cobradores | P126: Controle | Q126: Manutenção | R126: Administração | S126: R$ | V126: Motoristas | W126: Cobradores | X126: Controle | Y126: Manutenção | Z126: Administração | AA126: Qtde. | AC126: de | AD126: Motoristas | AE126: Cobradores | AF126: Controle | AG126: Manutenção | AH126: Administração | AJ126: de | AK126: Motoristas | AL126: Cobradores | AM126: Controle | AN126: Manutenção | AO126: Administração | AQ126: de | AR126: Motoristas | AS126: Cobradores | AT126: Controle | AU126: Manutenção | AV126: Administração | AX126: de | AY126: Físico | AZ126: Folha | BA126: Dif.Folha | BB126: Físico | BC126: Folha | BD126: Dif.Folha | BE126: Físico | BF126: Folha | BG126: Dif.Folha | BH126: Físico | BI126: Folha | BJ126: Dif.Folha | BK126: Físico | BL126: Folha | BM126: Dif.Folha | BN126: Físico | BO126: Folha | BP126: Dif.Folha | BR126: de | BS126: Frota | BT126: FU físico | BU126: Mot. | BV126: Mot. | BW126: Mot. | BX126: Mot. | BY126: R$ Mot. | BZ126: R$ Mot. | CA126: Total
B127: Ref. | C127: Diversos | D127: Artic. | E127: Div. | F127: Artic. | G127: Médio Mot. | I127: Operacional | J127: tenção | K127: nistração | M127: Ref. | N127: Diversos | P127: Operacional | S127: Total | U127: Ref. | X127: Operacional | AA127: Total | AC127: Ref. | AF127: Operacional | AJ127: Ref. | AM127: Operacional | AQ127: Ref. | AT127: Operacional | AX127: Ref. | BA127: (-) Físico | BD127: (-) Físico | BG127: (-) Físico | BJ127: (-) Físico | BM127: (-) Físico | BP127: (-) Físico | BR127: Ref. | BS127: Artic. | BT127: Mot.Div. | BU127: Artic. | BV127: Total | BW127: Diversos | BX127: Artic. | BY127: Diversos | BZ127: Articulados | CA127: Motoristas
B128: =DATE(YEAR(B122),MONTH(B122)+1,DAY(B122)) -> 2019-07-01 | C128: =C122 -> 2565.229615 | D128: =D122 -> 2778.99875 | E128: =BW128 -> 918.7431694 | F128: =BX128 -> 70.2568306 | G128: =IF(C128>0,((C128*E128)+(D128*F128))/(E128+F128),0) -> 2580.415401 | H128: =H122 -> 1341.108214 | I128: =I122 -> 2267.008448 | J128: =J122 -> 1786.325626 | K128: =K122 -> 2333.727084 | M128: =B128 -> 2019-07-01 | N128: =N122 -> 3487998.411 | O128: =O122 -> 1766703.437 | P128: =P122 -> 18593.27556 | Q128: =Q122 -> 565147.4336 | R128: =R122 -> 190308.3427 | S128: =SUM(N128:R128) -> 6028750.9 | U128: =M128 -> 2019-07-01 | V128: =N128/G128 -> 1351.719731 | W128: =O128/H128 -> 1317.345922 | X128: =P128/I128 -> 8.201678991 | Y128: =Q128/J128 -> 316.374252 | Z128: =R128/K128 -> 81.54695723 | AA128: =SUM(V128:Z128) -> 3075.188541 | AC128: =U128 -> 2019-07-01 | AD128: =AD122 -> 549 | AE128: =AD128 -> 549 | AF128: 549 | AG128: 549 | AH128: 549 | AJ128: =AC128 -> 2019-07-01 | AK128: 2.577582623 | AL128: =AK128 -> 2.577582623 | AM128: =AM111 -> 0.1336805556 | AN128: 0.4340277778 | AO128: 0.1371527778 | AQ128: =AJ128 -> 2019-07-01 | AR128: =AK128 -> 2.577582623 | AS128: =AL128 -> 2.577582623 | AT128: =AM128 -> 0.1336805556 | AU128: =AN128 -> 0.4340277778 | AV128: =AO128 -> 0.1371527778 | AX128: =AQ128 -> 2019-07-01 | AY128: =AY122 -> 989 | AZ128: =V128 -> 1351.719731 | BA128: =AZ128-AY128 -> 362.7197307 | BB128: =BB122 -> 974 | BC128: =W128 -> 1317.345922 | BD128: =BC128-BB128 -> 343.3459224 | BE128: =BE122 -> 4 | BF128: =X128 -> 8.201678991 | BG128: =BF128-BE128 -> 4.201678991 | BH128: =BH122 -> 312 | BI128: =Y128 -> 316.374252 | BJ128: =BI128-BH128 -> 4.374251966 | BK128: =BK122 -> 126 | BL128: =Z128 -> 81.54695723 | BM128: =BL128-BK128 -> -44.45304277 | BN128: =AY128+BB128+BE128+BH128+BK128 -> 2405 | BO128: =AZ128+BC128+BF128+BI128+BL128 -> 3075.188541 | BP128: =BO128-BN128 -> 670.1885413 | BR128: =AX128 -> 2019-07-01 | BS128: =BS122 -> 39 | BT128: =AY128/AD128 -> 1.801457195 | BU128: =BT128*BS128 -> 70.2568306 | BV128: =AY128 -> 989 | BW128: =BV128-BX128 -> 918.7431694 | BX128: =BX122 -> 70.2568306 | BY128: =N128/BV128*BW128 -> 3240217.103 | BZ128: =N128/BV128*BX128 -> 247781.3079 | CA128: =BY128+BZ128 -> 3487998.411
B129: =DATE(YEAR(B128),MONTH(B128)+1,DAY(B128)) -> 2019-08-01 | C129: =C128 -> 2565.229615 | D129: =D128 -> 2778.99875 | E129: 918.7431694 | F129: 70.2568306 | G129: 2580.415401 | H129: =H128 -> 1341.108214 | I129: =I128 -> 2267.008448 | J129: =J128 -> 1786.325626 | K129: =K128 -> 2333.727084 | M129: 2019-08-01 | N129: =N128 -> 3487998.411 | O129: =O128 -> 1766703.437 | P129: =P128 -> 18593.27556 | Q129: =Q128 -> 565147.4336 | R129: =R128 -> 190308.3427 | S129: 6028750.9 | U129: 2019-08-01 | V129: 1351.719731 | W129: 1317.345922 | X129: 8.201678991 | Y129: 316.374252 | Z129: 81.54695723 | AA129: 3075.188541 | AC129: 2019-08-01 | AD129: =AD128 -> 549 | AE129: 549 | AF129: 549 | AG129: 549 | AH129: 549 | AJ129: 2019-08-01 | AK129: 2.627069696 | AL129: =AK129 -> 2.627069696 | AM129: 0.1336805556 | AN129: 0.4340277778 | AO129: 0.1371527778 | AQ129: 2019-08-01 | AR129: 2.627069696 | AS129: 2.627069696 | AT129: 0.1336805556 | AU129: 0.4340277778 | AV129: 0.1371527778 | AX129: 2019-08-01 | AY129: =AY128 -> 989 | AZ129: 1351.719731 | BA129: 362.7197307 | BB129: =BB128 -> 974 | BC129: 1317.345922 | BD129: 343.3459224 | BE129: =BE128 -> 4 | BF129: 8.201678991 | BG129: 4.201678991 | BH129: =BH128 -> 312 | BI129: 316.374252 | BJ129: 4.374251966 | BK129: =BK128 -> 126 | BL129: 81.54695723 | BM129: -44.45304277 | BN129: 2405 | BO129: 3075.188541 | BP129: 670.1885413 | BR129: 2019-08-01 | BS129: =BS128 -> 39 | BT129: 1.801457195 | BU129: 70.2568306 | BV129: 989 | BW129: 918.7431694 | BX129: =BX128 -> 70.2568306 | BY129: 3240217.103 | BZ129: 247781.3079 | CA129: 3487998.411
B130: 2019-09-01 | C130: 2565.229615 | D130: 2778.99875 | E130: 918.7431694 | F130: 70.2568306 | G130: 2580.415401 | H130: 1341.108214 | I130: 2267.008448 | J130: 1786.325626 | K130: 2333.727084 | M130: 2019-09-01 | N130: 3487998.411 | O130: 1766703.437 | P130: 18593.27556 | Q130: 565147.4336 | R130: 190308.3427 | S130: 6028750.9 | U130: 2019-09-01 | V130: 1351.719731 | W130: 1317.345922 | X130: 8.201678991 | Y130: 316.374252 | Z130: 81.54695723 | AA130: 3075.188541 | AC130: 2019-09-01 | AD130: 549 | AE130: 549 | AF130: 549 | AG130: 549 | AH130: 549 | AJ130: 2019-09-01 | AK130: 2.613198659 | AL130: =AK130 -> 2.613198659 | AM130: 0.1336805556 | AN130: 0.4340277778 | AO130: 0.1371527778 | AQ130: 2019-09-01 | AR130: 2.613198659 | AS130: 2.613198659 | AT130: 0.1336805556 | AU130: 0.4340277778 | AV130: 0.1371527778 | AX130: 2019-09-01 | AY130: 989 | AZ130: 1351.719731 | BA130: 362.7197307 | BB130: 974 | BC130: 1317.345922 | BD130: 343.3459224 | BE130: 4 | BF130: 8.201678991 | BG130: 4.201678991 | BH130: 312 | BI130: 316.374252 | BJ130: 4.374251966 | BK130: 126 | BL130: 81.54695723 | BM130: -44.45304277 | BN130: 2405 | BO130: 3075.188541 | BP130: 670.1885413 | BR130: 2019-09-01 | BS130: 39 | BT130: 1.801457195 | BU130: 70.2568306 | BV130: 989 | BW130: 918.7431694 | BX130: 70.2568306 | BY130: 3240217.103 | BZ130: 247781.3079 | CA130: 3487998.411
B131: 2019-10-01 | C131: 2565.229615 | D131: 2778.99875 | E131: 918.7431694 | F131: 70.2568306 | G131: 2580.415401 | H131: 1341.108214 | I131: 2267.008448 | J131: 1786.325626 | K131: 2333.727084 | M131: 2019-10-01 | N131: 3487998.411 | O131: 1766703.437 | P131: 18593.27556 | Q131: 565147.4336 | R131: 190308.3427 | S131: 6028750.9 | U131: 2019-10-01 | V131: 1351.719731 | W131: 1317.345922 | X131: 8.201678991 | Y131: 316.374252 | Z131: 81.54695723 | AA131: 3075.188541 | AC131: 2019-10-01 | AD131: 549 | AE131: 549 | AF131: 549 | AG131: 549 | AH131: 549 | AJ131: 2019-10-01 | AK131: 2.616842226 | AL131: 2.616842226 | AM131: 0.1336805556 | AN131: 0.4340277778 | AO131: 0.1371527778 | AQ131: 2019-10-01 | AR131: 2.616842226 | AS131: 2.616842226 | AT131: 0.1336805556 | AU131: 0.4340277778 | AV131: 0.1371527778 | AX131: 2019-10-01 | AY131: 989 | AZ131: 1351.719731 | BA131: 362.7197307 | BB131: 974 | BC131: 1317.345922 | BD131: 343.3459224 | BE131: 4 | BF131: 8.201678991 | BG131: 4.201678991 | BH131: 312 | BI131: 316.374252 | BJ131: 4.374251966 | BK131: 126 | BL131: 81.54695723 | BM131: -44.45304277 | BN131: 2405 | BO131: 3075.188541 | BP131: 670.1885413 | BR131: 2019-10-01 | BS131: 39 | BT131: 1.801457195 | BU131: 70.2568306 | BV131: 989 | BW131: 918.7431694 | BX131: 70.2568306 | BY131: 3240217.103 | BZ131: 247781.3079 | CA131: 3487998.411
B132: 2019-11-01 | C132: 2565.229615 | D132: 2778.99875 | E132: 918.7431694 | F132: 70.2568306 | G132: 2580.415401 | H132: 1341.108214 | I132: 2267.008448 | J132: 1786.325626 | K132: 2333.727084 | M132: 2019-11-01 | N132: 3487998.411 | O132: 1766703.437 | P132: 18593.27556 | Q132: 565147.4336 | R132: 190308.3427 | S132: 6028750.9 | U132: 2019-11-01 | V132: 1351.719731 | W132: 1317.345922 | X132: 8.201678991 | Y132: 316.374252 | Z132: 81.54695723 | AA132: 3075.188541 | AC132: 2019-11-01 | AD132: 549 | AE132: 549 | AF132: 549 | AG132: 549 | AH132: 549 | AJ132: 2019-11-01 | AK132: 2.618227462 | AL132: 2.618227462 | AM132: 0.1336805556 | AN132: 0.4340277778 | AO132: 0.1371527778 | AQ132: 2019-11-01 | AR132: 2.618227462 | AS132: 2.618227462 | AT132: 0.1336805556 | AU132: 0.4340277778 | AV132: 0.1371527778 | AX132: 2019-11-01 | AY132: 989 | AZ132: 1351.719731 | BA132: 362.7197307 | BB132: 974 | BC132: 1317.345922 | BD132: 343.3459224 | BE132: 4 | BF132: 8.201678991 | BG132: 4.201678991 | BH132: 312 | BI132: 316.374252 | BJ132: 4.374251966 | BK132: 126 | BL132: 81.54695723 | BM132: -44.45304277 | BN132: 2405 | BO132: 3075.188541 | BP132: 670.1885413 | BR132: 2019-11-01 | BS132: 39 | BT132: 1.801457195 | BU132: 70.2568306 | BV132: 989 | BW132: 918.7431694 | BX132: 70.2568306 | BY132: 3240217.103 | BZ132: 247781.3079 | CA132: 3487998.411
B133: 2019-12-01 | C133: 2565.229615 | D133: 2778.99875 | E133: 918.7431694 | F133: 70.2568306 | G133: 2580.415401 | H133: 1341.108214 | I133: 2267.008448 | J133: 1786.325626 | K133: 2333.727084 | M133: 2019-12-01 | N133: 3487998.411 | O133: 1766703.437 | P133: 18593.27556 | Q133: 565147.4336 | R133: 190308.3427 | S133: 6028750.9 | U133: 2019-12-01 | V133: 1351.719731 | W133: 1317.345922 | X133: 8.201678991 | Y133: 316.374252 | Z133: 81.54695723 | AA133: 3075.188541 | AC133: 2019-12-01 | AD133: 549 | AE133: 549 | AF133: 549 | AG133: 549 | AH133: 549 | AJ133: 2019-12-01 | AK133: 2.512978031 | AL133: 2.512978031 | AM133: 0.1336805556 | AN133: 0.4340277778 | AO133: 0.1371527778 | AQ133: 2019-12-01 | AR133: 2.512978031 | AS133: 2.512978031 | AT133: 0.1336805556 | AU133: 0.4340277778 | AV133: 0.1371527778 | AX133: 2019-12-01 | AY133: 989 | AZ133: 1351.719731 | BA133: 362.7197307 | BB133: 974 | BC133: 1317.345922 | BD133: 343.3459224 | BE133: 4 | BF133: 8.201678991 | BG133: 4.201678991 | BH133: 312 | BI133: 316.374252 | BJ133: 4.374251966 | BK133: 126 | BL133: 81.54695723 | BM133: -44.45304277 | BN133: 2405 | BO133: 3075.188541 | BP133: 670.1885413 | BR133: 2019-12-01 | BS133: 39 | BT133: 1.801457195 | BU133: 70.2568306 | BV133: 989 | BW133: 918.7431694 | BX133: 70.2568306 | BY133: 3240217.103 | BZ133: 247781.3079 | CA133: 3487998.411
B134: 2020-01-01 | C134: 2565.229615 | D134: 2778.99875 | E134: 918.7431694 | F134: 70.2568306 | G134: 2580.415401 | H134: 1341.108214 | I134: 2267.008448 | J134: 1786.325626 | K134: 2333.727084 | M134: 2020-01-01 | N134: 3487998.411 | O134: 1766703.437 | P134: 18593.27556 | Q134: 565147.4336 | R134: 190308.3427 | S134: 6028750.9 | U134: 2020-01-01 | V134: 1351.719731 | W134: 1317.345922 | X134: 8.201678991 | Y134: 316.374252 | Z134: 81.54695723 | AA134: 3075.188541 | AC134: 2020-01-01 | AD134: 549 | AE134: 549 | AF134: 549 | AG134: 549 | AH134: 549 | AJ134: 2020-01-01 | AK134: 2.602910769 | AL134: 2.602910769 | AM134: 0.1336805556 | AN134: 0.4340277778 | AO134: 0.1371527778 | AQ134: 2020-01-01 | AR134: 2.602910769 | AS134: 2.602910769 | AT134: 0.1336805556 | AU134: 0.4340277778 | AV134: 0.1371527778 | AX134: 2020-01-01 | AY134: 989 | AZ134: 1351.719731 | BA134: 362.7197307 | BB134: 974 | BC134: 1317.345922 | BD134: 343.3459224 | BE134: 4 | BF134: 8.201678991 | BG134: 4.201678991 | BH134: 312 | BI134: 316.374252 | BJ134: 4.374251966 | BK134: 126 | BL134: 81.54695723 | BM134: -44.45304277 | BN134: 2405 | BO134: 3075.188541 | BP134: 670.1885413 | BR134: 2020-01-01 | BS134: 39 | BT134: 1.801457195 | BU134: 70.2568306 | BV134: 989 | BW134: 918.7431694 | BX134: 70.2568306 | BY134: 3240217.103 | BZ134: 247781.3079 | CA134: 3487998.411
B135: 2020-02-01 | C135: 2565.229615 | D135: 2778.99875 | E135: 918.7431694 | F135: 70.2568306 | G135: 2580.415401 | H135: 1341.108214 | I135: 2267.008448 | J135: 1786.325626 | K135: 2333.727084 | M135: 2020-02-01 | N135: 3487998.411 | O135: 1766703.437 | P135: 18593.27556 | Q135: 565147.4336 | R135: 190308.3427 | S135: 6028750.9 | U135: 2020-02-01 | V135: 1351.719731 | W135: 1317.345922 | X135: 8.201678991 | Y135: 316.374252 | Z135: 81.54695723 | AA135: 3075.188541 | AC135: 2020-02-01 | AD135: 549 | AE135: 549 | AF135: 549 | AG135: 549 | AH135: 549 | AJ135: 2020-02-01 | AK135: 2.603077224 | AL135: 2.603077224 | AM135: 0.1336805556 | AN135: 0.4340277778 | AO135: 0.1371527778 | AQ135: 2020-02-01 | AR135: 2.603077224 | AS135: 2.603077224 | AT135: 0.1336805556 | AU135: 0.4340277778 | AV135: 0.1371527778 | AX135: 2020-02-01 | AY135: 989 | AZ135: 1351.719731 | BA135: 362.7197307 | BB135: 974 | BC135: 1317.345922 | BD135: 343.3459224 | BE135: 4 | BF135: 8.201678991 | BG135: 4.201678991 | BH135: 312 | BI135: 316.374252 | BJ135: 4.374251966 | BK135: 126 | BL135: 81.54695723 | BM135: -44.45304277 | BN135: 2405 | BO135: 3075.188541 | BP135: 670.1885413 | BR135: 2020-02-01 | BS135: 39 | BT135: 1.801457195 | BU135: 70.2568306 | BV135: 989 | BW135: 918.7431694 | BX135: 70.2568306 | BY135: 3240217.103 | BZ135: 247781.3079 | CA135: 3487998.411
B136: 2020-03-01 | C136: 2565.229615 | D136: 2778.99875 | E136: 918.7431694 | F136: 70.2568306 | G136: 2580.415401 | H136: 1341.108214 | I136: 2267.008448 | J136: 1786.325626 | K136: 2333.727084 | M136: 2020-03-01 | N136: 3487998.411 | O136: 1766703.437 | P136: 18593.27556 | Q136: 565147.4336 | R136: 190308.3427 | S136: 6028750.9 | U136: 2020-03-01 | V136: 1351.719731 | W136: 1317.345922 | X136: 8.201678991 | Y136: 316.374252 | Z136: 81.54695723 | AA136: 3075.188541 | AC136: 2020-03-01 | AD136: 549 | AE136: 549 | AF136: 549 | AG136: 549 | AH136: 549 | AJ136: 2020-03-01 | AK136: 2.33726711 | AL136: 2.33726711 | AM136: 0.1336805556 | AN136: 0.4340277778 | AO136: 0.1371527778 | AQ136: 2020-03-01 | AR136: 2.33726711 | AS136: 2.33726711 | AT136: 0.1336805556 | AU136: 0.4340277778 | AV136: 0.1371527778 | AX136: 2020-03-01 | AY136: 989 | AZ136: 1351.719731 | BA136: 362.7197307 | BB136: 974 | BC136: 1317.345922 | BD136: 343.3459224 | BE136: 4 | BF136: 8.201678991 | BG136: 4.201678991 | BH136: 312 | BI136: 316.374252 | BJ136: 4.374251966 | BK136: 126 | BL136: 81.54695723 | BM136: -44.45304277 | BN136: 2405 | BO136: 3075.188541 | BP136: 670.1885413 | BR136: 2020-03-01 | BS136: 39 | BT136: 1.801457195 | BU136: 70.2568306 | BV136: 989 | BW136: 918.7431694 | BX136: 70.2568306 | BY136: 3240217.103 | BZ136: 247781.3079 | CA136: 3487998.411
B137: 2020-04-01 | C137: 2565.229615 | D137: 2778.99875 | E137: 918.7431694 | F137: 70.2568306 | G137: 2580.415401 | H137: 1341.108214 | I137: 2267.008448 | J137: 1786.325626 | K137: 2333.727084 | M137: 2020-04-01 | N137: 3487998.411 | O137: 1766703.437 | P137: 18593.27556 | Q137: 565147.4336 | R137: 190308.3427 | S137: 6028750.9 | U137: 2020-04-01 | V137: 1351.719731 | W137: 1317.345922 | X137: 8.201678991 | Y137: 316.374252 | Z137: 81.54695723 | AA137: 3075.188541 | AC137: 2020-04-01 | AD137: 549 | AE137: 549 | AF137: 549 | AG137: 549 | AH137: 549 | AJ137: 2020-04-01 | AK137: 2.146594911 | AL137: 2.146594911 | AM137: 0.1336805556 | AN137: 0.4340277778 | AO137: 0.1371527778 | AQ137: 2020-04-01 | AR137: 2.146594911 | AS137: 2.146594911 | AT137: 0.1336805556 | AU137: 0.4340277778 | AV137: 0.1371527778 | AX137: 2020-04-01 | AY137: 989 | AZ137: 1351.719731 | BA137: 362.7197307 | BB137: 974 | BC137: 1317.345922 | BD137: 343.3459224 | BE137: 4 | BF137: 8.201678991 | BG137: 4.201678991 | BH137: 312 | BI137: 316.374252 | BJ137: 4.374251966 | BK137: 126 | BL137: 81.54695723 | BM137: -44.45304277 | BN137: 2405 | BO137: 3075.188541 | BP137: 670.1885413 | BR137: 2020-04-01 | BS137: 39 | BT137: 1.801457195 | BU137: 70.2568306 | BV137: 989 | BW137: 918.7431694 | BX137: 70.2568306 | BY137: 3240217.103 | BZ137: 247781.3079 | CA137: 3487998.411
B138: 2020-05-01 | C138: 2565.229615 | D138: 2778.99875 | E138: 918.7431694 | F138: 70.2568306 | G138: 2580.415401 | H138: 1341.108214 | I138: 2267.008448 | J138: 1786.325626 | K138: 2333.727084 | M138: 2020-05-01 | N138: 3487998.411 | O138: 1766703.437 | P138: 18593.27556 | Q138: 565147.4336 | R138: 190308.3427 | S138: 6028750.9 | U138: 2020-05-01 | V138: 1351.719731 | W138: 1317.345922 | X138: 8.201678991 | Y138: 316.374252 | Z138: 81.54695723 | AA138: 3075.188541 | AC138: 2020-05-01 | AD138: 549 | AE138: 549 | AF138: 549 | AG138: 549 | AH138: 549 | AJ138: 2020-05-01 | AK138: 2.56460016 | AL138: 2.56460016 | AM138: 0.1336805556 | AN138: 0.4340277778 | AO138: 0.1371527778 | AQ138: 2020-05-01 | AR138: 2.56460016 | AS138: 2.56460016 | AT138: 0.1336805556 | AU138: 0.4340277778 | AV138: 0.1371527778 | AX138: 2020-05-01 | AY138: 989 | AZ138: 1351.719731 | BA138: 362.7197307 | BB138: 974 | BC138: 1317.345922 | BD138: 343.3459224 | BE138: 4 | BF138: 8.201678991 | BG138: 4.201678991 | BH138: 312 | BI138: 316.374252 | BJ138: 4.374251966 | BK138: 126 | BL138: 81.54695723 | BM138: -44.45304277 | BN138: 2405 | BO138: 3075.188541 | BP138: 670.1885413 | BR138: 2020-05-01 | BS138: 39 | BT138: 1.801457195 | BU138: 70.2568306 | BV138: 989 | BW138: 918.7431694 | BX138: 70.2568306 | BY138: 3240217.103 | BZ138: 247781.3079 | CA138: 3487998.411
B139: 2020-06-01 | C139: 2565.229615 | D139: 2778.99875 | E139: 918.7431694 | F139: 70.2568306 | G139: 2580.415401 | H139: 1341.108214 | I139: 2267.008448 | J139: 1786.325626 | K139: 2333.727084 | M139: 2020-06-01 | N139: 3487998.411 | O139: 1766703.437 | P139: 18593.27556 | Q139: 565147.4336 | R139: 190308.3427 | S139: 6028750.9 | U139: 2020-06-01 | V139: 1351.719731 | W139: 1317.345922 | X139: 8.201678991 | Y139: 316.374252 | Z139: 81.54695723 | AA139: 3075.188541 | AC139: 2020-06-01 | AD139: 549 | AE139: 549 | AF139: 549 | AG139: 549 | AH139: 549 | AJ139: 2020-06-01 | AK139: 2.565497033 | AL139: 2.565497033 | AM139: 0.1336805556 | AN139: 0.4340277778 | AO139: 0.1371527778 | AQ139: 2020-06-01 | AR139: 2.565497033 | AS139: 2.565497033 | AT139: 0.1336805556 | AU139: 0.4340277778 | AV139: 0.1371527778 | AX139: 2020-06-01 | AY139: 989 | AZ139: 1351.719731 | BA139: 362.7197307 | BB139: 974 | BC139: 1317.345922 | BD139: 343.3459224 | BE139: 4 | BF139: 8.201678991 | BG139: 4.201678991 | BH139: 312 | BI139: 316.374252 | BJ139: 4.374251966 | BK139: 126 | BL139: 81.54695723 | BM139: -44.45304277 | BN139: 2405 | BO139: 3075.188541 | BP139: 670.1885413 | BR139: 2020-06-01 | BS139: 39 | BT139: 1.801457195 | BU139: 70.2568306 | BV139: 989 | BW139: 918.7431694 | BX139: 70.2568306 | BY139: 3240217.103 | BZ139: 247781.3079 | CA139: 3487998.411
B141: =B124 -> Bacia 5 | C141: R$ da Licitação corrigidos nos Dissídios Coletivos | K141: Ano 8 | M141: =B141 -> Bacia 5 | N141: R$ Salário Total Com Horas Extras e Adicional Noturno Pago Por Função (Sem inclusão de Encargos Sociais) - Valor de GFIP | S141: =K141 -> Ano 8 | U141: =M141 -> Bacia 5 | V141: Quantidade de Funcionários - Cálculo pela Folha | AA141: =S141 -> Ano 8 | AC141: =U141 -> Bacia 5 | AD141: Quantidade de Frota Operacional | AH141: =AA141 -> Ano 8 | AJ141: =AC141 -> Bacia 5 | AK141: FU POR FUNÇÃO | AO141: =AH141 -> Ano 8 | AQ141: =AJ141 -> Bacia 5 | AR141: FU FÍSICO PARA BENEFÍCIOS | AV141: =AO141 -> Ano 8 | AX141: =AQ141 -> Bacia 5 | AY141: Qtde. Funcionários - FÍSICO para Benefícios e FOLHA para Salários base de cálculo dos Enc.Sociais | BP141: =AV141 -> Ano 8 | BR141: =AX141 -> Bacia 5 | BS141: =BP141 -> Ano 8
B142: Mês | C142: R$ Salário Médio da Função (Sem Encargos) | M142: Mês | U142: Mês | V142: Inclusas todas as Horas Extras | AC142: Mês | AJ142: Mês | AK142: CÁLCULO SOBRE A FOLHA DE PAGAMENTO | AQ142: Mês | AX142: Mês | AY142: Motoristas | BB142: Cobradores | BE142: Controle Operacional | BH142: Manutenção | BK142: Administração | BN142: Total Geral | BR142: Mês | BS142: Cálculo Mot.Articulados | BV142: Qtde. Física de Motoristas | BY142: Cálculo R$ Mot.Artic. | CA142: R$
C143: Motoristas | E143: Qtde.Física de Mot. | G143: R$ Salário | H143: Cobradores | I143: Controle | J143: Manu- | K143: Admi- | M143: de | N143: Motoristas | O143: Cobradores | P143: Controle | Q143: Manutenção | R143: Administração | S143: R$ | V143: Motoristas | W143: Cobradores | X143: Controle | Y143: Manutenção | Z143: Administração | AA143: Qtde. | AC143: de | AD143: Motoristas | AE143: Cobradores | AF143: Controle | AG143: Manutenção | AH143: Administração | AJ143: de | AK143: Motoristas | AL143: Cobradores | AM143: Controle | AN143: Manutenção | AO143: Administração | AQ143: de | AR143: Motoristas | AS143: Cobradores | AT143: Controle | AU143: Manutenção | AV143: Administração | AX143: de | AY143: Físico | AZ143: Folha | BA143: Dif.Folha | BB143: Físico | BC143: Folha | BD143: Dif.Folha | BE143: Físico | BF143: Folha | BG143: Dif.Folha | BH143: Físico | BI143: Folha | BJ143: Dif.Folha | BK143: Físico | BL143: Folha | BM143: Dif.Folha | BN143: Físico | BO143: Folha | BP143: Dif.Folha | BR143: de | BS143: Frota | BT143: FU físico | BU143: Mot. | BV143: Mot. | BW143: Mot. | BX143: Mot. | BY143: R$ Mot. | BZ143: R$ Mot. | CA143: Total
B144: Ref. | C144: Diversos | D144: Artic. | E144: Div. | F144: Artic. | G144: Médio Mot. | I144: Operacional | J144: tenção | K144: nistração | M144: Ref. | N144: Diversos | P144: Operacional | S144: Total | U144: Ref. | X144: Operacional | AA144: Total | AC144: Ref. | AF144: Operacional | AJ144: Ref. | AM144: Operacional | AQ144: Ref. | AT144: Operacional | AX144: Ref. | BA144: (-) Físico | BD144: (-) Físico | BG144: (-) Físico | BJ144: (-) Físico | BM144: (-) Físico | BP144: (-) Físico | BR144: Ref. | BS144: Artic. | BT144: Mot.Div. | BU144: Artic. | BV144: Total | BW144: Diversos | BX144: Artic. | BY144: Diversos | BZ144: Articulados | CA144: Motoristas
B145: =DATE(YEAR(B139),MONTH(B139)+1,DAY(B139)) -> 2020-07-01 | C145: =C139 -> 2565.229615 | D145: =D139 -> 2778.99875 | E145: =BW145 -> 918.7431694 | F145: =BX145 -> 70.2568306 | G145: =IF(C145>0,((C145*E145)+(D145*F145))/(E145+F145),0) -> 2580.415401 | H145: =H139 -> 1341.108214 | I145: =I139 -> 2267.008448 | J145: =J139 -> 1786.325626 | K145: =K139 -> 2333.727084 | M145: =B145 -> 2020-07-01 | N145: =N139 -> 3487998.411 | O145: =O139 -> 1766703.437 | P145: =P139 -> 18593.27556 | Q145: =Q139 -> 565147.4336 | R145: =R139 -> 190308.3427 | S145: =SUM(N145:R145) -> 6028750.9 | U145: =M145 -> 2020-07-01 | V145: =N145/G145 -> 1351.719731 | W145: =O145/H145 -> 1317.345922 | X145: =P145/I145 -> 8.201678991 | Y145: =Q145/J145 -> 316.374252 | Z145: =R145/K145 -> 81.54695723 | AA145: =SUM(V145:Z145) -> 3075.188541 | AC145: =U145 -> 2020-07-01 | AD145: =AD139 -> 549 | AE145: =AD145 -> 549 | AF145: 549 | AG145: 549 | AH145: 549 | AJ145: =AC145 -> 2020-07-01 | AK145: 2.565497033 | AL145: =AK145 -> 2.565497033 | AM145: =AM128 -> 0.1336805556 | AN145: 0.4340277778 | AO145: 0.1371527778 | AQ145: =AJ145 -> 2020-07-01 | AR145: =AK145 -> 2.565497033 | AS145: =AL145 -> 2.565497033 | AT145: =AM145 -> 0.1336805556 | AU145: =AN145 -> 0.4340277778 | AV145: =AO145 -> 0.1371527778 | AX145: =AQ145 -> 2020-07-01 | AY145: =AY139 -> 989 | AZ145: =V145 -> 1351.719731 | BA145: =AZ145-AY145 -> 362.7197307 | BB145: =BB139 -> 974 | BC145: =W145 -> 1317.345922 | BD145: =BC145-BB145 -> 343.3459224 | BE145: =BE139 -> 4 | BF145: =X145 -> 8.201678991 | BG145: =BF145-BE145 -> 4.201678991 | BH145: =BH139 -> 312 | BI145: =Y145 -> 316.374252 | BJ145: =BI145-BH145 -> 4.374251966 | BK145: =BK139 -> 126 | BL145: =Z145 -> 81.54695723 | BM145: =BL145-BK145 -> -44.45304277 | BN145: =AY145+BB145+BE145+BH145+BK145 -> 2405 | BO145: =AZ145+BC145+BF145+BI145+BL145 -> 3075.188541 | BP145: =BO145-BN145 -> 670.1885413 | BR145: =AX145 -> 2020-07-01 | BS145: =BS139 -> 39 | BT145: =AY145/AD145 -> 1.801457195 | BU145: =BT145*BS145 -> 70.2568306 | BV145: =AY145 -> 989 | BW145: =BV145-BX145 -> 918.7431694 | BX145: =BX139 -> 70.2568306 | BY145: =N145/BV145*BW145 -> 3240217.103 | BZ145: =N145/BV145*BX145 -> 247781.3079 | CA145: =BY145+BZ145 -> 3487998.411
B146: =DATE(YEAR(B145),MONTH(B145)+1,DAY(B145)) -> 2020-08-01 | C146: =C145 -> 2565.229615 | D146: =D145 -> 2778.99875 | E146: 918.7431694 | F146: 70.2568306 | G146: 2580.415401 | H146: =H145 -> 1341.108214 | I146: =I145 -> 2267.008448 | J146: =J145 -> 1786.325626 | K146: =K145 -> 2333.727084 | M146: 2020-08-01 | N146: =N145 -> 3487998.411 | O146: =O145 -> 1766703.437 | P146: =P145 -> 18593.27556 | Q146: =Q145 -> 565147.4336 | R146: =R145 -> 190308.3427 | S146: 6028750.9 | U146: 2020-08-01 | V146: 1351.719731 | W146: 1317.345922 | X146: 8.201678991 | Y146: 316.374252 | Z146: 81.54695723 | AA146: 3075.188541 | AC146: 2020-08-01 | AD146: =AD145 -> 549 | AE146: 549 | AF146: 549 | AG146: 549 | AH146: 549 | AJ146: 2020-08-01 | AK146: 2.597864951 | AL146: =AK146 -> 2.597864951 | AM146: 0.1336805556 | AN146: 0.4340277778 | AO146: 0.1371527778 | AQ146: 2020-08-01 | AR146: 2.597864951 | AS146: 2.597864951 | AT146: 0.1336805556 | AU146: 0.4340277778 | AV146: 0.1371527778 | AX146: 2020-08-01 | AY146: =AY145 -> 989 | AZ146: 1351.719731 | BA146: 362.7197307 | BB146: =BB145 -> 974 | BC146: 1317.345922 | BD146: 343.3459224 | BE146: =BE145 -> 4 | BF146: 8.201678991 | BG146: 4.201678991 | BH146: =BH145 -> 312 | BI146: 316.374252 | BJ146: 4.374251966 | BK146: =BK145 -> 126 | BL146: 81.54695723 | BM146: -44.45304277 | BN146: 2405 | BO146: 3075.188541 | BP146: 670.1885413 | BR146: 2020-08-01 | BS146: =BS145 -> 39 | BT146: 1.801457195 | BU146: 70.2568306 | BV146: 989 | BW146: 918.7431694 | BX146: =BX145 -> 70.2568306 | BY146: 3240217.103 | BZ146: 247781.3079 | CA146: 3487998.411
B147: 2020-09-01 | C147: 2565.229615 | D147: 2778.99875 | E147: 918.7431694 | F147: 70.2568306 | G147: 2580.415401 | H147: 1341.108214 | I147: 2267.008448 | J147: 1786.325626 | K147: 2333.727084 | M147: 2020-09-01 | N147: 3487998.411 | O147: 1766703.437 | P147: 18593.27556 | Q147: 565147.4336 | R147: 190308.3427 | S147: 6028750.9 | U147: 2020-09-01 | V147: 1351.719731 | W147: 1317.345922 | X147: 8.201678991 | Y147: 316.374252 | Z147: 81.54695723 | AA147: 3075.188541 | AC147: 2020-09-01 | AD147: 549 | AE147: 549 | AF147: 549 | AG147: 549 | AH147: 549 | AJ147: 2020-09-01 | AK147: 2.612544685 | AL147: =AK147 -> 2.612544685 | AM147: 0.1336805556 | AN147: 0.4340277778 | AO147: 0.1371527778 | AQ147: 2020-09-01 | AR147: 2.612544685 | AS147: 2.612544685 | AT147: 0.1336805556 | AU147: 0.4340277778 | AV147: 0.1371527778 | AX147: 2020-09-01 | AY147: 989 | AZ147: 1351.719731 | BA147: 362.7197307 | BB147: 974 | BC147: 1317.345922 | BD147: 343.3459224 | BE147: 4 | BF147: 8.201678991 | BG147: 4.201678991 | BH147: 312 | BI147: 316.374252 | BJ147: 4.374251966 | BK147: 126 | BL147: 81.54695723 | BM147: -44.45304277 | BN147: 2405 | BO147: 3075.188541 | BP147: 670.1885413 | BR147: 2020-09-01 | BS147: 39 | BT147: 1.801457195 | BU147: 70.2568306 | BV147: 989 | BW147: 918.7431694 | BX147: 70.2568306 | BY147: 3240217.103 | BZ147: 247781.3079 | CA147: 3487998.411
B148: 2020-10-01 | C148: 2565.229615 | D148: 2778.99875 | E148: 918.7431694 | F148: 70.2568306 | G148: 2580.415401 | H148: 1341.108214 | I148: 2267.008448 | J148: 1786.325626 | K148: 2333.727084 | M148: 2020-10-01 | N148: 3487998.411 | O148: 1766703.437 | P148: 18593.27556 | Q148: 565147.4336 | R148: 190308.3427 | S148: 6028750.9 | U148: 2020-10-01 | V148: 1351.719731 | W148: 1317.345922 | X148: 8.201678991 | Y148: 316.374252 | Z148: 81.54695723 | AA148: 3075.188541 | AC148: 2020-10-01 | AD148: 549 | AE148: 549 | AF148: 549 | AG148: 549 | AH148: 549 | AJ148: 2020-10-01 | AK148: 2.612270122 | AL148: 2.612270122 | AM148: 0.1336805556 | AN148: 0.4340277778 | AO148: 0.1371527778 | AQ148: 2020-10-01 | AR148: 2.612270122 | AS148: 2.612270122 | AT148: 0.1336805556 | AU148: 0.4340277778 | AV148: 0.1371527778 | AX148: 2020-10-01 | AY148: 989 | AZ148: 1351.719731 | BA148: 362.7197307 | BB148: 974 | BC148: 1317.345922 | BD148: 343.3459224 | BE148: 4 | BF148: 8.201678991 | BG148: 4.201678991 | BH148: 312 | BI148: 316.374252 | BJ148: 4.374251966 | BK148: 126 | BL148: 81.54695723 | BM148: -44.45304277 | BN148: 2405 | BO148: 3075.188541 | BP148: 670.1885413 | BR148: 2020-10-01 | BS148: 39 | BT148: 1.801457195 | BU148: 70.2568306 | BV148: 989 | BW148: 918.7431694 | BX148: 70.2568306 | BY148: 3240217.103 | BZ148: 247781.3079 | CA148: 3487998.411
B149: 2020-11-01 | C149: 2565.229615 | D149: 2778.99875 | E149: 918.7431694 | F149: 70.2568306 | G149: 2580.415401 | H149: 1341.108214 | I149: 2267.008448 | J149: 1786.325626 | K149: 2333.727084 | M149: 2020-11-01 | N149: 3487998.411 | O149: 1766703.437 | P149: 18593.27556 | Q149: 565147.4336 | R149: 190308.3427 | S149: 6028750.9 | U149: 2020-11-01 | V149: 1351.719731 | W149: 1317.345922 | X149: 8.201678991 | Y149: 316.374252 | Z149: 81.54695723 | AA149: 3075.188541 | AC149: 2020-11-01 | AD149: 549 | AE149: 549 | AF149: 549 | AG149: 549 | AH149: 549 | AJ149: 2020-11-01 | AK149: 2.612270122 | AL149: 2.612270122 | AM149: 0.1336805556 | AN149: 0.4340277778 | AO149: 0.1371527778 | AQ149: 2020-11-01 | AR149: 2.612270122 | AS149: 2.612270122 | AT149: 0.1336805556 | AU149: 0.4340277778 | AV149: 0.1371527778 | AX149: 2020-11-01 | AY149: 989 | AZ149: 1351.719731 | BA149: 362.7197307 | BB149: 974 | BC149: 1317.345922 | BD149: 343.3459224 | BE149: 4 | BF149: 8.201678991 | BG149: 4.201678991 | BH149: 312 | BI149: 316.374252 | BJ149: 4.374251966 | BK149: 126 | BL149: 81.54695723 | BM149: -44.45304277 | BN149: 2405 | BO149: 3075.188541 | BP149: 670.1885413 | BR149: 2020-11-01 | BS149: 39 | BT149: 1.801457195 | BU149: 70.2568306 | BV149: 989 | BW149: 918.7431694 | BX149: 70.2568306 | BY149: 3240217.103 | BZ149: 247781.3079 | CA149: 3487998.411
B150: 2020-12-01 | C150: 2565.229615 | D150: 2778.99875 | E150: 918.7431694 | F150: 70.2568306 | G150: 2580.415401 | H150: 1341.108214 | I150: 2267.008448 | J150: 1786.325626 | K150: 2333.727084 | M150: 2020-12-01 | N150: 3487998.411 | O150: 1766703.437 | P150: 18593.27556 | Q150: 565147.4336 | R150: 190308.3427 | S150: 6028750.9 | U150: 2020-12-01 | V150: 1351.719731 | W150: 1317.345922 | X150: 8.201678991 | Y150: 316.374252 | Z150: 81.54695723 | AA150: 3075.188541 | AC150: 2020-12-01 | AD150: 549 | AE150: 549 | AF150: 549 | AG150: 549 | AH150: 549 | AJ150: 2020-12-01 | AK150: 2.137610287 | AL150: 2.137610287 | AM150: 0.1336805556 | AN150: 0.4340277778 | AO150: 0.1371527778 | AQ150: 2020-12-01 | AR150: 2.137610287 | AS150: 2.137610287 | AT150: 0.1336805556 | AU150: 0.4340277778 | AV150: 0.1371527778 | AX150: 2020-12-01 | AY150: 989 | AZ150: 1351.719731 | BA150: 362.7197307 | BB150: 974 | BC150: 1317.345922 | BD150: 343.3459224 | BE150: 4 | BF150: 8.201678991 | BG150: 4.201678991 | BH150: 312 | BI150: 316.374252 | BJ150: 4.374251966 | BK150: 126 | BL150: 81.54695723 | BM150: -44.45304277 | BN150: 2405 | BO150: 3075.188541 | BP150: 670.1885413 | BR150: 2020-12-01 | BS150: 39 | BT150: 1.801457195 | BU150: 70.2568306 | BV150: 989 | BW150: 918.7431694 | BX150: 70.2568306 | BY150: 3240217.103 | BZ150: 247781.3079 | CA150: 3487998.411
B151: 2021-01-01 | C151: 2565.229615 | D151: 2778.99875 | E151: 918.7431694 | F151: 70.2568306 | G151: 2580.415401 | H151: 1341.108214 | I151: 2267.008448 | J151: 1786.325626 | K151: 2333.727084 | M151: 2021-01-01 | N151: 3487998.411 | O151: 1766703.437 | P151: 18593.27556 | Q151: 565147.4336 | R151: 190308.3427 | S151: 6028750.9 | U151: 2021-01-01 | V151: 1351.719731 | W151: 1317.345922 | X151: 8.201678991 | Y151: 316.374252 | Z151: 81.54695723 | AA151: 3075.188541 | AC151: 2021-01-01 | AD151: 549 | AE151: 549 | AF151: 549 | AG151: 549 | AH151: 549 | AJ151: 2021-01-01 | AK151: 2.137610287 | AL151: 2.137610287 | AM151: 0.1336805556 | AN151: 0.4340277778 | AO151: 0.1371527778 | AQ151: 2021-01-01 | AR151: 2.137610287 | AS151: 2.137610287 | AT151: 0.1336805556 | AU151: 0.4340277778 | AV151: 0.1371527778 | AX151: 2021-01-01 | AY151: 989 | AZ151: 1351.719731 | BA151: 362.7197307 | BB151: 974 | BC151: 1317.345922 | BD151: 343.3459224 | BE151: 4 | BF151: 8.201678991 | BG151: 4.201678991 | BH151: 312 | BI151: 316.374252 | BJ151: 4.374251966 | BK151: 126 | BL151: 81.54695723 | BM151: -44.45304277 | BN151: 2405 | BO151: 3075.188541 | BP151: 670.1885413 | BR151: 2021-01-01 | BS151: 39 | BT151: 1.801457195 | BU151: 70.2568306 | BV151: 989 | BW151: 918.7431694 | BX151: 70.2568306 | BY151: 3240217.103 | BZ151: 247781.3079 | CA151: 3487998.411
B152: 2021-02-01 | C152: 2565.229615 | D152: 2778.99875 | E152: 918.7431694 | F152: 70.2568306 | G152: 2580.415401 | H152: 1341.108214 | I152: 2267.008448 | J152: 1786.325626 | K152: 2333.727084 | M152: 2021-02-01 | N152: 3487998.411 | O152: 1766703.437 | P152: 18593.27556 | Q152: 565147.4336 | R152: 190308.3427 | S152: 6028750.9 | U152: 2021-02-01 | V152: 1351.719731 | W152: 1317.345922 | X152: 8.201678991 | Y152: 316.374252 | Z152: 81.54695723 | AA152: 3075.188541 | AC152: 2021-02-01 | AD152: 549 | AE152: 549 | AF152: 549 | AG152: 549 | AH152: 549 | AJ152: 2021-02-01 | AK152: 2.294282267 | AL152: 2.294282267 | AM152: 0.1336805556 | AN152: 0.4340277778 | AO152: 0.1371527778 | AQ152: 2021-02-01 | AR152: 2.294282267 | AS152: 2.294282267 | AT152: 0.1336805556 | AU152: 0.4340277778 | AV152: 0.1371527778 | AX152: 2021-02-01 | AY152: 989 | AZ152: 1351.719731 | BA152: 362.7197307 | BB152: 974 | BC152: 1317.345922 | BD152: 343.3459224 | BE152: 4 | BF152: 8.201678991 | BG152: 4.201678991 | BH152: 312 | BI152: 316.374252 | BJ152: 4.374251966 | BK152: 126 | BL152: 81.54695723 | BM152: -44.45304277 | BN152: 2405 | BO152: 3075.188541 | BP152: 670.1885413 | BR152: 2021-02-01 | BS152: 39 | BT152: 1.801457195 | BU152: 70.2568306 | BV152: 989 | BW152: 918.7431694 | BX152: 70.2568306 | BY152: 3240217.103 | BZ152: 247781.3079 | CA152: 3487998.411
B153: 2021-03-01 | C153: 2565.229615 | D153: 2778.99875 | E153: 918.7431694 | F153: 70.2568306 | G153: 2580.415401 | H153: 1341.108214 | I153: 2267.008448 | J153: 1786.325626 | K153: 2333.727084 | M153: 2021-03-01 | N153: 3487998.411 | O153: 1766703.437 | P153: 18593.27556 | Q153: 565147.4336 | R153: 190308.3427 | S153: 6028750.9 | U153: 2021-03-01 | V153: 1351.719731 | W153: 1317.345922 | X153: 8.201678991 | Y153: 316.374252 | Z153: 81.54695723 | AA153: 3075.188541 | AC153: 2021-03-01 | AD153: 549 | AE153: 549 | AF153: 549 | AG153: 549 | AH153: 549 | AJ153: 2021-03-01 | AK153: 2.594078887 | AL153: 2.594078887 | AM153: 0.1336805556 | AN153: 0.4340277778 | AO153: 0.1371527778 | AQ153: 2021-03-01 | AR153: 2.594078887 | AS153: 2.594078887 | AT153: 0.1336805556 | AU153: 0.4340277778 | AV153: 0.1371527778 | AX153: 2021-03-01 | AY153: 989 | AZ153: 1351.719731 | BA153: 362.7197307 | BB153: 974 | BC153: 1317.345922 | BD153: 343.3459224 | BE153: 4 | BF153: 8.201678991 | BG153: 4.201678991 | BH153: 312 | BI153: 316.374252 | BJ153: 4.374251966 | BK153: 126 | BL153: 81.54695723 | BM153: -44.45304277 | BN153: 2405 | BO153: 3075.188541 | BP153: 670.1885413 | BR153: 2021-03-01 | BS153: 39 | BT153: 1.801457195 | BU153: 70.2568306 | BV153: 989 | BW153: 918.7431694 | BX153: 70.2568306 | BY153: 3240217.103 | BZ153: 247781.3079 | CA153: 3487998.411
B154: 2021-04-01 | C154: 2565.229615 | D154: 2778.99875 | E154: 918.7431694 | F154: 70.2568306 | G154: 2580.415401 | H154: 1341.108214 | I154: 2267.008448 | J154: 1786.325626 | K154: 2333.727084 | M154: 2021-04-01 | N154: 3487998.411 | O154: 1766703.437 | P154: 18593.27556 | Q154: 565147.4336 | R154: 190308.3427 | S154: 6028750.9 | U154: 2021-04-01 | V154: 1351.719731 | W154: 1317.345922 | X154: 8.201678991 | Y154: 316.374252 | Z154: 81.54695723 | AA154: 3075.188541 | AC154: 2021-04-01 | AD154: 549 | AE154: 549 | AF154: 549 | AG154: 549 | AH154: 549 | AJ154: 2021-04-01 | AK154: 2.594078887 | AL154: 2.594078887 | AM154: 0.1336805556 | AN154: 0.4340277778 | AO154: 0.1371527778 | AQ154: 2021-04-01 | AR154: 2.594078887 | AS154: 2.594078887 | AT154: 0.1336805556 | AU154: 0.4340277778 | AV154: 0.1371527778 | AX154: 2021-04-01 | AY154: 989 | AZ154: 1351.719731 | BA154: 362.7197307 | BB154: 974 | BC154: 1317.345922 | BD154: 343.3459224 | BE154: 4 | BF154: 8.201678991 | BG154: 4.201678991 | BH154: 312 | BI154: 316.374252 | BJ154: 4.374251966 | BK154: 126 | BL154: 81.54695723 | BM154: -44.45304277 | BN154: 2405 | BO154: 3075.188541 | BP154: 670.1885413 | BR154: 2021-04-01 | BS154: 39 | BT154: 1.801457195 | BU154: 70.2568306 | BV154: 989 | BW154: 918.7431694 | BX154: 70.2568306 | BY154: 3240217.103 | BZ154: 247781.3079 | CA154: 3487998.411
B155: 2021-05-01 | C155: 2565.229615 | D155: 2778.99875 | E155: 918.7431694 | F155: 70.2568306 | G155: 2580.415401 | H155: 1341.108214 | I155: 2267.008448 | J155: 1786.325626 | K155: 2333.727084 | M155: 2021-05-01 | N155: 3487998.411 | O155: 1766703.437 | P155: 18593.27556 | Q155: 565147.4336 | R155: 190308.3427 | S155: 6028750.9 | U155: 2021-05-01 | V155: 1351.719731 | W155: 1317.345922 | X155: 8.201678991 | Y155: 316.374252 | Z155: 81.54695723 | AA155: 3075.188541 | AC155: 2021-05-01 | AD155: 549 | AE155: 549 | AF155: 549 | AG155: 549 | AH155: 549 | AJ155: 2021-05-01 | AK155: 2.58766574 | AL155: 2.58766574 | AM155: 0.1336805556 | AN155: 0.4340277778 | AO155: 0.1371527778 | AQ155: 2021-05-01 | AR155: 2.58766574 | AS155: 2.58766574 | AT155: 0.1336805556 | AU155: 0.4340277778 | AV155: 0.1371527778 | AX155: 2021-05-01 | AY155: 989 | AZ155: 1351.719731 | BA155: 362.7197307 | BB155: 974 | BC155: 1317.345922 | BD155: 343.3459224 | BE155: 4 | BF155: 8.201678991 | BG155: 4.201678991 | BH155: 312 | BI155: 316.374252 | BJ155: 4.374251966 | BK155: 126 | BL155: 81.54695723 | BM155: -44.45304277 | BN155: 2405 | BO155: 3075.188541 | BP155: 670.1885413 | BR155: 2021-05-01 | BS155: 39 | BT155: 1.801457195 | BU155: 70.2568306 | BV155: 989 | BW155: 918.7431694 | BX155: 70.2568306 | BY155: 3240217.103 | BZ155: 247781.3079 | CA155: 3487998.411
B156: 2021-06-01 | C156: 2565.229615 | D156: 2778.99875 | E156: 918.7431694 | F156: 70.2568306 | G156: 2580.415401 | H156: 1341.108214 | I156: 2267.008448 | J156: 1786.325626 | K156: 2333.727084 | M156: 2021-06-01 | N156: 3487998.411 | O156: 1766703.437 | P156: 18593.27556 | Q156: 565147.4336 | R156: 190308.3427 | S156: 6028750.9 | U156: 2021-06-01 | V156: 1351.719731 | W156: 1317.345922 | X156: 8.201678991 | Y156: 316.374252 | Z156: 81.54695723 | AA156: 3075.188541 | AC156: 2021-06-01 | AD156: 549 | AE156: 549 | AF156: 549 | AG156: 549 | AH156: 549 | AJ156: 2021-06-01 | AK156: 2.58766574 | AL156: 2.58766574 | AM156: 0.1336805556 | AN156: 0.4340277778 | AO156: 0.1371527778 | AQ156: 2021-06-01 | AR156: 2.58766574 | AS156: 2.58766574 | AT156: 0.1336805556 | AU156: 0.4340277778 | AV156: 0.1371527778 | AX156: 2021-06-01 | AY156: 989 | AZ156: 1351.719731 | BA156: 362.7197307 | BB156: 974 | BC156: 1317.345922 | BD156: 343.3459224 | BE156: 4 | BF156: 8.201678991 | BG156: 4.201678991 | BH156: 312 | BI156: 316.374252 | BJ156: 4.374251966 | BK156: 126 | BL156: 81.54695723 | BM156: -44.45304277 | BN156: 2405 | BO156: 3075.188541 | BP156: 670.1885413 | BR156: 2021-06-01 | BS156: 39 | BT156: 1.801457195 | BU156: 70.2568306 | BV156: 989 | BW156: 918.7431694 | BX156: 70.2568306 | BY156: 3240217.103 | BZ156: 247781.3079 | CA156: 3487998.411
B158: =B141 -> Bacia 5 | C158: R$ da Licitação corrigidos nos Dissídios Coletivos | K158: Ano 9 | M158: =B158 -> Bacia 5 | N158: R$ Salário Total Com Horas Extras e Adicional Noturno Pago Por Função (Sem inclusão de Encargos Sociais) - Valor de GFIP | S158: =K158 -> Ano 9 | U158: =M158 -> Bacia 5 | V158: Quantidade de Funcionários - Cálculo pela Folha | AA158: =S158 -> Ano 9 | AC158: =U158 -> Bacia 5 | AD158: Quantidade de Frota Operacional | AH158: =AA158 -> Ano 9 | AJ158: =AC158 -> Bacia 5 | AK158: FU POR FUNÇÃO | AO158: =AH158 -> Ano 9 | AQ158: =AJ158 -> Bacia 5 | AR158: FU FÍSICO PARA BENEFÍCIOS | AV158: =AO158 -> Ano 9 | AX158: =AQ158 -> Bacia 5 | AY158: Qtde. Funcionários - FÍSICO para Benefícios e FOLHA para Salários base de cálculo dos Enc.Sociais | BP158: =AV158 -> Ano 9 | BR158: =AX158 -> Bacia 5 | BS158: =BP158 -> Ano 9
B159: Mês | C159: R$ Salário Médio da Função (Sem Encargos) | M159: Mês | U159: Mês | V159: Inclusas todas as Horas Extras | AC159: Mês | AJ159: Mês | AK159: CÁLCULO SOBRE A FOLHA DE PAGAMENTO | AQ159: Mês | AX159: Mês | AY159: Motoristas | BB159: Cobradores | BE159: Controle Operacional | BH159: Manutenção | BK159: Administração | BN159: Total Geral | BR159: Mês | BS159: Cálculo Mot.Articulados | BV159: Qtde. Física de Motoristas | BY159: Cálculo R$ Mot.Artic. | CA159: R$
C160: Motoristas | E160: Qtde.Física de Mot. | G160: R$ Salário | H160: Cobradores | I160: Controle | J160: Manu- | K160: Admi- | M160: de | N160: Motoristas | O160: Cobradores | P160: Controle | Q160: Manutenção | R160: Administração | S160: R$ | V160: Motoristas | W160: Cobradores | X160: Controle | Y160: Manutenção | Z160: Administração | AA160: Qtde. | AC160: de | AD160: Motoristas | AE160: Cobradores | AF160: Controle | AG160: Manutenção | AH160: Administração | AJ160: de | AK160: Motoristas | AL160: Cobradores | AM160: Controle | AN160: Manutenção | AO160: Administração | AQ160: de | AR160: Motoristas | AS160: Cobradores | AT160: Controle | AU160: Manutenção | AV160: Administração | AX160: de | AY160: Físico | AZ160: Folha | BA160: Dif.Folha | BB160: Físico | BC160: Folha | BD160: Dif.Folha | BE160: Físico | BF160: Folha | BG160: Dif.Folha | BH160: Físico | BI160: Folha | BJ160: Dif.Folha | BK160: Físico | BL160: Folha | BM160: Dif.Folha | BN160: Físico | BO160: Folha | BP160: Dif.Folha | BR160: de | BS160: Frota | BT160: FU físico | BU160: Mot. | BV160: Mot. | BW160: Mot. | BX160: Mot. | BY160: R$ Mot. | BZ160: R$ Mot. | CA160: Total
B161: Ref. | C161: Diversos | D161: Artic. | E161: Div. | F161: Artic. | G161: Médio Mot. | I161: Operacional | J161: tenção | K161: nistração | M161: Ref. | N161: Diversos | P161: Operacional | S161: Total | U161: Ref. | X161: Operacional | AA161: Total | AC161: Ref. | AF161: Operacional | AJ161: Ref. | AM161: Operacional | AQ161: Ref. | AT161: Operacional | AX161: Ref. | BA161: (-) Físico | BD161: (-) Físico | BG161: (-) Físico | BJ161: (-) Físico | BM161: (-) Físico | BP161: (-) Físico | BR161: Ref. | BS161: Artic. | BT161: Mot.Div. | BU161: Artic. | BV161: Total | BW161: Diversos | BX161: Artic. | BY161: Diversos | BZ161: Articulados | CA161: Motoristas
B162: =DATE(YEAR(B156),MONTH(B156)+1,DAY(B156)) -> 2021-07-01 | C162: =C156 -> 2565.229615 | D162: =D156 -> 2778.99875 | E162: =BW162 -> 918.7431694 | F162: =BX162 -> 70.2568306 | G162: =IF(C162>0,((C162*E162)+(D162*F162))/(E162+F162),0) -> 2580.415401 | H162: =H156 -> 1341.108214 | I162: =I156 -> 2267.008448 | J162: =J156 -> 1786.325626 | K162: =K156 -> 2333.727084 | M162: =B162 -> 2021-07-01 | N162: =N156 -> 3487998.411 | O162: =O156 -> 1766703.437 | P162: =P156 -> 18593.27556 | Q162: =Q156 -> 565147.4336 | R162: =R156 -> 190308.3427 | S162: =SUM(N162:R162) -> 6028750.9 | U162: =M162 -> 2021-07-01 | V162: =N162/G162 -> 1351.719731 | W162: =O162/H162 -> 1317.345922 | X162: =P162/I162 -> 8.201678991 | Y162: =Q162/J162 -> 316.374252 | Z162: =R162/K162 -> 81.54695723 | AA162: =SUM(V162:Z162) -> 3075.188541 | AC162: =U162 -> 2021-07-01 | AD162: =AD156 -> 549 | AE162: =AD162 -> 549 | AF162: 549 | AG162: 549 | AH162: 549 | AJ162: =AC162 -> 2021-07-01 | AK162: 2.58766574 | AL162: =AK162 -> 2.58766574 | AM162: =AM145 -> 0.1336805556 | AN162: 0.4340277778 | AO162: 0.1371527778 | AQ162: =AJ162 -> 2021-07-01 | AR162: =AK162 -> 2.58766574 | AS162: =AL162 -> 2.58766574 | AT162: =AM162 -> 0.1336805556 | AU162: =AN162 -> 0.4340277778 | AV162: =AO162 -> 0.1371527778 | AX162: =AQ162 -> 2021-07-01 | AY162: =AY156 -> 989 | AZ162: =V162 -> 1351.719731 | BA162: =AZ162-AY162 -> 362.7197307 | BB162: =BB156 -> 974 | BC162: =W162 -> 1317.345922 | BD162: =BC162-BB162 -> 343.3459224 | BE162: =BE156 -> 4 | BF162: =X162 -> 8.201678991 | BG162: =BF162-BE162 -> 4.201678991 | BH162: =BH156 -> 312 | BI162: =Y162 -> 316.374252 | BJ162: =BI162-BH162 -> 4.374251966 | BK162: =BK156 -> 126 | BL162: =Z162 -> 81.54695723 | BM162: =BL162-BK162 -> -44.45304277 | BN162: =AY162+BB162+BE162+BH162+BK162 -> 2405 | BO162: =AZ162+BC162+BF162+BI162+BL162 -> 3075.188541 | BP162: =BO162-BN162 -> 670.1885413 | BR162: =AX162 -> 2021-07-01 | BS162: =BS156 -> 39 | BT162: =AY162/AD162 -> 1.801457195 | BU162: =BT162*BS162 -> 70.2568306 | BV162: =AY162 -> 989 | BW162: =BV162-BX162 -> 918.7431694 | BX162: =BX156 -> 70.2568306 | BY162: =N162/BV162*BW162 -> 3240217.103 | BZ162: =N162/BV162*BX162 -> 247781.3079 | CA162: =BY162+BZ162 -> 3487998.411
B163: =DATE(YEAR(B162),MONTH(B162)+1,DAY(B162)) -> 2021-08-01 | C163: =C162 -> 2565.229615 | D163: =D162 -> 2778.99875 | E163: 918.7431694 | F163: 70.2568306 | G163: 2580.415401 | H163: =H162 -> 1341.108214 | I163: =I162 -> 2267.008448 | J163: =J162 -> 1786.325626 | K163: =K162 -> 2333.727084 | M163: 2021-08-01 | N163: =N162 -> 3487998.411 | O163: =O162 -> 1766703.437 | P163: =P162 -> 18593.27556 | Q163: =Q162 -> 565147.4336 | R163: =R162 -> 190308.3427 | S163: 6028750.9 | U163: 2021-08-01 | V163: 1351.719731 | W163: 1317.345922 | X163: 8.201678991 | Y163: 316.374252 | Z163: 81.54695723 | AA163: 3075.188541 | AC163: 2021-08-01 | AD163: =AD162 -> 549 | AE163: 549 | AF163: 549 | AG163: 549 | AH163: 549 | AJ163: 2021-08-01 | AK163: 2.593739053 | AL163: =AK163 -> 2.593739053 | AM163: 0.1336805556 | AN163: 0.4340277778 | AO163: 0.1371527778 | AQ163: 2021-08-01 | AR163: 2.593739053 | AS163: 2.593739053 | AT163: 0.1336805556 | AU163: 0.4340277778 | AV163: 0.1371527778 | AX163: 2021-08-01 | AY163: =AY162 -> 989 | AZ163: 1351.719731 | BA163: 362.7197307 | BB163: =BB162 -> 974 | BC163: 1317.345922 | BD163: 343.3459224 | BE163: =BE162 -> 4 | BF163: 8.201678991 | BG163: 4.201678991 | BH163: =BH162 -> 312 | BI163: 316.374252 | BJ163: 4.374251966 | BK163: =BK162 -> 126 | BL163: 81.54695723 | BM163: -44.45304277 | BN163: 2405 | BO163: 3075.188541 | BP163: 670.1885413 | BR163: 2021-08-01 | BS163: =BS162 -> 39 | BT163: 1.801457195 | BU163: 70.2568306 | BV163: 989 | BW163: 918.7431694 | BX163: =BX162 -> 70.2568306 | BY163: 3240217.103 | BZ163: 247781.3079 | CA163: 3487998.411
B164: 2021-09-01 | C164: 2565.229615 | D164: 2778.99875 | E164: 918.7431694 | F164: 70.2568306 | G164: 2580.415401 | H164: 1341.108214 | I164: 2267.008448 | J164: 1786.325626 | K164: 2333.727084 | M164: 2021-09-01 | N164: 3487998.411 | O164: 1766703.437 | P164: 18593.27556 | Q164: 565147.4336 | R164: 190308.3427 | S164: 6028750.9 | U164: 2021-09-01 | V164: 1351.719731 | W164: 1317.345922 | X164: 8.201678991 | Y164: 316.374252 | Z164: 81.54695723 | AA164: 3075.188541 | AC164: 2021-09-01 | AD164: 549 | AE164: 549 | AF164: 549 | AG164: 549 | AH164: 549 | AJ164: 2021-09-01 | AK164: 2.593739053 | AL164: =AK164 -> 2.593739053 | AM164: 0.1336805556 | AN164: 0.4340277778 | AO164: 0.1371527778 | AQ164: 2021-09-01 | AR164: 2.593739053 | AS164: 2.593739053 | AT164: 0.1336805556 | AU164: 0.4340277778 | AV164: 0.1371527778 | AX164: 2021-09-01 | AY164: 989 | AZ164: 1351.719731 | BA164: 362.7197307 | BB164: 974 | BC164: 1317.345922 | BD164: 343.3459224 | BE164: 4 | BF164: 8.201678991 | BG164: 4.201678991 | BH164: 312 | BI164: 316.374252 | BJ164: 4.374251966 | BK164: 126 | BL164: 81.54695723 | BM164: -44.45304277 | BN164: 2405 | BO164: 3075.188541 | BP164: 670.1885413 | BR164: 2021-09-01 | BS164: 39 | BT164: 1.801457195 | BU164: 70.2568306 | BV164: 989 | BW164: 918.7431694 | BX164: 70.2568306 | BY164: 3240217.103 | BZ164: 247781.3079 | CA164: 3487998.411
B165: 2021-10-01 | C165: 2565.229615 | D165: 2778.99875 | E165: 918.7431694 | F165: 70.2568306 | G165: 2580.415401 | H165: 1341.108214 | I165: 2267.008448 | J165: 1786.325626 | K165: 2333.727084 | M165: 2021-10-01 | N165: 3487998.411 | O165: 1766703.437 | P165: 18593.27556 | Q165: 565147.4336 | R165: 190308.3427 | S165: 6028750.9 | U165: 2021-10-01 | V165: 1351.719731 | W165: 1317.345922 | X165: 8.201678991 | Y165: 316.374252 | Z165: 81.54695723 | AA165: 3075.188541 | AC165: 2021-10-01 | AD165: 549 | AE165: 549 | AF165: 549 | AG165: 549 | AH165: 549 | AJ165: 2021-10-01 | AK165: 2.593739053 | AL165: 2.593739053 | AM165: 0.1336805556 | AN165: 0.4340277778 | AO165: 0.1371527778 | AQ165: 2021-10-01 | AR165: 2.593739053 | AS165: 2.593739053 | AT165: 0.1336805556 | AU165: 0.4340277778 | AV165: 0.1371527778 | AX165: 2021-10-01 | AY165: 989 | AZ165: 1351.719731 | BA165: 362.7197307 | BB165: 974 | BC165: 1317.345922 | BD165: 343.3459224 | BE165: 4 | BF165: 8.201678991 | BG165: 4.201678991 | BH165: 312 | BI165: 316.374252 | BJ165: 4.374251966 | BK165: 126 | BL165: 81.54695723 | BM165: -44.45304277 | BN165: 2405 | BO165: 3075.188541 | BP165: 670.1885413 | BR165: 2021-10-01 | BS165: 39 | BT165: 1.801457195 | BU165: 70.2568306 | BV165: 989 | BW165: 918.7431694 | BX165: 70.2568306 | BY165: 3240217.103 | BZ165: 247781.3079 | CA165: 3487998.411
B166: 2021-11-01 | C166: 2565.229615 | D166: 2778.99875 | E166: 918.7431694 | F166: 70.2568306 | G166: 2580.415401 | H166: 1341.108214 | I166: 2267.008448 | J166: 1786.325626 | K166: 2333.727084 | M166: 2021-11-01 | N166: 3487998.411 | O166: 1766703.437 | P166: 18593.27556 | Q166: 565147.4336 | R166: 190308.3427 | S166: 6028750.9 | U166: 2021-11-01 | V166: 1351.719731 | W166: 1317.345922 | X166: 8.201678991 | Y166: 316.374252 | Z166: 81.54695723 | AA166: 3075.188541 | AC166: 2021-11-01 | AD166: 549 | AE166: 549 | AF166: 549 | AG166: 549 | AH166: 549 | AJ166: 2021-11-01 | AK166: 2.591772517 | AL166: 2.591772517 | AM166: 0.1336805556 | AN166: 0.4340277778 | AO166: 0.1371527778 | AQ166: 2021-11-01 | AR166: 2.591772517 | AS166: 2.591772517 | AT166: 0.1336805556 | AU166: 0.4340277778 | AV166: 0.1371527778 | AX166: 2021-11-01 | AY166: 989 | AZ166: 1351.719731 | BA166: 362.7197307 | BB166: 974 | BC166: 1317.345922 | BD166: 343.3459224 | BE166: 4 | BF166: 8.201678991 | BG166: 4.201678991 | BH166: 312 | BI166: 316.374252 | BJ166: 4.374251966 | BK166: 126 | BL166: 81.54695723 | BM166: -44.45304277 | BN166: 2405 | BO166: 3075.188541 | BP166: 670.1885413 | BR166: 2021-11-01 | BS166: 39 | BT166: 1.801457195 | BU166: 70.2568306 | BV166: 989 | BW166: 918.7431694 | BX166: 70.2568306 | BY166: 3240217.103 | BZ166: 247781.3079 | CA166: 3487998.411
B167: 2021-12-01 | C167: 2565.229615 | D167: 2778.99875 | E167: 918.7431694 | F167: 70.2568306 | G167: 2580.415401 | H167: 1341.108214 | I167: 2267.008448 | J167: 1786.325626 | K167: 2333.727084 | M167: 2021-12-01 | N167: 3487998.411 | O167: 1766703.437 | P167: 18593.27556 | Q167: 565147.4336 | R167: 190308.3427 | S167: 6028750.9 | U167: 2021-12-01 | V167: 1351.719731 | W167: 1317.345922 | X167: 8.201678991 | Y167: 316.374252 | Z167: 81.54695723 | AA167: 3075.188541 | AC167: 2021-12-01 | AD167: 549 | AE167: 549 | AF167: 549 | AG167: 549 | AH167: 549 | AJ167: 2021-12-01 | AK167: 2.595233346 | AL167: 2.595233346 | AM167: 0.1336805556 | AN167: 0.4340277778 | AO167: 0.1371527778 | AQ167: 2021-12-01 | AR167: 2.595233346 | AS167: 2.595233346 | AT167: 0.1336805556 | AU167: 0.4340277778 | AV167: 0.1371527778 | AX167: 2021-12-01 | AY167: 989 | AZ167: 1351.719731 | BA167: 362.7197307 | BB167: 974 | BC167: 1317.345922 | BD167: 343.3459224 | BE167: 4 | BF167: 8.201678991 | BG167: 4.201678991 | BH167: 312 | BI167: 316.374252 | BJ167: 4.374251966 | BK167: 126 | BL167: 81.54695723 | BM167: -44.45304277 | BN167: 2405 | BO167: 3075.188541 | BP167: 670.1885413 | BR167: 2021-12-01 | BS167: 39 | BT167: 1.801457195 | BU167: 70.2568306 | BV167: 989 | BW167: 918.7431694 | BX167: 70.2568306 | BY167: 3240217.103 | BZ167: 247781.3079 | CA167: 3487998.411
B168: 2022-01-01 | C168: 2565.229615 | D168: 2778.99875 | E168: 918.7431694 | F168: 70.2568306 | G168: 2580.415401 | H168: 1341.108214 | I168: 2267.008448 | J168: 1786.325626 | K168: 2333.727084 | M168: 2022-01-01 | N168: 3487998.411 | O168: 1766703.437 | P168: 18593.27556 | Q168: 565147.4336 | R168: 190308.3427 | S168: 6028750.9 | U168: 2022-01-01 | V168: 1351.719731 | W168: 1317.345922 | X168: 8.201678991 | Y168: 316.374252 | Z168: 81.54695723 | AA168: 3075.188541 | AC168: 2022-01-01 | AD168: 549 | AE168: 549 | AF168: 549 | AG168: 549 | AH168: 549 | AJ168: 2022-01-01 | AK168: 2.541799222 | AL168: 2.541799222 | AM168: 0.1336805556 | AN168: 0.4340277778 | AO168: 0.1371527778 | AQ168: 2022-01-01 | AR168: 2.541799222 | AS168: 2.541799222 | AT168: 0.1336805556 | AU168: 0.4340277778 | AV168: 0.1371527778 | AX168: 2022-01-01 | AY168: 989 | AZ168: 1351.719731 | BA168: 362.7197307 | BB168: 974 | BC168: 1317.345922 | BD168: 343.3459224 | BE168: 4 | BF168: 8.201678991 | BG168: 4.201678991 | BH168: 312 | BI168: 316.374252 | BJ168: 4.374251966 | BK168: 126 | BL168: 81.54695723 | BM168: -44.45304277 | BN168: 2405 | BO168: 3075.188541 | BP168: 670.1885413 | BR168: 2022-01-01 | BS168: 39 | BT168: 1.801457195 | BU168: 70.2568306 | BV168: 989 | BW168: 918.7431694 | BX168: 70.2568306 | BY168: 3240217.103 | BZ168: 247781.3079 | CA168: 3487998.411
B169: 2022-02-01 | C169: 2565.229615 | D169: 2778.99875 | E169: 918.7431694 | F169: 70.2568306 | G169: 2580.415401 | H169: 1341.108214 | I169: 2267.008448 | J169: 1786.325626 | K169: 2333.727084 | M169: 2022-02-01 | N169: 3487998.411 | O169: 1766703.437 | P169: 18593.27556 | Q169: 565147.4336 | R169: 190308.3427 | S169: 6028750.9 | U169: 2022-02-01 | V169: 1351.719731 | W169: 1317.345922 | X169: 8.201678991 | Y169: 316.374252 | Z169: 81.54695723 | AA169: 3075.188541 | AC169: 2022-02-01 | AD169: 549 | AE169: 549 | AF169: 549 | AG169: 549 | AH169: 549 | AJ169: 2022-02-01 | AK169: 2.541799222 | AL169: 2.541799222 | AM169: 0.1336805556 | AN169: 0.4340277778 | AO169: 0.1371527778 | AQ169: 2022-02-01 | AR169: 2.541799222 | AS169: 2.541799222 | AT169: 0.1336805556 | AU169: 0.4340277778 | AV169: 0.1371527778 | AX169: 2022-02-01 | AY169: 989 | AZ169: 1351.719731 | BA169: 362.7197307 | BB169: 974 | BC169: 1317.345922 | BD169: 343.3459224 | BE169: 4 | BF169: 8.201678991 | BG169: 4.201678991 | BH169: 312 | BI169: 316.374252 | BJ169: 4.374251966 | BK169: 126 | BL169: 81.54695723 | BM169: -44.45304277 | BN169: 2405 | BO169: 3075.188541 | BP169: 670.1885413 | BR169: 2022-02-01 | BS169: 39 | BT169: 1.801457195 | BU169: 70.2568306 | BV169: 989 | BW169: 918.7431694 | BX169: 70.2568306 | BY169: 3240217.103 | BZ169: 247781.3079 | CA169: 3487998.411
B170: 2022-03-01 | C170: 2565.229615 | D170: 2778.99875 | E170: 918.7431694 | F170: 70.2568306 | G170: 2580.415401 | H170: 1341.108214 | I170: 2267.008448 | J170: 1786.325626 | K170: 2333.727084 | M170: 2022-03-01 | N170: 3487998.411 | O170: 1766703.437 | P170: 18593.27556 | Q170: 565147.4336 | R170: 190308.3427 | S170: 6028750.9 | U170: 2022-03-01 | V170: 1351.719731 | W170: 1317.345922 | X170: 8.201678991 | Y170: 316.374252 | Z170: 81.54695723 | AA170: 3075.188541 | AC170: 2022-03-01 | AD170: 549 | AE170: 549 | AF170: 549 | AG170: 549 | AH170: 549 | AJ170: 2022-03-01 | AK170: 2.542010309 | AL170: 2.542010309 | AM170: 0.1336805556 | AN170: 0.4340277778 | AO170: 0.1371527778 | AQ170: 2022-03-01 | AR170: 2.542010309 | AS170: 2.542010309 | AT170: 0.1336805556 | AU170: 0.4340277778 | AV170: 0.1371527778 | AX170: 2022-03-01 | AY170: 989 | AZ170: 1351.719731 | BA170: 362.7197307 | BB170: 974 | BC170: 1317.345922 | BD170: 343.3459224 | BE170: 4 | BF170: 8.201678991 | BG170: 4.201678991 | BH170: 312 | BI170: 316.374252 | BJ170: 4.374251966 | BK170: 126 | BL170: 81.54695723 | BM170: -44.45304277 | BN170: 2405 | BO170: 3075.188541 | BP170: 670.1885413 | BR170: 2022-03-01 | BS170: 39 | BT170: 1.801457195 | BU170: 70.2568306 | BV170: 989 | BW170: 918.7431694 | BX170: 70.2568306 | BY170: 3240217.103 | BZ170: 247781.3079 | CA170: 3487998.411
B171: 2022-04-01 | C171: 2565.229615 | D171: 2778.99875 | E171: 918.7431694 | F171: 70.2568306 | G171: 2580.415401 | H171: 1341.108214 | I171: 2267.008448 | J171: 1786.325626 | K171: 2333.727084 | M171: 2022-04-01 | N171: 3487998.411 | O171: 1766703.437 | P171: 18593.27556 | Q171: 565147.4336 | R171: 190308.3427 | S171: 6028750.9 | U171: 2022-04-01 | V171: 1351.719731 | W171: 1317.345922 | X171: 8.201678991 | Y171: 316.374252 | Z171: 81.54695723 | AA171: 3075.188541 | AC171: 2022-04-01 | AD171: 549 | AE171: 549 | AF171: 549 | AG171: 549 | AH171: 549 | AJ171: 2022-04-01 | AK171: 2.495308022 | AL171: 2.495308022 | AM171: 0.1336805556 | AN171: 0.4340277778 | AO171: 0.1371527778 | AQ171: 2022-04-01 | AR171: 2.495308022 | AS171: 2.495308022 | AT171: 0.1336805556 | AU171: 0.4340277778 | AV171: 0.1371527778 | AX171: 2022-04-01 | AY171: 989 | AZ171: 1351.719731 | BA171: 362.7197307 | BB171: 974 | BC171: 1317.345922 | BD171: 343.3459224 | BE171: 4 | BF171: 8.201678991 | BG171: 4.201678991 | BH171: 312 | BI171: 316.374252 | BJ171: 4.374251966 | BK171: 126 | BL171: 81.54695723 | BM171: -44.45304277 | BN171: 2405 | BO171: 3075.188541 | BP171: 670.1885413 | BR171: 2022-04-01 | BS171: 39 | BT171: 1.801457195 | BU171: 70.2568306 | BV171: 989 | BW171: 918.7431694 | BX171: 70.2568306 | BY171: 3240217.103 | BZ171: 247781.3079 | CA171: 3487998.411
B172: 2022-05-01 | C172: 2565.229615 | D172: 2778.99875 | E172: 918.7431694 | F172: 70.2568306 | G172: 2580.415401 | H172: 1341.108214 | I172: 2267.008448 | J172: 1786.325626 | K172: 2333.727084 | M172: 2022-05-01 | N172: 3487998.411 | O172: 1766703.437 | P172: 18593.27556 | Q172: 565147.4336 | R172: 190308.3427 | S172: 6028750.9 | U172: 2022-05-01 | V172: 1351.719731 | W172: 1317.345922 | X172: 8.201678991 | Y172: 316.374252 | Z172: 81.54695723 | AA172: 3075.188541 | AC172: 2022-05-01 | AD172: 549 | AE172: 549 | AF172: 549 | AG172: 549 | AH172: 549 | AJ172: 2022-05-01 | AK172: 2.495605437 | AL172: 2.495605437 | AM172: 0.1336805556 | AN172: 0.4340277778 | AO172: 0.1371527778 | AQ172: 2022-05-01 | AR172: 2.495605437 | AS172: 2.495605437 | AT172: 0.1336805556 | AU172: 0.4340277778 | AV172: 0.1371527778 | AX172: 2022-05-01 | AY172: 989 | AZ172: 1351.719731 | BA172: 362.7197307 | BB172: 974 | BC172: 1317.345922 | BD172: 343.3459224 | BE172: 4 | BF172: 8.201678991 | BG172: 4.201678991 | BH172: 312 | BI172: 316.374252 | BJ172: 4.374251966 | BK172: 126 | BL172: 81.54695723 | BM172: -44.45304277 | BN172: 2405 | BO172: 3075.188541 | BP172: 670.1885413 | BR172: 2022-05-01 | BS172: 39 | BT172: 1.801457195 | BU172: 70.2568306 | BV172: 989 | BW172: 918.7431694 | BX172: 70.2568306 | BY172: 3240217.103 | BZ172: 247781.3079 | CA172: 3487998.411
B173: 2022-06-01 | C173: 2565.229615 | D173: 2778.99875 | E173: 918.7431694 | F173: 70.2568306 | G173: 2580.415401 | H173: 1341.108214 | I173: 2267.008448 | J173: 1786.325626 | K173: 2333.727084 | M173: 2022-06-01 | N173: 3487998.411 | O173: 1766703.437 | P173: 18593.27556 | Q173: 565147.4336 | R173: 190308.3427 | S173: 6028750.9 | U173: 2022-06-01 | V173: 1351.719731 | W173: 1317.345922 | X173: 8.201678991 | Y173: 316.374252 | Z173: 81.54695723 | AA173: 3075.188541 | AC173: 2022-06-01 | AD173: 549 | AE173: 549 | AF173: 549 | AG173: 549 | AH173: 549 | AJ173: 2022-06-01 | AK173: 2.496074391 | AL173: 2.496074391 | AM173: 0.1336805556 | AN173: 0.4340277778 | AO173: 0.1371527778 | AQ173: 2022-06-01 | AR173: 2.496074391 | AS173: 2.496074391 | AT173: 0.1336805556 | AU173: 0.4340277778 | AV173: 0.1371527778 | AX173: 2022-06-01 | AY173: 989 | AZ173: 1351.719731 | BA173: 362.7197307 | BB173: 974 | BC173: 1317.345922 | BD173: 343.3459224 | BE173: 4 | BF173: 8.201678991 | BG173: 4.201678991 | BH173: 312 | BI173: 316.374252 | BJ173: 4.374251966 | BK173: 126 | BL173: 81.54695723 | BM173: -44.45304277 | BN173: 2405 | BO173: 3075.188541 | BP173: 670.1885413 | BR173: 2022-06-01 | BS173: 39 | BT173: 1.801457195 | BU173: 70.2568306 | BV173: 989 | BW173: 918.7431694 | BX173: 70.2568306 | BY173: 3240217.103 | BZ173: 247781.3079 | CA173: 3487998.411
B175: =B158 -> Bacia 5 | C175: R$ da Licitação corrigidos nos Dissídios Coletivos | K175: Ano 10 | M175: =B175 -> Bacia 5 | N175: R$ Salário Total Com Horas Extras e Adicional Noturno Pago Por Função (Sem inclusão de Encargos Sociais) - Valor de GFIP | S175: =K175 -> Ano 10 | U175: =M175 -> Bacia 5 | V175: Quantidade de Funcionários - Cálculo pela Folha | AA175: =S175 -> Ano 10 | AC175: =U175 -> Bacia 5 | AD175: Quantidade de Frota Operacional | AH175: =AA175 -> Ano 10 | AJ175: =AC175 -> Bacia 5 | AK175: FU POR FUNÇÃO | AO175: =AH175 -> Ano 10 | AQ175: =AJ175 -> Bacia 5 | AR175: FU FÍSICO PARA BENEFÍCIOS | AV175: =AO175 -> Ano 10 | AX175: =AQ175 -> Bacia 5 | AY175: Qtde. Funcionários - FÍSICO para Benefícios e FOLHA para Salários base de cálculo dos Enc.Sociais | BP175: =AV175 -> Ano 10 | BR175: =AX175 -> Bacia 5 | BS175: =BP175 -> Ano 10
B176: Mês | C176: R$ Salário Médio da Função (Sem Encargos) | M176: Mês | U176: Mês | V176: Inclusas todas as Horas Extras | AC176: Mês | AJ176: Mês | AK176: CÁLCULO SOBRE A FOLHA DE PAGAMENTO | AQ176: Mês | AX176: Mês | AY176: Motoristas | BB176: Cobradores | BE176: Controle Operacional | BH176: Manutenção | BK176: Administração | BN176: Total Geral | BR176: Mês | BS176: Cálculo Mot.Articulados | BV176: Qtde. Física de Motoristas | BY176: Cálculo R$ Mot.Artic. | CA176: R$
C177: Motoristas | E177: Qtde.Física de Mot. | G177: R$ Salário | H177: Cobradores | I177: Controle | J177: Manu- | K177: Admi- | M177: de | N177: Motoristas | O177: Cobradores | P177: Controle | Q177: Manutenção | R177: Administração | S177: R$ | V177: Motoristas | W177: Cobradores | X177: Controle | Y177: Manutenção | Z177: Administração | AA177: Qtde. | AC177: de | AD177: Motoristas | AE177: Cobradores | AF177: Controle | AG177: Manutenção | AH177: Administração | AJ177: de | AK177: Motoristas | AL177: Cobradores | AM177: Controle | AN177: Manutenção | AO177: Administração | AQ177: de | AR177: Motoristas | AS177: Cobradores | AT177: Controle | AU177: Manutenção | AV177: Administração | AX177: de | AY177: Físico | AZ177: Folha | BA177: Dif.Folha | BB177: Físico | BC177: Folha | BD177: Dif.Folha | BE177: Físico | BF177: Folha | BG177: Dif.Folha | BH177: Físico | BI177: Folha | BJ177: Dif.Folha | BK177: Físico | BL177: Folha | BM177: Dif.Folha | BN177: Físico | BO177: Folha | BP177: Dif.Folha | BR177: de | BS177: Frota | BT177: FU físico | BU177: Mot. | BV177: Mot. | BW177: Mot. | BX177: Mot. | BY177: R$ Mot. | BZ177: R$ Mot. | CA177: Total
B178: Ref. | C178: Diversos | D178: Artic. | E178: Div. | F178: Artic. | G178: Médio Mot. | I178: Operacional | J178: tenção | K178: nistração | M178: Ref. | N178: Diversos | P178: Operacional | S178: Total | U178: Ref. | X178: Operacional | AA178: Total | AC178: Ref. | AF178: Operacional | AJ178: Ref. | AM178: Operacional | AQ178: Ref. | AT178: Operacional | AX178: Ref. | BA178: (-) Físico | BD178: (-) Físico | BG178: (-) Físico | BJ178: (-) Físico | BM178: (-) Físico | BP178: (-) Físico | BR178: Ref. | BS178: Artic. | BT178: Mot.Div. | BU178: Artic. | BV178: Total | BW178: Diversos | BX178: Artic. | BY178: Diversos | BZ178: Articulados | CA178: Motoristas
B179: =DATE(YEAR(B173),MONTH(B173)+1,DAY(B173)) -> 2022-07-01 | C179: =C173 -> 2565.229615 | D179: =D173 -> 2778.99875 | E179: =BW179 -> 918.7431694 | F179: =BX179 -> 70.2568306 | G179: =IF(C179>0,((C179*E179)+(D179*F179))/(E179+F179),0) -> 2580.415401 | H179: =H173 -> 1341.108214 | I179: =I173 -> 2267.008448 | J179: =J173 -> 1786.325626 | K179: =K173 -> 2333.727084 | M179: =B179 -> 2022-07-01 | N179: =N173 -> 3487998.411 | O179: =O173 -> 1766703.437 | P179: =P173 -> 18593.27556 | Q179: =Q173 -> 565147.4336 | R179: =R173 -> 190308.3427 | S179: =SUM(N179:R179) -> 6028750.9 | U179: =M179 -> 2022-07-01 | V179: =N179/G179 -> 1351.719731 | W179: =O179/H179 -> 1317.345922 | X179: =P179/I179 -> 8.201678991 | Y179: =Q179/J179 -> 316.374252 | Z179: =R179/K179 -> 81.54695723 | AA179: =SUM(V179:Z179) -> 3075.188541 | AC179: =U179 -> 2022-07-01 | AD179: =AD173 -> 549 | AE179: =AD179 -> 549 | AF179: 549 | AG179: 549 | AH179: 549 | AJ179: =AC179 -> 2022-07-01 | AK179: 2.520506174 | AL179: =AK179 -> 2.520506174 | AM179: =AM162 -> 0.1336805556 | AN179: 0.4340277778 | AO179: 0.1371527778 | AQ179: =AJ179 -> 2022-07-01 | AR179: =AK179 -> 2.520506174 | AS179: =AL179 -> 2.520506174 | AT179: =AM179 -> 0.1336805556 | AU179: =AN179 -> 0.4340277778 | AV179: =AO179 -> 0.1371527778 | AX179: =AQ179 -> 2022-07-01 | AY179: =AY173 -> 989 | AZ179: =V179 -> 1351.719731 | BA179: =AZ179-AY179 -> 362.7197307 | BB179: =BB173 -> 974 | BC179: =W179 -> 1317.345922 | BD179: =BC179-BB179 -> 343.3459224 | BE179: =BE173 -> 4 | BF179: =X179 -> 8.201678991 | BG179: =BF179-BE179 -> 4.201678991 | BH179: =BH173 -> 312 | BI179: =Y179 -> 316.374252 | BJ179: =BI179-BH179 -> 4.374251966 | BK179: =BK173 -> 126 | BL179: =Z179 -> 81.54695723 | BM179: =BL179-BK179 -> -44.45304277 | BN179: =AY179+BB179+BE179+BH179+BK179 -> 2405 | BO179: =AZ179+BC179+BF179+BI179+BL179 -> 3075.188541 | BP179: =BO179-BN179 -> 670.1885413 | BR179: =AX179 -> 2022-07-01 | BS179: =BS173 -> 39 | BT179: =AY179/AD179 -> 1.801457195 | BU179: =BT179*BS179 -> 70.2568306 | BV179: =AY179 -> 989 | BW179: =BV179-BX179 -> 918.7431694 | BX179: =BX173 -> 70.2568306 | BY179: =N179/BV179*BW179 -> 3240217.103 | BZ179: =N179/BV179*BX179 -> 247781.3079 | CA179: =BY179+BZ179 -> 3487998.411
B180: =DATE(YEAR(B179),MONTH(B179)+1,DAY(B179)) -> 2022-08-01 | C180: =C179 -> 2565.229615 | D180: =D179 -> 2778.99875 | E180: 918.7431694 | F180: 70.2568306 | G180: 2580.415401 | H180: =H179 -> 1341.108214 | I180: =I179 -> 2267.008448 | J180: =J179 -> 1786.325626 | K180: =K179 -> 2333.727084 | M180: 2022-08-01 | N180: =N179 -> 3487998.411 | O180: =O179 -> 1766703.437 | P180: =P179 -> 18593.27556 | Q180: =Q179 -> 565147.4336 | R180: =R179 -> 190308.3427 | S180: 6028750.9 | U180: 2022-08-01 | V180: 1351.719731 | W180: 1317.345922 | X180: 8.201678991 | Y180: 316.374252 | Z180: 81.54695723 | AA180: 3075.188541 | AC180: 2022-08-01 | AD180: =AD179 -> 549 | AE180: 549 | AF180: 549 | AG180: 549 | AH180: 549 | AJ180: 2022-08-01 | AK180: 2.520280421 | AL180: =AK180 -> 2.520280421 | AM180: 0.1336805556 | AN180: 0.4340277778 | AO180: 0.1371527778 | AQ180: 2022-08-01 | AR180: 2.520280421 | AS180: 2.520280421 | AT180: 0.1336805556 | AU180: 0.4340277778 | AV180: 0.1371527778 | AX180: 2022-08-01 | AY180: =AY179 -> 989 | AZ180: 1351.719731 | BA180: 362.7197307 | BB180: =BB179 -> 974 | BC180: 1317.345922 | BD180: 343.3459224 | BE180: =BE179 -> 4 | BF180: 8.201678991 | BG180: 4.201678991 | BH180: =BH179 -> 312 | BI180: 316.374252 | BJ180: 4.374251966 | BK180: =BK179 -> 126 | BL180: 81.54695723 | BM180: -44.45304277 | BN180: 2405 | BO180: 3075.188541 | BP180: 670.1885413 | BR180: 2022-08-01 | BS180: =BS179 -> 39 | BT180: 1.801457195 | BU180: 70.2568306 | BV180: 989 | BW180: 918.7431694 | BX180: =BX179 -> 70.2568306 | BY180: 3240217.103 | BZ180: 247781.3079 | CA180: 3487998.411
B181: 2022-09-01 | C181: 2565.229615 | D181: 2778.99875 | E181: 918.7431694 | F181: 70.2568306 | G181: 2580.415401 | H181: 1341.108214 | I181: 2267.008448 | J181: 1786.325626 | K181: 2333.727084 | M181: 2022-09-01 | N181: 3487998.411 | O181: 1766703.437 | P181: 18593.27556 | Q181: 565147.4336 | R181: 190308.3427 | S181: 6028750.9 | U181: 2022-09-01 | V181: 1351.719731 | W181: 1317.345922 | X181: 8.201678991 | Y181: 316.374252 | Z181: 81.54695723 | AA181: 3075.188541 | AC181: 2022-09-01 | AD181: 549 | AE181: 549 | AF181: 549 | AG181: 549 | AH181: 549 | AJ181: 2022-09-01 | AK181: 2.520051555 | AL181: =AK181 -> 2.520051555 | AM181: 0.1336805556 | AN181: 0.4340277778 | AO181: 0.1371527778 | AQ181: 2022-09-01 | AR181: 2.520051555 | AS181: 2.520051555 | AT181: 0.1336805556 | AU181: 0.4340277778 | AV181: 0.1371527778 | AX181: 2022-09-01 | AY181: 989 | AZ181: 1351.719731 | BA181: 362.7197307 | BB181: 974 | BC181: 1317.345922 | BD181: 343.3459224 | BE181: 4 | BF181: 8.201678991 | BG181: 4.201678991 | BH181: 312 | BI181: 316.374252 | BJ181: 4.374251966 | BK181: 126 | BL181: 81.54695723 | BM181: -44.45304277 | BN181: 2405 | BO181: 3075.188541 | BP181: 670.1885413 | BR181: 2022-09-01 | BS181: 39 | BT181: 1.801457195 | BU181: 70.2568306 | BV181: 989 | BW181: 918.7431694 | BX181: 70.2568306 | BY181: 3240217.103 | BZ181: 247781.3079 | CA181: 3487998.411
B182: 2022-10-01 | C182: 2565.229615 | D182: 2778.99875 | E182: 918.7431694 | F182: 70.2568306 | G182: 2580.415401 | H182: 1341.108214 | I182: 2267.008448 | J182: 1786.325626 | K182: 2333.727084 | M182: 2022-10-01 | N182: 3487998.411 | O182: 1766703.437 | P182: 18593.27556 | Q182: 565147.4336 | R182: 190308.3427 | S182: 6028750.9 | U182: 2022-10-01 | V182: 1351.719731 | W182: 1317.345922 | X182: 8.201678991 | Y182: 316.374252 | Z182: 81.54695723 | AA182: 3075.188541 | AC182: 2022-10-01 | AD182: 549 | AE182: 549 | AF182: 549 | AG182: 549 | AH182: 549 | AJ182: 2022-10-01 | AK182: 2.515502726 | AL182: 2.515502726 | AM182: 0.1336805556 | AN182: 0.4340277778 | AO182: 0.1371527778 | AQ182: 2022-10-01 | AR182: 2.515502726 | AS182: 2.515502726 | AT182: 0.1336805556 | AU182: 0.4340277778 | AV182: 0.1371527778 | AX182: 2022-10-01 | AY182: 989 | AZ182: 1351.719731 | BA182: 362.7197307 | BB182: 974 | BC182: 1317.345922 | BD182: 343.3459224 | BE182: 4 | BF182: 8.201678991 | BG182: 4.201678991 | BH182: 312 | BI182: 316.374252 | BJ182: 4.374251966 | BK182: 126 | BL182: 81.54695723 | BM182: -44.45304277 | BN182: 2405 | BO182: 3075.188541 | BP182: 670.1885413 | BR182: 2022-10-01 | BS182: 39 | BT182: 1.801457195 | BU182: 70.2568306 | BV182: 989 | BW182: 918.7431694 | BX182: 70.2568306 | BY182: 3240217.103 | BZ182: 247781.3079 | CA182: 3487998.411
B183: 2022-11-01 | C183: 2565.229615 | D183: 2778.99875 | E183: 918.7431694 | F183: 70.2568306 | G183: 2580.415401 | H183: 1341.108214 | I183: 2267.008448 | J183: 1786.325626 | K183: 2333.727084 | M183: 2022-11-01 | N183: 3487998.411 | O183: 1766703.437 | P183: 18593.27556 | Q183: 565147.4336 | R183: 190308.3427 | S183: 6028750.9 | U183: 2022-11-01 | V183: 1351.719731 | W183: 1317.345922 | X183: 8.201678991 | Y183: 316.374252 | Z183: 81.54695723 | AA183: 3075.188541 | AC183: 2022-11-01 | AD183: 549 | AE183: 549 | AF183: 549 | AG183: 549 | AH183: 549 | AJ183: 2022-11-01 | AK183: 2.494767778 | AL183: 2.494767778 | AM183: 0.1336805556 | AN183: 0.4340277778 | AO183: 0.1371527778 | AQ183: 2022-11-01 | AR183: 2.494767778 | AS183: 2.494767778 | AT183: 0.1336805556 | AU183: 0.4340277778 | AV183: 0.1371527778 | AX183: 2022-11-01 | AY183: 989 | AZ183: 1351.719731 | BA183: 362.7197307 | BB183: 974 | BC183: 1317.345922 | BD183: 343.3459224 | BE183: 4 | BF183: 8.201678991 | BG183: 4.201678991 | BH183: 312 | BI183: 316.374252 | BJ183: 4.374251966 | BK183: 126 | BL183: 81.54695723 | BM183: -44.45304277 | BN183: 2405 | BO183: 3075.188541 | BP183: 670.1885413 | BR183: 2022-11-01 | BS183: 39 | BT183: 1.801457195 | BU183: 70.2568306 | BV183: 989 | BW183: 918.7431694 | BX183: 70.2568306 | BY183: 3240217.103 | BZ183: 247781.3079 | CA183: 3487998.411
B184: 2022-12-01 | C184: 2565.229615 | D184: 2778.99875 | E184: 918.7431694 | F184: 70.2568306 | G184: 2580.415401 | H184: 1341.108214 | I184: 2267.008448 | J184: 1786.325626 | K184: 2333.727084 | M184: 2022-12-01 | N184: 3487998.411 | O184: 1766703.437 | P184: 18593.27556 | Q184: 565147.4336 | R184: 190308.3427 | S184: 6028750.9 | U184: 2022-12-01 | V184: 1351.719731 | W184: 1317.345922 | X184: 8.201678991 | Y184: 316.374252 | Z184: 81.54695723 | AA184: 3075.188541 | AC184: 2022-12-01 | AD184: 549 | AE184: 549 | AF184: 549 | AG184: 549 | AH184: 549 | AJ184: 2022-12-01 | AK184: 2.468133246 | AL184: 2.468133246 | AM184: 0.1336805556 | AN184: 0.4340277778 | AO184: 0.1371527778 | AQ184: 2022-12-01 | AR184: 2.468133246 | AS184: 2.468133246 | AT184: 0.1336805556 | AU184: 0.4340277778 | AV184: 0.1371527778 | AX184: 2022-12-01 | AY184: 989 | AZ184: 1351.719731 | BA184: 362.7197307 | BB184: 974 | BC184: 1317.345922 | BD184: 343.3459224 | BE184: 4 | BF184: 8.201678991 | BG184: 4.201678991 | BH184: 312 | BI184: 316.374252 | BJ184: 4.374251966 | BK184: 126 | BL184: 81.54695723 | BM184: -44.45304277 | BN184: 2405 | BO184: 3075.188541 | BP184: 670.1885413 | BR184: 2022-12-01 | BS184: 39 | BT184: 1.801457195 | BU184: 70.2568306 | BV184: 989 | BW184: 918.7431694 | BX184: 70.2568306 | BY184: 3240217.103 | BZ184: 247781.3079 | CA184: 3487998.411
B185: 2023-01-01 | C185: 2565.229615 | D185: 2778.99875 | E185: 918.7431694 | F185: 70.2568306 | G185: 2580.415401 | H185: 1341.108214 | I185: 2267.008448 | J185: 1786.325626 | K185: 2333.727084 | M185: 2023-01-01 | N185: 3487998.411 | O185: 1766703.437 | P185: 18593.27556 | Q185: 565147.4336 | R185: 190308.3427 | S185: 6028750.9 | U185: 2023-01-01 | V185: 1351.719731 | W185: 1317.345922 | X185: 8.201678991 | Y185: 316.374252 | Z185: 81.54695723 | AA185: 3075.188541 | AC185: 2023-01-01 | AD185: 549 | AE185: 549 | AF185: 549 | AG185: 549 | AH185: 549 | AJ185: 2023-01-01 | AK185: 2.5261 | AL185: 2.5261 | AM185: 0.1336805556 | AN185: 0.4340277778 | AO185: 0.1371527778 | AQ185: 2023-01-01 | AR185: 2.5261 | AS185: 2.5261 | AT185: 0.1336805556 | AU185: 0.4340277778 | AV185: 0.1371527778 | AX185: 2023-01-01 | AY185: 989 | AZ185: 1351.719731 | BA185: 362.7197307 | BB185: 974 | BC185: 1317.345922 | BD185: 343.3459224 | BE185: 4 | BF185: 8.201678991 | BG185: 4.201678991 | BH185: 312 | BI185: 316.374252 | BJ185: 4.374251966 | BK185: 126 | BL185: 81.54695723 | BM185: -44.45304277 | BN185: 2405 | BO185: 3075.188541 | BP185: 670.1885413 | BR185: 2023-01-01 | BS185: 39 | BT185: 1.801457195 | BU185: 70.2568306 | BV185: 989 | BW185: 918.7431694 | BX185: 70.2568306 | BY185: 3240217.103 | BZ185: 247781.3079 | CA185: 3487998.411
B186: 2023-02-01 | C186: 2565.229615 | D186: 2778.99875 | E186: 918.7431694 | F186: 70.2568306 | G186: 2580.415401 | H186: 1341.108214 | I186: 2267.008448 | J186: 1786.325626 | K186: 2333.727084 | M186: 2023-02-01 | N186: 3487998.411 | O186: 1766703.437 | P186: 18593.27556 | Q186: 565147.4336 | R186: 190308.3427 | S186: 6028750.9 | U186: 2023-02-01 | V186: 1351.719731 | W186: 1317.345922 | X186: 8.201678991 | Y186: 316.374252 | Z186: 81.54695723 | AA186: 3075.188541 | AC186: 2023-02-01 | AD186: 549 | AE186: 549 | AF186: 549 | AG186: 549 | AH186: 549 | AJ186: 2023-02-01 | AK186: 2.5261 | AL186: 2.5261 | AM186: 0.1336805556 | AN186: 0.4340277778 | AO186: 0.1371527778 | AQ186: 2023-02-01 | AR186: 2.5261 | AS186: 2.5261 | AT186: 0.1336805556 | AU186: 0.4340277778 | AV186: 0.1371527778 | AX186: 2023-02-01 | AY186: 989 | AZ186: 1351.719731 | BA186: 362.7197307 | BB186: 974 | BC186: 1317.345922 | BD186: 343.3459224 | BE186: 4 | BF186: 8.201678991 | BG186: 4.201678991 | BH186: 312 | BI186: 316.374252 | BJ186: 4.374251966 | BK186: 126 | BL186: 81.54695723 | BM186: -44.45304277 | BN186: 2405 | BO186: 3075.188541 | BP186: 670.1885413 | BR186: 2023-02-01 | BS186: 39 | BT186: 1.801457195 | BU186: 70.2568306 | BV186: 989 | BW186: 918.7431694 | BX186: 70.2568306 | BY186: 3240217.103 | BZ186: 247781.3079 | CA186: 3487998.411
B187: 2023-03-01 | C187: 2565.229615 | D187: 2778.99875 | E187: 918.7431694 | F187: 70.2568306 | G187: 2580.415401 | H187: 1341.108214 | I187: 2267.008448 | J187: 1786.325626 | K187: 2333.727084 | M187: 2023-03-01 | N187: 3487998.411 | O187: 1766703.437 | P187: 18593.27556 | Q187: 565147.4336 | R187: 190308.3427 | S187: 6028750.9 | U187: 2023-03-01 | V187: 1351.719731 | W187: 1317.345922 | X187: 8.201678991 | Y187: 316.374252 | Z187: 81.54695723 | AA187: 3075.188541 | AC187: 2023-03-01 | AD187: 549 | AE187: 549 | AF187: 549 | AG187: 549 | AH187: 549 | AJ187: 2023-03-01 | AK187: 2.5261 | AL187: 2.5261 | AM187: 0.1336805556 | AN187: 0.4340277778 | AO187: 0.1371527778 | AQ187: 2023-03-01 | AR187: 2.5261 | AS187: 2.5261 | AT187: 0.1336805556 | AU187: 0.4340277778 | AV187: 0.1371527778 | AX187: 2023-03-01 | AY187: 989 | AZ187: 1351.719731 | BA187: 362.7197307 | BB187: 974 | BC187: 1317.345922 | BD187: 343.3459224 | BE187: 4 | BF187: 8.201678991 | BG187: 4.201678991 | BH187: 312 | BI187: 316.374252 | BJ187: 4.374251966 | BK187: 126 | BL187: 81.54695723 | BM187: -44.45304277 | BN187: 2405 | BO187: 3075.188541 | BP187: 670.1885413 | BR187: 2023-03-01 | BS187: 39 | BT187: 1.801457195 | BU187: 70.2568306 | BV187: 989 | BW187: 918.7431694 | BX187: 70.2568306 | BY187: 3240217.103 | BZ187: 247781.3079 | CA187: 3487998.411
B188: 2023-04-01 | C188: 2565.229615 | D188: 2778.99875 | E188: 918.7431694 | F188: 70.2568306 | G188: 2580.415401 | H188: 1341.108214 | I188: 2267.008448 | J188: 1786.325626 | K188: 2333.727084 | M188: 2023-04-01 | N188: 3487998.411 | O188: 1766703.437 | P188: 18593.27556 | Q188: 565147.4336 | R188: 190308.3427 | S188: 6028750.9 | U188: 2023-04-01 | V188: 1351.719731 | W188: 1317.345922 | X188: 8.201678991 | Y188: 316.374252 | Z188: 81.54695723 | AA188: 3075.188541 | AC188: 2023-04-01 | AD188: 549 | AE188: 549 | AF188: 549 | AG188: 549 | AH188: 549 | AJ188: 2023-04-01 | AK188: 2.5261 | AL188: 2.5261 | AM188: 0.1336805556 | AN188: 0.4340277778 | AO188: 0.1371527778 | AQ188: 2023-04-01 | AR188: 2.5261 | AS188: 2.5261 | AT188: 0.1336805556 | AU188: 0.4340277778 | AV188: 0.1371527778 | AX188: 2023-04-01 | AY188: 989 | AZ188: 1351.719731 | BA188: 362.7197307 | BB188: 974 | BC188: 1317.345922 | BD188: 343.3459224 | BE188: 4 | BF188: 8.201678991 | BG188: 4.201678991 | BH188: 312 | BI188: 316.374252 | BJ188: 4.374251966 | BK188: 126 | BL188: 81.54695723 | BM188: -44.45304277 | BN188: 2405 | BO188: 3075.188541 | BP188: 670.1885413 | BR188: 2023-04-01 | BS188: 39 | BT188: 1.801457195 | BU188: 70.2568306 | BV188: 989 | BW188: 918.7431694 | BX188: 70.2568306 | BY188: 3240217.103 | BZ188: 247781.3079 | CA188: 3487998.411
B189: 2023-05-01 | C189: 2565.229615 | D189: 2778.99875 | E189: 918.7431694 | F189: 70.2568306 | G189: 2580.415401 | H189: 1341.108214 | I189: 2267.008448 | J189: 1786.325626 | K189: 2333.727084 | M189: 2023-05-01 | N189: 3487998.411 | O189: 1766703.437 | P189: 18593.27556 | Q189: 565147.4336 | R189: 190308.3427 | S189: 6028750.9 | U189: 2023-05-01 | V189: 1351.719731 | W189: 1317.345922 | X189: 8.201678991 | Y189: 316.374252 | Z189: 81.54695723 | AA189: 3075.188541 | AC189: 2023-05-01 | AD189: 549 | AE189: 549 | AF189: 549 | AG189: 549 | AH189: 549 | AJ189: 2023-05-01 | AK189: =AK188 -> 2.5261 | AL189: 2.5261 | AM189: 0.1336805556 | AN189: 0.4340277778 | AO189: 0.1371527778 | AQ189: 2023-05-01 | AR189: 2.5261 | AS189: 2.5261 | AT189: 0.1336805556 | AU189: 0.4340277778 | AV189: 0.1371527778 | AX189: 2023-05-01 | AY189: 989 | AZ189: 1351.719731 | BA189: 362.7197307 | BB189: 974 | BC189: 1317.345922 | BD189: 343.3459224 | BE189: 4 | BF189: 8.201678991 | BG189: 4.201678991 | BH189: 312 | BI189: 316.374252 | BJ189: 4.374251966 | BK189: 126 | BL189: 81.54695723 | BM189: -44.45304277 | BN189: 2405 | BO189: 3075.188541 | BP189: 670.1885413 | BR189: 2023-05-01 | BS189: 39 | BT189: 1.801457195 | BU189: 70.2568306 | BV189: 989 | BW189: 918.7431694 | BX189: 70.2568306 | BY189: 3240217.103 | BZ189: 247781.3079 | CA189: 3487998.411
B190: 2023-06-01 | C190: 2565.229615 | D190: 2778.99875 | E190: 918.7431694 | F190: 70.2568306 | G190: 2580.415401 | H190: 1341.108214 | I190: 2267.008448 | J190: 1786.325626 | K190: 2333.727084 | M190: 2023-06-01 | N190: 3487998.411 | O190: 1766703.437 | P190: 18593.27556 | Q190: 565147.4336 | R190: 190308.3427 | S190: 6028750.9 | U190: 2023-06-01 | V190: 1351.719731 | W190: 1317.345922 | X190: 8.201678991 | Y190: 316.374252 | Z190: 81.54695723 | AA190: 3075.188541 | AC190: 2023-06-01 | AD190: 549 | AE190: 549 | AF190: 549 | AG190: 549 | AH190: 549 | AJ190: 2023-06-01 | AK190: 2.5269 | AL190: 2.5269 | AM190: 0.1336805556 | AN190: 0.4340277778 | AO190: 0.1371527778 | AQ190: 2023-06-01 | AR190: 2.5269 | AS190: 2.5269 | AT190: 0.1336805556 | AU190: 0.4340277778 | AV190: 0.1371527778 | AX190: 2023-06-01 | AY190: 989 | AZ190: 1351.719731 | BA190: 362.7197307 | BB190: 974 | BC190: 1317.345922 | BD190: 343.3459224 | BE190: 4 | BF190: 8.201678991 | BG190: 4.201678991 | BH190: 312 | BI190: 316.374252 | BJ190: 4.374251966 | BK190: 126 | BL190: 81.54695723 | BM190: -44.45304277 | BN190: 2405 | BO190: 3075.188541 | BP190: 670.1885413 | BR190: 2023-06-01 | BS190: 39 | BT190: 1.801457195 | BU190: 70.2568306 | BV190: 989 | BW190: 918.7431694 | BX190: 70.2568306 | BY190: 3240217.103 | BZ190: 247781.3079 | CA190: 3487998.411

Sheet FU Resumo ano 11 a frente
B2: STPC/DF - DISSÍDIO COLETIVO - REAJUSTES DOS SALÁRIOS E BENEFÍCIOS
B3: Histórico | C3: REAJUSTES DE MÃO DE OBRA | G3: Benefícios
C4: Mot. | D4: Mot. | E4: Cobra- | F4: Demais | G4: Tikets | H4: Cestas | I4: Plano | J4: Plano | K4: Seguro Vida
C5: Diversos | D5: Artic. | E5: dores | F5: Funcionários | I5: de Saúde | J5: Odontol. | K5: é deduzido
B6: Licitação | C6: 100 | D6: 100 | E6: 100 | F6: 100 | G6: 100 | H6: 100 | I6: 100 | J6: 100 | K6: 100
B7: 2013-05-01 | C7: 0.0668 | D7: 0.0668 | E7: 0.0668 | F7: 0.0668 | G7: 0.0668 | H7: 0.0668 | I7: 0.0668 | J7: 0.0668 | K7: 0
C8: =C6*(1+C7) -> 106.68 | D8: 106.68 | E8: 106.68 | F8: 106.68 | G8: 106.68 | H8: 106.68 | I8: 106.68 | J8: 106.68 | K8: 100
B9: 2014-05-01 | C9: 0.2 | D9: 0.3 | E9: 0.2 | F9: 0.2 | G9: 0.12 | H9: 0.4 | I9: 0.12 | J9: 0.12 | K9: 0
C10: =C8*(1+C9) -> 128.016 | D10: 138.684 | E10: 128.016 | F10: 128.016 | G10: 119.4816 | H10: 149.352 | I10: 119.4816 | J10: 119.4816 | K10: 100
B11: 2015-05-01 | C11: 0.1 | D11: 0.1 | E11: 0.1 | F11: 0.1 | G11: 0.11 | H11: 0.11 | I11: 0 | J11: 0 | K11: 0
C12: =C10*(1+C11) -> 140.8176 | D12: 152.5524 | E12: 140.8176 | F12: 140.8176 | G12: 132.624576 | H12: 165.78072 | I12: 119.4816 | J12: 119.4816 | K12: 100
B13: 2016-05-01 | C13: 0.1 | D13: 0.1 | E13: 0.1 | F13: 0.1 | G13: 0.11 | H13: 0.11 | I13: 0.11 | J13: 0.3 | K13: 0
C14: =C12*(1+C13) -> 154.89936 | D14: 167.80764 | E14: 154.89936 | F14: 154.89936 | G14: 147.2132794 | H14: 184.0165992 | I14: 132.624576 | J14: 155.32608 | K14: 100
B15: 2017-05-01 | C15: 0.0525 | D15: 0.0525 | E15: 0.0525 | F15: 0.0525 | G15: 0.0525 | H15: 0.0525 | I15: 0.14 | J15: 0.14 | K15: 0 | AJ15: O correção/cálculo do FU pela folha de pagamento e por função levou em consideração o seguinte: 1) Valor total gasto do salário, Ad.Noturno e Hs.Extras e sem encargos, dividido pelo salário médio por função da licitação com os reajustes. O resultado é a qtde. necessária de funcionários real para a operação; 2) Divide a quantidade obtida de funcionários pela qtde.Frota, chegando-se ao FU corrigido para lançar na Planilha da Licitação. Essa metodologia corrige a variação da km e a Lei motorista.
C16: =C14*(1+C15) -> 163.0315764 | D16: 176.6175411 | E16: 163.0315764 | F16: 163.0315764 | G16: 154.9419765 | H16: 193.6774707 | I16: 151.1920166 | J16: 177.0717312 | K16: 100
B17: 2018-08-01 | C17: 0.0445 | D17: 0.0445 | E17: 0.0445 | F17: 0.0445 | G17: 0.05 | H17: 0.05 | I17: 0.078 | J17: 0.05 | K17: 0 | AH17: 2.5178
C18: =C16*(1+C17) -> 170.2864815 | D18: 184.4770217 | E18: 170.2864815 | F18: 170.2864815 | G18: 162.6890754 | H18: 203.3613442 | I18: 162.9849939 | J18: 185.9253178 | K18: 100 | AR18: OBS: O cálculo para apuração dos benefícios considera-se a quantidade física de funcionários existentes nas operações de seus respectivos meses, espelhando, desta forma, a remuneração justa da operação, ou seja, a efetivamente gasta. | BV18: OBS: Para definir o salário médio da licitação com os reajuste inclusos, como houve reajuste diferenciado para os Motoristas dos ônibus articulados houve a necessidade de apurar a quantidade de motoristas da referida categoria. Nos meses não informados pela Concessionária foi feito o cálculo apurando-se a quantidade média de motoristas dos ônibus articulados.
B19: % Acumulado | C19: =(C18/C6)-100% -> 0.7028648155 | D19: 0.8447702168 | E19: 0.7028648155 | F19: 0.7028648155 | G19: 0.6268907535 | H19: 1.033613442 | I19: 0.6298499394 | J19: 0.8592531776 | K19: 0
B22: Bacia 5 | C22: R$ da Licitação corrigidos nos Dissídios Coletivos | K22: Ano 1 | M22: =B22 -> Bacia 5 | N22: R$ Salário Total Com Horas Extras e Adicional Noturno Pago Por Função (Sem inclusão de Encargos Sociais) - Valor de GFIP | S22: =K22 -> Ano 1 | U22: =M22 -> Bacia 5 | V22: Quantidade de Funcionários - Cálculo pela Folha | AA22: =S22 -> Ano 1 | AC22: =U22 -> Bacia 5 | AD22: Quantidade de Frota Operacional | AH22: =AA22 -> Ano 1 | AJ22: =AC22 -> Bacia 5 | AK22: FU POR FUNÇÃO | AO22: =AH22 -> Ano 1 | AQ22: =AJ22 -> Bacia 5 | AR22: FU FÍSICO PARA BENEFÍCIOS | AV22: =AO22 -> Ano 1 | AX22: =AQ22 -> Bacia 5 | AY22: Qtde. Funcionários - FÍSICO para Benefícios e FOLHA para Salários base de cálculo dos Enc.Sociais | BP22: =AV22 -> Ano 1 | BR22: =AX22 -> Bacia 5 | BS22: =BP22 -> Ano 1
B23: Mês | C23: R$ Salário Médio da Função (Sem Encargos) | M23: Mês | U23: Mês | V23: Inclusas todas as Horas Extras | AC23: Mês | AJ23: Mês | AK23: CÁLCULO SOBRE A FOLHA DE PAGAMENTO | AQ23: Mês | AX23: Mês | AY23: Motoristas | BB23: Cobradores | BE23: Controle Operacional | BH23: Manutenção | BK23: Administração | BN23: Total Geral | BR23: Mês | BS23: Cálculo Mot.Articulados | BV23: Qtde. Física de Motoristas | BY23: Cálculo R$ Mot.Artic. | CA23: R$
B24: de | C24: Motoristas | E24: Qtde.Física de Mot. | G24: R$ Salário | H24: Cobradores | I24: Controle | J24: Manu- | K24: Admi- | M24: de | N24: Motoristas | O24: Cobradores | P24: Controle | Q24: Manutenção | R24: Administração | S24: R$ | U24: de | V24: Motoristas | W24: Cobradores | X24: Controle | Y24: Manutenção | Z24: Administração | AA24: Qtde. | AC24: de | AD24: Motoristas | AE24: Cobradores | AF24: Controle | AG24: Manutenção | AH24: Administração | AJ24: de | AK24: Motoristas | AL24: Cobradores | AM24: Controle | AN24: Manutenção | AO24: Administração | AQ24: de | AR24: Motoristas | AS24: Cobradores | AT24: Controle | AU24: Manutenção | AV24: Administração | AX24: de | AY24: Físico | AZ24: Folha | BA24: Dif.Folha | BB24: Físico | BC24: Folha | BD24: Dif.Folha | BE24: Físico | BF24: Folha | BG24: Dif.Folha | BH24: Físico | BI24: Folha | BJ24: Dif.Folha | BK24: Físico | BL24: Folha | BM24: Dif.Folha | BN24: Físico | BO24: Folha | BP24: Dif.Folha | BR24: de | BS24: Frota | BT24: FU físico | BU24: Mot. | BV24: Mot. | BW24: Mot. | BX24: Mot. | BY24: R$ Mot. | BZ24: R$ Mot. | CA24: Total
B25: Ref. | C25: Diversos | D25: Artic. | E25: Div. | F25: Artic. | G25: Médio Mot. | I25: Operacional | J25: tenção | K25: nistração | M25: Ref. | N25: Diversos | P25: Operacional | S25: Total | U25: Ref. | X25: Operacional | AA25: Total | AC25: Ref. | AF25: Operacional | AJ25: Ref. | AM25: Operacional | AQ25: Ref. | AT25: Operacional | AX25: Ref. | BA25: (-) Físico | BD25: (-) Físico | BG25: (-) Físico | BJ25: (-) Físico | BM25: (-) Físico | BP25: (-) Físico | BR25: Ref. | BS25: Artic. | BT25: Mot.Div. | BU25: Artic. | BV25: Total | BW25: Diversos | BX25: Artic. | BY25: Diversos | BZ25: Articulados | CA25: Motoristas
B26: 2023-07-01 | C26: ='Plan2 R$ Pessoal'!F8*(C7/100*100+1) -> 1607.048856 | D26: ='Plan2 R$ Pessoal'!F8*(D7/100*100+1) -> 1607.048856 | E26: =BW26 -> 406.8852459 | F26: 31.1147541 | G26: =IF(C26>0,((C26*E26)+(D26*F26))/(E26+F26),0) -> 1607.048856 | H26: ='Plan2 R$ Pessoal'!F11*(E7/100*100+1) -> 840.169008 | I26: ='Plan2 R$ Pessoal'!F20*(F7/100*100+1) -> 1420.221142 | J26: ='Plan2 R$ Pessoal'!F31*(F7/100*100+1) -> 1119.086002 | K26: ='Plan4 R$ Pessoal'!F21*(F7/100*100+1) -> 1462.018611 | M26: =B26 -> 2023-07-01 | N26: =Folha!G4 -> 902470.238 | O26: =Folha!Q4 -> 443957.1654 | P26: =Folha!AK4 -> 0 | Q26: =Folha!AA4 -> 148663.9227 | R26: =Folha!AU4 -> 33508.9739 | S26: =SUM(N26:R26) -> 1528600.3 | U26: =M26 -> 2023-07-01 | V26: =N26/G26 -> 561.569883 | W26: 528.4141181 | X26: 0 | Y26: 132.8440553 | Z26: 22.91966302 | AA26: =SUM(V26:Z26) -> 1245.747719 | AC26: =U26 -> 2023-07-01 | AD26: =Q.Frota!T6 -> 549 | AE26: =AD26 -> 549 | AF26: 549 | AG26: 549 | AH26: 549 | AJ26: =AC26 -> 2023-07-01 | AK26: 2.5269 | AL26: =AK26 -> 2.5269 | AM26: ='Plan2 R$ Pessoal'!D20 -> 0.1336805556 | AN26: ='Plan2 R$ Pessoal'!D31 -> 0.4340277778 | AO26: ='Plan4 R$ Pessoal'!D21 -> 0.1371527778 | AQ26: =AJ26 -> 2023-07-01 | AR26: =AK26 -> 2.5269 | AS26: =AL26 -> 2.5269 | AT26: =AM26 -> 0.1336805556 | AU26: 0.4340277778 | AV26: 0.1371527778 | AX26: =AQ26 -> 2023-07-01 | AY26: =Folha!E4 -> 438 | AZ26: =V26 -> 561.569883 | BA26: =AZ26-AY26 -> 123.569883 | BB26: =Folha!O4 -> 471 | BC26: =W26 -> 528.4141181 | BD26: =BC26-BB26 -> 57.41411808 | BE26: =Folha!AI4 -> 0 | BF26: =X26 -> 0 | BG26: =BF26-BE26 -> 0 | BH26: =Folha!Y4 -> 125 | BI26: =Y26 -> 132.8440553 | BJ26: =BI26-BH26 -> 7.844055337 | BK26: =Folha!AS4 -> 17 | BL26: =Z26 -> 22.91966302 | BM26: =BL26-BK26 -> 5.919663023 | BN26: =AY26+BB26+BE26+BH26+BK26 -> 1051 | BO26: 1245.747719 | BP26: =BO26-BN26 -> 194.7477194 | BR26: =AX26 -> 2023-07-01 | BS26: =Q.Frota!N6 -> 39 | BT26: =AY26/AD26 -> 0.7978142077 | BU26: =BT26*BS26 -> 31.1147541 | BV26: =AY26 -> 438 | BW26: =BV26-BX26 -> 406.8852459 | BX26: =BU26 -> 31.1147541 | BY26: =N26/BV26*BW26 -> 838360.3304 | BZ26: =N26/BV26*BX26 -> 64109.90762 | CA26: =BY26+BZ26 -> 902470.238
B27: =DATE(YEAR(B26),MONTH(B26)+1,DAY(B26)) -> 2023-08-01 | C27: =C26 -> 1607.048856 | D27: 1607.048856 | E27: 432.8961749 | F27: 33.10382514 | G27: 1607.048856 | H27: =H26 -> 840.169008 | I27: 1420.221142 | J27: 1119.086002 | K27: 1462.018611 | M27: 2023-08-01 | N27: =Folha!G5 -> 905697.5488 | O27: =Folha!Q5 -> 462788.3838 | P27: =Folha!AK5 -> 0 | Q27: =Folha!AA5 -> 155090.5767 | R27: =Folha!AU5 -> 34108.9907 | S27: 1557685.5 | U27: 2023-08-01 | V27: 563.5781049 | W27: 550.8277256 | X27: 0 | Y27: 138.5868257 | Z27: 23.330066 | AA27: 1276.322722 | AC27: 2023-08-01 | AD27: =Q.Frota!T7 -> 549 | AE27: 549 | AF27: 549 | AG27: 549 | AH27: 549 | AJ27: 2023-08-01 | AK27: 2.525 | AL27: =AK27 -> 2.525 | AM27: =AM26 -> 0.1336805556 | AN27: 0.4340277778 | AO27: 0.1371527778 | AQ27: 2023-08-01 | AR27: =AK27 -> 2.525 | AS27: =AL27 -> 2.525 | AT27: 0.1336805556 | AU27: 0.4340277778 | AV27: 0.1371527778 | AX27: 2023-08-01 | AY27: =Folha!E5 -> 466 | AZ27: 563.5781049 | BA27: 97.57810494 | BB27: =Folha!O5 -> 485 | BC27: 550.8277256 | BD27: 65.82772563 | BE27: =Folha!AI5 -> 0 | BF27: 0 | BG27: 0 | BH27: =Folha!Y5 -> 131 | BI27: 138.5868257 | BJ27: 7.586825715 | BK27: =Folha!AS5 -> 18 | BL27: 23.330066 | BM27: 5.330066004 | BN27: 1100 | BO27: 1276.322722 | BP27: 176.3227223 | BR27: 2023-08-01 | BS27: =Q.Frota!N7 -> 39 | BT27: 0.8488160291 | BU27: 33.10382514 | BV27: =AY27 -> 466 | BW27: =BV27-BX27 -> 432.8961749 | BX27: =BU27 -> 33.10382514 | BY27: 841358.3787 | BZ27: 64339.17013 | CA27: 905697.5488
B28: 2023-09-01 | C28: 1607.048856 | D28: 1607.048856 | E28: 444.9726776 | F28: 34.0273224 | G28: 1607.048856 | H28: 840.169008 | I28: 1420.221142 | J28: 1119.086002 | K28: 1462.018611 | M28: 2023-09-01 | N28: =Folha!G6 -> 974931.9061 | O28: =Folha!Q6 -> 497721.776 | P28: =Folha!AK6 -> 0 | Q28: =Folha!AA6 -> 151155.8387 | R28: =Folha!AU6 -> 32386.36918 | S28: 1656195.89 | U28: 2023-09-01 | V28: 606.6597804 | W28: 592.4067316 | X28: 0 | Y28: 135.0707975 | Z28: 22.15181731 | AA28: 1356.289127 | AC28: 2023-09-01 | AD28: =Q.Frota!T8 -> 549 | AE28: 549 | AF28: 549 | AG28: 549 | AH28: 549 | AJ28: 2023-09-01 | AK28: 2.5258 | AL28: =AK28 -> 2.5258 | AM28: 0.1336805556 | AN28: 0.4340277778 | AO28: 0.1371527778 | AQ28: 2023-09-01 | AR28: 2.5258 | AS28: =AL28 -> 2.5258 | AT28: 0.1336805556 | AU28: 0.4340277778 | AV28: 0.1371527778 | AX28: 2023-09-01 | AY28: =Folha!E6 -> 479 | AZ28: 606.6597804 | BA28: 127.6597804 | BB28: =Folha!O6 -> 496 | BC28: 592.4067316 | BD28: 96.40673155 | BE28: =Folha!AI6 -> 0 | BF28: 0 | BG28: 0 | BH28: =Folha!Y6 -> 135 | BI28: 135.0707975 | BJ28: 0.07079751518 | BK28: =Folha!AS6 -> 18 | BL28: 22.15181731 | BM28: 4.151817308 | BN28: 1128 | BO28: 1356.289127 | BP28: 228.2891268 | BR28: 2023-09-01 | BS28: =Q.Frota!N8 -> 39 | BT28: 0.8724954463 | BU28: 34.0273224 | BV28: 479 | BW28: 444.9726776 | BX28: 34.0273224 | BY28: 905674.4483 | BZ28: 69257.45781 | CA28: 974931.9061
B29: 2023-10-01 | C29: 1607.048856 | D29: 1607.048856 | E29: 473.7704918 | F29: 36.2295082 | G29: 1607.048856 | H29: 840.169008 | I29: 1420.221142 | J29: 1119.086002 | K29: 1462.018611 | M29: 2023-10-01 | N29: =Folha!G7 -> 1035504.033 | O29: =Folha!Q7 -> 528831.0296 | P29: =Folha!AK7 -> 0 | Q29: =Folha!AA7 -> 157935.0368 | R29: =Folha!AU7 -> 34788.58072 | S29: 1757058.68 | U29: 2023-10-01 | V29: 644.3513083 | W29: 629.4341074 | X29: 0 | Y29: 141.1285965 | Z29: 23.79489594 | AA29: 1438.708908 | AC29: 2023-10-01 | AD29: =Q.Frota!T9 -> 549 | AE29: 549 | AF29: 549 | AG29: 549 | AH29: 549 | AJ29: =AC29 -> 2023-10-01 | AK29: 2.5383 | AL29: =AK29 -> 2.5383 | AM29: 0.1336805556 | AN29: 0.4340277778 | AO29: 0.1371527778 | AQ29: 2023-10-01 | AR29: 2.5383 | AS29: =AL29 -> 2.5383 | AT29: 0.1336805556 | AU29: 0.4340277778 | AV29: 0.1371527778 | AX29: 2023-10-01 | AY29: =Folha!E7 -> 510 | AZ29: 644.3513083 | BA29: 134.3513083 | BB29: =Folha!O7 -> 511 | BC29: 629.4341074 | BD29: 118.4341074 | BE29: =Folha!AI7 -> 0 | BF29: 0 | BG29: 0 | BH29: =Folha!Y7 -> 137 | BI29: 141.1285965 | BJ29: 4.12859652 | BK29: =Folha!AS7 -> 18 | BL29: 23.79489594 | BM29: 5.794895941 | BN29: 1176 | BO29: 1438.708908 | BP29: 262.7089082 | BR29: 2023-10-01 | BS29: =Q.Frota!N9 -> 39 | BT29: 0.9289617486 | BU29: 36.2295082 | BV29: 510 | BW29: 473.7704918 | BX29: 36.2295082 | BY29: 961943.6371 | BZ29: 73560.39578 | CA29: 1035504.033
B30: 2023-11-01 | C30: 1607.048856 | D30: 1607.048856 | E30: 494.2076503 | F30: 37.79234973 | G30: 1607.048856 | H30: 840.169008 | I30: 1420.221142 | J30: 1119.086002 | K30: 1462.018611 | M30: 2023-11-01 | N30: =Folha!G8 -> 1105873.927 | O30: =Folha!Q8 -> 554070.5179 | P30: =Folha!AK8 -> 0 | Q30: =Folha!AA8 -> 161651.1605 | R30: =Folha!AU8 -> 33634.07487 | S30: 1855229.68 | U30: 2023-11-01 | V30: 688.1395812 | W30: 659.475073 | X30: 0 | Y30: 144.4492741 | Z30: 23.00523031 | AA30: 1515.069159 | AC30: 2023-11-01 | AD30: =Q.Frota!T10 -> 549 | AE30: 549 | AF30: 549 | AG30: 549 | AH30: 549 | AJ30: 2023-11-01 | AK30: =AK29 -> 2.5383 | AL30: 2.5383 | AM30: 0.1336805556 | AN30: 0.4340277778 | AO30: 0.1371527778 | AQ30: 2023-11-01 | AR30: 2.5383 | AS30: =AL30 -> 2.5383 | AT30: 0.1336805556 | AU30: 0.4340277778 | AV30: 0.1371527778 | AX30: 2023-11-01 | AY30: =Folha!E8 -> 532 | AZ30: 688.1395812 | BA30: 156.1395812 | BB30: =Folha!O8 -> 492 | BC30: 659.475073 | BD30: 167.475073 | BE30: =Folha!AI8 -> 0 | BF30: 0 | BG30: 0 | BH30: =Folha!Y8 -> 139 | BI30: 144.4492741 | BJ30: 5.449274053 | BK30: =Folha!AS8 -> 18 | BL30: 23.00523031 | BM30: 5.005230312 | BN30: 1181 | BO30: 1515.069159 | BP30: 334.0691585 | BR30: 2023-11-01 | BS30: =Q.Frota!N10 -> 39 | BT30: 0.9690346084 | BU30: 37.79234973 | BV30: 532 | BW30: 494.2076503 | BX30: 37.79234973 | BY30: 1027314.577 | BZ30: 78559.34999 | CA30: 1105873.927
B31: 2023-12-01 | C31: 1607.048856 | D31: 1607.048856 | E31: 492.3497268 | F31: 37.65027322 | G31: 1607.048856 | H31: 840.169008 | I31: 1420.221142 | J31: 1119.086002 | K31: 1462.018611 | M31: 2023-12-01 | N31: =Folha!G9 -> 1434174.749 | O31: =Folha!Q9 -> 706483.0099 | P31: =Folha!AK9 -> 0 | Q31: =Folha!AA9 -> 215033.9557 | R31: =Folha!AU9 -> 44505.60497 | S31: 2400197.32 | U31: 2023-12-01 | V31: 892.4275974 | W31: 840.8820167 | X31: 0 | Y31: 192.1514123 | Z31: 30.44120275 | AA31: 1955.902229 | AC31: 2023-12-01 | AD31: =Q.Frota!T11 -> 549 | AE31: 549 | AF31: 549 | AG31: 549 | AH31: 549 | AJ31: 2023-12-01 | AK31: 2.5383 | AL31: 2.5383 | AM31: 0.1336805556 | AN31: 0.4340277778 | AO31: 0.1371527778 | AQ31: 2023-12-01 | AR31: 2.5383 | AS31: =AL31 -> 2.5383 | AT31: 0.1336805556 | AU31: 0.4340277778 | AV31: 0.1371527778 | AX31: 2023-12-01 | AY31: =Folha!E9 -> 530 | AZ31: 892.4275974 | BA31: 362.4275974 | BB31: =Folha!O9 -> 530 | BC31: 840.8820167 | BD31: 310.8820167 | BE31: =Folha!AI9 -> 0 | BF31: 0 | BG31: 0 | BH31: =Folha!Y9 -> 152 | BI31: 192.1514123 | BJ31: 40.15141235 | BK31: =Folha!AS9 -> 18 | BL31: 30.44120275 | BM31: 12.44120275 | BN31: 1230 | BO31: 1955.902229 | BP31: 725.9022292 | BR31: 2023-12-01 | BS31: =Q.Frota!N11 -> 39 | BT31: 0.9653916211 | BU31: 37.65027322 | BV31: 530 | BW31: 492.3497268 | BX31: 37.65027322 | BY31: 1332293.483 | BZ31: 101881.2664 | CA31: 1434174.749
B32: 2024-01-01 | C32: 1607.048856 | D32: 1607.048856 | E32: 683.715847 | F32: 52.28415301 | G32: 1607.048856 | H32: 840.169008 | I32: 1420.221142 | J32: 1119.086002 | K32: 1462.018611 | M32: 2024-01-01 | N32: =Folha!G10 -> 1173581.178 | O32: =Folha!Q10 -> 575359.1966 | P32: =Folha!AK10 -> 0 | Q32: =Folha!AA10 -> 187750.8012 | R32: =Folha!AU10 -> 38658.81392 | S32: 1975349.99 | U32: 2024-01-01 | V32: 730.271002 | W32: 684.8136401 | X32: 0 | Y32: 167.7715573 | Z32: 26.44208057 | AA32: 1609.29828 | AC32: 2024-01-01 | AD32: =Q.Frota!T12 -> 549 | AE32: 549 | AF32: 549 | AG32: 549 | AH32: 549 | AJ32: 2024-01-01 | AK32: 2.5383 | AL32: 2.5383 | AM32: 0.1336805556 | AN32: 0.4340277778 | AO32: 0.1371527778 | AQ32: 2024-01-01 | AR32: 2.5383 | AS32: 2.5383 | AT32: 0.1336805556 | AU32: 0.4340277778 | AV32: 0.1371527778 | AX32: 2024-01-01 | AY32: =Folha!E10 -> 736 | AZ32: 730.271002 | BA32: -5.728998047 | BB32: =Folha!O10 -> 767 | BC32: 684.8136401 | BD32: -82.18635995 | BE32: =Folha!AI10 -> 0 | BF32: 0 | BG32: 0 | BH32: =Folha!Y10 -> 175 | BI32: 167.7715573 | BJ32: -7.22844274 | BK32: =Folha!AS10 -> 19 | BL32: 26.44208057 | BM32: 7.44208057 | BN32: 1697 | BO32: 1609.29828 | BP32: -87.70172016 | BR32: 2024-01-01 | BS32: =Q.Frota!N12 -> 39 | BT32: 1.340619308 | BU32: 52.28415301 | BV32: 736 | BW32: 683.715847 | BX32: 52.28415301 | BY32: 1090212.024 | BZ32: 83369.15474 | CA32: 1173581.178
B33: 2024-02-01 | C33: 1607.048856 | D33: 1607.048856 | E33: 847.2131148 | F33: 64.78688525 | G33: 1607.048856 | H33: 840.169008 | I33: 1420.221142 | J33: 1119.086002 | K33: 1462.018611 | M33: 2024-02-01 | N33: =Folha!G11 -> 1549350.896 | O33: =Folha!Q11 -> 779419.6111 | P33: =Folha!AK11 -> 0 | Q33: =Folha!AA11 -> 204703.8734 | R33: =Folha!AU11 -> 38331.80953 | S33: 2571806.19 | U33: 2024-02-01 | V33: 964.0969471 | W33: 927.6938375 | X33: 0 | Y33: 182.9205916 | Z33: 26.21841421 | AA33: 2100.92979 | AC33: 2024-02-01 | AD33: =Q.Frota!T13 -> 549 | AE33: 549 | AF33: 549 | AG33: 549 | AH33: 549 | AJ33: 2024-02-01 | AK33: 2.5383 | AL33: 2.5383 | AM33: 0.1336805556 | AN33: 0.4340277778 | AO33: 0.1371527778 | AQ33: 2024-02-01 | AR33: 2.5383 | AS33: 2.5383 | AT33: 0.1336805556 | AU33: 0.4340277778 | AV33: 0.1371527778 | AX33: 2024-02-01 | AY33: =Folha!E11 -> 912 | AZ33: 964.0969471 | BA33: 52.09694708 | BB33: =Folha!O11 -> 943 | BC33: 927.6938375 | BD33: -15.30616254 | BE33: =Folha!AI11 -> 0 | BF33: 0 | BG33: 0 | BH33: =Folha!Y11 -> 200 | BI33: 182.9205916 | BJ33: -17.07940842 | BK33: =Folha!AS11 -> 19 | BL33: 26.21841421 | BM33: 7.218414209 | BN33: 2074 | BO33: 2100.92979 | BP33: 26.92979033 | BR33: 2024-02-01 | BS33: =Q.Frota!N13 -> 39 | BT33: 1.661202186 | BU33: 64.78688525 | BV33: 912 | BW33: 847.2131148 | BX33: 64.78688525 | BY33: 1439287.717 | BZ33: 110063.1784 | CA33: 1549350.896
B34: 2024-03-01 | C34: 1607.048856 | D34: 1607.048856 | E34: 1012.568306 | F34: 77.43169399 | G34: 1607.048856 | H34: 840.169008 | I34: 1420.221142 | J34: 1119.086002 | K34: 1462.018611 | M34: 2024-03-01 | N34: =Folha!G12 -> 2061476.556 | O34: =Folha!Q12 -> 1059982.386 | P34: =Folha!AK12 -> 0 | Q34: =Folha!AA12 -> 218180.809 | R34: =Folha!AU12 -> 37496.08903 | S34: 3377135.84 | U34: 2024-03-01 | V34: 1282.771553 | W34: 1261.629953 | X34: 0 | Y34: 194.9633976 | Z34: 25.64679324 | AA34: 2765.011696 | AC34: 2024-03-01 | AD34: =Q.Frota!T14 -> 549 | AE34: 549 | AF34: 549 | AG34: 549 | AH34: 549 | AJ34: 2024-03-01 | AK34: 2.5383 | AL34: 2.5383 | AM34: 0.1336805556 | AN34: 0.4340277778 | AO34: 0.1371527778 | AQ34: 2024-03-01 | AR34: 2.5383 | AS34: 2.5383 | AT34: 0.1336805556 | AU34: 0.4340277778 | AV34: 0.1371527778 | AX34: 2024-03-01 | AY34: =Folha!E12 -> 1090 | AZ34: 1282.771553 | BA34: 192.7715526 | BB34: =Folha!O12 -> 1133 | BC34: 1261.629953 | BD34: 128.6299527 | BE34: =Folha!AI12 -> 0 | BF34: 0 | BG34: 0 | BH34: =Folha!Y12 -> 207 | BI34: 194.9633976 | BJ34: -12.03660245 | BK34: =Folha!AS12 -> 20 | BL34: 25.64679324 | BM34: 5.646793238 | BN34: 2450 | BO34: 2765.011696 | BP34: 315.0116961 | BR34: 2024-03-01 | BS34: =Q.Frota!N14 -> 39 | BT34: 1.985428051 | BU34: 77.43169399 | BV34: =AY34 -> 1090 | BW34: 1012.568306 | BX34: 77.43169399 | BY34: 1915032.866 | BZ34: 146443.6898 | CA34: 2061476.556
B35: 2024-04-01 | C35: 1607.048856 | D35: 1607.048856 | E35: 1073.879781 | F35: 82.12021858 | G35: 1607.048856 | H35: 840.169008 | I35: 1420.221142 | J35: 1119.086002 | K35: 1462.018611 | M35: 2024-04-01 | N35: =Folha!G13 -> 2199862.525 | O35: =Folha!Q13 -> 1132896.787 | P35: =Folha!AK13 -> 0 | Q35: =Folha!AA13 -> 254672.9206 | R35: =Folha!AU13 -> 46586.20723 | S35: 3634018.44 | U35: 2024-04-01 | V35: 1368.883414 | W35: 1348.41535 | X35: 0 | Y35: 227.5722512 | Z35: 31.8643052 | AA35: 2976.735321 | AC35: 2024-04-01 | AD35: =Q.Frota!T15 -> 549 | AE35: 549 | AF35: 549 | AG35: 549 | AH35: 549 | AJ35: 2024-04-01 | AK35: 2.5383 | AL35: 2.5383 | AM35: 0.1336805556 | AN35: 0.4340277778 | AO35: 0.1371527778 | AQ35: 2024-04-01 | AR35: 2.5383 | AS35: 2.5383 | AT35: 0.1336805556 | AU35: 0.4340277778 | AV35: 0.1371527778 | AX35: 2024-04-01 | AY35: =Folha!E13 -> 1156 | AZ35: 1368.883414 | BA35: 212.8834143 | BB35: =Folha!O13 -> 1141 | BC35: 1348.41535 | BD35: 207.4153503 | BE35: =Folha!AI13 -> 0 | BF35: 0 | BG35: 0 | BH35: =Folha!Y13 -> 232 | BI35: 227.5722512 | BJ35: -4.427748843 | BK35: =Folha!AS13 -> 19 | BL35: 31.8643052 | BM35: 12.8643052 | BN35: 2548 | BO35: 2976.735321 | BP35: 428.7353209 | BR35: 2024-04-01 | BS35: =Q.Frota!N15 -> 39 | BT35: 2.10564663 | BU35: 82.12021858 | BV35: 1156 | BW35: 1073.879781 | BX35: 82.12021858 | BY35: 2043588.138 | BZ35: 156274.387 | CA35: 2199862.525
B36: 2024-05-01 | C36: 1607.048856 | D36: 1607.048856 | E36: 1026.502732 | F36: 78.49726776 | G36: 1607.048856 | H36: 840.169008 | I36: 1420.221142 | J36: 1119.086002 | K36: 1462.018611 | M36: 2024-05-01 | N36: =Folha!G14 -> 2194237.904 | O36: =Folha!Q14 -> 1101258.63 | P36: =Folha!AK14 -> 0 | Q36: =Folha!AA14 -> 256622.8868 | R36: =Folha!AU14 -> 44187.73881 | S36: 3596307.16 | U36: 2024-05-01 | V36: 1365.383446 | W36: 1310.758454 | X36: 0 | Y36: 229.3147144 | Z36: 30.2237868 | AA36: 2935.680401 | AC36: 2024-05-01 | AD36: =Q.Frota!T16 -> 549 | AE36: 549 | AF36: 549 | AG36: 549 | AH36: 549 | AJ36: 2024-05-01 | AK36: 2.5383 | AL36: 2.5383 | AM36: 0.1336805556 | AN36: 0.4340277778 | AO36: 0.1371527778 | AQ36: 2024-05-01 | AR36: 2.5383 | AS36: 2.5383 | AT36: 0.1336805556 | AU36: 0.4340277778 | AV36: 0.1371527778 | AX36: 2024-05-01 | AY36: =Folha!E14 -> 1105 | AZ36: 1365.383446 | BA36: 260.3834456 | BB36: =Folha!O14 -> 1041 | BC36: 1310.758454 | BD36: 269.758454 | BE36: =Folha!AI14 -> 0 | BF36: 0 | BG36: 0 | BH36: =Folha!Y14 -> 224 | BI36: 229.3147144 | BJ36: 5.314714378 | BK36: =Folha!AS14 -> 20 | BL36: 30.2237868 | BM36: 10.2237868 | BN36: 2390 | BO36: 2935.680401 | BP36: 545.6804008 | BR36: 2024-05-01 | BS36: =Q.Frota!N16 -> 39 | BT36: 2.012750455 | BU36: 78.49726776 | BV36: 1105 | BW36: 1026.502732 | BX36: 78.49726776 | BY36: 2038363.081 | BZ36: 155874.8238 | CA36: 2194237.904
B37: 2024-06-01 | C37: =C36*(C9/100*100+1) -> 1928.458627 | D37: =D36*(D9/100*100+1) -> 2089.163513 | E37: 993.989071 | F37: 76.01092896 | G37: 1939.874821 | H37: =H36*(E9/100*100+1) -> 1008.20281 | I37: =I36*(F9/100*100+1) -> 1704.26537 | J37: =J36*(F9/100*100+1) -> 1342.903202 | K37: =K36*(F9/100*100+1) -> 1754.422334 | M37: 2024-06-01 | N37: =Folha!G15 -> 2133616.033 | O37: =Folha!Q15 -> 1069977.47 | P37: =Folha!AK15 -> 0 | Q37: =Folha!AA15 -> 258550.5008 | R37: =Folha!AU15 -> 48708.55608 | S37: 3510852.56 | U37: 2024-06-01 | V37: 1099.873048 | W37: 1061.272057 | X37: 0 | Y37: 192.5310033 | Z37: 27.76330143 | AA37: 2381.43941 | AC37: 2024-06-01 | AD37: =Q.Frota!T17 -> 549 | AE37: 549 | AF37: 549 | AG37: 549 | AH37: 549 | AJ37: 2024-06-01 | AK37: 2.5383 | AL37: 2.5383 | AM37: 0.1336805556 | AN37: 0.4340277778 | AO37: 0.1371527778 | AQ37: 2024-06-01 | AR37: 2.5383 | AS37: 2.5383 | AT37: 0.1336805556 | AU37: 0.4340277778 | AV37: 0.1371527778 | AX37: 2024-06-01 | AY37: =Folha!E15 -> 1070 | AZ37: 1099.873048 | BA37: 29.87304848 | BB37: =Folha!O15 -> 1062 | BC37: 1061.272057 | BD37: -0.7279428641 | BE37: =Folha!AI15 -> 0 | BF37: 0 | BG37: 0 | BH37: =Folha!Y15 -> 222 | BI37: 192.5310033 | BJ37: -29.46899667 | BK37: =Folha!AS15 -> 23 | BL37: 27.76330143 | BM37: 4.763301429 | BN37: 2377 | BO37: 2381.43941 | BP37: 4.439410372 | BR37: 2024-06-01 | BS37: =Q.Frota!N17 -> 39 | BT37: 1.948998179 | BU37: 76.01092896 | BV37: 1070 | BW37: 993.989071 | BX37: 76.01092896 | BY37: 1982047.681 | BZ37: 151568.3521 | CA37: 2133616.033
B39: =B22 -> Bacia 5 | C39: R$ da Licitação corrigidos nos Dissídios Coletivos | K39: Ano 2 | M39: =B39 -> Bacia 5 | N39: R$ Salário Total Com Horas Extras e Adicional Noturno Pago Por Função (Sem inclusão de Encargos Sociais) - Valor de GFIP | S39: =K39 -> Ano 2 | U39: =M39 -> Bacia 5 | V39: Quantidade de Funcionários - Cálculo pela Folha | AA39: =S39 -> Ano 2 | AC39: =U39 -> Bacia 5 | AD39: Quantidade de Frota Operacional | AH39: =AA39 -> Ano 2 | AJ39: =AC39 -> Bacia 5 | AK39: FU POR FUNÇÃO | AO39: =AH39 -> Ano 2 | AQ39: =AJ39 -> Bacia 5 | AR39: FU FÍSICO PARA BENEFÍCIOS | AV39: =AO39 -> Ano 2 | AX39: =AQ39 -> Bacia 5 | AY39: Qtde. Funcionários - FÍSICO para Benefícios e FOLHA para Salários base de cálculo dos Enc.Sociais | BP39: =AV39 -> Ano 2 | BR39: =AX39 -> Bacia 5 | BS39: =BP39 -> Ano 2
B40: Mês | C40: R$ Salário Médio da Função (Sem Encargos) | M40: Mês | U40: Mês | V40: Inclusas todas as Horas Extras | AC40: Mês | AJ40: Mês | AK40: CÁLCULO SOBRE A FOLHA DE PAGAMENTO | AQ40: Mês | AX40: Mês | AY40: Motoristas | BB40: Cobradores | BE40: Controle Operacional | BH40: Manutenção | BK40: Administração | BN40: Total Geral | BR40: Mês | BS40: Cálculo Mot.Articulados | BV40: Qtde. Física de Motoristas | BY40: Cálculo R$ Mot.Artic. | CA40: R$
C41: Motoristas | E41: Qtde.Física de Mot. | G41: R$ Salário | H41: Cobradores | I41: Controle | J41: Manu- | K41: Admi- | M41: de | N41: Motoristas | O41: Cobradores | P41: Controle | Q41: Manutenção | R41: Administração | S41: R$ | V41: Motoristas | W41: Cobradores | X41: Controle | Y41: Manutenção | Z41: Administração | AA41: Qtde. | AC41: de | AD41: Motoristas | AE41: Cobradores | AF41: Controle | AG41: Manutenção | AH41: Administração | AJ41: de | AK41: Motoristas | AL41: Cobradores | AM41: Controle | AN41: Manutenção | AO41: Administração | AQ41: de | AR41: Motoristas | AS41: Cobradores | AT41: Controle | AU41: Manutenção | AV41: Administração | AX41: de | AY41: Físico | AZ41: Folha | BA41: Dif.Folha | BB41: Físico | BC41: Folha | BD41: Dif.Folha | BE41: Físico | BF41: Folha | BG41: Dif.Folha | BH41: Físico | BI41: Folha | BJ41: Dif.Folha | BK41: Físico | BL41: Folha | BM41: Dif.Folha | BN41: Físico | BO41: Folha | BP41: Dif.Folha | BR41: de | BS41: Frota | BT41: FU físico | BU41: Mot. | BV41: Mot. | BW41: Mot. | BX41: Mot. | BY41: R$ Mot. | BZ41: R$ Mot. | CA41: Total
B42: Ref. | C42: Diversos | D42: Artic. | E42: Div. | F42: Artic. | G42: Médio Mot. | I42: Operacional | J42: tenção | K42: nistração | M42: Ref. | N42: Diversos | P42: Operacional | S42: Total | U42: Ref. | X42: Operacional | AA42: Total | AC42: Ref. | AF42: Operacional | AJ42: Ref. | AM42: Operacional | AQ42: Ref. | AT42: Operacional | AX42: Ref. | BA42: (-) Físico | BD42: (-) Físico | BG42: (-) Físico | BJ42: (-) Físico | BM42: (-) Físico | BP42: (-) Físico | BR42: Ref. | BS42: Artic. | BT42: Mot.Div. | BU42: Artic. | BV42: Total | BW42: Diversos | BX42: Artic. | BY42: Diversos | BZ42: Articulados | CA42: Motoristas
B43: =DATE(YEAR(B37),MONTH(B37)+1,DAY(B37)) -> 2024-07-01 | C43: =C37 -> 1928.458627 | D43: =D37 -> 2089.163513 | E43: =BW43 -> 980.9836066 | F43: 75.01639344 | G43: =IF(C43>0,((C43*E43)+(D43*F43))/(E43+F43),0) -> 1939.874821 | H43: =H37 -> 1008.20281 | I43: =I37 -> 1704.26537 | J43: =J37 -> 1342.903202 | K43: =K37 -> 1754.422334 | M43: =B43 -> 2024-07-01 | N43: =Folha!G16 -> 2080949.646 | O43: =Folha!Q16 -> 1034914.883 | P43: =Folha!AK16 -> 0 | Q43: =Folha!AA16 -> 257485.8065 | R43: =Folha!AU16 -> 53730.22463 | S43: =SUM(N43:R43) -> 3427080.56 | U43: =M43 -> 2024-07-01 | V43: =N43/G43 -> 1072.723674 | W43: 1026.494742 | X43: 0 | Y43: 191.7381731 | Z43: 30.62559317 | AA43: =SUM(V43:Z43) -> 2321.582182 | AC43: =U43 -> 2024-07-01 | AD43: =Q.Frota!T23 -> 549 | AE43: =AD43 -> 549 | AF43: 549 | AG43: 549 | AH43: 549 | AJ43: =AC43 -> 2024-07-01 | AK43: =AK37 -> 2.5383 | AL43: =AL37 -> 2.5383 | AM43: =AM26 -> 0.1336805556 | AN43: 0.4340277778 | AO43: 0.1371527778 | AQ43: =AJ43 -> 2024-07-01 | AR43: 2.5383 | AS43: 2.5383 | AT43: 0.1336805556 | AU43: 0.4340277778 | AV43: 0.1371527778 | AX43: =AQ43 -> 2024-07-01 | AY43: =Folha!E16 -> 1056 | AZ43: =V43 -> 1072.723674 | BA43: =AZ43-AY43 -> 16.7236743 | BB43: =Folha!O16 -> 1035 | BC43: =W43 -> 1026.494742 | BD43: =BC43-BB43 -> -8.50525802 | BE43: =Folha!AI16 -> 0 | BF43: =X43 -> 0 | BG43: =BF43-BE43 -> 0 | BH43: =Folha!Y16 -> 220 | BI43: =Y43 -> 191.7381731 | BJ43: =BI43-BH43 -> -28.26182694 | BK43: =Folha!AS16 -> 25 | BL43: =Z43 -> 30.62559317 | BM43: =BL43-BK43 -> 5.625593166 | BN43: =AY43+BB43+BE43+BH43+BK43 -> 2336 | BO43: 2321.582182 | BP43: =BO43-BN43 -> -14.4178175 | BR43: =AX43 -> 2024-07-01 | BS43: =Q.Frota!N23 -> 39 | BT43: =AY43/AD43 -> 1.923497268 | BU43: =BT43*BS43 -> 75.01639344 | BV43: =AY43 -> 1056 | BW43: =BV43-BX43 -> 980.9836066 | BX43: =BU43 -> 75.01639344 | BY43: =N43/BV43*BW43 -> 1933122.622 | BZ43: =N43/BV43*BX43 -> 147827.024 | CA43: =BY43+BZ43 -> 2080949.646
B44: =DATE(YEAR(B43),MONTH(B43)+1,DAY(B43)) -> 2024-08-01 | C44: =C43 -> 1928.458627 | D44: 2089.163513 | E44: 986.557377 | F44: 75.44262295 | G44: 1939.874821 | H44: =H43 -> 1008.20281 | I44: 1704.26537 | J44: 1342.903202 | K44: 1754.422334 | M44: 2024-08-01 | N44: =Folha!G17 -> 2010931.532 | O44: =Folha!Q17 -> 988936.672 | P44: =Folha!AK17 -> 0 | Q44: =Folha!AA17 -> 263081.0562 | R44: =Folha!AU17 -> 60261.56986 | S44: 3323210.83 | U44: 2024-08-01 | V44: 1036.629534 | W44: 980.8906131 | X44: 0 | Y44: 195.9047055 | Z44: 34.34838277 | AA44: 2247.773235 | AC44: 2024-08-01 | AD44: =Q.Frota!T24 -> 549 | AE44: 549 | AF44: 549 | AG44: 549 | AH44: 549 | AJ44: 2024-08-01 | AK44: =AK43 -> 2.5383 | AL44: =AL43 -> 2.5383 | AM44: 0.1336805556 | AN44: 0.4340277778 | AO44: 0.1371527778 | AQ44: 2024-08-01 | AR44: 2.5383 | AS44: 2.5383 | AT44: 0.1336805556 | AU44: 0.4340277778 | AV44: 0.1371527778 | AX44: 2024-08-01 | AY44: =Folha!E17 -> 1062 | AZ44: 1036.629534 | BA44: -25.37046603 | BB44: =Folha!O17 -> 1037 | BC44: 980.8906131 | BD44: -56.10938695 | BE44: =Folha!AI17 -> 0 | BF44: 0 | BG44: 0 | BH44: =Folha!Y17 -> 228 | BI44: 195.9047055 | BJ44: -32.09529454 | BK44: =Folha!AS17 -> 67 | BL44: 34.34838277 | BM44: -32.65161723 | BN44: 2394 | BO44: 2247.773235 | BP44: -146.2267647 | BR44: 2024-08-01 | BS44: =Q.Frota!N24 -> 39 | BT44: 1.93442623 | BU44: 75.44262295 | BV44: 1062 | BW44: 986.557377 | BX44: 75.44262295 | BY44: 1868078.472 | BZ44: 142853.0596 | CA44: 2010931.532
B45: 2024-09-01 | C45: 1928.458627 | D45: 2089.163513 | E45: 990.273224 | F45: 75.72677596 | G45: 1939.874821 | H45: 1008.20281 | I45: 1704.26537 | J45: 1342.903202 | K45: 1754.422334 | M45: 2024-09-01 | N45: =Folha!G18 -> 1832037.276 | O45: =Folha!Q18 -> 891071.6973 | P45: =Folha!AK18 -> 0 | Q45: =Folha!AA18 -> 245871.0576 | R45: =Folha!AU18 -> 76807.35931 | S45: 3045787.39 | U45: 2024-09-01 | V45: 944.4100494 | W45: 883.8218747 | X45: 0 | Y45: 183.0891886 | Z45: 43.77928725 | AA45: 2055.1004 | AC45: 2024-09-01 | AD45: =Q.Frota!T25 -> 549 | AE45: 549 | AF45: 549 | AG45: 549 | AH45: 549 | AJ45: 2024-09-01 | AK45: =AK44 -> 2.5383 | AL45: 2.5383 | AM45: 0.1336805556 | AN45: 0.4340277778 | AO45: 0.1371527778 | AQ45: 2024-09-01 | AR45: 2.5383 | AS45: 2.5383 | AT45: 0.1336805556 | AU45: 0.4340277778 | AV45: 0.1371527778 | AX45: 2024-09-01 | AY45: =Folha!E18 -> 1066 | AZ45: 944.4100494 | BA45: -121.5899506 | BB45: =Folha!O18 -> 1049 | BC45: 883.8218747 | BD45: -165.1781253 | BE45: =Folha!AI18 -> 0 | BF45: 0 | BG45: 0 | BH45: =Folha!Y18 -> 227 | BI45: 183.0891886 | BJ45: -43.91081141 | BK45: =Folha!AS18 -> 69 | BL45: 43.77928725 | BM45: -25.22071275 | BN45: 2411 | BO45: 2055.1004 | BP45: -355.8996 | BR45: 2024-09-01 | BS45: =Q.Frota!N25 -> 39 | BT45: 1.941712204 | BU45: 75.72677596 | BV45: 1066 | BW45: 990.273224 | BX45: 75.72677596 | BY45: 1701892.551 | BZ45: 130144.7245 | CA45: 1832037.276
B46: 2024-10-01 | C46: 1928.458627 | D46: 2089.163513 | E46: 988.4153005 | F46: 75.58469945 | G46: 1939.874821 | H46: 1008.20281 | I46: 1704.26537 | J46: 1342.903202 | K46: 1754.422334 | M46: 2024-10-01 | N46: =Folha!G19 -> 4155153.337 | O46: =Folha!Q19 -> 2035822.914 | P46: =Folha!AK19 -> 0 | Q46: =Folha!AA19 -> 507186.2886 | R46: =Folha!AU19 -> 121653.1608 | S46: 6819815.7 | U46: 2024-10-01 | V46: 2141.969828 | W46: 2019.259314 | X46: 0 | Y46: 377.6789629 | Z46: 69.34086421 | AA46: 4608.248969 | AC46: 2024-10-01 | AD46: =Q.Frota!T26 -> 549 | AE46: 549 | AF46: 549 | AG46: 549 | AH46: 549 | AJ46: 2024-10-01 | AK46: 2.5383 | AL46: 2.5383 | AM46: 0.1336805556 | AN46: 0.4340277778 | AO46: 0.1371527778 | AQ46: 2024-10-01 | AR46: 2.5383 | AS46: 2.5383 | AT46: 0.1336805556 | AU46: 0.4340277778 | AV46: 0.1371527778 | AX46: 2024-10-01 | AY46: =Folha!E19 -> 1064 | AZ46: 2141.969828 | BA46: 1077.969828 | BB46: =Folha!O19 -> 1065 | BC46: 2019.259314 | BD46: 954.2593139 | BE46: =Folha!AI19 -> 0 | BF46: 0 | BG46: 0 | BH46: =Folha!Y19 -> 217 | BI46: 377.6789629 | BJ46: 160.6789629 | BK46: =Folha!AS19 -> 63 | BL46: 69.34086421 | BM46: 6.340864208 | BN46: 2409 | BO46: 4608.248969 | BP46: 2199.248969 | BR46: 2024-10-01 | BS46: =Q.Frota!N26 -> 39 | BT46: 1.938069217 | BU46: 75.58469945 | BV46: 1064 | BW46: 988.4153005 | BX46: 75.58469945 | BY46: 3859978.51 | BZ46: 295174.8272 | CA46: 4155153.337
B47: 2024-11-01 | C47: 1928.458627 | D47: 2089.163513 | E47: 1004.20765 | F47: 76.79234973 | G47: 1939.874821 | H47: 1008.20281 | I47: 1704.26537 | J47: 1342.903202 | K47: 1754.422334 | M47: 2024-11-01 | N47: =Folha!G20 -> 2326428.676 | O47: =Folha!Q20 -> 1170445.348 | P47: =Folha!AK20 -> 0 | Q47: =Folha!AA20 -> 289945.1313 | R47: =Folha!AU20 -> 91541.26477 | S47: 3878360.42 | U47: 2024-11-01 | V47: 1199.267422 | W47: 1160.922522 | X47: 0 | Y47: 215.9091816 | Z47: 52.17743927 | AA47: 2628.276565 | AC47: 2024-11-01 | AD47: =Q.Frota!T27 -> 549 | AE47: 549 | AF47: 549 | AG47: 549 | AH47: 549 | AJ47: 2024-11-01 | AK47: 2.5383 | AL47: 2.5383 | AM47: 0.1336805556 | AN47: 0.4340277778 | AO47: 0.1371527778 | AQ47: 2024-11-01 | AR47: 2.5383 | AS47: 2.5383 | AT47: 0.1336805556 | AU47: 0.4340277778 | AV47: 0.1371527778 | AX47: 2024-11-01 | AY47: =Folha!E20 -> 1081 | AZ47: 1199.267422 | BA47: 118.267422 | BB47: =Folha!O20 -> 1077 | BC47: 1160.922522 | BD47: 83.92252165 | BE47: =Folha!AI20 -> 0 | BF47: 0 | BG47: 0 | BH47: =Folha!Y20 -> 212 | BI47: 215.9091816 | BJ47: 3.909181636 | BK47: =Folha!AS20 -> 62 | BL47: 52.17743927 | BM47: -9.822560728 | BN47: 2432 | BO47: 2628.276565 | BP47: 196.2765645 | BR47: 2024-11-01 | BS47: =Q.Frota!N27 -> 39 | BT47: 1.969034608 | BU47: 76.79234973 | BV47: 1081 | BW47: 1004.20765 | BX47: 76.79234973 | BY47: 2161163.251 | BZ47: 165265.4251 | CA47: 2326428.676
B48: 2024-12-01 | C48: 1928.458627 | D48: 2089.163513 | E48: 1024.644809 | F48: 78.35519126 | G48: 1939.874821 | H48: 1008.20281 | I48: 1704.26537 | J48: 1342.903202 | K48: 1754.422334 | M48: 2024-12-01 | N48: =Folha!G21 -> 2461230.978 | O48: =Folha!Q21 -> 1239814.913 | P48: =Folha!AK21 -> 0 | Q48: =Folha!AA21 -> 305638.9098 | R48: =Folha!AU21 -> 90411.72938 | S48: 4097096.53 | U48: 2024-12-01 | V48: 1268.757628 | W48: 1229.727691 | X48: 0 | Y48: 227.5956371 | Z48: 51.53361744 | AA48: 2777.614574 | AC48: 2024-12-01 | AD48: =Q.Frota!T28 -> 549 | AE48: 549 | AF48: 549 | AG48: 549 | AH48: 549 | AJ48: 2024-12-01 | AK48: 2.5383 | AL48: 2.5383 | AM48: 0.1336805556 | AN48: 0.4340277778 | AO48: 0.1371527778 | AQ48: 2024-12-01 | AR48: 2.5383 | AS48: 2.5383 | AT48: 0.1336805556 | AU48: 0.4340277778 | AV48: 0.1371527778 | AX48: 2024-12-01 | AY48: =Folha!E21 -> 1103 | AZ48: 1268.757628 | BA48: 165.7576285 | BB48: =Folha!O21 -> 1092 | BC48: 1229.727691 | BD48: 137.7276909 | BE48: =Folha!AI21 -> 0 | BF48: 0 | BG48: 0 | BH48: =Folha!Y21 -> 219 | BI48: 227.5956371 | BJ48: 8.595637126 | BK48: =Folha!AS21 -> 58 | BL48: 51.53361744 | BM48: -6.466382556 | BN48: 2472 | BO48: 2777.614574 | BP48: 305.6145739 | BR48: 2024-12-01 | BS48: =Q.Frota!N28 -> 39 | BT48: 2.009107468 | BU48: 78.35519126 | BV48: 1103 | BW48: 1024.644809 | BX48: 78.35519126 | BY48: 2286389.433 | BZ48: 174841.5449 | CA48: 2461230.978
B49: 2025-01-01 | C49: 1928.458627 | D49: 2089.163513 | E49: 1013.497268 | F49: 77.50273224 | G49: 1939.874821 | H49: 1008.20281 | I49: 1704.26537 | J49: 1342.903202 | K49: 1754.422334 | M49: 2025-01-01 | N49: =Folha!G22 -> 2391352.676 | O49: =Folha!Q22 -> 1204062.439 | P49: =Folha!AK22 -> 0 | Q49: =Folha!AA22 -> 303812.5357 | R49: =Folha!AU22 -> 86308.87885 | S49: 3985536.53 | U49: 2025-01-01 | V49: 1232.735561 | W49: 1194.266102 | X49: 0 | Y49: 226.2356179 | Z49: 49.19504112 | AA49: 2702.432322 | AC49: 2025-01-01 | AD49: =Q.Frota!T29 -> 549 | AE49: 549 | AF49: 549 | AG49: 549 | AH49: 549 | AJ49: 2025-01-01 | AK49: 2.5383 | AL49: 2.5383 | AM49: 0.1336805556 | AN49: 0.4340277778 | AO49: 0.1371527778 | AQ49: 2025-01-01 | AR49: 2.5383 | AS49: 2.5383 | AT49: 0.1336805556 | AU49: 0.4340277778 | AV49: 0.1371527778 | AX49: 2025-01-01 | AY49: =Folha!E22 -> 1091 | AZ49: 1232.735561 | BA49: 141.7355612 | BB49: =Folha!O22 -> 1081 | BC49: 1194.266102 | BD49: 113.2661016 | BE49: =Folha!AI22 -> 0 | BF49: 0 | BG49: 0 | BH49: =Folha!Y22 -> 226 | BI49: 226.2356179 | BJ49: 0.2356179393 | BK49: =Folha!AS22 -> 54 | BL49: 49.19504112 | BM49: -4.804958878 | BN49: 2452 | BO49: 2702.432322 | BP49: 250.4323219 | BR49: 2025-01-01 | BS49: =Q.Frota!N29 -> 39 | BT49: 1.987249545 | BU49: 77.50273224 | BV49: 1091 | BW49: 1013.497268 | BX49: 77.50273224 | BY49: 2221475.164 | BZ49: 169877.5125 | CA49: 2391352.676
B50: 2025-02-01 | C50: 1928.458627 | D50: 2089.163513 | E50: 1043.224044 | F50: 79.77595628 | G50: 1939.874821 | H50: 1008.20281 | I50: 1704.26537 | J50: 1342.903202 | K50: 1754.422334 | M50: 2025-02-01 | N50: =Folha!G23 -> 2636085.055 | O50: =Folha!Q23 -> 1324150.186 | P50: =Folha!AK23 -> 0 | Q50: =Folha!AA23 -> 314903.4455 | R50: =Folha!AU23 -> 84000.20376 | S50: 4359138.89 | U50: 2025-02-01 | V50: 1358.894412 | W50: 1313.376806 | X50: 0 | Y50: 234.4945228 | Z50: 47.8791236 | AA50: 2954.644864 | AC50: 2025-02-01 | AD50: =Q.Frota!T30 -> 549 | AE50: 549 | AF50: 549 | AG50: 549 | AH50: 549 | AJ50: 2025-02-01 | AK50: 2.5383 | AL50: 2.5383 | AM50: 0.1336805556 | AN50: 0.4340277778 | AO50: 0.1371527778 | AQ50: 2025-02-01 | AR50: 2.5383 | AS50: 2.5383 | AT50: 0.1336805556 | AU50: 0.4340277778 | AV50: 0.1371527778 | AX50: 2025-02-01 | AY50: =Folha!E23 -> 1123 | AZ50: 1358.894412 | BA50: 235.8944122 | BB50: =Folha!O23 -> 1112 | BC50: 1313.376806 | BD50: 201.3768059 | BE50: =Folha!AI23 -> 0 | BF50: 0 | BG50: 0 | BH50: =Folha!Y23 -> 239 | BI50: 234.4945228 | BJ50: -4.505477201 | BK50: =Folha!AS23 -> 51 | BL50: 47.8791236 | BM50: -3.120876398 | BN50: 2525 | BO50: 2954.644864 | BP50: 429.6448645 | BR50: 2025-02-01 | BS50: =Q.Frota!N30 -> 39 | BT50: 2.045537341 | BU50: 79.77595628 | BV50: 1123 | BW50: 1043.224044 | BX50: 79.77595628 | BY50: 2448822.182 | BZ50: 187262.8728 | CA50: 2636085.055
B51: 2025-03-01 | C51: 1928.458627 | D51: 2089.163513 | E51: 1030.218579 | F51: 78.78142077 | G51: 1939.874821 | H51: 1008.20281 | I51: 1704.26537 | J51: 1342.903202 | K51: 1754.422334 | M51: 2025-03-01 | N51: =Folha!G24 -> 2586260.597 | O51: =Folha!Q24 -> 1301620.318 | P51: =Folha!AK24 -> 0 | Q51: =Folha!AA24 -> 310484.8202 | R51: =Folha!AU24 -> 85690.60444 | S51: 4284056.34 | U51: 2025-03-01 | V51: 1333.210045 | W51: 1291.030243 | X51: 0 | Y51: 231.20417 | Z51: 48.84263202 | AA51: 2904.28709 | AC51: 2025-03-01 | AD51: =Q.Frota!T31 -> 549 | AE51: 549 | AF51: 549 | AG51: 549 | AH51: 549 | AJ51: 2025-03-01 | AK51: 2.5383 | AL51: 2.5383 | AM51: 0.1336805556 | AN51: 0.4340277778 | AO51: 0.1371527778 | AQ51: 2025-03-01 | AR51: 2.5383 | AS51: 2.5383 | AT51: 0.1336805556 | AU51: 0.4340277778 | AV51: 0.1371527778 | AX51: 2025-03-01 | AY51: =Folha!E24 -> 1109 | AZ51: 1333.210045 | BA51: 224.2100449 | BB51: =Folha!O24 -> 1101 | BC51: 1291.030243 | BD51: 190.0302427 | BE51: =Folha!AI24 -> 0 | BF51: 0 | BG51: 0 | BH51: =Folha!Y24 -> 223 | BI51: 231.20417 | BJ51: 8.204169974 | BK51: =Folha!AS24 -> 46 | BL51: 48.84263202 | BM51: 2.842632017 | BN51: 2479 | BO51: 2904.28709 | BP51: 425.2870895 | BR51: 2025-03-01 | BS51: =Q.Frota!N31 -> 39 | BT51: 2.02003643 | BU51: 78.78142077 | BV51: 1109 | BW51: 1030.218579 | BX51: 78.78142077 | BY51: 2402537.167 | BZ51: 183723.4304 | CA51: 2586260.597
B52: 2025-04-01 | C52: 1928.458627 | D52: 2089.163513 | E52: 1020 | F52: 78 | G52: 1939.874821 | H52: 1008.20281 | I52: 1704.26537 | J52: 1342.903202 | K52: 1754.422334 | M52: 2025-04-01 | N52: =Folha!G25 -> 2416019.477 | O52: =Folha!Q25 -> 1210151.079 | P52: =Folha!AK25 -> 0 | Q52: =Folha!AA25 -> 309668.5233 | R52: =Folha!AU25 -> 87055.63058 | S52: 4022894.71 | U52: 2025-04-01 | V52: 1245.451228 | W52: 1200.305204 | X52: 0 | Y52: 230.5963102 | Z52: 49.62068079 | AA52: 2725.973422 | AC52: 2025-04-01 | AD52: =Q.Frota!T32 -> 549 | AE52: 549 | AF52: 549 | AG52: 549 | AH52: 549 | AJ52: 2025-04-01 | AK52: 2.5383 | AL52: 2.5383 | AM52: 0.1336805556 | AN52: 0.4340277778 | AO52: 0.1371527778 | AQ52: 2025-04-01 | AR52: 2.5383 | AS52: 2.5383 | AT52: 0.1336805556 | AU52: 0.4340277778 | AV52: 0.1371527778 | AX52: 2025-04-01 | AY52: =Folha!E25 -> 1098 | AZ52: 1245.451228 | BA52: 147.4512275 | BB52: =Folha!O25 -> 1002 | BC52: 1200.305204 | BD52: 198.3052037 | BE52: =Folha!AI25 -> 0 | BF52: 0 | BG52: 0 | BH52: =Folha!Y25 -> 228 | BI52: 230.5963102 | BJ52: 2.59631021 | BK52: =Folha!AS25 -> 105 | BL52: 49.62068079 | BM52: -55.37931921 | BN52: 2433 | BO52: 2725.973422 | BP52: 292.9734222 | BR52: 2025-04-01 | BS52: =Q.Frota!N32 -> 39 | BT52: 2 | BU52: 78 | BV52: 1098 | BW52: 1020 | BX52: 78 | BY52: 2244389.678 | BZ52: 171629.7989 | CA52: 2416019.477
B53: 2025-05-01 | C53: 1928.458627 | D53: 2089.163513 | E53: 1035.79235 | F53: 79.20765027 | G53: 1939.874821 | H53: 1008.20281 | I53: 1704.26537 | J53: 1342.903202 | K53: 1754.422334 | M53: 2025-05-01 | N53: =Folha!G26 -> 2522833.343 | O53: =Folha!Q26 -> 1287981.636 | P53: =Folha!AK26 -> 0 | Q53: =Folha!AA26 -> 319444.6127 | R53: =Folha!AU26 -> 109056.8585 | S53: 4239316.45 | U53: 2025-05-01 | V53: 1300.513474 | W53: 1277.502526 | X53: 0 | Y53: 237.8761271 | Z53: 62.16112074 | AA53: 2878.053248 | AC53: 2025-05-01 | AD53: =Q.Frota!T33 -> 549 | AE53: 549 | AF53: 549 | AG53: 549 | AH53: 549 | AJ53: 2025-05-01 | AK53: 2.5383 | AL53: 2.5383 | AM53: 0.1336805556 | AN53: 0.4340277778 | AO53: 0.1371527778 | AQ53: 2025-05-01 | AR53: 2.5383 | AS53: 2.5383 | AT53: 0.1336805556 | AU53: 0.4340277778 | AV53: 0.1371527778 | AX53: 2025-05-01 | AY53: =Folha!E26 -> 1115 | AZ53: 1300.513474 | BA53: 185.513474 | BB53: =Folha!O26 -> 1114 | BC53: 1277.502526 | BD53: 163.5025258 | BE53: =Folha!AI26 -> 0 | BF53: 0 | BG53: 0 | BH53: =Folha!Y26 -> 231 | BI53: 237.8761271 | BJ53: 6.876127062 | BK53: =Folha!AS26 -> 103 | BL53: 62.16112074 | BM53: -40.83887926 | BN53: 2563 | BO53: 2878.053248 | BP53: 315.0532477 | BR53: 2025-05-01 | BS53: =Q.Frota!N33 -> 39 | BT53: 2.030965392 | BU53: 79.20765027 | BV53: 1115 | BW53: 1035.79235 | BX53: 79.20765027 | BY53: 2343615.674 | BZ53: 179217.6692 | CA53: 2522833.343
